Workbook

Sheet Obsah
E1: 100
C3: B. Příjmy a výdaje
C4: Zdroje dat jsou uvedeny v zápatí jednotlivých tabulek
C6: Text | E6: Obsah
C8: Tabulka 1 | E8: Veřejné výdaje a příjmy v oblasti školství
C10: Tabulka 2 | E10: Přehled běžných a kapitálových výdajů, příjmů a plnění rozpočtu kapitoly 333-MŠMT
C12: Tabulka 3 | E12: Přehled výdajů kapitoly 333-MŠMT – státní správa a vzdělávání
C14: Tabulka 4 | E14: Příjmy kapitoly 333-MŠMT – podle položek
C16: Tabulka 5 | E16: Příjmy kapitoly 700-Obce a DSO; KÚ (část: vzdělávání) – podle položek
C18: Tabulka 6 | E18: Výdaje kapitoly 333-MŠMT – podle položek
C20: Tabulka 7 | E20: Výdaje kapitoly 700-Obce a DSO; KÚ (část: 31–32– vzdělávání) – podle položek
C22: Tabulka 8 | E22: Běžné a kapitálové výdaje kapitoly 333-MŠMT – podle paragrafů
C24: Tabulka 9 | E24: Běžné a kapitálové výdaje kapitoly 700-Obce a DSO; KÚ (část: 31–32–vzdělávání) – podle paragrafů
C26: Tabulka 10 | E26: Výdaje kapitol 333-MŠMT a 700-Obce a DSO; KÚ (vzdělávání) – podle paragrafů
C28: Tabulka 11 | E28: Poskytnuté dotace církevním školám – podle paragrafů
C30: Tabulka 12 | E30: Porovnání čerpaných dotací církevním školám v letech 20018 a 2019 – vybrané oblasti

Sheet B1
A1: =IF(#REF!="","ŠABLONA",IF(#REF!="T","TISK","ELEKTRO")) ->  | B1: 0 | C1: =CONCATENATE(D1,F1,IF(G1<>"",".",""),G1,IF(H1<>"",".",""),H1,IF(I1<>"",".",""),I1,"") ->  | D1: =IF(#REF!=""," ?",#REF!) ->  | E1: =CONCATENATE(C1,N1) ->  | F1: 1
A2: konst
A3: konst | B3: 9x5 | D3: Tab. B1: | H3: Veřejné výdaje a příjmy v oblasti školství | N3: 3843471 | O3: Tab. B1: | Q3: Veřejné výdaje a příjmy v oblasti vzdělávání a školských služeb
A4: konst | B4: =COUNTA(Datova_oblast) -> 45 | D4: =IF(D1=" ?","",CONCATENATE("Tab. ",E1,":")) ->  | H4: =IF(H3="Zadejte název tabulky","",H3) -> Veřejné výdaje a příjmy v oblasti školství
A5: =IF(D5="","odstr","OK") -> odstr | B5: 0
A6: =IF(COUNTBLANK(C6:IK6)=254,"odstr","OK") -> OK | B6: Řádky pro
A7: =IF(COUNTBLANK(C7:IK7)=254,"odstr","OK") -> OK | B7: ročenku PaM
A8: konst | D8: (podle stavu k: 31. 12. 2017) | N8: v tis. Kč | O8: (podle stavu k: 31. 12. 2020) | Y8: v tis. Kč
A9: konst | J9: Výdaje | M9: Podíl výdajů na HDP | N9: Příjmy celkem | U9: Výdaje | X9: Podíl výdajů na HDP | Y9: Příjmy celkem
A10: konst
A11: konst
A12: konst
A13: konst | B13: nebo odstr | J13: běžné | K13: kapitálové | L13: celkem | U13: běžné | V13: kapitálové | W13: celkem
A14: konst | B14: OK | E14: Kapitola 333-MŠMT | J14: 151878791 | K14: 5632649.007 | L14: 157511440 | M14: 0.03115935438 | N14: 3274552.889 | O14: Kapitola 333-MŠMT | U14: 218320357.4 | V14: 9102348.76 | W14: 227422706 | X14: 0.0402 | Y14: 13488337
A15: konst | B15: OK | E15: Kapitola 700-Obce a DSO1) | J15: 33100413.15 | K15: 10117079.32 | L15: 43217492.48 | M15: 0.008549405449 | N15: 783585.0862 | O15: Kapitola 700-Obce a DSO1) | U15: 40760074.8 | V15: 15763895.65 | W15: 56523970.45 | X15: 0 | Y15: 1091261.353
A16: konst | B16: OK | E16: Kapitola 700-Krajské úřady1) | J16: 97280924.71 | K16: 2068752.588 | L16: 99349677.3 | M16: 0.01965363152 | N16: 472146.3528 | O16: Kapitola 700-Krajské úřady1) | U16: 145721709.5 | V16: 4419792.27 | W16: 150141501.8 | X16: 0.013 | Y16: 606855.147
A17: konst | B17: OK | E17: Transfery z MŠMT veřejným rozpočtům místní úrovně | J17: -106016383.9 | K17: -420092.3111 | L17: -106436476.3 | M17: -0.02105556195 | N17: (neuvedeno) | O17: Transfery z MŠMT veřejným rozpočtům místní úrovně | U17: -160125570.8 | V17: -586812.2381 | W17: =SUM(U17:V17) -> -160712383.1 | X17: 0.0284 | Y17: 5185.46445
A18: konst | B18: OK | E18: Celkem | J18: 176243744.9 | K18: 17398388.61 | L18: 193642133.5 | M18: 0.03830682941 | N18: 4530284.328 | O18: Celkem | U18: =SUM(U14:U17) -> 244676570.9 | V18: =SUM(V14:V17) -> 28699224.44 | W18: =SUM(W14:W17) -> 273375795.2 | X18: 0.0259 | Y18: =SUM(Y14,Y15,Y16,Y17) -> 15191638.96
A19: konst | B19: OK | E19: Ministerstvo obrany (kapitola 307) | J19: 1106057.172 | K19: 74874.33064 | L19: 1180931.503 | M19: 0.0002336151787 | N19: (neuvedeno) | O19: Ministerstvo obrany (kapitola 307) | U19: 1450790.37 | V19: 304842.8998 | W19: =SUM(U19:V19) -> 1755633.27 | X19: 3e-06 | Y19: (neuvedeno)
A20: konst | B20: OK | F20: z toho transfer krajským úřadům | J20: 0 | K20: 0 | L20: 0 | M20: 0 | N20: (neuvedeno) | P20: z toho transfer krajským úřadům | U20: 0 | V20: 0 | W20: 0 | X20: 0 | Y20: (neuvedeno)
A21: konst | B21: OK | E21: Ministerstvo spravedlnosti (kapitola 336) | J21: x | K21: x | L21: x | M21: x | N21: x | O21: Ministerstvo spravedlnosti (kapitola 336) | U21: x | V21: x | W21: x | X21: x | Y21: x
A22: konst | B22: OK | E22: Ministerstvo vnitra (kapitola 314) | J22: . | K22: . | L22: . | M22: . | N22: . | O22: Ministerstvo vnitra (kapitola 314) | U22: 734333.5496 | V22: 74808.97257 | W22: 809142.5222 | X22: 0 | Y22: .
A23: konst | B23: OK | E23: Celkem oblast školství | J23: 177349802.1 | K23: 17473262.94 | L23: 194823065 | M23: 0.03854044458 | N23: 4530284.328 | O23: Celkem oblast školství | U23: =SUM(U18,U19,U22) -> 246861694.9 | V23: =SUM(V18,V19,V22) -> 29078876.31 | W23: =SUM(W18,W19,W22) -> 275940571 | X23: 0.00026 | Y23: =Y18 -> 15191638.96
A24: konst | B24: stop | D24: Komentáře: | N24: Zdroj: Závěrečný účet – kapitola 333-MŠMT, 700-Obce a DSO; KÚ, 307-MO | V24: Zdroj: Závěrečný účet kapitoly 333-MŠMT; monitor.statnipokladna.cz
A25: =IF(COUNTBLANK(D25:E25)=2,"odstr","OK") -> OK | D25: 1) | E25: Uváděné výdaje neobsahují z daných tříd rozpočtové skladby následující položky: 5321; 5323; 5329; 5344; 5345; 5349; 5366; 5367; 5641; 5642; 5649; 6341; 6342; 6349; 6441; 6442; 6449.
A26: =IF(COUNTBLANK(D26:E26)=2,"odstr","OK") -> odstr
A27: stop

Sheet B2
A1: =IF(#REF!="","ŠABLONA",IF(#REF!="T","TISK","ELEKTRO")) ->  | B1: 0 | C1: =CONCATENATE(D1,F1,IF(G1<>"",".",""),G1,IF(H1<>"",".",""),H1,IF(I1<>"",".",""),I1,"") ->  | D1: =IF(#REF!=""," ?",#REF!) ->  | E1: =CONCATENATE(C1,M1) ->  | F1: 2
A2: konst
A3: konst | B3: 3x4 | D3: Tab. B2: | H3: Přehled běžných a kapitálových výdajů, příjmů a plnění rozpočtu kapitoly 333-MŠMT | P3: Tab. B2: | T3: Přehled běžných a kapitálových výdajů, příjmů a plnění rozpočtu kapitoly 333-MŠMT | Z3: Tab. B2: | AD3: Přehled běžných a kapitálových výdajů, příjmů a plnění rozpočtu kapitoly 333-MŠMT
A4: konst | B4: =COUNTA(Datova_oblast) -> 12 | D4: =IF(D1=" ?","",CONCATENATE("Tab. ",E1,":")) ->  | H4: =IF(H3="Zadejte název tabulky","",H3) -> Přehled běžných a kapitálových výdajů, příjmů a plnění rozpočtu kapitoly 333-MŠMT
A5: =IF(D5="","odstr","OK") -> odstr | B5: 0
A6: =IF(COUNTBLANK(C6:IX6)=254,"odstr","OK") -> OK | B6: Řádky pro
A7: =IF(COUNTBLANK(C7:IX7)=254,"odstr","OK") -> OK | B7: ročenku PaM
A8: konst | D8: (podle stavu k: 31. 12. 2017) | P8: (podle stavu k: 31. 12. 2019) | Y8: v tis. Kč | Z8: (podle stavu k: 31. 12. 2020) | AI8: v tis. Kč
A9: konst | J9: Výdaje | M9: Příjmy celkem | V9: Výdaje | Y9: Příjmy celkem | AF9: Výdaje | AI9: Příjmy celkem
A10: konst
A11: konst
A12: konst
A13: konst | B13: nebo odstr | J13: běžné | K13: kapitálové | L13: celkem | V13: běžné | W13: kapitálové | X13: celkem | AF13: běžné | AG13: kapitálové | AH13: celkem
A14: konst | B14: OK | E14: Schválený rozpočet | J14: 148332711.7 | K14: 8193150.466 | L14: 156525862.2 | M14: 8645045.514 | Q14: Schválený rozpočet | V14: 196018803.2 | W14: 9740363.16 | X14: =V14+W14 -> 205759166.4 | Y14: 10151242.74 | AA14: Schválený rozpočet | AF14: 220068774.9 | AG14: 6898225.275 | AH14: 226967000.2 | AI14: 12282724.86
A15: konst | B15: OK | E15: Rozpočet po změnách | J15: 151760634.2 | K15: 7741115.027 | L15: 159501749.3 | M15: 8645045.514 | Q15: Rozpočet po změnách | V15: 200513347 | W15: 10006419.95 | X15: =V15+W15 -> 210519767 | Y15: 15310027.99 | AA15: Rozpočet po změnách | AF15: 218168675.7 | AG15: 10991306.28 | AH15: 229159982 | AI15: 14145579.59
A16: konst | B16: OK | E16: Skutečnost | J16: 151878791 | K16: 5632649.007 | L16: 157511440 | M16: 3274552.889 | Q16: Skutečnost | V16: 199521703.1 | W16: 11010103.44 | X16: =SUM(V16:W16) -> 210531806.5 | Y16: 14807842.52 | AA16: Skutečnost | AF16: 218320357.4 | AG16: 9102348.76 | AH16: 227422706.2 | AI16: 13488337.32
E17: Plnění rozpočtu v procentech | J17: 1.000778573 | K17: 0.7276276076 | L17: 0.987521709 | M17: 0.3787779814 | Q17: Odečtení transferů územním rozpočtům | W17: 10305306.9 | AA17: Odečtení transferů územním rozpočtům
A18: konst | B18: OK | Q18: Plnění rozpočtu v procentech | V18: =V16/V15 -> 0.9950544741 | W18: =W16/W15 -> 1.100303954 | X18: =X16/X15 -> 1.00005719 | Y18: =Y16/Y15 -> 0.9671989189 | AA18: Plnění rozpočtu v procentech | AF18: =AF16/AF15 -> 1.00069525 | AG18: =AG16/AG15 -> 0.8281407625 | AH18: =AH16/AH15 -> 0.9924189388 | AI18: =AI16/AI15 -> 0.9535372682
A19: =IF(COUNTBLANK(#REF!)=2,"odstr","OK") ->  | Z19: Zdroj: Závěrečný účet - kapitola 333 - MŠMT_přílohová tabulka k Závěrečnému účtu_bilance příjmů a výdajů státního rozpočtu v druhovém členění rozpočtové skladby
A20: =IF(COUNTBLANK(D19:E19)=2,"odstr","OK") -> odstr
A21: stop

Sheet B3
A1: =IF(#REF!="","ŠABLONA",IF(#REF!="T","TISK","ELEKTRO")) ->  | B1: 0 | C1: =CONCATENATE(D1,F1,IF(G1<>"",".",""),G1,IF(H1<>"",".",""),H1,IF(I1<>"",".",""),I1,"") ->  | D1: =IF(#REF!=""," ?",#REF!) ->  | E1: =CONCATENATE(C1,P1) ->  | F1: 3
A2: konst
A3: konst | B3: 3x7 | D3: Tab. B3: | H3: Přehled výdajů kapitoly 333-MŠMT – státní správa a vzdělávání | AE3: Tab. B3: | AI3: Přehled výdajů kapitoly 333-MŠMT – státní správa a vzdělávání | AS3: Tab. B3: | AW3: Přehled výdajů kapitoly 333-MŠMT – státní správa a vzdělávání
A4: konst | B4: =COUNTA(Datova_oblast) -> 21 | D4: =IF(D1=" ?","",CONCATENATE("Tab. ",E1,":")) ->  | H4: =IF(H3="Zadejte název tabulky","",H3) -> Přehled výdajů kapitoly 333-MŠMT – státní správa a vzdělávání
A5: =IF(D5="","odstr","OK") -> odstr | B5: 0
A6: =IF(COUNTBLANK(C6:IW6)=254,"odstr","OK") -> OK | B6: Řádky pro
A7: =IF(COUNTBLANK(C7:IW7)=254,"odstr","OK") -> OK | B7: ročenku PaM
A8: konst | D8: (podle stavu k: 31. 12. 2017) | P8: v tis. Kč | Q8: (podle stavu k: 31. 12. 2018) | AC8: v tis. Kč | AE8: (podle stavu k: 31. 12. 2019) | AQ8: v tis. Kč | AS8: (podle stavu k: 31. 12. 2020) | BE8: v tis. Kč
A9: konst | J9: Běžné výdaje | M9: Kapitálové výdaje | P9: Výdaje celkem | W9: Běžné výdaje | Z9: Kapitálové výdaje | AC9: Výdaje celkem | AK9: Běžné výdaje | AN9: Kapitálové výdaje | AQ9: Výdaje celkem | AY9: Běžné výdaje | BB9: Kapitálové výdaje | BE9: Výdaje celkem
A10: konst
A11: konst
A12: konst
A13: konst | B13: nebo odstr | J13: státní správa | K13: vzdělávání | L13: ostatní | M13: státní správa | N13: vzdělávání | O13: ostatní | W13: státní správa | X13: vzdělávání | Y13: ostatní | Z13: státní správa 1) | AA13: vzdělávání 2) | AB13: ostatní 3) | AK13: státní správa | AL13: vzdělávání | AM13: ostatní | AN13: státní správa 1) | AO13: vzdělávání 2) | AP13: ostatní 3) | AY13: státní správa | AZ13: vzdělávání | BA13: ostatní | BB13: státní správa 1) | BC13: vzdělávání 2) | BD13: ostatní 3)
A14: konst | B14: OK | E14: Schválený rozpočet | J14: 842175.071 | K14: 134134545.2 | L14: 13355991.48 | M14: 12869.07 | N14: 3652457.919 | O14: 4527823.477 | P14: 156525862.2 | R14: Schválený rozpočet | W14: 910931.45 | X14: 160779210.7 | Y14: 155146.69 | Z14: 125469.07 | AA14: 4059136.451 | AB14: 1618657.199 | AC14: 176111709.9 | AF14: Schválený rozpočet | AK14: 956931.57 | AL14: 37696828.46 | AM14: 144593956.6 | AN14: 284439.877 | AO14: 2928121.999 | AP14: 1980209.346 | AQ14: =SUM(AK14:AP14) -> 188440487.9 | AT14: Schválený rozpočet | AY14: 1038238.787 | AZ14: 39885748.05 | BA14: 164246452.2 | BB14: 143405.723 | BC14: 2974824.211 | BD14: 932185.161 | BE14: =SUM(AY14:BD14) -> 209220854.1
A15: konst | B15: OK | E15: Rozpočet po změnách | J15: 850712.34 | K15: 137712361.3 | L15: 13197560.61 | M15: 13171.572 | N15: 3774579.227 | O15: 3953364.228 | P15: 159501749.3 | R15: Rozpočet po změnách | W15: 908081.94 | X15: 170377927 | Y15: 161733.07 | Z15: 35046.979 | AA15: 8151432.66 | AB15: 1054503.304 | AC15: 183552679.9 | AF15: Rozpočet po změnách | AK15: 973942.22 | AL15: 45528284.48 | AM15: 142198213.1 | AN15: 153375.274 | AO15: 6392053.159 | AP15: 667670.203 | AQ15: =SUM(AK15:AP15) -> 195913538.5 | AT15: Rozpočet po změnách | AY15: 1055009.99 | AZ15: 44329438.23 | BA15: 161333624.8 | BB15: 105289.9 | BC15: 6661167.733 | BD15: 1322216.447 | BE15: =SUM(AY15:BD15) -> 214806747.1
A16: konst | B16: OK | E16: Skutečnost | J16: 827390.0649 | K16: 141528772.1 | L16: 9522628.819 | M16: 22710.56041 | N16: 3405327.105 | O16: 2204611.342 | P16: 157511440 | R16: Skutečnost | W16: 845264.4 | X16: 174969921.7 | Y16: 164044.12 | Z16: 105594.239 | AA16: 10594528.84 | AB16: 910491.7173 | AC16: 187716388.6 | AF16: Skutečnost | AK16: 919836.2 | AL16: 47241435.49 | AM16: 140424006.7 | AN16: 17101.68468 | AO16: 7573014.644 | AP16: 504683.313 | AQ16: =SUM(AK16:AP16) -> 196680078 | AT16: Skutečnost | AY16: 975504.8961 | AZ16: 45160137.52 | BA16: 161616071.6 | BB16: 51872.94959 | BC16: 5216317.869 | BD16: 359279.5761 | BE16: =SUM(AY16:BD16) -> 213379184.4
A17: konst | B17: OK | E17: Plnění rozpočtu v procentech | J17: 0.9725850044 | K17: 1.027712914 | L17: 0.7215446174 | M17: 1.724210323 | N17: 0.9021739642 | O17: 0.5576544976 | P17: 0.987521709 | R17: Plnění rozpočtu v procentech | W17: 0.9308 | X17: 1.027 | Y17: 1.0143 | Z17: 3.01293 | AA17: 1.29971 | AB17: 0.86343 | AC17: 1.022683998 | AF17: Plnění rozpočtu v procentech | AK17: =AK16/AK15 -> 0.9444463759 | AL17: =AL16/AL15 -> 1.03762828 | AM17: 0.9875230044 | AN17: 0.1115022274 | AO17: 1.184754641 | AP17: 0.7558871293 | AQ17: =AQ16/AQ15 -> 1.003912642 | AT17: Plnění rozpočtu v procentech | AY17: =AY16/AY15 -> 0.9246404351 | AZ17: 1.018739224 | BA17: 1.0017507 | BB17: 0.4926678588 | BC17: 0.7830936073 | BD17: 0.271725236 | BE17: 0.9933541997
A18: konst | B18: stop | P18: Zdroj: Závěrečný účet – kapitola 333-MŠMT | AC18: Zdroj: Závěrečný účet – kapitola 333-MŠMT | AQ18: Zdroj: Závěrečný účet – kapitola 333-MŠMT | BE18: Zdroj: Závěrečný účet – kapitola 333-MŠMT
R19: 1) | S19: § 326x | AF19: 1) | AG19: § 326x | AT19: 1) | AU19: § 326x
A20: =IF(COUNTBLANK(D20:E20)=2,"odstr","OK") -> odstr | R20: 2) § 3111, 3112, 3113, 3114, 3115, 3117, 3118, 3119, 312x, 313x , 3143, 3141, 3142, 3150, 321x, 322x, 3231 | AF20: 2) § 3111, 3112, 3113, 3114, 3115, 3117, 3118, 3119, 312x, 313x , 3143, 3141, 3142, 3150, 321x, 322x, 3231 | AT20: 2) § 3111, 3112, 3113, 3114, 3115, 3117, 3118, 3119, 312x, 313x , 3143, 3141, 3142, 3150, 321x, 322x, 3231
A21: =IF(COUNTBLANK(D21:E21)=2,"odstr","OK") -> odstr | R21: 3) § 3144,3145, 3146,3147,3148,3149,3232,3233,3239,3280,329x | AF21: 3) § 3144,3145, 3146,3147,3148,3149,3232,3233,3239,3280,329x | AT21: 3) § 3144,3145, 3146,3147,3148,3149,3232,3233,3239,3280,329x
A22: stop

Sheet B4
A1: =IF(#REF!="","ŠABLONA",IF(#REF!="T","TISK","ELEKTRO")) ->  | B1: 0 | C1: =CONCATENATE(D1,F1,IF(G1<>"",".",""),G1,IF(H1<>"",".",""),H1,IF(I1<>"",".",""),I1,"") ->  | D1: =IF(#REF!=""," ?",#REF!) ->  | E1: =CONCATENATE(C1,M1) ->  | F1: 4
A2: konst
A3: konst | B3: 35x3 | D3: Tab. B4: | H3: Příjmy kapitoly 333-MŠMT – podle položek | P3: Tab. B4: Příjmy kapitoly 333-MŠMT - podle položek | AA3: Tab. B4: Příjmy kapitoly 333-MŠMT - podle položek
A4: konst | B4: =COUNTA(Datova_oblast) -> 108 | D4: =IF(D1=" ?","",CONCATENATE("Tab. ",E1,":")) ->  | H4: =IF(H3="Zadejte název tabulky","",H3) -> Příjmy kapitoly 333-MŠMT – podle položek
A5: =IF(D5="","odstr","OK") -> odstr | B5: 0
A6: =IF(COUNTBLANK(C6:IL6)=254,"odstr","OK") -> OK | B6: Řádky pro
A7: =IF(COUNTBLANK(C7:IL7)=254,"odstr","OK") -> OK | B7: ročenku PaM
A8: konst | D8: (podle stavu k: 31. 12. 2017) | M8: v tis. Kč | P8: (podle stavu k: 31. 12. 2019) | Y8: v tis. Kč | AA8: (podle stavu k: 31. 12. 2020) | AJ8: v tis. Kč
A9: konst | D9: Položka | G9: Popis položky | J9: Schválený rozpočet | K9: Rozpočet po změnách | L9: Skutečnost | M9: % plnění rozpočtu | Q9: Položka | R9: Popis položky | V9: Schválený rozpočet | W9: Rozpočet pod změnách | X9: Skutečnost | Y9: % plnění rozpočtu | AB9: Položka | AC9: Popis položky | AG9: Schválený rozpočet | AH9: Rozpočet po změnách | AI9: Skutečnost | AJ9: % plnění rozpočtu
A10: konst
A11: konst
A12: konst
A13: konst
E14: 1361 | G14: Správní poplatky | J14: 200 | K14: 200 | L14: 796.08622 | M14: 3.9804311 | Q14: 1 | R14: Daňové příjmy | V14: =SUM(V15) -> 700 | W14: =SUM(W15) -> 700 | X14: =SUM(X15) -> 541.59402 | Y14: =X14/W14 -> 0.7737057429 | AB14: 1 | AC14: Daňové příjmy | AG14: =AG15 -> 700 | AH14: =AH15 -> 700 | AI14: =AI15 -> 1152.00824 | AJ14: =AI14/AH14 -> 1.645726057
E15: 1 | G15: Daňové příjmy | J15: 200 | K15: 200 | L15: 796.08622 | M15: 3.9804311 | Q15: 1361 | R15: Správní poplatky | V15: 700 | W15: 700 | X15: 541.59402 | Y15: =X15/W15 -> 0.7737057429 | AB15: 1361 | AC15: Správní poplatky | AG15: 700 | AH15: 700 | AI15: 1152.00824 | AJ15: 1.645726057
A16: =IF(COUNTBLANK(C16:IL16)=254,"odstr",IF(AND($A$1="TISK",SUM(J16:M16)=0),"odstr","OK")) ->  | B16: OK | E16: 2111 | G16: Příjmy z poskytování služeb a výrobků | J16: 66 | K16: 66 | L16: 73.1 | M16: 1.107575758 | Q16: 2 | R16: Nedaňové příjmy | V16: =SUM(V17,V24,V29,V35) -> 92056 | W16: =SUM(W17+W24+W29+W35) -> 92056 | X16: =SUM(X17+X24+X29+X35) -> 158121.9825 | Y16: =X16/W16 -> 1.717671662 | AB16: 2 | AC16: Nedaňové příjmy | AG16: =SUM(AG17,AG24,AG29,AG35) -> 93698.6 | AH16: =SUM(AH17,AH24,AH29,AH35) -> 93698.6 | AI16: =SUM(AI17,AI24,AI29,AI35) -> 146289.9683 | AJ16: 1.561282328
Q17: 21 | R17: Příjmy z vlastní činnosti a odvody přebytků organizací s přímým vztahem | V17: =SUM(V18:V23) -> 2967.65 | W17: =SUM(W18:W23) -> 2967.65 | X17: =SUM(X18:X23) -> 5556.42407 | Y17: =X17/W17 -> 1.87233133 | AB17: 21 | AC17: Příjmy z vlastní činnosti a odvody přebytků organizací s přímým vztahem | AG17: =SUM(AG18:AG23) -> 4852.25 | AH17: =SUM(AH18:AH23) -> 4852.25 | AI17: =SUM(AI18:AI23) -> 4553.62044 | AJ17: 0.9384554464
A18: =IF(COUNTBLANK(C18:IL18)=254,"odstr",IF(AND($A$1="TISK",SUM(J18:M18)=0),"odstr","OK")) ->  | B18: OK | E18: 2119 | G18: Ostatní příjmy z vlastní činnosti | J18: 0 | K18: 0 | L18: 4 | M18: x | Q18: 2111 | R18: Příjmy z poskytování služeb a výrobků | V18: 66 | W18: 66 | X18: 0 | Y18: x | AB18: 2111 | AC18: Příjmy z poskytování služeb a výrobků | AG18: 66 | AH18: 66 | AI18: 0 | AJ18: 0
A19: =IF(COUNTBLANK(C19:IL19)=254,"odstr",IF(AND($A$1="TISK",SUM(J19:M19)=0),"odstr","OK")) ->  | B19: OK | E19: 2123 | G19: Ostatní odvody příspěvkových organizací | J19: 0 | K19: 0 | L19: 9119.108 | M19: x | Q19: 2131 | R19: Příjmy z pronájmu pozemků | V19: 15 | W19: 15 | X19: 3.6 | Y19: =X19/W19 -> 0.24 | AB19: 2131 | AC19: Příjmy z pronájmu pozemků | AG19: 3.6 | AH19: 3.6 | AI19: 3.6 | AJ19: 1
A20: =IF(COUNTBLANK(C20:IL20)=254,"odstr",IF(AND($A$1="TISK",SUM(J20:M20)=0),"odstr","OK")) ->  | B20: OK | E20: 2131 | G20: Příjmy z pronájmu pozemků | J20: 15 | K20: 3.6 | L20: 3.6 | M20: 1 | Q20: 2132 | R20: Příjmy z pronájmu ostatních nemovitostí a jejich částí | V20: 2884 | W20: 2884 | X20: 5521.383 | Y20: =X20/W20 -> 1.914487864 | AB20: 2132 | AC20: Příjmy z pronájmu ostatních nemovitostí a jejich částí | AG20: 4780 | AH20: 4780 | AI20: 4542.209 | AJ20: 0.9502529289
A21: =IF(COUNTBLANK(C21:IL21)=254,"odstr",IF(AND($A$1="TISK",SUM(J21:M21)=0),"odstr","OK")) ->  | B21: OK | E21: 2132 | G21: Příjmy z pronájmu ostatních nemovitostí a jejich částí | J21: 1279 | K21: 1261.621 | L21: 9827.70794 | M21: 7.789746635 | Q21: 2133 | R21: Příjmy z pronájmu movitých věcí | V21: 0.5 | W21: 0.5 | X21: 21.995 | Y21: =X21/W21 -> 43.99 | AB21: 2133 | AC21: Příjmy z pronájmu movitých věcí | AG21: 0.5 | AH21: 0.5 | AI21: 4.826 | AJ21: 9.652
A22: =IF(COUNTBLANK(C22:IL22)=254,"odstr",IF(AND($A$1="TISK",SUM(J22:M22)=0),"odstr","OK")) ->  | B22: OK | E22: 2133 | G22: Příjmy z pronájmu movitých věcí | J22: 0 | K22: 0 | L22: 0.59 | M22: x | Q22: 2141 | R22: Příjmy z úroků (část) | V22: 0.15 | W22: 0.15 | X22: 2.99733 | Y22: =X22/W22 -> 19.9822 | AB22: 2141 | AC22: Příjmy z úroků (část) | AG22: 0.15 | AH22: 0.15 | AI22: 0.027 | AJ22: 0.18
Q23: 2143 | R23: Kursové rozdíly v příjmech | V23: 2 | W23: 2 | X23: 6.44874 | Y23: =X23/W23 -> 3.22437 | AB23: 2143 | AC23: Kursové rozdíly v příjmech | AG23: 2 | AH23: 2 | AI23: 2.95844 | AJ23: 1.47922
Q24: 22 | R24: Přijaté sankční platby a vratky transferů | V24: =SUM(V26:V28) -> 0 | W24: 0 | X24: =SUM(X26:X28) -> 49012.53657 | Y24: x | AB24: 22 | AC24: Přijaté sankční platby a vratky transferů | AG24: =SUM(AG26:AG28) -> 0 | AH24: =SUM(AH26:AH28) -> 0 | AI24: =SUM(AI25:AI28) -> 43112.30007 | AJ24: x
AB25: 2212 | AC25: Sankční platby přijaté od jiných subjektů | AI25: 11.255 | AJ25: x
A26: =IF(COUNTBLANK(C26:IL26)=254,"odstr",IF(AND($A$1="TISK",SUM(J26:M26)=0),"odstr","OK")) ->  | B26: OK | E26: 2141 | G26: Příjmy z úroků (část) | J26: 0 | K26: 0 | L26: 1.37288 | M26: x | Q26: 2221 | R26: Přijaté vratky transferů od jiných veřejných rozpočtů | V26: 0 | W26: 0 | X26: 2046.10473 | Y26: x | AB26: 2221 | AC26: Přijaté vratky transferů od jiných veřejných rozpočtů | AG26: 0 | AH26: 0 | AI26: 5922.91818 | AJ26: x
A27: =IF(COUNTBLANK(C27:IL27)=254,"odstr",IF(AND($A$1="TISK",SUM(J27:M27)=0),"odstr","OK")) ->  | B27: OK | E27: 2143 | G27: Realizované kursové zisky | J27: 0 | K27: 0 | L27: 35.32777 | M27: x | Q27: 2222 | R27: Ostatní příjmy z finančního vypořádání předchozích let od jiných veřejných rozpočtů | V27: 0 | W27: 0 | X27: 15.28225 | Y27: x | AB27: 2222 | AC27: Ostatní příjmy z finančního vypořádání předchozích let od jiných veřejných rozpočtů | AG27: 0 | AH27: 0 | AI27: 150 | AJ27: x
Q28: 2229 | R28: Ostatní přijaté vratky transferů | V28: 0 | W28: 0 | X28: 46951.14959 | Y28: x | AB28: 2229 | AC28: Ostatní přijaté vratky transferů | AG28: 0 | AH28: 0 | AI28: 37028.12689 | AJ28: x
E29: 21 | G29: Příjmy z vlastní činnosti a odvody přebytků organizací s přímým vztahem | J29: 1360 | K29: 1331.221 | L29: 19064.80659 | M29: 14.32129345 | Q29: 23 | R29: Příjmy z prodeje nekapitálového majetku a ostatní nedaňové příjmy | V29: =SUM(V30:V34) -> 1088.35 | W29: =SUM(W30:W34) -> 1088.35 | X29: =SUM(X30:X34) -> 15553.02188 | Y29: =X29/W29 -> 14.29045976 | AB29: 23 | AC29: Příjmy z prodeje nekapitálového majetku a ostatní nedaňové příjmy | AG29: =SUM(AG30:AG34) -> 846.35 | AH29: =SUM(AH30:AH34) -> 846.35 | AI29: =SUM(AI30:AI34) -> 10624.04782 | AJ29: =AI29/AH29 -> 12.55278291
A30: =IF(COUNTBLANK(C30:IL30)=254,"odstr",IF(AND($A$1="TISK",SUM(J29:M29)=0),"odstr","OK")) ->  | B30: OK | E30: 2211 | G30: Příjmy z poskytování služeb a výrobků | J30: 0 | K30: 0 | L30: 163.97262 | M30: x | Q30: 2322 | R30: Přijaté pojistné náhrady | V30: 0 | W30: 0 | X30: 221.514 | Y30: x | AB30: 2322 | AC30: Přijaté pojistné náhrady | AG30: 0 | AH30: 0 | AI30: 6.527 | AJ30: x
A31: =IF(COUNTBLANK(C31:IL31)=254,"odstr",IF(AND($A$1="TISK",SUM(J30:M30)=0),"odstr","OK")) ->  | B31: OK | E31: 2212 | G31: Sankční platby přijaté od jiných subjektů | J31: 0 | K31: 0 | L31: 6.23719 | M31: x | Q31: 2324 | R31: Přijaté nekapitálové příspěvky a náhrady | V31: 1086.35 | W31: 1086.35 | X31: 1619.33795 | Y31: =X31/W31 -> 1.490622681 | AB31: 2324 | AC31: Přijaté nekapitálové příspěvky a náhrady | AG31: 846.35 | AH31: 846.35 | AI31: 5007.98377 | AJ31: =AI31/AH31 -> 5.91715457
A32: =IF(COUNTBLANK(C32:IL32)=254,"odstr",IF(AND($A$1="TISK",SUM(J31:M31)=0),"odstr","OK")) ->  | B32: OK | E32: 2221 | G32: Přijaté vratky transferů od jiných veřejných rozpočtů | J32: 0 | K32: 0 | L32: 1387.33129 | M32: x | Q32: 2328 | R32: Neidentifikované příjmy | V32: 0 | W32: 0 | X32: 0 | Y32: x | AB32: 2328 | AC32: Neidentifikované příjmy | AG32: 0 | AH32: 0 | AI32: 0 | AJ32: 0
Q33: 2329 | R33: Ostatní nedaňové příjmy jinde nazařazené | V33: 2 | W33: 2 | X33: 13712.16993 | Y33: =X33/W33 -> 6856.084965 | AB33: 2329 | AC33: Ostatní nedaňové příjmy jinde nazařazené | AG33: 0 | AH33: 0 | AI33: 5609.53705 | AJ33: x
Q34: 2391 | R34: Dočasné zatřídění příjmů | V34: 0 | W34: 0 | X34: 0 | Y34: x | AB34: 2391 | AC34: Dočasné zatřídění příjmů | AG34: 0 | AH34: 0 | AI34: 0 | AJ34: 0
Q35: 24 | R35: Přijaté splátky půjčených prostředků | V35: =SUM(V36) -> 88000 | W35: =SUM(W36) -> 88000 | X35: =SUM(X36) -> 88000 | Y35: =X35/W35 -> 1 | AB35: 24 | AC35: Přijaté splátky půjčených prostředků | AG35: =AG36 -> 88000 | AH35: =AH36 -> 88000 | AI35: =AI36 -> 88000 | AJ35: =AI35/AH35 -> 1
A36: =IF(COUNTBLANK(C36:IL36)=254,"odstr",IF(AND($A$1="TISK",SUM(J32:M32)=0),"odstr","OK")) ->  | B36: OK | E36: 2222 | G36: Ostatní příjmy z finančního vypořádání předchozích let od jiných veřejných rozpočtů | J36: 0 | K36: 0 | L36: 5359.92214 | M36: x | Q36: 2452 | R36: Splátky půjčených prostředků od vysokých škol | V36: 88000 | W36: 88000 | X36: 88000 | Y36: =X36/W36 -> 1 | AB36: 2452 | AC36: Splátky půjčených prostředků od vysokých škol | AG36: 88000 | AH36: 88000 | AI36: 88000 | AJ36: =AI36/AH36 -> 1
E37: 22 | G37: Přijaté sankční platby a vratky transferů | J37: 0 | K37: 0 | L37: 6917.46324 | M37: x | Q37: 3 | R37: Kapitálové příjmy | V37: 0 | W37: 0 | X37: =SUM(X38:X39) -> 123 | Y37: x | AB37: 3 | AC37: Kapitálové příjmy | AG37: 0 | AH37: =SUM(AH38:AH39) -> 0 | AI37: =SUM(AI38:AI39) -> 302.9 | AJ37: x
E38: 2322 | G38: Přijaté pojistné náhrady | J38: 0 | K38: 0 | L38: 90.765 | M38: x | Q38: 3111 | R38: Příjmy z prodeje pozemků | AB38: 3111 | AC38: Příjmy z prodeje pozemků | AJ38: x
E39: 2324 | G39: Přijaté nekapitálové příspěvky a náhrady | J39: 390 | K39: 418.779 | L39: 2370.39743 | M39: 5.660258585 | Q39: 3113 | R39: Příjmy z prodeje ostatního hmotného dlouhodobého majetku | V39: 0 | W39: 0 | X39: 123 | Y39: x | AB39: 3113 | AC39: Příjmy z prodeje ostatního hmotného dlouhodobého majetku | AG39: 0 | AH39: 0 | AI39: 302.9 | AJ39: x
E40: 2328 | G40: Neidentifikované příjmy | J40: 0 | K40: 0 | L40: 0 | M40: x | Q40: 4 | R40: Přijaté transfery | V40: =SUM(V41:V50) -> 10058486.74 | W40: =SUM(W43:W50) -> 15217271.99 | X40: =SUM(X43:X49) -> 14649055.95 | Y40: =X40/W40 -> 0.9626597956 | AB40: 4 | AC40: Přijaté transfery | AG40: =SUM(AG41:AG50) -> 12188326.26 | AH40: =SUM(AH41:AH50) -> 14051180.99 | AI40: =SUM(AI41:AI50) -> 13340592.44 | AJ40: =AI40/AH40 -> 0.9494285535
E41: 2329 | G41: Ostatní nedaňové příjmy jinde nezařazené | J41: 2 | K41: 2 | L41: 4316.29807 | M41: 2158.149035 | P41: v tom | R41: příjmy z rozpočtu Evropské unie bez SZP | AA41: v tom | AC41: příjmy z rozpočtu Evropské unie bez SZP | AJ41: x
E42: 2391 | G42: Dočasné zatřídění příjmů | J42: 0 | K42: 0 | L42: 0 | M42: x | R42: příjmy z prostředků finančních mechanizmů | AC42: příjmy z prostředků finančních mechanizmů | AJ42: x
A43: =IF(COUNTBLANK(C43:IL43)=254,"odstr",IF(AND($A$1="TISK",SUM(J36:M36)=0),"odstr","OK")) ->  | B43: OK | E43: 23 | G43: Příjmy z prodeje nekapitálového majetku a ostatní nedaňové příjmy | J43: 392 | K43: 420.779 | L43: 6777.4605 | M43: 16.10693618 | Q43: 4118 | R43: NIV převody z Národního fondu | V43: 6816886.991 | W43: 11466689.47 | X43: 8513732.25 | Y43: =X43/W43 -> 0.7424751733 | AB43: 4118 | AC43: NIV převody z Národního fondu | AG43: 11942124.95 | AH43: 9376846.851 | AI43: 9240114.863 | AJ43: =AI43/AH43 -> 0.9854181272
A44: =IF(COUNTBLANK(C44:IL44)=254,"odstr",IF(AND($A$1="TISK",SUM(J37:M37)=0),"odstr","OK")) ->  | B44: OK | E44: 2452 | G44: Splátky půjčených prostředků od vysokých škol | J44: 88000 | K44: 88000 | L44: 88000 | M44: 1 | Q44: 4122 | R44: NIV přijaté transfery krajů | V44: 0 | W44: 0 | X44: 2470.40554 | Y44: x | AB44: 4122 | AC44: NIV přijaté transfery krajů | AG44: 0 | AH44: 0 | AI44: 5185.46445 | AJ44: x
Q45: 4132 | R45: Převod z ostatních vlastních fondů | V45: 0 | W45: 0 | X45: 72.5729 | Y45: x | AB45: 4132 | AC45: Převod z ostatních vlastních fondů | AG45: 0 | AH45: 0 | AI45: 1634.78872 | AJ45: x
A46: =IF(COUNTBLANK(C46:IL46)=254,"odstr",IF(AND($A$1="TISK",SUM(J38:M38)=0),"odstr","OK")) ->  | B46: OK | E46: 24 | G46: Přijaté splátky půjčených prostředků | J46: 88000 | K46: 88000 | L46: 88000 | M46: 1 | Q46: 4135 | R46: Převody z rezervních fondů (RF) OSS | V46: 0 | W46: 0 | X46: 180.94539 | Y46: x | AB46: 4135 | AC46: Převody z rezervních fondů (RF) OSS | AG46: 0 | AH46: 0 | AI46: 5653.33565 | AJ46: x
Q47: 4151 | R47: Neinvestiční přijaté transfery od cizích států | V47: 584 | W47: 584 | X47: 0 | Y47: =X47/W47 -> 0 | AB47: 4151 | AC47: Neinvestiční přijaté transfery od cizích států | AG47: 220.863 | AH47: 0 | AI47: 0 | AJ47: 0
A48: =IF(COUNTBLANK(C48:IL48)=254,"odstr",IF(AND($A$1="TISK",SUM(J39:M39)=0),"odstr","OK")) ->  | B48: OK | E48: 2 | G48: Nedaňové příjmy | J48: 89752 | K48: 89752 | L48: 120759.7303 | M48: 1.345482333 | Q48: 4153 | R48: NIV převody přijaté od EU | V48: 9881.5 | W48: 9881.5 | X48: 15853.7088 | Y48: =X48/W48 -> 1.604382816 | AB48: 4153 | AC48: NIV převody přijaté od EU | AG48: 11250 | AH48: 11250 | AI48: 5522.03122 | AJ48: =AI48/AH48 -> 0.4908472196
A49: =IF(COUNTBLANK(C49:IL49)=254,"odstr",IF(AND($A$1="TISK",SUM(J40:M40)=0),"odstr","OK")) ->  | B49: OK | E49: 3111 | G49: Příjmy z prodeje pozemků | J49: 0 | K49: 0 | L49: 107.333 | M49: x | Q49: 4218 | R49: INV převody z NF | V49: 3231134.253 | W49: 3740117.026 | X49: 6116746.065 | Y49: =X49/W49 -> 1.635442427 | AB49: 4218 | AC49: INV převody z NF | AG49: 234730.441 | AH49: 4663084.139 | AI49: 4082481.96 | AJ49: =AI49/AH49 -> 0.8754896626
Q50: 4233 | R50: INV převody přijaté od EU | AB50: 4233 | AC50: INV převody přijaté od EU | AJ50: x
A51: =IF(COUNTBLANK(C51:IL51)=254,"odstr",IF(AND($A$1="TISK",SUM(J41:M41)=0),"odstr","OK")) ->  | Q51: Příjmy kapitoly 333-MŠMT celkem | V51: =SUM(V40,V37,V16,V14) -> 10151242.74 | W51: =SUM(W14+W16+W37+W40) -> 15310027.99 | X51: =SUM(X14,X16,X37,X40) -> 14807842.52 | Y51: =X51/W51 -> 0.9671989189 | AB51: Příjmy kapitoly 333-MŠMT celkem | AG51: =SUM(AG14,AG16,AG37,AG40) -> 12282724.86 | AH51: =SUM(AH14,AH16,AH37,AH40) -> 14145579.59 | AI51: =SUM(AI14,AI16,AI37,AI40) -> 13488337.32 | AJ51: =AI51/AH51 -> 0.9535372682
A52: =IF(COUNTBLANK(C52:IL52)=254,"odstr",IF(AND($A$1="TISK",SUM(J42:M42)=0),"odstr","OK")) ->  | E52: 3113 | G52: Příjmy z prodeje ostatního hmotného dlouhodobého majetku | J52: 0 | K52: 0 | L52: 0 | M52: x | Q52: Příjmy po konsolidaci (- RF) | AB52: Příjmy po konsolidaci (- RF)
A53: =IF(COUNTBLANK(C53:IL53)=254,"odstr",IF(AND($A$1="TISK",SUM(J43:M43)=0),"odstr","OK")) ->  | B53: OK | E53: 31 | G53: Příjmy z prodeje dlouhodobého majetku a ostatní kapitálové příjmy | J53: 0 | K53: 0 | L53: 107.333 | M53: x | Y53: Zdroj: Závěrečný účet – kapitola 333-MŠMT; monitor.statnipokladna.cz | AA53: Zdroj: Závěrečný účet – kapitola 333-MŠMT_přílohová tabulka k Závěrečnému účtu_bilance příjmů a výdajů státního rozpočtu v druhovém členění rozpočtové skladb; monitor.statnipokladna.cz
A54: =IF(COUNTBLANK(C54:IL54)=254,"odstr",IF(AND($A$1="TISK",SUM(J44:M44)=0),"odstr","OK")) ->  | B54: OK | E54: 3 | G54: Kapitálové příjmy | J54: 0 | K54: 0 | L54: 107.333 | M54: x
A55: =IF(COUNTBLANK(C55:IL55)=254,"odstr",IF(AND($A$1="TISK",SUM(J46:M46)=0),"odstr","OK")) ->  | B55: OK | E55: 4118 | G55: Neinvestiční převody z Národního fondu | J55: 8543882.763 | K55: 4916646.126 | L55: 1995659.516 | M55: 0.4058985465
A56: =IF(COUNTBLANK(C56:IL56)=254,"odstr",IF(AND($A$1="TISK",SUM(J48:M48)=0),"odstr","OK")) ->  | B56: OK | E56: 4122 | G56: Neinvestiční přijaté transfery od krajů | J56: 0 | K56: 0 | L56: 6884.60949 | M56: x
E57: 4132 | G57: Převody z ostatních vlastních fondů | J57: 0 | K57: 0 | L57: 498.0421 | M57: x
A58: =IF(COUNTBLANK(C58:IL58)=254,"odstr",IF(AND($A$1="TISK",SUM(J49:M49)=0),"odstr","OK")) ->  | B58: OK | E58: 4135 | G58: Převody z fondů organizačních složek státu | J58: 0 | K58: 0 | L58: 160 | M58: x
A59: =IF(COUNTBLANK(C59:IL59)=254,"odstr",IF(AND($A$1="TISK",SUM(J52:M52)=0),"odstr","OK")) ->  | B59: OK | E59: 4153 | G59: Neinvestiční transfery přijaté od Evropské unie | J59: 11210.751 | K59: 14781.436 | L59: 10197.09148 | M59: 0.6898579732
B60: OK | E60: 4159 | G60: Neinvestiční transfery přijaté od Evropské unie | J60: 0 | K60: 0 | L60: 0 | M60: x
B61: OK | E61: 41 | G61: Neivestiční přijaté dotace | J61: 8555093.514 | K61: 4931427.562 | L61: 2013399.259 | M61: 0.4082791917
B62: OK | E62: 4218 | G62: Investiční převody z Národního fondu | J62: 0 | K62: 3623665.952 | L62: 1139444.656 | M62: 0.3144452802
B63: OK | E63: 4233 | G63: Investiční transfery přijaté od Evropské unie | J63: 0 | K63: 0 | L63: 45.825 | M63: x
E64: 42 | G64: Investiční přijaté transfery | J64: 0 | K64: 3623665.952 | L64: 1139490.481 | M64: 0.3144579262
E65: 4 | G65: Přijaté dotace | J65: 8555093.514 | K65: 8555093.514 | L65: 3152889.74 | M65: 0.3685394829
B66: OK | E66: Příjmy kapitoly 333-MŠMT celkem | J66: 8645045.514 | K66: 8645045.514 | L66: 3274552.889 | M66: 0.3787779814
B67: OK | M67: Zdroj: Závěrečný účet – kapitola 333-MŠMT
A72: =IF(COUNTBLANK(C72:IL72)=254,"odstr",IF(AND($A$1="TISK",SUM(J61:M61)=0),"odstr","OK")) ->  | B72: OK
A75: =IF(COUNTBLANK(C75:IL75)=254,"odstr",IF(AND($A$1="TISK",SUM(J62:M62)=0),"odstr","OK")) ->  | B75: OK
A76: =IF(COUNTBLANK(C76:IL76)=254,"odstr",IF(AND($A$1="TISK",SUM(J63:M63)=0),"odstr","OK")) ->  | B76: OK
A77: konst | B77: stop
A78: =IF(COUNTBLANK(D66:E66)=2,"odstr","OK") -> OK
A79: stop

Sheet B5
A1: =IF(#REF!="","ŠABLONA",IF(#REF!="T","TISK","ELEKTRO")) ->  | B1: 0 | C1: =CONCATENATE(D1,F1,IF(G1<>"",".",""),G1,IF(H1<>"",".",""),H1,IF(I1<>"",".",""),I1,"") ->  | D1: =IF(#REF!=""," ?",#REF!) ->  | E1: =CONCATENATE(C1,U1) ->  | F1: 5
A2: konst
A3: konst | B3: 47x11 | D3: Tab. B5: | H3: Příjmy kapitoly 700-Obce a DSO; KÚ (část: vzdělávání) – podle položek | W3: Tab. B5: | Z3: Příjmy kapitoly 700-Obce a DSO; KÚ (část: vzdělávání) – podle položek | AO3: Tab. B5: | AR3: Příjmy kapitoly 700-Obce a DSO; KÚ (část: vzdělávání) – podle položek
A4: konst | B4: =COUNTA(Datova_oblast) -> 517 | D4: =IF(D1=" ?","",CONCATENATE("Tab. ",E1,":")) ->  | H4: =IF(H3="Zadejte název tabulky","",H3) -> Příjmy kapitoly 700-Obce a DSO; KÚ (část: vzdělávání) – podle položek | W4: =IF(W1=" ?","",CONCATENATE("Tab. ",X1,":")) -> Tab. : | Z4: =IF(Z3="Zadejte název tabulky","",Z3) -> Příjmy kapitoly 700-Obce a DSO; KÚ (část: vzdělávání) – podle položek | AO4: =IF(AO1=" ?","",CONCATENATE("Tab. ",AP1,":")) -> Tab. : | AR4: =IF(AR3="Zadejte název tabulky","",AR3) -> Příjmy kapitoly 700-Obce a DSO; KÚ (část: vzdělávání) – podle položek
A5: =IF(D5="","odstr","OK") -> odstr | B5: 0
A6: =IF(COUNTBLANK(C6:ID6)=254,"odstr","OK") -> OK | B6: Řádky pro
A7: =IF(COUNTBLANK(C7:ID7)=254,"odstr","OK") -> OK | B7: ročenku PaM
A8: konst | D8: (podle stavu k: 31. 12. 2017) | U8: v tis. Kč | W8: (podle stavu k: 31. 12. 2019) | AM8: v tis. Kč | AO8: (podle stavu k: 31. 12. 2020) | BE8: v tis. Kč
A9: konst | D9: Položka | G9: Popis položky | J9: Celkem 1) | N9: Obce a DSO1) | R9: Krajské úřady1) | W9: Položka | Y9: Popis položky | AB9: Celkem 1) | AF9: Obce a DSO1) | AJ9: Krajské úřady1) | AO9: Položka | AQ9: Popis položky | AT9: Celkem 1) | AX9: Obce a DSO1) | BB9: Krajské úřady1)
A10: konst
A11: konst | J11: schválený rozpočet | K11: rozpočet po změnách | L11: skutečnost | M11: % plnění rozpočtu | N11: schválený rozpočet | O11: rozpočet po změnách | P11: skutečnost | Q11: % plnění rozpočtu | R11: schválený rozpočet | S11: rozpočet po změnách | T11: skutečnost | U11: % plnění rozpočtu | AB11: schválený rozpočet | AC11: rozpočet po změnách | AD11: skutečnost | AE11: % plnění rozpočtu | AF11: schválený rozpočet | AG11: rozpočet po změnách | AH11: skutečnost | AI11: % plnění rozpočtu | AJ11: schválený rozpočet | AK11: rozpočet po změnách | AL11: skutečnost | AM11: % plnění rozpočtu | AT11: schválený rozpočet | AU11: rozpočet po změnách | AV11: skutečnost | AW11: % plnění rozpočtu | AX11: schválený rozpočet | AY11: rozpočet po změnách | AZ11: skutečnost | BA11: % plnění rozpočtu | BB11: schválený rozpočet | BC11: rozpočet po změnách | BD11: skutečnost | BE11: % plnění rozpočtu
A12: konst
A13: konst
E14: 2111 | G14: Příjmy z poskytování služeb a výrobků | J14: 31472.245 | K14: 35823.96265 | L14: 34397.46523 | M14: 0.9601803565 | N14: 31472.245 | O14: 34668.06265 | P14: 33329.46523 | Q14: 0.9613881677 | R14: 0 | S14: 1155.9 | T14: 1068 | U14: 0.9239553595 | X14: 2 | Y14: Nedaňové příjmy | AB14: =AF14+AJ14 -> 1058367.414 | AC14: 1547220.581 | AD14: 1553281.159 | AE14: =AD14/AC14 -> 1.003917074 | AF14: =SUM(AF15+AF32+AF40) -> 635187.2735 | AG14: =SUM(AG15+AG32+AG40) -> 1053853.43 | AH14: =SUM(AH15+AH32+AH40) -> 1054209.736 | AI14: =AH14/AG14 -> 1.000338098 | AJ14: =SUM(AJ15,AJ32,AJ40) -> 423180.14 | AK14: =SUM(AK15+AK32+AK40) -> 493367.1512 | AL14: =SUM(AL15+AL32+AL40) -> 499071.4232 | AM14: =AL14/AK14 -> 1.011561921 | AP14: 2 | AQ14: Nedaňové příjmy | AT14: =SUM(AX14,BB14) -> 1174698.725 | AU14: =SUM(AY14,BC14) -> 1693412.735 | AV14: =SUM(AZ14,BD14) -> 1698116.5 | AW14: =AV14/AU14 -> 1.002777683 | AX14: =SUM(AX15,AX32,AX40) -> 705045.0649 | AY14: =SUM(AY15,AY32,AY40) -> 1087479.881 | AZ14: =SUM(AZ15,AZ32,AZ40) -> 1091261.353 | BA14: =AZ14/AY14 -> 1.00347728 | BB14: =SUM(BB15,BB32,BB40) -> 469653.66 | BC14: =SUM(BC15,BC32,BC40) -> 605932.8542 | BD14: =SUM(BD15,BD32,BD40) -> 606855.147 | BE14: =BD14/BC14 -> 1.001522104
E15: 2112 | G15: Příjmy z prodeje zboží (jinak nakoupeného za účelem prodeje) | J15: 316.781 | K15: 320.161 | L15: 335.849 | M15: 1.049000347 | N15: 316.781 | O15: 320.161 | P15: 335.849 | Q15: 1.049000347 | R15: 0 | S15: 0 | T15: 0 | U15: x | X15: 21 | Y15: Příjmy z vlastní činnosti a odvody přebytků organizací s přímým vztahem | AB15: 906560.8695 | AC15: 1140855.278 | AD15: 1133366.267 | AE15: =AD15/AC15 -> 0.9934356171 | AF15: =SUM(AF16:AF31) -> 484220.7295 | AG15: =SUM(AG16:AG31) -> 664182.4074 | AH15: =SUM(AH16:AH31) -> 650996.3019 | AI15: =AH15/AG15 -> 0.9801468613 | AJ15: =SUM(AJ16:AJ31) -> 422340.14 | AK15: =SUM(AK16:AK31) -> 476672.8706 | AL15: =SUM(AL16:AL31) -> 482369.9652 | AM15: =AL15/AK15 -> 1.011951791 | AP15: 21 | AQ15: Příjmy z vlastní činnosti a odvody přebytků organizací s přímým vztahem | AT15: =SUM(AX15,BB15) -> 935401.1032 | AU15: =SUM(AY15,BC15) -> 1252124.46 | AV15: 1221172.502 | AW15: =AV15/AU15 -> 0.9752804463 | AX15: =SUM(AX16:AX31) -> 508587.4432 | AY15: =SUM(AY16:AY31) -> 704578.5859 | AZ15: =SUM(AZ16:AZ31) -> 677052.7052 | BA15: =AZ15/AY15 -> 0.9609328451 | BB15: =SUM(BB16:BB31) -> 426813.66 | BC15: =SUM(BC16:BC31) -> 547545.874 | BD15: =SUM(BD16:BD31) -> 544119.7969 | BE15: =BD15/BC15 -> 0.9937428492
A16: =IF(COUNTBLANK(C16:ID16)=254,"odstr",IF(AND($A$1="TISK",SUM(J14:U14)=0),"odstr","OK")) ->  | B16: OK | E16: 2113 | G16: Příjmy ze školného | J16: 0 | K16: 14.5 | L16: 14.565 | M16: 1.004482759 | N16: 0 | O16: 14.5 | P16: 14.565 | Q16: 1.004482759 | R16: 0 | S16: 0 | T16: 0 | U16: x | X16: 2111 | Y16: Příjmy z poskytování služeb a výrobků | AB16: 34682.264 | AC16: 39735.89977 | AD16: 37957.37587 | AE16: =AD16/AC16 -> 0.9552413835 | AF16: 34682.264 | AG16: 39130.89977 | AH16: 37231.37587 | AI16: =AH16/AG16 -> 0.9514571883 | AJ16: 0 | AK16: 605 | AL16: 726 | AM16: =AL16/AK16 -> 1.2 | AP16: 2111 | AQ16: Příjmy z poskytování služeb a výrobků | AT16: 38172.97759 | AU16: 47793.69909 | AV16: 39757.85362 | AW16: =AV16/AU16 -> 0.8318639146 | AX16: 38172.97759 | AY16: 47391.19909 | AZ16: 39334.35362 | BA16: =AZ16/AY16 -> 0.8299927914 | BB16: 0 | BC16: 402.5 | BD16: 423.5 | BE16: =BD16/BC16 -> 1.052173913
B17: OK | E17: 2119 | G17: Ostatní příjmy z vlastní činnosti | J17: 705.6 | K17: 2203.856 | L17: 2265.54012 | M17: 1.027989179 | N17: 705.6 | O17: 2094.29 | P17: 2072.75758 | Q17: 0.9897185108 | R17: 0 | S17: 109.566 | T17: 192.78254 | U17: 1.759510615 | X17: 2112 | Y17: Příjmy z prodeje zboží (jinak nakoupeného za účelem prodeje) | AB17: 302.516 | AC17: 304.224 | AD17: 629.92567 | AE17: =AD17/AC17 -> 2.070598211 | AF17: 302.516 | AG17: 304.224 | AH17: 629.92567 | AI17: =AH17/AG17 -> 2.070598211 | AP17: 2112 | AQ17: Příjmy z prodeje zboží (jinak nakoupeného za účelem prodeje) | AT17: 312.76 | AU17: 312.76 | AV17: 349.3311 | AW17: =AV17/AU17 -> 1.116930234 | AX17: 312.76 | AY17: 312.76 | AZ17: 349.3311 | BA17: =AZ17/AY17 -> 1.116930234 | BB17: 0 | BC17: 0 | BD17: 0 | BE17: 0
B18: OK | E18: 2122 | G18: Odvody příspěvkových organizací | J18: 687422.804 | K18: 903579.6699 | L18: 885012.0637 | M18: 0.979451058 | N18: 305182.804 | O18: 474885.2179 | P18: 456173.87 | Q18: 0.9605981674 | R18: 382240 | S18: 428694.452 | T18: 428838.1936 | U18: 1.000335301 | X18: 2113 | Y18: Příjmy ze školného | AB18: =AF18+AJ18 -> 432 | AC18: =AG18+AK18 -> 0 | AD18: 0 | AE18: x | AF18: 432 | AG18: 0 | AH18: 0 | AI18: x | AP18: 2113 | AQ18: Příjmy ze školného | AT18: 100 | AU18: 0 | AV18: 0 | AW18: 0 | AX18: 100 | AY18: 0 | AZ18: 0 | BA18: 0 | BE18: 0
B19: OK | E19: 2123 | G19: Ostatní odvody příspěvkových organizací | J19: 2456 | K19: 3626.33784 | L19: 10194.34297 | M19: 2.811195046 | N19: 2456 | O19: 2381.29254 | P19: 2403.40954 | Q19: 1.009287813 | R19: 0 | S19: 1245.0453 | T19: 7790.93343 | U19: 6.257550171 | X19: 2119 | Y19: Ostatní příjmy z vlastní činnosti | AB19: 711.4 | AC19: 3097.4025 | AD19: =AH19+AL19 -> 3085.14979 | AE19: =AD19/AC19 -> 0.9960441983 | AF19: 711.4 | AG19: 3076.86 | AH19: 2958.84204 | AI19: =AH19/AG19 -> 0.9616433767 | AJ19: 0 | AK19: 20.5425 | AL19: 126.30775 | AM19: =AL19/AK19 -> 6.148606547 | AP19: 2119 | AQ19: Ostatní příjmy z vlastní činnosti | AT19: 1637.1 | AU19: =SUM(AY19,BC19) -> 3157.757 | AV19: 2844.14063 | AW19: =AV19/AU19 -> 0.9006838177 | AX19: 1637.1 | AY19: 3156.547 | AZ19: 2761.93697 | BA19: 0.8749868036 | BB19: 0 | BC19: 1.21 | BD19: 82.20366 | BE19: =BD19/BC19 -> 67.93690909
B20: OK | E20: 2124 | G20: Odvody školských právnických osob zřízených státem, kraji a obcemi | J20: 2822.059 | K20: 3053.0315 | L20: 3090.7345 | M20: 1.012349365 | N20: 2822.059 | O20: 3053.0315 | P20: 3052.9815 | Q20: 0.9999836228 | R20: 0 | S20: 0 | T20: 37.753 | U20: x | X20: 2122 | Y20: Odvody příspěvkových organizací | AB20: 774404.5475 | AC20: 997887.3362 | AD20: 988337.2696 | AE20: 0.9904297146 | AF20: 368694.4075 | AG20: 538637.8334 | AH20: 527966.4882 | AI20: 0.9801882739 | AJ20: 405710.14 | AK20: 459249.5028 | AL20: 460370.7814 | AM20: =AL20/AK20 -> 1.002441546 | AP20: 2122 | AQ20: Odvody příspěvkových organizací | AT20: 792723.6126 | AU20: 1099710.975 | AV20: 1080634.72 | AW20: 0.9826533919 | AX20: 382549.9526 | AY20: 570766.582 | AZ20: 553689.8301 | BA20: 0.9700810235 | BB20: 410173.66 | BC20: 528944.393 | BD20: 526944.8896 | BE20: 0.9962198231
B21: OK | E21: 2129 | G21: Ostatní odvody přebytků organizací s přímým vztahem | J21: 0 | K21: 1076.036 | L21: 1076.03715 | M21: 1.000001069 | N21: 0 | O21: 0 | P21: 0 | Q21: x | R21: 0 | S21: 1076.036 | T21: 1076.03715 | U21: 1.000001069 | X21: 2123 | Y21: Ostatní odvody příspěvkových organizací | AB21: 2350 | AC21: 2966.62705 | AD21: 8048.80409 | AE21: 2.713116261 | AF21: 2350 | AG21: 2777.02705 | AH21: 2413.88627 | AI21: 0.8692339781 | AJ21: 0 | AK21: 189.6 | AL21: 5634.91782 | AM21: =AL21/AK21 -> 29.7200307 | AP21: 2123 | AQ21: Ostatní odvody příspěvkových organizací | AT21: =SUM(BB21) -> 0 | AU21: 4915.85747 | AV21: 5453.32247 | AW21: 1.10933291 | AX21: 5033 | AY21: 3356.87647 | AZ21: 3755.10964 | BA21: 1.11863206 | BB21: 0 | BC21: 1558.981 | BD21: 1698.21283 | BE21: 1.089309511
B22: OK | E22: 2131 | G22: Příjmy z pronájmu pozemků | J22: 602.1 | K22: 602.1 | L22: 607.163 | M22: 1.008408902 | N22: 602.1 | O22: 602.1 | P22: 607.163 | Q22: 1.008408902 | R22: 0 | S22: 0 | T22: 0 | U22: x | X22: 2124 | Y22: Odvody školských právnických osob zřízených státem, kraji a obcemi | AB22: 3325.998 | AC22: 3647.657 | AD22: 3647.657 | AE22: 1 | AF22: 3325.998 | AG22: 3647.657 | AH22: 3647.657 | AI22: 1 | AP22: 2124 | AQ22: Odvody školských právnických osob zřízených státem, kraji a obcemi | AT22: =SUM(AX22,BB22) -> 3479.521 | AU22: =SUM(AY22,BC22) -> 3698.015 | AV22: 3560.015 | AW22: 0.9626826825 | AX22: 3479.521 | AY22: 3698.015 | AZ22: 3560.015 | BA22: 0.9626826825 | BB22: 0 | BC22: 0 | BD22: 0 | BE22: 0
B23: OK | E23: 2132 | G23: Příjmy z pronájmu ostatních nemovitostí a jejich částí | J23: 83254.966 | K23: 87581.11229 | L23: 87302.19413 | M23: 0.9968153161 | N23: 66614.966 | O23: 71200.67829 | P23: 71118.31122 | Q23: 0.9988431701 | R23: 16640 | S23: 16380.434 | T23: 16183.88291 | U23: 0.9880008619 | X23: 2129 | Y23: Ostatní odvody přebytků organizací s přímým vztahem | AB23: 0 | AC23: 20.7336 | AD23: 33.54307 | AE23: 1.61781215 | AF23: 0 | AG23: 20.7336 | AH23: 33.54307 | AI23: 1.61781215 | AP23: 2129 | AQ23: Ostatní odvody přebytků organizací s přímým vztahem | AT23: 2000 | AU23: 1124.342 | AV23: 24.342 | AW23: 0.02164999618 | AX23: 2000 | AY23: 1124.342 | AZ23: 24.342 | BA23: 0.02164999618 | BB23: 0 | BC23: 0 | BD23: 0 | BE23: 0
B24: OK | E24: 2133 | G24: Příjmy z pronájmu movitých věcí | J24: 1750.021 | K24: 1770.121 | L24: 1456.73525 | M24: 0.8229580068 | N24: 1750.021 | O24: 1770.121 | P24: 1456.73525 | Q24: 0.8229580068 | R24: 0 | S24: 0 | T24: 0 | U24: x | X24: 2131 | Y24: Příjmy z pronájmu pozemků | AB24: 592.6 | AC24: 712.6 | AD24: 711.049 | AE24: 0.9978234634 | AF24: 592.6 | AG24: 712.6 | AH24: 711.049 | AI24: 0.9978234634 | AP24: 2131 | AQ24: Příjmy z pronájmu pozemků | AT24: 592.6 | AU24: 627.601 | AV24: 616.233 | AW24: 0.9818865808 | AX24: 592.6 | AY24: 627.601 | AZ24: 616.233 | BA24: 0.9818865808 | BB24: 0 | BC24: 0 | BD24: 0 | BE24: 0
B25: OK | E25: 2139 | G25: Ostatní příjmy z pronájmu majetku | J25: 134.5 | K25: 134 | L25: 66.55 | M25: 0.496641791 | N25: 134.5 | O25: 134 | P25: 66.55 | Q25: 0.496641791 | R25: 0 | S25: 0 | T25: 0 | U25: x | X25: 2132 | Y25: Příjmy z pronájmu ostatních nemovitostí a jejich částí | AB25: 89406.744 | AC25: 91690.4191 | AD25: 89566.17023 | AE25: 0.9768323791 | AF25: 72776.744 | AG25: 75080.9616 | AH25: 74052.98009 | AI25: 0.9863083598 | AJ25: 16630 | AK25: 16609.4575 | AL25: 15513.19014 | AM25: =AL25/AK25 -> 0.9339974012 | AP25: 2132 | AQ25: Příjmy z pronájmu ostatních nemovitostí a jejich částí | AT25: 90969.182 | AU25: =SUM(AY25,BC25) -> 90153.13337 | AV25: =SUM(AZ25,BD25) -> 87223.29635 | AW25: 0.9675015509 | AX25: 74329.182 | AY25: 73514.34337 | AZ25: 72252.30583 | BA25: 0.9828327714 | BB25: 16640 | BC25: 16638.79 | BD25: 14970.99052 | BE25: 0.8997643771
B26: OK | E26: 2141 | G26: Příjmy z úroků (část) | J26: 0.02 | K26: 0.72 | L26: 1.12502 | M26: 1.562527778 | N26: 0.02 | O26: 0.72 | P26: 0.80221 | Q26: 1.114180556 | R26: 0 | S26: 0 | T26: 0.32281 | U26: x | X26: 2133 | Y26: Příjmy z pronájmu movitých věcí | AB26: 223.9 | AC26: 286.78849 | AD26: 805.24495 | AE26: 2.807800794 | AF26: 223.9 | AG26: 286.78849 | AH26: 805.24495 | AI26: 2.807800794 | AP26: 2133 | AQ26: Příjmy z pronájmu movitých věcí | AT26: 309.9 | AU26: =SUM(AY26,BC26) -> 448.5 | AV26: 506.04292 | AW26: 1.128300825 | AX26: 309.9 | AY26: 448.5 | AZ26: 506.04292 | BA26: 1.128300825 | BB26: 0 | BC26: 0 | BD26: 0 | BE26: 0
B27: OK | E27: 2143 | G27: Realizované kursové zisky | J27: 0 | K27: 0 | L27: 0 | M27: x | N27: 0 | O27: 0 | P27: 0 | Q27: x | R27: 0 | S27: 0 | T27: 0 | U27: x | X27: 2139 | Y27: Ostatní příjmy z pronájmu majetku | AB27: 128.9 | AC27: 108.3 | AD27: 109.67848 | AE27: 1.012728347 | AF27: 128.9 | AG27: 108.3 | AH27: 109.67848 | AI27: 1.012728347 | AP27: 2139 | AQ27: Ostatní příjmy z pronájmu majetku | AT27: 70.3 | AU27: 69.3 | AV27: 73.08028 | AW27: 1.054549495 | AX27: 70.3 | AY27: 69.3 | AZ27: 73.08028 | BA27: 1.054549495 | BB27: 0 | BC27: 0 | BD27: 0 | BE27: 0
E28: 2149 | G28: Ostatní příjmy z výnosů finančního majetku | J28: 0 | K28: 0 | L28: 0 | M28: x | N28: 0 | O28: 0 | P28: 0 | Q28: x | R28: 0 | S28: 0 | T28: 0 | U28: x | X28: 2141 | Y28: Příjmy z úroků (část) | AB28: 0 | AC28: 0.1 | AD28: 37.20907 | AE28: 372.0907 | AF28: 0 | AG28: 0.1 | AH28: 37.20883 | AI28: 372.0883 | AJ28: 0 | AK28: 0 | AL28: 0.00024 | AM28: x | AP28: 2141 | AQ28: Příjmy z úroků (část) | AT28: 0.15 | AU28: 46.55 | AV28: 63.2471 | AW28: 1.358691729 | AX28: 0.15 | AY28: 46.55 | AZ28: 63.24683 | BA28: 1.358685929 | BB28: 0 | BC28: 0 | BD28: 0.00027 | BE28: 0
X29: 2142 | Y29: Příjmy z podílu na zisku a dividend | AB29: 0 | AC29: 398.42244 | AD29: 398.42244 | AE29: 1 | AF29: 0 | AG29: 398.42244 | AH29: 398.42244 | AI29: 1 | AP29: 2142 | AQ29: Příjmy z podílu na zisku a dividend | AT29: 0 | AU29: 65.96999 | AV29: 65.96999 | AW29: 1 | AX29: 0 | AY29: 65.96999 | AZ29: 65.96999 | BA29: 1 | BB29: 0 | BC29: 0 | BD29: 0 | BE29: 0
X30: 2143 | Y30: Realizované kursové zisky | AB30: 0 | AC30: -1.23221 | AD30: -1.23221 | AE30: 1 | AJ30: 0 | AK30: -1.23221 | AL30: -1.23221 | AM30: =AL30/AK30 -> 1 | AP30: 2143 | AQ30: Realizované kursové zisky | AT30: 0 | AU30: 0 | AV30: 0.90796 | AW30: 0 | AX30: 0 | AY30: 0 | AZ30: 0.90796 | BA30: 0 | BB30: 0 | BC30: 0 | BD30: 0 | BE30: 0
A31: =IF(COUNTBLANK(C31:ID31)=254,"odstr",IF(AND($A$1="TISK",SUM(J28:U28)=0),"odstr","OK")) ->  | B31: OK | E31: 21 | G31: Příjmy z vlastní činnosti a odvody přebytků organizací s přímým vztahem | J31: 810937.096 | K31: 1039785.608 | L31: 1025820.365 | M31: 0.9865691129 | N31: 412057.096 | O31: 591124.1749 | P31: 570632.4596 | Q31: 0.9653343304 | R31: 398880 | S31: 448661.4333 | T31: 455187.9054 | U31: 1.014546541 | X31: 2149 | Y31: Ostatní příjmy z výnosů finančního majetku | AB31: 0 | AC31: 0 | AD31: 0 | AE31: x | AP31: 2149 | AQ31: Ostatní příjmy z výnosů finančního majetku | AT31: =SUM(AX31,BB31) -> 0 | AU31: 0 | AV31: 0 | AW31: 0 | AX31: 0 | AY31: 0 | AZ31: 0 | BA31: 0 | BB31: 0 | BC31: 0 | BD31: 0 | BE31: 0
E32: 2210 | G32: Přijaté sankční platby | J32: 0 | K32: 0 | L32: 0 | M32: x | N32: 0 | O32: 0 | P32: 0 | Q32: x | R32: 0 | S32: 0 | T32: 0 | U32: x | X32: 22 | Y32: Přijaté sankční platby a vratky transferů | AB32: =AF32+AJ32 -> 66898.094 | AC32: =AG32+AK32 -> 257530.7184 | AD32: =AH32+AL32 -> 273595.0683 | AE32: =AD32/AC32 -> 1.062378383 | AF32: =SUM(AF33:AF39) -> 66058.094 | AG32: =SUM(AG33:AG39) -> 242376.3532 | AH32: =SUM(AH33:AH39) -> 258475.1343 | AI32: =AH32/AG32 -> 1.066420593 | AJ32: =SUM(AJ33:AJ39) -> 840 | AK32: =SUM(AK33:AK39) -> 15154.36524 | AL32: =SUM(AL33:AL39) -> 15119.93399 | AM32: =AL32/AK32 -> 0.9977279649 | AP32: 22 | AQ32: Přijaté sankční platby a vratky transferů | AT32: 101741.9447 | AU32: 305670.165 | AV32: 340360.1148 | AW32: =AV32/AU32 -> 1.113488177 | AX32: =SUM(AX33:AX39) -> 100901.9447 | AY32: =SUM(AY33:AY39) -> 254210.058 | AZ32: =SUM(AZ33:AZ39) -> 285791.5592 | BA32: =AZ32/AY32 -> 1.124233877 | BB32: =SUM(BB33:BB39) -> 840 | BC32: =SUM(BC33:BC39) -> 51460.10698 | BD32: =SUM(BD33:BD39) -> 54568.55562 | BE32: =BD32/BC32 -> 1.060405017
A33: =IF(COUNTBLANK(C33:ID33)=254,"odstr",IF(AND($A$1="TISK",SUM(J31:U31)=0),"odstr","OK")) ->  | B33: OK | E33: 2211 | G33: Příjmy z poskytování služeb a výrobků | J33: 0 | K33: 458.96625 | L33: 1900.51925 | M33: 4.14086929 | N33: 0 | O33: 0 | P33: 0 | Q33: x | R33: 0 | S33: 458.96625 | T33: 1900.51925 | U33: 4.14086929 | X33: 2210 | Y33: Přijaté sankční platby | AE33: x | AP33: 2210 | AQ33: Přijaté sankční platby | AT33: =SUM(AX33,BB33) -> 0 | AU33: =SUM(AY33,BC33) -> 0 | AV33: 0 | AW33: 0 | AX33: 0 | AY33: 0 | AZ33: 0 | BA33: 0 | BB33: 0 | BC33: 0 | BD33: 0 | BE33: 0
B34: OK | E34: 2212 | G34: Sankční platby přijaté od jiných subjektů | J34: 1349.1 | K34: 16512.09243 | L34: 19368.23432 | M34: 1.172972741 | N34: 509.1 | O34: 5837.78908 | P34: 11042.23272 | Q34: 1.891509366 | R34: 840 | S34: 10674.30335 | T34: 8326.0016 | U34: 0.7800042145 | X34: 2211 | Y34: Příjmy z poskytování služeb a výrobků | AB34: =AF34+AJ34 -> 0 | AC34: 382.634 | AD34: 382.634 | AE34: =AD34/AC34 -> 1 | AJ34: 0 | AK34: 382.634 | AL34: 382.634 | AM34: =AL34/AK34 -> 1 | AP34: 2211 | AQ34: Příjmy z poskytování služeb a výrobků | AT34: 0 | AU34: 0 | AV34: 0 | AW34: 0 | AX34: 0 | AY34: 0 | AZ34: 0 | BA34: 0 | BB34: 0 | BC34: 0 | BD34: 0 | BE34: 0
E35: 2221 | G35: Přijaté vratky transferů od jiných veřejných rozpočtů | J35: 0 | K35: 219.25239 | L35: 217.7973 | M35: 0.9933634019 | N35: 0 | O35: 219.25239 | P35: 217.7973 | Q35: 0.9933634019 | R35: 0 | S35: 0 | T35: 0 | U35: x | X35: 2212 | Y35: Sankční platby přijaté od jiných subjektů | AB35: 892.6 | AC35: 17537.43588 | AD35: 19074.52991 | AE35: =AD35/AC35 -> 1.087646452 | AF35: 52.6 | AG35: 10478.0186 | AH35: 14174.17294 | AI35: =AH35/AG35 -> 1.352753176 | AJ35: 840 | AK35: 7059.41728 | AL35: 4900.35697 | AM35: =AL35/AK35 -> 0.6941588485 | AP35: 2212 | AQ35: Sankční platby přijaté od jiných subjektů | AT35: 966.155 | AU35: 29274.6707 | AV35: 26755.54955 | AW35: =AV35/AU35 -> 0.9139487793 | AX35: 126.155 | AY35: 21676.4446 | AZ35: 22665.83986 | BA35: =AZ35/AY35 -> 1.045643798 | BB35: 840 | BC35: 7598.2261 | BD35: 4089.70969 | BE35: 0.5382453268
E36: 2222 | G36: Ostatní příjmy z finančního vypořádání předchozích let od jiných veřejných rozpočtů | J36: 0 | K36: 88.1 | L36: 88.04543 | M36: 0.9993805902 | N36: 0 | O36: 88.1 | P36: 88.04543 | Q36: 0.9993805902 | R36: 0 | S36: 0 | T36: 0 | U36: x | X36: 2221 | Y36: Přijaté vratky transferů od jiných veřejných rozpočtů | AE36: x | AP36: 2221 | AQ36: Přijaté vratky transferů od jiných veřejných rozpočtů | AT36: 14500 | AU36: 0 | AV36: 0 | AW36: 0 | AX36: 14500 | AY36: 0 | AZ36: 0 | BA36: 0 | BB36: 0 | BC36: 0 | BD36: 0 | BE36: 0
B37: OK | E37: 2226 | G37: Příjmy z finančního vypořádání minulých let mezi obcemi | J37: 43 | K37: 281.824 | L37: 298.03282 | M37: 1.05751398 | N37: 43 | O37: 281.824 | P37: 298.03282 | Q37: 1.05751398 | R37: 0 | S37: 0 | T37: 0 | U37: x | X37: 2222 | Y37: Ostatní příjmy z finančního vypořádání předchozích let od jiných veřejných rozpočtů | AB37: =AF37+AJ37 -> 0 | AC37: 129.08 | AD37: 129.06 | AE37: =AD37/AC37 -> 0.9998450573 | AF37: 0 | AG37: 129.08 | AH37: 129.06 | AI37: =AH37/AG37 -> 0.9998450573 | AP37: 2222 | AQ37: Ostatní příjmy z finančního vypořádání předchozích let od jiných veřejných rozpočtů | AT37: 0 | AU37: 38.522 | AV37: 38.522 | AW37: =AV37/AU37 -> 1 | AX37: 0 | AY37: 38.522 | AZ37: 38.522 | BA37: =AZ37/AY37 -> 1 | BB37: 0 | BC37: 0 | BD37: 0 | BE37: 0
B38: OK | E38: 2229 | G38: Ostatní přijaté vratky transferů | J38: 10561.7269 | K38: 64597.49701 | L38: 74410.65167 | M38: 1.151912305 | N38: 10561.7269 | O38: 61774.05618 | P38: 71344.30188 | Q38: 1.154923382 | R38: 0 | S38: 2823.44083 | T38: 3066.34979 | U38: 1.086032956 | X38: 2226 | Y38: Příjmy z finančního vypořádání minulých let mezi obcemi | AB38: 150 | AC38: 50.53 | AD38: 49.284 | AE38: 0.9753413814 | AF38: 150 | AG38: 50.53 | AH38: 49.284 | AI38: 0.9753413814 | AP38: 2226 | AQ38: Příjmy z finančního vypořádání minulých let mezi obcemi | AT38: 0 | AU38: 0 | AV38: 0 | AW38: 0 | AX38: 0 | AY38: 0 | AZ38: 0 | BA38: 0 | BE38: 0
B39: OK | E39: 22 | G39: Přijaté sankční platby a vratky transferů | J39: 11953.8269 | K39: 82157.73208 | L39: 96283.28079 | M39: 1.171932067 | N39: 11113.8269 | O39: 68201.02165 | P39: 82990.41015 | Q39: 1.216849955 | R39: 840 | S39: 13956.71043 | T39: 13292.87064 | U39: 0.9524357983 | X39: 2229 | Y39: Ostatní přijaté vratky transferů | AB39: 65855.494 | AC39: 239431.0386 | AD39: 253959.5604 | AE39: 1.060679359 | AF39: 65855.494 | AG39: 231718.7246 | AH39: 244122.6174 | AI39: 1.053529955 | AJ39: 0 | AK39: 7712.31396 | AL39: 9836.94302 | AM39: =AL39/AK39 -> 1.275485292 | AP39: 2229 | AQ39: Ostatní přijaté vratky transferů | AT39: 86275.78971 | AU39: =SUM(AY39,BC39) -> 276356.9723 | AV39: =SUM(AZ39,BD39) -> 313566.0433 | AW39: =AV39/AU39 -> 1.134641332 | AX39: 86275.78971 | AY39: 232495.0914 | AZ39: 263087.1973 | BA39: =AZ39/AY39 -> 1.131581728 | BB39: 0 | BC39: 43861.88088 | BD39: 50478.84593 | BE39: 1.150859127
B40: OK | E40: 2310 | G40: Příjmy z prodeje krátkodobého a drobného dlouhodobého majetku | J40: 5 | K40: 478.00063 | L40: 495.80763 | M40: 1.037253089 | N40: 5 | O40: 65.926 | P40: 83.733 | Q40: 1.270105876 | R40: 0 | S40: 412.07463 | T40: 412.07463 | U40: 1 | X40: 23 | Y40: Příjmy z prodeje nekapitálového majetku a ostatní nedaňové příjmy | AB40: =AF40+AJ40 -> 84908.45 | AC40: =AK40 -> 1539.91533 | AD40: =AH40+AL40 -> 146319.8236 | AE40: 95.01809662 | AF40: =SUM(AF41:AF47) -> 84908.45 | AG40: =SUM(AG41:AG47) -> 147294.6695 | AH40: =SUM(AH41:AH47) -> 144738.2995 | AI40: 0.9826445182 | AJ40: 0 | AK40: =SUM(AK41:AK47) -> 1539.91533 | AL40: =SUM(AL41:AL47) -> 1581.52408 | AM40: =AL40/AK40 -> 1.027020154 | AP40: 23 | AQ40: Příjmy z prodeje nekapitálového majetku a ostatní nedaňové příjmy | AT40: 137555.677 | AU40: =SUM(AY40,BC40) -> 135618.1103 | AV40: =SUM(AZ40,BD40) -> 136583.8828 | AW40: 1.007121265 | AX40: =SUM(AX41:AX47) -> 95555.677 | AY40: =SUM(AY41:AY47) -> 128691.2371 | AZ40: =SUM(AZ41:AZ47) -> 128417.0883 | BA40: 0.9978697164 | BB40: =SUM(BB41:BB47) -> 42000 | BC40: =SUM(BC41:BC47) -> 6926.87323 | BD40: =SUM(BD41:BD47) -> 8166.79453 | BE40: 1.179001587
B41: OK | E41: 2321 | G41: Přijaté neinvestiční dary | J41: 1902.1 | K41: 18225.439 | L41: 18269.1268 | M41: 1.002397078 | N41: 1902.1 | O41: 18125.439 | P41: 18169.1268 | Q41: 1.002410303 | R41: 0 | S41: 100 | T41: 100 | U41: 1 | X41: 2310 | Y41: Příjmy z prodeje krátkodobého a drobného dlouhodobého majetku | AB41: 10 | AC41: =AG41+AK41 -> 269.222 | AD41: 308.562 | AE41: 1.146124759 | AF41: 10 | AG41: 157.642 | AH41: 196.982 | AI41: 1.249552784 | AJ41: 0 | AK41: 111.58 | AL41: 111.58 | AM41: =AL41/AK41 -> 1 | AP41: 2310 | AQ41: Příjmy z prodeje krátkodobého a drobného dlouhodobého majetku | AT41: 10 | AU41: =SUM(AY41,BC41) -> 99.1 | AV41: 161.8787 | AW41: 1.633488396 | AX41: 10 | AY41: 99.1 | AZ41: 161.8787 | BA41: 1.633488396 | BB41: 0 | BC41: 0 | BD41: 0 | BE41: 0
B42: OK | E42: 2322 | G42: Přijaté pojistné náhrady | J42: 181.234 | K42: 12407.41975 | L42: 12341.138 | M42: 0.9946578941 | N42: 181.234 | O42: 12407.41975 | P42: 12341.138 | Q42: 0.9946578941 | R42: 0 | S42: 0 | T42: 0 | U42: x | X42: 2321 | Y42: Přijaté neinvestiční dary | AB42: 1558 | AC42: 28615.7413 | AD42: 28338.04826 | AE42: 0.9902957943 | AF42: 1558 | AG42: 28515.7413 | AH42: 28238.04826 | AI42: 0.9902617632 | AJ42: 0 | AK42: 100 | AL42: 100 | AM42: =AL42/AK42 -> 1 | AP42: 2321 | AQ42: Přijaté neinvestiční dary | AT42: 2868 | AU42: =SUM(AY42,BC42) -> 18469.20016 | AV42: 22884.02748 | AW42: 1.239037277 | AX42: 2868 | AY42: 16779.86716 | AZ42: 21194.69448 | BA42: 1.263102638 | BB42: 0 | BC42: 1689.333 | BD42: 1689.333 | BE42: 1
B43: OK | E43: 2324 | G43: Přijaté nekapitálové příspěvky a náhrady | J43: 65155.936 | K43: 89192.82487 | L43: 80783.54968 | M43: 0.9057180305 | N43: 65155.936 | O43: 88455.06758 | P43: 79755.63139 | Q43: 0.9016513533 | R43: 0 | S43: 737.75729 | T43: 1027.91829 | U43: 1.393301434 | X43: 2322 | Y43: Přijaté pojistné náhrady | AB43: 2034.088 | AC43: 22067.9634 | AD43: 18228.33576 | AE43: 0.8260089719 | AF43: 2034.088 | AG43: 22067.9634 | AH43: 18228.33576 | AI43: 0.8260089719 | AP43: 2322 | AQ43: Přijaté pojistné náhrady | AT43: 969 | AU43: 21830.661 | AV43: 24529.3004 | AW43: 1.123616935 | AX43: 969 | AY43: 20615.344 | AZ43: 23313.9834 | BA43: =AZ43/AY43 -> 1.130904408 | BB43: 0 | BC43: 1215.317 | BD43: 1215.317 | BE43: 1
B44: OK | E44: 2328 | G44: Neidentifikované příjmy | J44: 0 | K44: 2 | L44: 2 | M44: 1 | N44: 0 | O44: 2 | P44: 2 | Q44: 1 | R44: 0 | S44: 0 | T44: 0 | U44: x | X44: 2324 | Y44: Přijaté nekapitálové příspěvky a náhrady | AB44: 72469.318 | AC44: 79681.71813 | AD44: 80676.88945 | AE44: 1.012489331 | AF44: 72469.318 | AG44: 79174.65313 | AH44: 80130.48176 | AI44: 1.012072407 | AJ44: 0 | AK44: 507.065 | AL44: 546.40769 | AM44: =AL44/AK44 -> 1.077589047 | AP44: 2324 | AQ44: Přijaté nekapitálové příspěvky a náhrady | AT44: 86035.338 | AU44: 86083.52401 | AV44: 80038.42996 | AW44: 0.9297764105 | AX44: 86035.338 | AY44: 83444.77364 | AZ44: 76335.97581 | BA44: =AZ44/AY44 -> 0.9148083514 | BB44: 0 | BC44: 2638.75037 | BD44: 3702.45415 | BE44: 1.403108908
B45: OK | E45: 2329 | G45: Ostatní nedaňové příjmy jinde nezařazené | J45: 4542.744 | K45: 14616.95462 | L45: 11545.44253 | M45: 0.7898664825 | N45: 4542.744 | O45: 14359.70462 | P45: 11100.05483 | Q45: 0.77300022 | R45: 0 | S45: 257.25 | T45: 445.3877 | U45: 1.731341885 | X45: 2328 | Y45: Neidentifikované příjmy | AB45: 0 | AC45: 6 | AD45: 6 | AE45: 1 | AF45: 0 | AG45: 6 | AH45: 6 | AI45: 1 | AP45: 2328 | AQ45: Neidentifikované příjmy | AT45: 0 | AU45: =SUM(AY45,BC45) -> 29.72401 | AV45: 29.72401 | AW45: 1 | AX45: 0 | AY45: 29.72401 | AZ45: 29.72401 | BA45: =AZ45/AY45 -> 1 | BB45: 0 | BC45: 0 | BD45: 0 | BE45: 0
B46: OK | E46: 2343 | G46: Příjmy z úhrad dobývacího prostoru a z vydobytých nerostů | J46: 290 | K46: 0 | L46: 0 | M46: x | N46: 290 | O46: 0 | P46: 0 | Q46: x | R46: 0 | S46: 0 | T46: 0 | U46: x | X46: 2329 | Y46: Ostatní nedaňové příjmy jinde nezařazené | AB46: 8837.044 | AC46: 18193.93998 | AD46: 18761.98814 | AE46: 1.031221833 | AF46: 8837.044 | AG46: 17372.66965 | AH46: 17938.45175 | AI46: 1.032567367 | AJ46: 0 | AK46: 821.27033 | AL46: 823.53639 | AM46: =AL46/AK46 -> 1.002759213 | AP46: 2329 | AQ46: Ostatní nedaňové příjmy jinde nezařazené | AT46: 47673.339 | AU46: =SUM(AY46,BC46) -> 9105.90113 | AV46: =SUM(AZ46,BD46) -> 8940.52223 | AW46: 0.9818382719 | AX46: 5673.339 | AY46: 7722.42827 | AZ46: 7380.83185 | BA46: =AZ46/AY46 -> 0.9557656727 | BB46: 42000 | BC46: 1383.47286 | BD46: 1559.69038 | BE46: 1.127373312
B47: OK | X47: 2343 | Y47: Příjmy z úhrad dobývacího prostoru a z vydobytých nerostů | AE47: x | AP47: 2343 | AQ47: Příjmy z úhrad dobývacího prostoru a z vydobytých nerostů | AT47: 0 | AU47: =SUM(AY47,BC47) -> 0 | AV47: 0 | AW47: 0 | AX47: 0 | AY47: 0 | AZ47: 0 | BA47: 0 | BB47: 0 | BC47: 0 | BD47: 0 | BE47: 0
E48: 23 | G48: Příjmy z prodeje nekapitálového majetku a ostatní nedaňové příjmy | J48: 72077.014 | K48: 134922.6389 | L48: 123437.0646 | M48: 0.9148728907 | N48: 72077.014 | O48: 133415.557 | P48: 121451.684 | Q48: 0.9103262528 | R48: 0 | S48: 1507.08192 | T48: 1985.38062 | U48: 1.31736742 | X48: 3 | Y48: Kapitálové příjmy | AB48: =AF48+AJ48 -> 19907.05 | AC48: 49221.56011 | AD48: 40068.17247 | AE48: =AD48/AC48 -> 0.8140370273 | AF48: =SUM(AF49+AF58) -> 16707.05 | AG48: =SUM(AG49+AG58) -> 36193.98811 | AH48: =SUM(AH49+AH58) -> 26877.97047 | AI48: =AH48/AG48 -> 0.7426087003 | AJ48: =SUM(AJ49,AJ58) -> 3200 | AK48: =SUM(AK49+AK58) -> 13027.572 | AL48: =SUM(AL49+AL58) -> 13190.202 | AM48: =AL48/AK48 -> 1.012483523 | AP48: 3 | AQ48: Kapitálové příjmy | AT48: 28704.879 | AU48: =SUM(AY48,BC48) -> 67628.19255 | AV48: 64798.44592 | AW48: =AV48/AU48 -> 0.9581572932 | AX48: =SUM(AX49,AX58) -> 28704.879 | AY48: =SUM(AY49,AY58) -> 60422.14255 | AZ48: =SUM(AZ49,AZ58) -> 56157.12299 | BA48: =AZ48/AY48 -> 0.9294129705 | BB48: =SUM(BB49,BB58) -> 0 | BC48: =SUM(BC49,BC58) -> 7206.05 | BD48: =SUM(BD49,BD58) -> 8641.32293 | BE48: 1.199176099
E49: 2 | G49: Nedaňové příjmy | J49: 894967.9369 | K49: 1256865.979 | L49: 1245540.71 | M49: 0.990989279 | N49: 495247.9369 | O49: 792740.7535 | P49: 775074.5537 | Q49: 0.9777150353 | R49: 399720 | S49: 464125.2257 | T49: 470466.1567 | U49: 1.013662113 | X49: 31 | Y49: Příjmy z prodej dlouhodobého majetku a ostatní kapitálové příjmy | AB49: 19907.05 | AC49: 49221.56011 | AD49: 40068.17247 | AE49: =AD49/AC49 -> 0.8140370273 | AF49: =SUM(AF50:AF57) -> 16707.05 | AG49: =SUM(AG50:AG57) -> 36193.98811 | AH49: =SUM(AH50:AH57) -> 26877.97047 | AI49: =AH49/AG49 -> 0.7426087003 | AJ49: =SUM(AJ50:AJ57) -> 3200 | AK49: =SUM(AK50:AK57) -> 13027.572 | AL49: =SUM(AL50:AL57) -> 13190.202 | AM49: =AL49/AK49 -> 1.012483523 | AP49: 31 | AQ49: Příjmy z prodej dlouhodobého majetku a ostatní kapitálové příjmy | AT49: 28704.879 | AU49: 67628.19255 | AV49: 64798.44592 | AW49: =AV49/AU49 -> 0.9581572932 | AX49: =SUM(AX50:AX57) -> 28704.879 | AY49: =SUM(AY50:AY57) -> 60422.14255 | AZ49: =SUM(AZ50:AZ57) -> 56157.12299 | BA49: =AZ49/AY49 -> 0.9294129705 | BB49: =SUM(BB50:BB57) -> 0 | BC49: =SUM(BC50:BC57) -> 7206.05 | BD49: =SUM(BD50:BD57) -> 8641.32293 | BE49: 1.199176099
A50: =IF(COUNTBLANK(C50:ID50)=254,"odstr",IF(AND($A$1="TISK",SUM(J48:U48)=0),"odstr","OK")) ->  | B50: OK | E50: 3111 | G50: Příjmy z prodeje pozemků | J50: 0 | K50: 130 | L50: 323.363 | M50: 2.487407692 | N50: 0 | O50: 0 | P50: 8.12 | Q50: x | R50: 0 | S50: 130 | T50: 315.243 | U50: 2.424946154 | X50: 3111 | Y50: Příjmy z prodeje pozemků | AB50: 0 | AC50: 1307.766 | AD50: 1408.296 | AE50: =AD50/AC50 -> 1.07687155 | AJ50: 0 | AK50: 1307.766 | AL50: 1408.296 | AM50: =AL50/AK50 -> 1.07687155 | AP50: 3111 | AQ50: Příjmy z prodeje pozemků | AT50: 0 | AU50: 1559.528 | AV50: 1574.84792 | AW50: =AV50/AU50 -> 1.009823434 | AX50: 0 | AY50: 1373.753 | AZ50: 0 | BA50: =AZ50/AY50 -> 0 | BB50: 0 | BC50: 185.775 | BD50: 1574.84792 | BE50: 8.477178953
B51: OK | E51: 3112 | G51: Příjmy z prodeje ostatních nemovitostí a jejich částí | J51: 0 | K51: 300 | L51: 300 | M51: 1 | N51: 0 | O51: 0 | P51: 0 | Q51: x | R51: 0 | S51: 300 | T51: 300 | U51: 1 | X51: 3112 | Y51: Příjmy z prodeje ostatních nemovitostí a jejich částí | AB51: 3200 | AC51: 11449.994 | AD51: 11450.769 | AE51: =AD51/AC51 -> 1.000067686 | AF51: 0 | AG51: 0 | AH51: 0.775 | AI51: x | AJ51: 3200 | AK51: 11449.994 | AL51: 11449.994 | AM51: =AL51/AK51 -> 1 | AP51: 3112 | AQ51: Příjmy z prodeje ostatních nemovitostí a jejich částí | AT51: 0 | AU51: 6814.225 | AV51: 6821.22801 | AW51: =AV51/AU51 -> 1.001027705 | AX51: 0 | AY51: 0 | AZ51: 7.003 | BA51: 0 | BB51: 0 | BC51: 6814.225 | BD51: 6814.22501 | BE51: 1.000000001
B52: OK | E52: 3113 | G52: Příjmy z prodeje ostatního hmotného dlouhodobého majetku | J52: 0 | K52: 893.9041 | L52: 2220.7231 | M52: 2.484296805 | N52: 0 | O52: 47.9 | P52: 1156.32 | Q52: 24.14029228 | R52: 0 | S52: 846.0041 | T52: 1064.4031 | U52: 1.258153595 | X52: 3113 | Y52: Příjmy z prodeje ostatního hmotného dlouhodobého majetku | AB52: 0 | AC52: 338.412 | AD52: 414.012 | AE52: =AD52/AC52 -> 1.223396333 | AF52: 0 | AG52: 68.6 | AH52: 82.1 | AI52: =AH52/AG52 -> 1.196793003 | AK52: 269.812 | AL52: 331.912 | AM52: =AL52/AK52 -> 1.23016026 | AP52: 3113 | AQ52: Příjmy z prodeje ostatního hmotného dlouhodobého majetku | AT52: 20 | AU52: 563.023 | AV52: 649.762 | AW52: =AV52/AU52 -> 1.154059426 | AX52: 20 | AY52: 356.973 | AZ52: 397.512 | BA52: =AZ52/AY52 -> 1.113563211 | BB52: 0 | BC52: 206.05 | BD52: 252.25 | BE52: 1.224217423
B53: OK | E53: 3114 | G53: Příjmy z prodeje nehmotného dlouhodobého majetku | J53: 0 | K53: 0 | L53: 0 | M53: x | N53: 0 | O53: 0 | P53: 0 | Q53: x | R53: 0 | S53: 0 | T53: 0 | U53: x | X53: 3114 | Y53: Příjmy z prodeje nehmotného dlouhodobého majetku | AE53: x | AP53: 3114 | AQ53: Příjmy z prodeje nehmotného dlouhodobého majetku | AT53: 0 | AU53: =SUM(AY53,BC53) -> 0 | AV53: 0 | AW53: 0 | AX53: 0 | AY53: 0 | AZ53: 0 | BA53: 0 | BB53: 0 | BC53: 0 | BD53: 0 | BE53: 0
B54: OK | E54: 3119 | G54: Ostatní příjmy z prodeje dlouhodobého majetku | J54: 0 | K54: 0 | L54: 0 | M54: x | N54: 0 | O54: 0 | P54: 0 | Q54: x | R54: 0 | S54: 0 | T54: 0 | U54: x | X54: 3119 | Y54: Ostatní příjmy z prodeje dlouhodobého majetku | AE54: x | AP54: 3119 | AQ54: Ostatní příjmy z prodeje dlouhodobého majetku | AT54: 0 | AU54: 0 | AV54: 0 | AW54: 0 | AX54: 0 | AY54: 0 | AZ54: 0 | BA54: 0 | BB54: 0 | BC54: 0 | BD54: 0 | BE54: 0
B55: OK | E55: 3121 | G55: Přijaté dary na pořízení dlouhodobého majetku | J55: 500 | K55: 5660 | L55: 5807.592 | M55: 1.026076325 | N55: 500 | O55: 5660 | P55: 5807.592 | Q55: 1.026076325 | R55: 0 | S55: 0 | T55: 0 | U55: x | X55: 3121 | Y55: Přijaté dary na pořízení dlouhodobého majetku | AB55: =AF55+AJ55 -> 8961 | AC55: 25530.54511 | AD55: 24694.75447 | AE55: =AD55/AC55 -> 0.9672631103 | AF55: 8961 | AG55: 25530.54511 | AH55: 24694.75447 | AI55: =AH55/AG55 -> 0.9672631103 | AP55: 3121 | AQ55: Přijaté dary na pořízení dlouhodobého majetku | AT55: 5592.379 | AU55: 52787.41655 | AV55: 52289.91199 | AW55: =AV55/AU55 -> 0.990575319 | AX55: 5592.379 | AY55: 52787.41655 | AZ55: 52289.91199 | BA55: 0.990575319 | BB55: 0 | BC55: 0 | BD55: 0 | BE55: 0
B56: OK | E56: 3122 | G56: Přijaté příspěvky na pořízení dlouhodobého majetku | J56: 1006 | K56: 1740.1445 | L56: 1538.5005 | M56: 0.8841222669 | N56: 1006 | O56: 1740.1445 | P56: 1538.5005 | Q56: 0.8841222669 | R56: 0 | S56: 0 | T56: 0 | U56: x | X56: 3122 | Y56: Přijaté příspěvky na pořízení dlouhodobého majetku | AB56: 5774.05 | AC56: 1749.05 | AD56: 150 | AE56: =AD56/AC56 -> 0.0857608416 | AF56: 5774.05 | AG56: 1749.05 | AH56: 150 | AI56: =AH56/AG56 -> 0.0857608416 | AP56: 3122 | AQ56: Přijaté příspěvky na pořízení dlouhodobého majetku | AT56: 3930 | AU56: 2829 | AV56: 389.093 | AW56: =AV56/AU56 -> 0.1375372923 | AX56: 3930 | AY56: 2829 | AZ56: 389.093 | BA56: 0.1375372923 | BE56: 0
B57: OK | E57: 3129 | G57: Ostatní investiční příjmy jinde nezařazené | J57: 2900 | K57: 0 | L57: 0.55 | M57: x | N57: 2900 | O57: 0 | P57: 0 | Q57: x | R57: 0 | S57: 0 | T57: 0.55 | U57: x | X57: 3129 | Y57: Ostatní investiční příjmy jinde nezařazené | AB57: 1972 | AC57: 8845.793 | AD57: 1950.341 | AE57: =AD57/AC57 -> 0.2204823242 | AF57: 1972 | AG57: 8845.793 | AH57: 1950.341 | AI57: =AH57/AG57 -> 0.2204823242 | AP57: 3129 | AQ57: Ostatní investiční příjmy jinde nezařazené | AT57: 19162.5 | AU57: 3075 | AV57: 3073.603 | AW57: =AV57/AU57 -> 0.9995456911 | AX57: 19162.5 | AY57: 3075 | AZ57: 3073.603 | BA57: 0.9995456911 | BE57: 0
B58: OK | E58: 31 | G58: Příjmy z prodeje dlouhodobého majetku a ostatní kapitálové příjmy | J58: 4406 | K58: 8724.0486 | L58: 10190.7286 | M58: 1.168119192 | N58: 4406 | O58: 7448.0445 | P58: 8510.5325 | Q58: 1.142653283 | R58: 0 | S58: 1276.0041 | T58: 1680.1961 | U58: 1.316763872 | X58: 32 | Y58: Příjmy z prodeje dlouhodobého finančního majetku | AB58: 0 | AC58: 0 | AD58: 0 | AE58: x | AF58: 0 | AG58: 0 | AH58: 0 | AI58: x | AJ58: 0 | AK58: 0 | AL58: 0 | AM58: x | AP58: 32 | AQ58: Příjmy z prodeje dlouhodobého finančního majetku | AT58: 0 | AU58: 0 | AV58: 0 | AW58: 0 | AX58: =SUM(AX59:AX60) -> 0 | AY58: =SUM(AY59:AY60) -> 0 | AZ58: =SUM(AZ59:AZ60) -> 0 | BA58: 0 | BB58: =SUM(BB59:BB60) -> 0 | BC58: =SUM(BC59:BC60) -> 0 | BD58: =SUM(BD59:BD60) -> 0 | BE58: 0
B59: OK | E59: 3201 | G59: Příjmy z prodeje akcií | J59: 0 | K59: 0 | L59: 0 | M59: x | N59: 0 | O59: 0 | P59: 0 | Q59: x | R59: 0 | S59: 0 | T59: 0 | U59: x | X59: 3201 | Y59: Příjmy z prodeje akcií | AB59: 0 | AC59: 0 | AD59: 0 | AE59: x | AF59: 0 | AG59: 0 | AH59: 0 | AI59: x | AJ59: 0 | AK59: 0 | AL59: 0 | AM59: x | AP59: 3201 | AQ59: Příjmy z prodeje akcií | AT59: 0 | AU59: 0 | AV59: 0 | AW59: 0 | AX59: 0 | AY59: 0 | AZ59: 0 | BA59: 0 | BE59: 0
B60: OK | E60: 3202 | G60: Příjmy z prodeje majetkových podílů | J60: 0 | K60: 0 | L60: 0 | M60: x | N60: 0 | O60: 0 | P60: 0 | Q60: x | R60: 0 | S60: 0 | T60: 0 | U60: x | X60: 3202 | Y60: Příjmy z prodeje majetkových podílů | AB60: 0 | AC60: 0 | AD60: 0 | AE60: x | AF60: 0 | AG60: 0 | AH60: 0 | AI60: x | AJ60: 0 | AK60: 0 | AL60: 0 | AM60: x | AP60: 3202 | AQ60: Příjmy z prodeje majetkových podílů | AT60: 0 | AU60: 0 | AV60: 0 | AW60: 0 | AX60: 0 | AY60: 0 | AZ60: 0 | BA60: 0 | BE60: 0
B61: OK | E61: 32 | G61: Příjmy z prodeje dlouhodobého finančního majetku | J61: 0 | K61: 0 | L61: 0 | M61: x | N61: 0 | O61: 0 | P61: 0 | Q61: x | R61: 0 | S61: 0 | T61: 0 | U61: x | X61: Příjmy kap. 700-Obce a DSO; KÚ (část vzdělávání) | AB61: =SUM(AB48+AB14) -> 1078274.464 | AC61: =AC48+AC14 -> 1596442.141 | AD61: =AD48+AD14 -> 1593349.331 | AE61: =AD61/AC61 -> 0.9980626859 | AF61: =SUM(AF14+AF48) -> 651894.3235 | AG61: =SUM(AG48+AG14) -> 1090047.418 | AH61: =SUM(AH14+AH48) -> 1081087.706 | AI61: =AH61/AG61 -> 0.9917804384 | AJ61: =SUM(AJ14,AJ48) -> 426380.14 | AK61: =SUM(AK14+AK48) -> 506394.7232 | AL61: =SUM(AL48+AL14) -> 512261.6252 | AM61: =AL61/AK61 -> 1.01158563 | AO61: Příjmy kap. 700-Obce a DSO; KÚ (část vzdělávání) | AT61: 1203403.604 | AU61: =SUM(AY61,BC61) -> 1761040.928 | AV61: =SUM(AZ61,BD61) -> 1762914.946 | AW61: =AV61/AU61 -> 1.001064153 | AX61: =SUM(AX14,AX48) -> 733749.9439 | AY61: =SUM(AY14,AY48) -> 1147902.024 | AZ61: =SUM(AZ14,AZ48) -> 1147418.476 | BA61: =AZ61/AY61 -> 0.999578755 | BB61: =SUM(BB14,BB48) -> 469653.66 | BC61: =SUM(BC14,BC48) -> 613138.9042 | BD61: =SUM(BD14,BD48) -> 615496.47 | BE61: 1.003845076
B62: OK | E62: 3 | G62: Kapitálové příjmy | J62: 4406 | K62: 8724.0486 | L62: 10190.7286 | M62: 1.168119192 | N62: 4406 | O62: 7448.0445 | P62: 8510.5325 | Q62: 1.142653283 | R62: 0 | S62: 1276.0041 | T62: 1680.1961 | U62: 1.316763872 | AM62: Zdroj: Závěrečný účet – kapitola 700-Obce a DSO; KÚ (část: vzdělávání); monitor.statnipokladna.cz | AP62: Komentář:
B63: OK | E63: Příjmy kap. 700-Obce a DSO; KÚ (část vzdělávání) | J63: 899373.9369 | K63: 1265590.028 | L63: 1255731.439 | M63: 0.9922102826 | N63: 499653.9369 | O63: 800188.798 | P63: 783585.0862 | Q63: 0.9792502572 | R63: 399720 | S63: 465401.2298 | T63: 472146.3528 | U63: 1.014493135 | X63: Tabulka neobsahuje z daných tříd následující položky: 2223, 2441, 2442, 2449, 4121, 4122, 4129, 4133, 4134, 4139, 4221, 4222, 4229. | AO63: 1) | AP63: Tabulka neobsahuje z daných tříd následující položky: 2223, 2441, 2442, 2449, 4121, 4122, 4129, 4133, 4134, 4139, 4221, 4222, 4229.
B64: OK | U64: Zdroj: Závěrečný účet – kapitola 700-Obce a DSO; KÚ (část: vzdělávání)
B65: OK | E65: Tabulka neobsahuje z daných tříd následující položky: 2223, 2441, 2442, 2449, 4121, 4122, 4129, 4133, 4134, 4139, 4221, 4222, 4229.
A66: konst | B66: stop | D66: Komentáře:
A67: =IF(COUNTBLANK(D67:E67)=2,"odstr","OK") -> OK | D67: 1)
A68: =IF(COUNTBLANK(D68:E68)=2,"odstr","OK") -> odstr
A69: stop

Sheet B6
A1: =IF(#REF!="","ŠABLONA",IF(#REF!="T","TISK","ELEKTRO")) ->  | B1: 0 | C1: =CONCATENATE(D1,F1,IF(G1<>"",".",""),G1,IF(H1<>"",".",""),H1,IF(I1<>"",".",""),I1,"") ->  | D1: =IF(#REF!=""," ?",#REF!) ->  | E1: =CONCATENATE(C1,N1) ->  | F1: 6
A2: konst
A3: konst | B3: 102x4 | D3: Tab. B6: | H3: Výdaje kapitoly 333-MŠMT – podle položek | P3: Tab. B6: | S3: Výdaje kapitoly 333-MŠMT - podle položek | AD3: Tab. B6: | AG3: Výdaje kapitoly 333-MŠMT - podle položek
A4: konst | B4: =COUNTA(Datova_oblast) -> 420 | D4: =IF(D1=" ?","",CONCATENATE("Tab. ",E1,":")) ->  | H4: =IF(H3="Zadejte název tabulky","",H3) -> Výdaje kapitoly 333-MŠMT – podle položek | P4: =IF(P1=" ?","",CONCATENATE("Tab. ",Q1,":")) -> Tab. : | AD4: =IF(AD1=" ?","",CONCATENATE("Tab. ",AE1,":")) -> Tab. :
A5: =IF(D5="","odstr","OK") -> odstr | B5: 0
A6: =IF(COUNTBLANK(C6:IW6)=254,"odstr","OK") -> OK | B6: Řádky pro
A7: =IF(COUNTBLANK(C7:IW7)=254,"odstr","OK") -> OK | B7: ročenku PaM
A8: konst | D8: (podle stavu k: 31. 12. 2017) | N8: v tis. Kč | P8: (podle stavu k: 31. 12. 2019) | Z8: v tis. Kč | AD8: (podle stavu k: 31. 12. 2020) | AN8: v tis. Kč
A9: konst | D9: Položka | G9: Popis položky | J9: Schválený rozpočet | K9: Rozpočet po změnách | L9: Konečný rozpočet | M9: Skutečnost | N9: % plnění rozpočtu | P9: Položka | S9: Popis položky | V9: Schválený rozpočet | W9: Rozpočet po změnách | X9: Konečný rozpočet | Y9: Skutečnost | Z9: % plnění rozpočtu | AD9: Položka | AG9: Popis položky | AJ9: Schválený rozpočet | AK9: Rozpočet po změnách | AL9: Konečný rozpočet | AM9: Skutečnost | AN9: % plnění rozpočtu
A10: konst
A11: konst
A12: konst
A13: konst
E14: 5011 | G14: Platy zaměstnanců v pracovním poměru | J14: 107421.165 | K14: 111655.406 | L14: 113405.006 | M14: 108242.683 | N14: 0.9694352193 | Q14: 5 | S14: Běžné výdaje celkem | V14: =V15+V35+V82+V91+V109+V116+V128 -> 196018803.2 | W14: =SUM(W15,W35,W82,W91,W109,W116,W125,W128) -> 200513347 | X14: =SUM(X15,X35,X82,X91,X109,X116,X125,X128) -> 205407766.7 | Y14: =SUM(Y15,Y35,Y82,Y91,Y109,Y116,Y125,Y128) -> 199521703.1 | Z14: =Y14/W14 -> 0.9950544741 | AE14: 5 | AG14: Běžné výdaje celkem | AJ14: =SUM(AJ15,AJ35,AJ82,AJ91,AJ109,AJ116,AJ125,AJ128) -> 220068774.9 | AK14: =SUM(AK15,AK35,AK82,AK91,AK109,AK116,AK125,AK128) -> 218168675.1 | AL14: =SUM(AL15,AL35,AL82,AL91,AL109,AL116,AL125,AL128) -> 163783035.6 | AM14: =SUM(AM15,AM35,AM82,AM91,AM109,AM116,AM125,AM128) -> 218320357.4 | AN14: =AM14/AK14 -> 1.000695252
E15: 5013 | G15: Platy státních zaměstnanců ve správních úřadech | J15: 659840.394 | K15: 668565.483 | L15: 679002.77 | M15: 645905.535 | N15: 0.966106614 | Q15: 50 | S15: Platy a podobné související výdaje | V15: =V16+V20+V26+V30+V33 -> 1259287.755 | W15: =SUM(W16,W20,W26,W30,W33) -> 1262077.141 | X15: =SUM(X16,X20,X26,X30,X33) -> 1466280.534 | Y15: =SUM(Y16,Y20,Y26,Y30,Y33) -> 1302694.19 | Z15: =Y15/W15 -> 1.032182699 | AE15: 50 | AG15: Platy a podobné související výdaje | AJ15: =SUM(AJ16,AJ20,AJ26,AJ30,AJ33) -> 1317232.188 | AK15: =SUM(AK16,AK20,AK26,AK30,AK33) -> 1326827.238 | AL15: =SUM(AL16,AL20,AL26,AL30,AL33) -> 1044014.512 | AM15: =SUM(AM16,AM20,AM26,AM30,AM33) -> 1298052.364 | AN15: =AM15/AK15 -> 0.9783130212
E16: 5021 | G16: Ostatní osobní výdaje | J16: 102553.765 | K16: 112732.023 | L16: 163424.899 | M16: 102161.1148 | N16: 0.9062297659 | Q16: 501 | S16: Platy | V16: =V17+V18+V19 -> 861872.211 | W16: =SUM(W17:W19) -> 862760.657 | X16: =SUM(X17:X19) -> 932282.994 | Y16: =SUM(Y17:Y19) -> 893660.034 | Z16: 1.035814541 | AE16: 501 | AG16: Platy | AJ16: 913322.713 | AK16: 913785.793 | AL16: 902652.049 | AM16: 902652.049 | AN16: 0.9878158053
E17: 5022 | G17: Platy představitelů státní moci a některých orgánů | J17: 1622.4 | K17: 1622.4 | L17: 1639.32 | M17: 1638.72 | N17: 1.010059172 | Q17: 5011 | S17: Platy zaměstnanců v pracovním poměru vyjma zaměstnanců na služebních místech | V17: 126196.305 | W17: 119821.316 | X17: 132770.836 | Y17: 125757.23 | Z17: 1.049539716 | AE17: 5011 | AG17: Platy zaměstnanců v pracovním poměru vyjma zaměstnanců na služebních místech | AJ17: 136983.597 | AK17: 127983.597 | AL17: 133636.716 | AM17: 133636.716 | AN17: 1.044170653
E18: 5024 | G18: Odstupné | J18: 1000 | K18: 697.077 | L18: 698.708 | M18: 350.708 | N18: 0.5031122817 | Q18: 5013 | S18: Platy zaměstnanců na služebních místech podle zákona o státní službě | V18: 735675.906 | W18: 742939.341 | X18: 799512.158 | Y18: 767902.804 | Z18: 1.033600944 | AE18: 5013 | AG18: Platy zaměstnanců na služebních místech podle zákona o státní službě | AJ18: 776339.116 | AK18: 785802.196 | AL18: 817411.55 | AM18: 769015.333 | AN18: =AM18/AK18 -> 0.9786372918
E19: 5025 | G19: Odbytné | J19: 500 | K19: 908.736 | L19: 908.736 | M19: 408.736 | N19: 0.4497851961 | Q19: 5019 | S19: Ostatní platy | Z19: x | AE19: 5019 | AG19: Ostatní platy | AN19: x
E20: 5026 | G20: Odchodné | J20: 0 | K20: 406.5 | L20: 406.5 | M20: 406.5 | N20: 1 | Q20: 502 | S20: Ostatní platby za provedenou práci | V20: =SUM(V21:V25) -> 83501.059 | W20: =SUM(W21:W25) -> 84284.68 | X20: =SUM(X21:X25) -> 172635.5322 | Y20: =SUM(Y21:Y25) -> 86798.797 | Z20: 1.029828873 | AE20: 502 | AG20: Ostatní platby za provedenou práci | AJ20: 72954.578 | AK20: 72954.578 | AL20: =SUM(AL21:AL25) -> 132383.533 | AM20: 69430.981 | AN20: 0.9517014957
A21: =IF(COUNTBLANK(C21:IW21)=254,"odstr",IF(AND($A$1="TISK",SUM(J14:N14)=0),"odstr","OK")) ->  | B21: OK | E21: 5031 | G21: Povinné pojistné na sociální zabezpečení a příspěvek na státní politiku zaměstnanosti | J21: 216146.819 | K21: 219288.94 | L21: 233924.401 | M21: 208999.671 | N21: 0.9530789423 | Q21: 5021 | S21: Ostatní osobní výdaje | V21: 79927.459 | W21: 79927.459 | X21: 168278.3112 | Y21: 83180.913 | Z21: 1.040705085 | AE21: 5021 | AG21: Ostatní osobní výdaje | AJ21: 69376.178 | AK21: 68910.213 | AL21: 128415.288 | AM21: 66687.426 | AN21: =AM21/AK21 -> 0.9677437218
A22: =IF(COUNTBLANK(C22:IW22)=254,"odstr",IF(AND($A$1="TISK",SUM(J15:N15)=0),"odstr","OK")) ->  | B22: OK | E22: 5032 | G22: Povinné pojistné na veřejné zdravotní pojištění | J22: 78017.9 | K22: 78920.143 | L22: 84188.316 | M22: 75443.115 | N22: 0.9559424519 | Q22: 5022 | S22: Platy představitelů státní moci a některých orgánů | V22: 2073.6 | W22: 2073.6 | X22: 2073.6 | Y22: 1885.2 | Z22: 0.9091435185 | AE22: 5022 | AG22: Platy představitelů státní moci a některých orgánů | AJ22: 2078.4 | AK22: 2078.4 | AL22: 2078.4 | AM22: 2078.4 | AN22: =AM22/AK22 -> 1
E23: 5039 | G23: Ostatní povinné pojistné placené zaměstnavatelem | J23: 0 | K23: 170 | L23: 170 | M23: 40.669 | N23: 0.2392294118 | Q23: 5024 | S23: Odstupné | V23: 1000 | W23: 1283.621 | X23: 1283.621 | Y23: 869.284 | Z23: 0.6772123547 | AE23: 5024 | AG23: Odstupné | AJ23: 1000 | AK23: 1255.296 | AL23: 1179.176 | AM23: 454.486 | AN23: =AM23/AK23 -> 0.362054846
A24: =IF(COUNTBLANK(C24:IW24)=254,"odstr",IF(AND($A$1="TISK",SUM(J16:N16)=0),"odstr","OK")) ->  | B24: OK | E24: 5041 | G24: Odměny za užití duševního vlastnictví | J24: 0 | K24: 0 | L24: 0 | M24: 0 | N24: x | Q24: 5025 | S24: Odbytné | V24: 500 | W24: 1000 | X24: 1000 | Y24: 863.4 | Z24: 0.8634 | AE24: 5025 | AG24: Odbytné | AJ24: 500 | AK24: 710.669 | AL24: 710.669 | AM24: 210.669 | AN24: =AM24/AK24 -> 0.2964375821
A25: =IF(COUNTBLANK(C25:IW25)=254,"odstr",IF(AND($A$1="TISK",SUM(J17:N17)=0),"odstr","OK")) ->  | B25: OK | E25: 50 | G25: Výdaje na platby, ostatních platby za provedenou práci a pojistné | J25: 1167102.443 | K25: 1194966.708 | L25: 1277768.656 | M25: 1143597.452 | N25: 0.9570119771 | Q25: 5026 | S25: Odchodné | Z25: x | AE25: 5026 | AG25: Odchodné | AN25: x
E26: 5132 | G26: Ochranné pomůcky | J26: 45 | K26: 46 | L26: 46 | M26: 27.97687 | N26: 0.6081928261 | Q26: 503 | S26: Povinné pojistné placené zaměstnavatelem | V26: =SUM(V27:V29) -> 313914.485 | W26: =SUM(W27:W29) -> 314480.532 | X26: =SUM(X27:X29) -> 359479.7358 | Y26: =SUM(Y27:Y29) -> 321685.5284 | Z26: 1.022910787 | AE26: 503 | AG26: Povinné pojistné placené zaměstnavatelem | AJ26: 330951.397 | AK26: 331107.937 | AL26: =SUM(AL27:AL29) -> 0 | AM26: 318349.3691 | AN26: =AM26/AK26 -> 0.9614670431
A27: =IF(COUNTBLANK(C27:IW27)=254,"odstr",IF(AND($A$1="TISK",SUM(J18:N18)=0),"odstr","OK")) ->  | B27: OK | E27: 5133 | G27: Léky a zdravotnický materiál | J27: 55 | K27: 28.361 | L27: 28.361 | M27: 11.77 | N27: 0.415006523 | Q27: 5031 | S27: Povinné pojistné na sociální zabezpečení a příspěvek na státní politiku zaměstnanosti | V27: 230709.614 | W27: 231125.167 | X27: 263958.4586 | Y27: 236174.6393 | Z27: 1.02184735 | AD27: z toho | AE27: 5031 | AG27: Povinné pojistné na sociální zabezpečení a příspěvek na státní politiku zaměstnanosti | AJ27: 330951.4 | AK27: 331107.9 | AM27: 318349.4 | AN27: =AM27/AK27 -> 0.9614672438
A28: =IF(COUNTBLANK(C28:IW28)=254,"odstr",IF(AND($A$1="TISK",SUM(J19:N19)=0),"odstr","OK")) ->  | B28: OK | E28: 5134 | G28: Prádlo, oděv a obuv | J28: 3170 | K28: 6436.861 | L28: 6436.861 | M28: 6433.03812 | N28: 0.9994060956 | Q28: 5032 | S28: Povinné pojistné na veřejné zdravotní pojištění | V28: 83204.871 | W28: 83355.365 | X28: 95521.27722 | Y28: 85510.8891 | Z28: 1.025859452 | AE28: 5032 | AG28: Povinné pojistné na veřejné zdravotní pojištění
A29: =IF(COUNTBLANK(C29:IW29)=254,"odstr",IF(AND($A$1="TISK",SUM(J20:N20)=0),"odstr","OK")) ->  | B29: OK | E29: 5136 | G29: Knihy, učební pomůcky a tisk | J29: 628 | K29: 752.382 | L29: 752.382 | M29: 568.66554 | N29: 0.7558202349 | Q29: 5039 | S29: Ostatní povinné pojistné placené zaměstnavatelem | Z29: x | AE29: 5039 | AG29: Ostatní povinné pojistné placené zaměstnavatelem
E30: 5137 | G30: Drobný hmotný dlouhodobý majetek | J30: 7139.117 | K30: 22071.644 | L30: 31950.87625 | M30: 14910.87171 | N30: 0.6755668817 | Q30: 504 | S30: Odměny za užití duševního vlastnictví | V30: 0 | W30: =SUM(W31:W32) -> 551.272 | X30: =SUM(X31:X32) -> 1882.272 | Y30: =SUM(Y31:Y32) -> 549.83018 | Z30: 0.9973845579 | AE30: 504 | AG30: Odměny za užití duševního vlastnictví | AJ30: =SUM(AJ31:AJ32) -> 3.5 | AK30: =SUM(AK31:AK32) -> 8978.93 | AL30: =SUM(AL31:AL32) -> 8978.93 | AM30: =SUM(AM31:AM32) -> 7619.96471 | AN30: =AM30/AK30 -> 0.8486495284
A31: =IF(COUNTBLANK(C31:IW31)=254,"odstr",IF(AND($A$1="TISK",SUM(J21:N21)=0),"odstr","OK")) ->  | B31: OK | E31: 5139 | G31: Nákup materiálu jinde nezařazený | J31: 5920 | K31: 15009.152 | L31: 16431.777 | M31: 12732.59662 | N31: 0.848322185 | Q31: 5041 | S31: Odměny za užití duševního vlastnictví | V31: 0 | W31: 1 | X31: 1 | Y31: 0.359 | Z31: 0.359 | AE31: 5041 | AG31: Odměny za užití duševního vlastnictví | AJ31: 0 | AK31: 1.3 | AL31: 1.3 | AM31: 0.982 | AN31: =AM31/AK31 -> 0.7553846154
Q32: 5042 | S32: Odměny za užití počítačových programů | W32: 550.272 | X32: 1881.272 | Y32: 549.47118 | Z32: 0.9985446834 | AE32: 5042 | AG32: Odměny za užití počítačových programů | AJ32: 3.5 | AK32: 8977.63 | AL32: 8977.63 | AM32: 7618.98271 | AN32: =AM32/AK32 -> 0.8486630336
E33: 5142 | G33: Realizované kurzové ztráty | J33: 215 | K33: 343.27 | L33: 343.27 | M33: 324.05953 | N33: 0.9440368515 | Q33: 505 | S33: Mzdové náhrady | V33: 0 | W33: 0 | X33: 0 | Y33: 0 | Z33: x | AE33: 505 | AG33: Mzdové náhrady | AJ33: =AJ34 -> 0 | AK33: =AK34 -> 0 | AL33: =AL34 -> 0 | AM33: =AM34 -> 0 | AN33: 0
A34: =IF(COUNTBLANK(C34:IW34)=254,"odstr",IF(AND($A$1="TISK",SUM(J22:N22)=0),"odstr","OK")) ->  | B34: OK | E34: 5151 | G34: Studená voda | J34: 1461 | K34: 1672.206 | L34: 1672.206 | M34: 1580.74117 | N34: 0.9453028933 | Q34: 5051 | S34: Mzdové náhrady | V34: 0 | W34: 0 | X34: 0 | Y34: 0 | Z34: 0 | AE34: 5051 | AG34: Mzdové náhrady | AJ34: 0 | AK34: 0 | AL34: 0 | AM34: 0 | AN34: 0
A35: =IF(COUNTBLANK(C35:IW35)=254,"odstr",IF(AND($A$1="TISK",SUM(J23:N23)=0),"odstr","OK")) ->  | B35: OK | E35: 5152 | G35: Teplo | J35: 2551 | K35: 3261.185 | L35: 3261.185 | M35: 2497.0607 | N35: 0.7656912135 | Q35: 51 | S35: Neinvestiční nákupy a související výdaje | V35: =V37+V44+V46+V54+V63+V70+V74 -> 300926.983 | W35: =SUM(W36,W37,W44,W46,W54,W63,W70,W74) -> 388540.866 | X35: =SUM(X36,X37,X44,X46,X54,X63,X70,X74) -> 415308.998 | Y35: =SUM(Y36,Y37,Y44,Y46,Y54,Y63,Y70,Y74) -> 312888.8003 | Z35: 0.8052918693 | AE35: 51 | AG35: Neinvestiční nákupy a související výdaje | AJ35: =SUM(AJ36,AJ37,AJ44,AJ46,AJ54,AJ63,AJ70,AJ74) -> 335509.094 | AK35: =SUM(AK36,AK37,AK44,AK46,AK54,AK63,AK70,AK74) -> 366166.598 | AL35: =SUM(AL36,AL37,AL44,AL46,AL54,AL63,AL70,AL74) -> 30389.09093 | AM35: =SUM(AM36,AM37,AM44,AM46,AM54,AM63,AM70,AM74) -> 273871.9741 | AN35: =AM35/AK35 -> 0.747943629
A36: =IF(COUNTBLANK(C36:IW36)=254,"odstr",IF(AND($A$1="TISK",SUM(J24:N24)=0),"odstr","OK")) ->  | B36: OK | E36: 5153 | G36: Plyn | J36: 4943 | K36: 5014.532 | L36: 5014.532 | M36: 4406.86661 | N36: 0.8788191221 | Q36: 5123 | S36: Podlimitní technické zhodnocení | V36: 0 | W36: 48 | X36: 48 | Y36: 47.4864 | Z36: 0.9893 | AE36: 5123 | AG36: Podlimitní technické zhodnocení | AJ36: 0 | AK36: 24.949 | AL36: 24.949 | AM36: 24.949 | AN36: =AM36/AK36 -> 1
E37: 5154 | G37: Elektrická energie | J37: 5767 | K37: 8303.478 | L37: 8303.478 | M37: 6363.30429 | N37: 0.7663420425 | Q37: 513 | S37: Nákupy materiálu | V37: =SUM(V38:V43) -> 26681.531 | W37: =SUM(W38:W43) -> 45905.09671 | X37: =SUM(X38:X43) -> 46640.75146 | Y37: =SUM(Y38:Y43) -> 34945.32976 | Z37: 0.7612516314 | AE37: 513 | AG37: Nákupy materiálu | AJ37: 33426.531 | AK37: 43397.5965 | AL37: =SUM(AL38:AL43) -> 0 | AM37: 43914.83532 | AN37: =AM37/AK37 -> 1.011918605
E38: 5156 | G38: Pohonné hmoty a maziva | J38: 6256 | K38: 6084.14 | L38: 6084.14 | M38: 5801.66859 | N38: 0.9535725 | Q38: 5132 | S38: Ochranné pomůcky | V38: 30 | W38: 46 | X38: 46 | Y38: 25.564 | Z38: 0.5557391304 | AE38: 5132 | AG38: Ochranné pomůcky
E39: 5157 | G39: Teplá voda | J39: 290 | K39: 275 | L39: 275 | M39: 255.14293 | N39: 0.9277924727 | Q39: 5133 | S39: Léky a zdravotnický personál | V39: 20 | W39: 45 | X39: 45 | Y39: 11.77801 | Z39: 0.2617335556 | AE39: 5133 | AG39: Léky a zdravotnický personál
E40: 5161 | G40: Služby pošt | J40: 1391.25 | K40: 2062.5 | L40: 2062.5 | M40: 1927.56101 | N40: 0.9345750352 | Q40: 5134 | S40: Prádlo, oděv a obuv | V40: 3195 | W40: 5172.08399 | X40: 5172.19794 | Y40: 5171.37232 | Z40: 0.9998624017 | AE40: 5134 | AG40: Prádlo, oděv a obuv
E41: 5162 | G41: Služby telekomunikací a radiokomunikací | J41: 11851.76 | K41: 9363.613 | L41: 9608.613 | M41: 6122.7944 | N41: 0.6538922956 | Q41: 5136 | S41: Knihy, učební pomůcky a tisk | V41: 503 | W41: 728.67689 | X41: 746.15189 | Y41: 528.61999 | Z41: 0.7254518392 | AE41: 5136 | AG41: Knihy, učební pomůcky a tisk
E42: 5163 | G42: Služby peněžních ústavů | J42: 1679 | K42: 1970.612 | L42: 1970.612 | M42: 1827.89579 | N42: 0.927577722 | Q42: 5137 | S42: Drobný hmotný dlouhodobý majetek | V42: 12416.606 | W42: 24705.81179 | X42: 24916.39454 | Y42: 17752.92025 | Z42: 0.7185726339 | AE42: 5137 | AG42: Drobný hmotný dlouhodobý majetek
E43: 5164 | G43: Nájemné | J43: 23586 | K43: 55612.721 | L43: 58556.00957 | M43: 52840.72231 | N43: 0.9501553127 | Q43: 5139 | S43: Nákup materiálu jinde nezařazený | V43: 10516.925 | W43: 15207.52404 | X43: 15715.00709 | Y43: 11455.07519 | Z43: 0.7532505068 | AE43: 5139 | AG43: Nákup materiálu jinde nezařazený
A44: =IF(COUNTBLANK(C44:IW44)=254,"odstr",IF(AND($A$1="TISK",SUM(J25:N25)=0),"odstr","OK")) ->  | B44: OK | E44: 5166 | G44: Konzultační, poradenské a právní služby | J44: 2879.9 | K44: 2687.503 | L44: 3687.503 | M44: 1137.975 | N44: 0.4234320855 | Q44: 514 | S44: Úroky a ostatní finanční výdaje | V44: =SUM(V45) -> 205 | W44: =W45 -> 377.92 | X44: =X45 -> 378.10307 | Y44: =Y45 -> 284.96113 | Z44: 0.7540250053 | AE44: 514 | AG44: Úroky a ostatní finanční výdaje | AJ44: =AJ45 -> 205 | AK44: =AK45 -> 184.69483 | AL44: =AL45 -> 184.69483 | AM44: =AM45 -> 89.26135 | AN44: =AM44/AK44 -> 0.483291005
E45: 5167 | G45: Služby školení a vzdělávání | J45: 3300 | K45: 5604.449 | L45: 5604.451 | M45: 3527.56552 | N45: 0.6294223607 | Q45: 5142 | S45: Kursové rozdíly ve výdajích | V45: 205 | W45: 377.92 | X45: 378.10307 | Y45: 284.96113 | Z45: 0.7540250053 | AE45: 5142 | AG45: Kursové rozdíly ve výdajích | AJ45: 205 | AK45: 184.69483 | AL45: 184.69483 | AM45: 89.26135 | AN45: =AM45/AK45 -> 0.483291005
A46: =IF(COUNTBLANK(C46:IW46)=254,"odstr",IF(AND($A$1="TISK",SUM(J26:N26)=0),"odstr","OK")) ->  | B46: OK | E46: 5168 | G46: Služby zpracování dat | J46: 22992.108 | K46: 22237.342 | L46: 23343.98034 | M46: 19930.09026 | N46: 0.8962442661 | Q46: 515 | S46: Nákupy vody, paliv a energie | V46: =SUM(V47:V52) -> 19631 | W46: =SUM(W47:W52) -> 22922.82149 | X46: =SUM(X47:X52) -> 24881.31466 | Y46: =SUM(Y47:Y52) -> 23111.44579 | Z46: 1.008228669 | AE46: 515 | AG46: Nákupy vody, paliv a energie | AJ46: 24086 | AK46: 22640.61969 | AL46: =SUM(AL47:AL53) -> 0 | AM46: 20244.68897 | AN46: =AM46/AK46 -> 0.8941755679
E47: 5169 | G47: Nákup ostatních služeb | J47: 218895.046 | K47: 147032.127 | L47: 165406.8459 | M47: 95098.04977 | N47: 0.6467841533 | Q47: 5151 | S47: Studená voda | V47: 1400 | W47: 1877.555 | X47: 1877.555 | Y47: 1662.50597 | Z47: 0.8854632594 | AE47: 5151 | AG47: Studená voda
E48: 5171 | G48: Opravy a udržování | J48: 9222.755 | K48: 12832.527 | L48: 13872.429 | M48: 10784.20454 | N48: 0.8403804286 | Q48: 5152 | S48: Teplo | V48: 2445 | W48: 2882.33284 | X48: 3143.44436 | Y48: 2673.58094 | Z48: 0.9275753663 | AE48: 5152 | AG48: Teplo
E49: 5172 | G49: Programové vybavení | J49: 4720 | K49: 5483.197 | L49: 5816.1211 | M49: 891.7976 | N49: 0.162641904 | Q49: 5153 | S49: Plyn | V49: 4596 | W49: 4610.084 | X49: 5361.084 | Y49: 5121.43049 | Z49: 1.110919126 | AE49: 5153 | AG49: Plyn
E50: 5173 | G50: Cestovné (tuzemské i zahraniční) | J50: 40496.787 | K50: 42454.56 | L50: 44398.62149 | M50: 31604.71092 | N50: 0.7444361906 | Q50: 5154 | S50: Elektrická energie | V50: 4864 | W50: 7285.21918 | X50: 8069.42948 | Y50: 7739.61247 | Z50: 1.062371945 | AE50: 5154 | AG50: Elektrická energie
E51: 5175 | G51: Pohoštění | J51: 2120.47 | K51: 6240.472 | L51: 6476.672 | M51: 3185.54398 | N51: 0.5104652308 | Q51: 5156 | S51: Pohonné hmoty a maziva | V51: 6056 | W51: 5991.54523 | X51: 6117.98158 | Y51: 5603.38285 | Z51: 0.9352149796 | AE51: 5156 | AG51: Pohonné hmoty a maziva
E52: 5176 | G52: Účastnické poplatky na konference | J52: 165 | K52: 1510 | L52: 1510 | M52: 992.85675 | N52: 0.6575210265 | Q52: 5157 | S52: Teplá voda | V52: 270 | W52: 276.08524 | X52: 311.82024 | Y52: 310.93307 | Z52: 1.126221271 | AE52: 5157 | AG52: Teplá voda
AE53: 5159 | AG53: Nákup ostatních paliv a energie
A54: =IF(COUNTBLANK(C54:IW54)=254,"odstr",IF(AND($A$1="TISK",SUM(J27:N27)=0),"odstr","OK")) ->  | B54: OK | E54: 5179 | G54: Ostatní nákupy jinde nezařazené | J54: 6018 | K54: 7236.824 | L54: 7236.824 | M54: 7222.9698 | N54: 0.9980855967 | Q54: 516 | S54: Nákup služeb | V54: =SUM(V55:V62) -> 160374.689 | W54: =SUM(W55:W62) -> 239139.2677 | X54: =SUM(X55:X62) -> 257957.4106 | Y54: =SUM(Y55:Y62) -> 185028.6034 | Z54: 0.773727398 | AE54: 516 | AG54: Nákup služeb | AJ54: 191855.575 | AK54: 240441.4826 | AL54: =SUM(AL55:AL62) -> 0 | AM54: 172980.6562 | AN54: =AM54/AK54 -> 0.719429336
E55: 5181 | G55: Poskytnuté zálohy vnitřním organizačním jednotkám | J55: 0 | K55: 220 | L55: 220 | M55: 0 | N55: 0 | Q55: 5161 | S55: Poštovní služby | V55: 1781.25 | W55: 1771.79699 | X55: 1944.45399 | Y55: 1752.95899 | Z55: 0.9893678564 | AE55: 5161 | AG55: Poštovní služby
E56: 5182 | G56: Poskytované zálohy vlastní pokladně | J56: 0 | K56: 0 | L56: 0 | M56: 0 | N56: x | Q56: 5162 | S56: Služby elektronických komunikací | V56: 9575.736 | W56: 9991.3503 | X56: 10958.46837 | Y56: 5810.37188 | Z56: 0.5815402028 | AE56: 5162 | AG56: Služby elektronických komunikací
E57: 5189 | G57: Ostatní poskytované zálohy a jistiny | J57: 0 | K57: 0 | L57: 0 | M57: 0 | N57: x | Q57: 5163 | S57: Služby peněžních ústavů | V57: 1869 | W57: 2303.978 | X57: 2328.272 | Y57: 2243.20512 | Z57: 0.9736226301 | AE57: 5163 | AG57: Služby peněžních ústavů
E58: 5191 | G58: Zaplacené sankce | J58: 0 | K58: 29.861 | L58: 29.861 | M58: 29.77534 | N58: 0.9971313754 | Q58: 5164 | S58: Nájemné | V58: 30039.647 | W58: 64539.07615 | X58: 65206.38885 | Y58: 58320.31342 | Z58: 0.9036434498 | AE58: 5164 | AG58: Nájemné
E59: 5192 | G59: Poskytnuté neinvestiční příspěvky a náhrady (část) | J59: 160 | K59: 749.394 | L59: 749.394 | M59: 645.283 | N59: 0.8610730804 | Q59: 5166 | S59: Konzultační, poradenské a právní služby | V59: 1968.84 | W59: 6802.916 | X59: 7541.506 | Y59: 4050.2484 | Z59: 0.5953694563 | AE59: 5166 | AG59: Konzultační, poradenské a právní služby
E60: 5194 | G60: Věcné dary | J60: 475 | K60: 572.487 | L60: 572.487 | M60: 177.6693 | N60: 0.3103464358 | Q60: 5167 | S60: Služby školení a vzdělávání | V60: 3107.52 | W60: 4806.26205 | X60: 5931.26345 | Y60: 4037.48534 | Z60: 0.8400468593 | AE60: 5167 | AG60: Služby školení a vzdělávání
E61: 5195 | G61: Odvody za neplnění povinnosti zaměstnávat zdravotně postižené | J61: 364 | K61: 264.6 | L61: 264.6 | M61: 264.6 | N61: 1 | Q61: 5168 | S61: Zpracování dat a služby související s informačními a komunikačními technologiemi | V61: 28703.058 | W61: 31190.018 | X61: 33576.23411 | Y61: 18516.31819 | Z61: 0.5936616705 | AE61: 5168 | AG61: Zpracování dat a služby související s informačními a komunikačními technologiemi
E62: 5196 | G62: Náhrady a příspěvky související s výkonem ústavní funkce a funkce soudce | J62: 219.6 | K62: 238.92 | L62: 238.92 | M62: 238.92 | N62: 1 | Q62: 5169 | S62: Nákup ostatních služeb | V62: 83329.638 | W62: 117733.8702 | X62: 130470.8238 | Y62: 90297.70205 | Z62: 0.7669645266 | AE62: 5169 | AG62: Nákup ostatních služeb
A63: =IF(COUNTBLANK(C63:IW63)=254,"odstr",IF(AND($A$1="TISK",SUM(J28:N28)=0),"odstr","OK")) ->  | B63: OK | E63: 51 | G63: Neinvestiční nákupy a související výdaje | J63: 388976.793 | K63: 393701.92 | L63: 432226.5127 | M63: 294364.748 | N63: 0.7476843089 | Q63: 517 | S63: Ostatní nákupy | V63: =SUM(V64:V69) -> 92469.463 | W63: =SUM(W64:W69) -> 78096.00784 | X63: =SUM(X64:X69) -> 83258.26393 | Y63: =SUM(Y64:Y69) -> 67816.05874 | Z63: 0.8683678029 | AE63: 517 | AG63: Ostatní nákupy | AJ63: 84600.988 | AK63: 57385.99033 | AL63: =SUM(AL64:AL69) -> 28087.5821 | AM63: 35116.94938 | AN63: =AM63/AK63 -> 0.6119429007
E64: 5212 | G64: Neinvestiční transfery nefinančním podnikatelským subjektům-fyzickým osobám | J64: 5375 | K64: 1970.94 | L64: 2115.94 | M64: 1140.653 | N64: 0.5787355272 | Q64: 5171 | S64: Opravy a udržování | V64: 11019.939 | W64: 16088.37548 | X64: 19089.46384 | Y64: 16164.49252 | Z64: 1.004731182 | AE64: 5171 | AG64: Opravy a udržování | AJ64: 12819.023 | AK64: 12159.88733 | AL64: 10187.93325 | AM64: 10275.71803 | AN64: =AM64/AK64 -> 0.8450504311
E65: 5213 | G65: Neinvestiční transfery nefinančním podnikatelským subjektům-právnickým osobám | J65: 582735.351 | K65: 655200.445 | L65: 992878.5922 | M65: 844041.8171 | N65: 1.288219237 | Q65: 5172 | S65: Programové vybavení | V65: 1881.723 | W65: 1861.72 | X65: 2008.184 | Y65: 175.11246 | Z65: 0.09405950411 | AE65: 5172 | AG65: Programové vybavení
E66: 5221 | G66: Neinvestiční transfery obecně prospěšným společnostem | J66: 36604 | K66: 58491.296 | L66: 296257.702 | M66: 254890.0777 | N66: 4.357743718 | Q66: 5173 | S66: Cestovné (tuzemské i zahraniční) | V66: 70594.331 | W66: 53979.99517 | X66: 55714.66569 | Y66: 47256.56486 | Z66: 0.875445889 | AE66: 5173 | AG66: Cestovné (tuzemské i zahraniční) | AJ66: 64284.042 | AK66: 39492.93306 | AL66: 17899.64885 | AM66: 22803.53763 | AN66: =AM66/AK66 -> 0.5774080541
E67: 5222 | G67: Neinvestiční transfery občanským sdružením | J67: 4795705.298 | K67: 4326945.15 | L67: 4613479.665 | M67: 4431366.141 | N67: 1.024132728 | Q67: 5175 | S67: Pohoštění | V67: 2735.47 | W67: 5726.33719 | X67: 5890.1575 | Y67: 3948.34649 | Z67: 0.6895064609 | AE67: 5175 | AG67: Pohoštění
E68: 5223 | G68: Neinvestiční transfery církvím a náboženským společnostem | J68: 1428972.974 | K68: 1532501.15 | L68: 1613387.627 | M68: 1591329.81 | N68: 1.038387351 | Q68: 5176 | S68: Účastnické poplatky na konference | V68: 200 | W68: 401 | X68: 516.9829 | Y68: 269.70841 | Z68: 0.6725895511 | AE68: 5176 | AG68: Účastnické poplatky na konference
E69: 5229 | G69: Ostatní neinvestiční transfery neziskovým a podobným organizacím | J69: 691665 | K69: 325814.862 | L69: 380984.963 | M69: 331556.1257 | N69: 1.017621246 | Q69: 5179 | S69: Ostaní nákupy jinde nezařazené | V69: 6038 | W69: 38.58 | X69: 38.81 | Y69: 1.834 | Z69: 0.04753758424 | AE69: 5179 | AG69: Ostaní nákupy jinde nezařazené
A70: =IF(COUNTBLANK(C70:IW70)=254,"odstr",IF(AND($A$1="TISK",SUM(J29:N29)=0),"odstr","OK")) ->  | B70: OK | E70: 5230 | G70: Neinvestiční nedotační transfery podnikatelským subjektům | J70: 0 | K70: 0 | L70: 0 | M70: 0 | N70: x | Q70: 518 | S70: Poskytnuté zálohy, jistiny a záruky | V70: =SUM(V71:V72) -> 0 | W70: =SUM(W71:W72) -> 17.02823 | X70: =SUM(X71:X72) -> 17.02823 | Y70: =SUM(Y71:Y72) -> 0 | Z70: 0 | AE70: 518 | AG70: Poskytnuté zálohy, jistiny a záruky | AJ70: =SUM(AJ71:AJ72) -> 0 | AK70: =SUM(AK71:AK72) -> 0 | AL70: =SUM(AL71:AL73) -> 0.6 | AM70: =SUM(AM71:AM73) -> 0.6 | AN70: 0
E71: 5240 | G71: Neinvestiční nedotační transfery neziskovým a podobným organizacím | J71: 0 | K71: 0 | L71: 0 | M71: 0 | N71: x | Q71: 5181 | S71: Poskytnuté zálohy vnitřním organizačním jednotkám | V71: 0 | W71: 9 | X71: 9 | Y71: 0 | Z71: 0 | AE71: 5181 | AG71: Převody vnitřním organizačním jednotkám | AJ71: 0 | AK71: 0 | AL71: 0 | AM71: 0 | AN71: 0
E72: 52 | G72: Neinvestiční transfery podnikatelským subjektům a neziskovým organizacím. Neinvestiční transfery soukromoprávním subjektům | J72: 7541057.623 | K72: 6900923.843 | L72: 7899104.489 | M72: 7454324.624 | N72: 1.080192275 | Q72: 5182 | S72: Poskytnuté zálohy vlastní pokladně | V72: 0 | W72: 8.02823 | X72: 8.02823 | Y72: 0 | Z72: 0 | AE72: 5182 | AG72: Převody vlastní pokladně | AJ72: 0 | AK72: 0 | AL72: 0 | AM72: 0 | AN72: 0
AE73: 5189 | AG73: Jistoty | AJ73: 0 | AK73: 0 | AL73: 0.6 | AM73: 0.6 | AN73: 0
A74: =IF(COUNTBLANK(C74:IW74)=254,"odstr",IF(AND($A$1="TISK",SUM(J30:N30)=0),"odstr","OK")) ->  | B74: OK | E74: 5321 | G74: Neinvestiční dotace obcím | J74: 10779967.12 | K74: 12553597.65 | L74: 15369169.68 | M74: 14984063.06 | N74: 1.193607082 | Q74: 519 | S74: Výdaje související s neivestičními nákupy, příspěvky, náhrady a věcné dary | V74: =SUM(V75:V79) -> 1565.3 | W74: =SUM(W75:W81) -> 2034.724 | X74: =SUM(X75:X81) -> 2128.12606 | Y74: =SUM(Y75:Y81) -> 1654.91509 | Z74: 0.8133363985 | AE74: 519 | AG74: Výdaje související s neivestičními nákupy, příspěvky, náhrady a věcné dary | AJ74: =SUM(AJ75:AJ81) -> 1335 | AK74: =SUM(AK75:AK81) -> 2091.265 | AL74: =SUM(AL75:AL81) -> 2091.265 | AM74: =SUM(AM75:AM81) -> 1500.0339 | AN74: =AM74/AK74 -> 0.7172854229
E75: 5323 | G75: Neinvestiční dotace krajům | J75: 89220432.45 | K75: 90693638.83 | L75: 91588230.84 | M75: 91013283.63 | N75: 1.003524446 | Q75: 5191 | S75: Zaplacené sankce | V75: 0 | W75: 9.342 | X75: 9.342 | Y75: 7.34108 | Z75: 0.7858146007 | AE75: 5191 | AG75: Zaplacené sankce | AJ75: 0 | AK75: 0 | AL75: 0 | AM75: 0 | AN75: 0
E76: 5329 | G76: Ostatní neinvestiční dotace veřejným rozpočtům územní úrovně | J76: 0 | K76: 564.694 | L76: 19134.401 | M76: 19037.26154 | N76: 33.71252668 | Q76: 5192 | S76: Poskytnuté náhrady | V76: 250 | W76: 433.977 | X76: 433.977 | Y76: 387.6256 | Z76: 0.8931938789 | AE76: 5192 | AG76: Poskytnuté náhrady | AJ76: 340 | AK76: 496.88 | AL76: 496.88 | AM76: 308.3636 | AN76: =AM76/AK76 -> 0.6205997424
E77: 5331 | G77: Neinvestiční příspěvky zřízeným příspěvkovým organizacím | J77: 3339486.427 | K77: 3363723.989 | L77: 3375449.556 | M77: 3323142.277 | N77: 0.9879354811 | Q77: 5194 | S77: Věcné dary | V77: 495.7 | W77: 476.4 | X77: 476.4 | Y77: 108.9586 | Z77: 0.2287124265 | AE77: 5194 | AG77: Věcné dary | AJ77: 475.4 | AK77: 465.4 | AL77: 465.4 | AM77: 108.3373 | AN77: =AM77/AK77 -> 0.2327831972
E78: 5332 | G78: Neinvestiční dotace vysokým školám | J78: 33122116.44 | K78: 32767330.88 | L78: 34385203.29 | M78: 29769946.75 | N78: 0.9085252279 | Q78: 5195 | S78: Odvody za neplnění povinností zaměstnávat zdravotně postižené | V78: 600 | W78: 113.972 | X78: 113.972 | Y78: 113.972 | Z78: 1 | AE78: 5195 | AG78: Odvody za neplnění povinností zaměstnávat zdravotně postižené | AJ78: 300 | AK78: 825.385 | AL78: 825.385 | AM78: 779.733 | AN78: =AM78/AK78 -> 0.9446900537
E79: 5334 | G79: Neinvestiční transfery veřejným výzkumným institucím | J79: 1043935.084 | K79: 1499257.464 | L79: 1947033.046 | M79: 1800709.627 | N79: 1.201067642 | Q79: 5196 | S79: Náhrady a příspěvky související s výkonem ústavní funkce a funkce soudce | V79: 219.6 | W79: 324.8 | X79: 324.8 | Y79: 274.8 | Z79: 0.8460591133 | AE79: 5196 | AG79: Náhrady a příspěvky související s výkonem ústavní funkce a funkce soudce | AJ79: 219.6 | AK79: 303.6 | AL79: 303.6 | AM79: 303.6 | AN79: =AM79/AK79 -> 1
Q80: 5197 | S80: Náhrady zvýšených nákladů spojených s výkonem funkce v zahraničí | W80: 676.233 | X80: 769.63506 | Y80: 762.21781 | Z80: 1.127152638 | AE80: 5197 | AG80: Náhrady zvýšených nákladů spojených s výkonem funkce v zahraničí | AJ80: 0 | AK80: 0 | AL80: 0 | AM80: 0 | AN80: 0
Q81: 5199 | S81: Ostatní výdaje související s neinvestičními nákupy | W81: 0 | Y81: 0 | Z81: x | AE81: 5199 | AG81: Ostatní výdaje související s neinvestičními nákupy | AN81: x
E82: 5336 | G82: Neinvestiční dotace zřízeným příspěvkovým organizacím | J82: 713266.626 | K82: 1097051.05 | L82: 1324519.851 | M82: 785985.7188 | N82: 0.7164531849 | Q82: 52 | S82: Neinvestiční transfery soukromoprávním subjektům | V82: =V83+V86 -> 7562866.156 | W82: =SUM(W83,W86) -> 8793182.906 | X82: =SUM(X83,X86) -> 9476426.101 | Y82: =SUM(Y83,Y86) -> 8960276.727 | Z82: =Y82/W82 -> 1.019002655 | AE82: 52 | AG82: Neinvestiční transfery soukromoprávním subjektům | AJ82: =SUM(AJ83,AJ86) -> 7814651.931 | AK82: =SUM(AK83,AK86) -> 8856866.287 | AL82: =SUM(AL83,AL86) -> 497041.895 | AM82: =SUM(AM83,AM86) -> 9181231.58 | AN82: =AM82/AK82 -> 1.036623031
E83: 5339 | G83: Neinvestiční příspěvky ostatním příspěvkovým organizacím | J83: 447492 | K83: 366772.506 | L83: 390768.506 | M83: 388315.3973 | N83: 1.058736386 | Q83: 521 | S83: Neinvestiční transfery podnikatelským subjektům | V83: =SUM(V84:V85) -> 464531.9 | W83: =SUM(W84:W85) -> 842285.362 | X83: =SUM(X84:X85) -> 979974.697 | Y83: =SUM(Y84:Y85) -> 853703.9759 | Z83: 1.013556705 | AE83: 521 | AG83: Neinvestiční transfery podnikatelským subjektům | AJ83: 462594.4 | AK83: 652135.08 | AL83: =SUM(AL84:AL85) -> 0 | AM83: 772594.6379 | AN83: =AM83/AK83 -> 1.184715654
E84: 5342 | G84: Převody fondu kulturních a sociálních potřeb a sociálnímu fondu obcí a krajů | J84: 15345.231 | K84: 15604.419 | L84: 15835.388 | M84: 15063.02836 | N84: 0.9653052997 | Q84: 5212 | S84: Neinvestiční transfery nefinančním podnikatelským subjektům - fyzickým osobám | V84: 0 | W84: 147.934 | X84: 355.38 | Y84: 350.38 | Z84: 2.36848865 | AE84: 5212 | AG84: Neinvestiční transfery nefinančním podnikatelským subjektům - fyzickým osobám
E85: 5361 | G85: Nákup kolků | J85: 0 | K85: 24 | L85: 24 | M85: 24 | N85: 1 | Q85: 5213 | S85: Neinvestiční transfery nefinančním podnikatelským subjektům - právnickým osobám | V85: 464531.9 | W85: 842137.428 | X85: 979619.317 | Y85: 853353.5959 | Z85: 1.013318691 | AE85: 5213 | AG85: Neinvestiční transfery nefinančním podnikatelským subjektům - právnickým osobám
E86: 5362 | G86: Platby daní a poplatků státnímu rozpočtu | J86: 322 | K86: 490.513 | L86: 490.513 | M86: 443.461 | N86: 0.9040759368 | Q86: 522 | S86: Neinvestiční transfery neziskovým a podobným organizacím | V86: =SUM(V87:V90) -> 7098334.256 | W86: =SUM(W87:W90) -> 7950897.544 | X86: =SUM(X87:X90) -> 8496451.404 | Y86: =SUM(Y87:Y90) -> 8106572.751 | Z86: 1.019579577 | AE86: 522 | AG86: Neinvestiční transfery neziskovým a podobným organizacím | AJ86: 7352057.531 | AK86: 8204731.207 | AL86: =SUM(AL87:AL90) -> 497041.895 | AM86: 8408636.942 | AN86: =AM86/AK86 -> 1.024852214
E87: 5363 | G87: Úhrady sankcí jiným rozpočtům | J87: 0 | K87: 2534.082 | L87: 7894.995 | M87: 6054.322 | N87: 2.389157888 | Q87: 5221 | S87: Neinvestiční transfery obecně prospěšným společnostem | V87: 25749 | W87: 401492.826 | X87: 473577.8591 | Y87: 449219.7983 | Z87: 1.118873786 | AE87: 5221 | AG87: Neinvestiční transfery obecně prospěšným společnostem
E88: 5365 | G88: Výdaje z finančního vypořádání minulých let mezi krajem a obcemi | J88: 0 | K88: 0 | L88: 0 | M88: 0 | N88: x | Q88: 5222 | S88: Neinvestiční tranfery spolkům | V88: 4991054.635 | W88: 5730369.703 | X88: 6019660.528 | Y88: 5668268.071 | Z88: 0.989162718 | AD88: z toho | AE88: 5222 | AG88: Neinvestiční tranfery spolkům | AJ88: 5000337.816 | AK88: 5770040.046 | AL88: 497041.895 | AM88: 5759746.281 | AN88: =AM88/AK88 -> 0.9982159976
E89: 53 | G89: Neinvestiční transfery veřejnoprávním subjektům a mezi peněžními fondy téhož subjektu | J89: 138682363.4 | K89: 142360590.1 | L89: 148423754.1 | M89: 142106068.5 | N89: 0.9982121348 | Q89: 5223 | S89: Neinvestiční transfery církvím a náboženským společnostem | V89: 1718081.121 | W89: 1818834.619 | X89: 2003012.621 | Y89: 1988994.882 | Z89: 1.093554555 | AE89: 5223 | AG89: Neinvestiční transfery církvím a náboženským společnostem
E90: 5422 | G90: Náhrady povahy rehabilitací | J90: 0 | K90: 0 | L90: 0 | M90: 0 | N90: x | Q90: 5229 | S90: Ostatní neinvestiční transfery neziskovým a podpbným organizacím | V90: 363449.5 | W90: 200.396 | X90: 200.396 | Y90: 90 | Z90: 0.4491107607 | AE90: 5229 | AG90: Ostatní neinvestiční transfery neziskovým a podobným organizacím | AJ90: 346222.5 | AK90: 1090 | AL90: 0 | AM90: 90 | AN90: =AM90/AK90 -> 0.08256880734
E91: 5424 | G91: Náhrady mezd v době nemoci | J91: 3021 | K91: 3001 | L91: 3001 | M91: 2321.685 | N91: 0.773637121 | Q91: 53 | S91: Neinvestiční transfery veřejnoprávním subjektům a mezi peněžními fondy téhož subjektu a platby daní | V91: =V92+V96+V102+V104 -> 186098258.2 | W91: =SUM(W92,W96,W102,W104) -> 189074961.3 | X91: =SUM(X92,X96,X102,X104) -> 192999273.2 | Y91: =SUM(Y92,Y96,Y102,Y104) -> 187984060.1 | Z91: 0.9942303247 | AE91: 53 | AG91: Neinvestiční transfery veřejnoprávním subjektům a mezi peněžními fondy téhož subjektu a platby daní | AJ91: =SUM(AJ92,AJ96,AJ102,AJ104) -> 209837639.4 | AK91: =SUM(AK92,AK96,AK102,AK104) -> 206494805.7 | AL91: =SUM(AL92,AL96,AL102,AL104) -> 162140312.4 | AM91: =SUM(AM92,AM96,AM102,AM104) -> 206357715.6 | AN91: 0.9993361088
E92: 5491 | G92: Stipendia studentům a doktorandům | J92: 4231 | K92: 5678.6 | L92: 5678.6 | M92: 5069.5 | N92: 0.8927376466 | Q92: 532 | S92: Neinvestiční transfery veřejným rozpočtům územní úrovně | V92: =SUM(V93:V95) -> 141365291.7 | W92: =SUM(W93:W95) -> 143943645.7 | X92: =SUM(X93:X95) -> 145223510.8 | Y92: =SUM(Y93:Y95) -> 142861968.3 | Z92: 0.9924854107 | AE92: 532 | AG92: Neinvestiční transfery veřejným rozpočtům územní úrovně | AJ92: 160497083.5 | AK92: 159654260.5 | AL92: =SUM(AL93:AL95) -> 162122321 | AM92: 160125570.8 | AN92: 1.002952069
E93: 5492 | G93: Dary obyvatelstvu | J93: 1377 | K93: 0 | L93: 900 | M93: 900 | N93: x | Q93: 5321 | S93: Neinvestiční transfery obcím | V93: 16849859.41 | W93: 21855505.72 | X93: 22476174.42 | Y93: 21509056.44 | Z93: 0.9841481922 | AD93: v tom | AE93: 5321 | AG93: Neinvestiční transfery obcím | AJ93: 21674480.51 | AK93: 20335322.25 | AL93: 20638889.4 | AM93: 20465680.56 | AN93: 1.006410437
E94: 5494 | G94: Neinvestiční transfery obyvatelstvu nemající charakter daru | J94: 50 | K94: 250 | L94: 945 | M94: 945 | N94: 3.78 | Q94: 5323 | S94: Neinvestiční transfery krajům | V94: 124515432.3 | W94: 122059365.8 | X94: 122718562.2 | Y94: 121325317.7 | Z94: 0.9939861389 | AE94: 5323 | AG94: Neinvestiční transfery krajům | AJ94: 138822602.9 | AK94: 139306324.2 | AL94: 140415558.4 | AM94: 139639720.3 | AN94: 1.002393259
E95: 5499 | G95: Ostatní neinvestiční transfery obyvatelstvu | J95: 0 | K95: 0 | L95: 0 | M95: 0 | N95: x | Q95: 5329 | S95: Ostatní neinvestiční transfery veřejným rozpočtům územní úrovně | V95: 0 | W95: 28774.234 | X95: 28774.234 | Y95: 27594.20765 | Z95: 0.9589901733 | AE95: 5329 | AG95: Ostatní neinvestiční transfery veřejným rozpočtům územní úrovně | AJ95: 0 | AK95: 12613.995 | AL95: 1067873.127 | AM95: 20169.97253 | AN95: 1.599015421
E96: 54 | G96: Neinvestiční transfery obyvatelstvu | J96: 8679 | K96: 8929.6 | L96: 10524.6 | M96: 9236.185 | N96: 1.034333565 | Q96: 533 | S96: Neinvestiční transfery příspěvkovým a podobným organizacím | V96: =SUM(V97:V101) -> 44715567.06 | W96: =SUM(W97:W101) -> 45110603.22 | X96: =SUM(X97:X101) -> 47751391.32 | Y96: =SUM(Y97:Y101) -> 45101317.8 | Z96: 0.9997941634 | AE96: 533 | AG96: Neinvestiční transfery příspěvkovým a podobným organizacím | AJ96: 49322092.44 | AK96: 46821494.75 | AL96: =SUM(AL97:AL101) -> 0 | AM96: 46213726.14 | AN96: 0.987019453
E97: 5511 | G97: Neinvestiční transfery mezinárodním organizacím | J97: 538196.1 | K97: 0 | L97: 0 | M97: 0 | N97: x | Q97: 5331 | S97: Neinvestiční příspěvky zřízeným příspěvkovým organizacím | V97: 4094417.269 | W97: 4048993.081 | X97: 4065540.856 | Y97: 3984099.641 | Z97: 0.9839729437 | AE97: 5331 | AG97: Neinvestiční příspěvky zřízeným příspěvkovým organizacím
E98: 5531 | G98: Peněžní dary do zahraničí | J98: 3002.358 | K98: 2903.201 | L98: 2903.201 | M98: 2903.20036 | N98: 0.9999997796 | Q98: 5332 | S98: Neinvestiční transfery vysokým školám | V98: 37820467.01 | W98: 37485117.16 | X98: 39298612.45 | Y98: 37482971.96 | Z98: 0.9999427718 | AE98: 5332 | AG98: Neinvestiční transfery vysokým školám
E99: 5532 | G99: Ostatní neinvestiční transfery do zahraničí | J99: 3334 | K99: 13865.179 | L99: 30565.179 | M99: 23344.30852 | N99: 1.683664417 | Q99: 5334 | S99: Neinvestiční transfery veřejným výzkumným institucím | V99: 1246101.081 | W99: 2387250.943 | X99: 2818593.587 | Y99: 2483530.382 | Z99: 1.040330674 | AE99: 5334 | AG99: Neinvestiční transfery veřejným výzkumným institucím
E100: 5541 | G100: Členské příspěvky mezinárodním vládním organizacím | J100: 0 | K100: 876675.55 | L100: 876675.55 | M100: 835256.9062 | N100: 0.9527548774 | Q100: 5336 | S100: Neinvestiční transfery zřízeným příspěvkovým organizacím | V100: 1208390.701 | W100: 845712.031 | X100: 1222519.199 | Y100: 821803.3877 | Z100: 0.9717295694 | AE100: 5336 | AG100: Neinvestiční transfery zřízeným příspěvkovým organizacím
E101: 5542 | G101: Členské příspěvky mezinárodním nevládním organizacím | J101: 0 | K101: 4922.762 | L101: 8222.762 | M101: 7589.35761 | N101: 1.541686884 | Q101: 5339 | S101: Neinvestiční transfery cizím příspěvkovým organizacím | V101: 346191 | W101: 343530 | X101: 346125.225 | Y101: 328912.435 | Z101: 0.9574489419 | AE101: 5339 | AG101: Neinvestiční transfery cizím příspěvkovým organizacím
E102: 55 | G102: Neinvestiční transfery do zahraničí | J102: 544532.458 | K102: 898366.692 | L102: 918366.692 | M102: 869093.7726 | N102: 0.9674153999 | Q102: 534 | S102: Převod vlastním fondům a ve vztahu k útvarům bez plné právní subjektivity | V102: =V103 -> 17237.444 | W102: =W103 -> 17270.892 | X102: =X103 -> 18389.2487 | Y102: =Y103 -> 17257.9257 | Z102: 0.9992492397 | AE102: 534 | AG102: Převod vlastním fondům a ve vztahu k útvarům bez plné právní subjektivity | AJ102: 18266.463 | AK102: 18275.727 | AL102: =AL103 -> 17991.46706 | AM102: 18101.33406 | AN102: =AM102/AK102 -> 0.9904576743
E103: 5909 | G103: Ostatní neinvestiční výdaje jinde nezařazené | J103: 0 | K103: 3155.4 | L103: 3155.4 | M103: 2105.70319 | N103: x | Q103: 5342 | S103: Převody fondu kulturních a sociálních potřeb a sociálnímu fondu obcí a krajů | V103: 17237.444 | W103: 17270.892 | X103: 18389.2487 | Y103: 17257.9257 | Z103: 0.9992492397 | AE103: 5342 | AG103: Převody fondu kulturních a sociálních potřeb a sociálnímu fondu obcí a krajů | AJ103: 18266.463 | AK103: 18275.727 | AL103: 17991.46706 | AM103: 18101.33406 | AN103: =AM103/AK103 -> 0.9904576743
E104: 59 | G104: Ostatní neinvestiční výdaje | J104: 0 | K104: 3155.4 | L104: 3155.4 | M104: 2105.70319 | N104: x | Q104: 536 | R104: Ostatní neinvestiční transfery jiným veřejným rozpočtům, platby daní a další povinné platby | V104: =SUM(V105:V108) -> 162 | W104: =SUM(W105:W108) -> 3441.473 | X104: =SUM(X105:X108) -> 5981.827 | Y104: =SUM(Y105:Y108) -> 3516.08937 | Z104: 1.021681521 | AE104: 536 | AF104: Ostatní neinvestiční transfery jiným veřejným rozpočtům, platby daní a další povinné platby | AJ104: 197.001 | AK104: 774.734 | AL104: =SUM(AL105:AL108) -> 0 | AM104: 317.297 | AN104: =AM104/AK104 -> 0.4095560541
E105: 5 | G105: Běžné výdaje | J105: 148332711.7 | K105: 151760634.2 | L105: 158964900.4 | M105: 151878791 | N105: 1.000778573 | Q105: 5361 | S105: Nákup kolků | V105: 0 | W105: 27 | X105: 27 | Y105: 27 | Z105: 1 | AE105: 5361 | AG105: Nákup kolků
E106: 6111 | G106: Programové vybavení | J106: 0 | K106: 4029.959 | L106: 7322.6466 | M106: 5845.8146 | N106: 1.4505891 | Q106: 5362 | S106: Platba daní a poplatků státnímu rozpočtu | V106: 162 | W106: 323.501 | X106: 353.855 | Y106: 316.49 | Z106: 0.9783277331 | AE106: 5362 | AG106: Platba daní a poplatků státnímu rozpočtu
A107: =IF(COUNTBLANK(C107:IW107)=254,"odstr",IF(AND($A$1="TISK",SUM(J31:N31)=0),"odstr","OK")) ->  | B107: OK | E107: 6112 | G107: Ocenitelná práva | J107: 0 | K107: 0 | L107: 0 | M107: 0 | N107: x | Q107: 5363 | S107: Úhrady sankcí jiným rozpočtům | V107: 0 | W107: 3090.972 | X107: 5600.972 | Y107: 3172.59937 | Z107: 1.026408318 | AE107: 5363 | AG107: Úhrady sankcí jiným rozpočtům
A108: =IF(COUNTBLANK(C108:IW108)=254,"odstr",IF(AND($A$1="TISK",SUM(J33:N33)=0),"odstr","OK")) ->  | B108: OK | E108: 6121 | G108: Budovy, haly a stavby | J108: 66869.07 | K108: 63634.74 | L108: 68948.12664 | M108: 5307.2607 | N108: 0.08340193894 | Q108: 5365 | S108: Platby daní a poplatků krajům, obcím a státním fondům | Z108: x | AE108: 5365 | AG108: Platby daní a poplatků krajům, obcím a státním fondům
A109: =IF(COUNTBLANK(C109:IW109)=254,"odstr",IF(AND($A$1="TISK",SUM(J34:N34)=0),"odstr","OK")) ->  | B109: OK | E109: 6122 | G109: Stroje, přístroje a zařízení | J109: 0 | K109: 13213.119 | L109: 13213.119 | M109: 12738.0966 | N109: 0.9640491848 | Q109: 54 | S109: Neinvestiční transfery obyvatelstvu | V109: =V110+V112 -> 8254.874 | W109: =SUM(W110,W112) -> 11578.139 | X109: =SUM(X110,X112) -> 12110.006 | Y109: =SUM(Y110,Y112) -> 10318.45004 | Z109: 0.8912010851 | AE109: 54 | AG109: Neinvestiční transfery obyvatelstvu | AJ109: =SUM(AJ110,AJ112) -> 9866.592 | AK109: =SUM(AK110,AK112) -> 59403.945 | AL109: =SUM(AL110,AL112) -> 4620.297 | AM109: =SUM(AM110,AM112) -> 57568.759 | AN109: =AM109/AK109 -> 0.9691066645
E110: 6123 | G110: Dopravní prostředky | J110: 0 | K110: 1812.582 | L110: 8870.57083 | M110: 8870.57083 | N110: 4.893886638 | Q110: 542 | S110: Náhrady placené obyvatelstvu | V110: =V111 -> 2161.874 | W110: =W111 -> 3931.039 | X110: =SUM(X111) -> 3962.906 | Y110: =Y111 -> 3773.37004 | Z110: 0.9598912756 | AE110: 542 | AG110: Náhrady placené obyvatelstvu | AJ110: 3347.092 | AK110: 3631.945 | AL110: =AL111 -> 4620.297 | AM110: 3719.059 | AN110: =AM110/AK110 -> 1.023985495
E111: 6125 | G111: Výpočetní technika | J111: 0 | K111: 774.925 | L111: 6643.222 | M111: 5564.82128 | N111: 7.181109501 | Q111: 5424 | S111: Náhrady mezd v době nemoci | V111: 2161.874 | W111: 3931.039 | X111: 3962.906 | Y111: 3773.37004 | Z111: 0.9598912756 | AE111: 5424 | AG111: Náhrady mezd v době nemoci | AJ111: 3297.092 | AK111: 3581.945 | AL111: 4620.297 | AM111: 3681.751 | AN111: =AM111/AK111 -> 1.027863633
E112: 6127 | G112: Umělecká díla a předměty | J112: 0 | K112: 0 | L112: 0 | M112: 0 | N112: x | Q112: 549 | S112: Ostatní neinvestiční transfery obyvatelstvu | V112: =SUM(V113:V115) -> 6093 | W112: =SUM(W113:W115) -> 7647.1 | X112: =SUM(X113:X115) -> 8147.1 | Y112: =SUM(Y113:Y115) -> 6545.08 | Z112: 0.8558904683 | AE112: 549 | AG112: Ostatní neinvestiční transfery obyvatelstvu | AJ112: 6519.5 | AK112: 55772 | AL112: =SUM(AL113:AL115) -> 0 | AM112: 53849.7 | AN112: =AM112/AK112 -> 0.9655328839
Q113: 5491 | S113: Stipendia žákům, studentům a doktorandům | V113: 4993 | W113: 5980.6 | X113: 5980.6 | Y113: 4490.8 | Z113: 0.7508945591 | AE113: 5491 | AG113: Stipendia žákům, studentům a doktorandům
E114: 61 | G114: Investiční nákupy a související výdaje | J114: 66869.07 | K114: 83465.325 | L114: 104997.6851 | M114: 38326.56401 | N114: 0.4591914548 | Q114: 5492 | S114: Dary obyvatelstvu | V114: 900 | W114: 1000 | X114: 1000 | Y114: 1000 | Z114: 1 | AE114: 5492 | AG114: Dary obyvatelstvu
Q115: 5494 | S115: Neinvestiční transfery obyvatelstvu nemající charakter daru | V115: 200 | W115: 666.5 | X115: 1166.5 | Y115: 1054.28 | Z115: 1.581815454 | AE115: 5494 | AG115: Neinvestiční transfery obyvatelstvu nemající charakter daru
A116: =IF(COUNTBLANK(C116:IW116)=254,"odstr",IF(AND($A$1="TISK",SUM(J35:N35)=0),"odstr","OK")) ->  | B116: OK | E116: 6313 | G116: Investiční dotace nefinančním podnikatelským subjektům – právnickým osobám | J116: 0 | K116: 7273.788 | L116: 287668.7029 | M116: 243036.9217 | N116: 33.4127035 | Q116: 55 | S116: Neinvestiční transfery a související platby do zahraničí | V116: =V117+V119+V122 -> 752070.674 | W116: =SUM(W117,W119,W122) -> 967256.462 | X116: =SUM(X117,X119,X122) -> 1022617.62 | Y116: =SUM(Y117,Y119,Y122) -> 948917.8991 | Z116: 0.9810406405 | AE116: 55 | AG116: Neinvestiční transfery a související platby do zahraničí | AJ116: =SUM(AJ117,AJ119,AJ122) -> 750875.777 | AK116: =SUM(AK117,AK119,AK122) -> 1015389.531 | AL116: =SUM(AL117,AL119,AL122) -> 20441.503 | AM116: =SUM(AM117,AM119,AM122) -> 1116321.041 | AN116: =AM116/AK116 -> 1.099401763
E117: 6319 | G117: Ostatní investiční dotace podnikatelským subjektům | J117: 20800 | K117: 10475.25 | L117: 10475.25 | M117: 10346 | N117: 0.9876613923 | Q117: 551 | S117: Neinvestiční transfery mezinárodním vládním organizacím a nadnárodním orgánům | V117: 0 | W117: 0 | X117: =X118 -> 3300 | Y117: =Y118 -> 3263.904 | Z117: 0 | AE117: 551 | AG117: Neinvestiční transfery mezinárodním vládním organizacím a nadnárodním orgánům | AJ117: 0 | AK117: 3300 | AL117: =AL118 -> 0 | AM117: 5335.57364 | AN117: =AM117/AK117 -> 1.616840497
A118: =IF(COUNTBLANK(C118:IW118)=254,"odstr",IF(AND($A$1="TISK",SUM(J36:N36)=0),"odstr","OK")) ->  | B118: OK | E118: 6321 | G118: Investiční transfery obecně prospěšným organizacím | J118: 0 | K118: 5015 | L118: 5015 | M118: 4515 | N118: 0.9002991027 | Q118: 5511 | S118: Neinvestiční transfery mezinárodním vládním organizacím | V118: 0 | W118: 0 | X118: 3300 | Y118: 3263.904 | Z118: 0 | AE118: 5511 | AG118: Neinvestiční transfery mezinárodním vládním organizacím | AN118: x
E119: 6322 | G119: Investiční transfery občanským sdružením | J119: 875194.1 | K119: 805193.474 | L119: 829670.0674 | M119: 77875.46385 | N119: 0.09671646178 | Q119: 553 | S119: Ostatní neinvestiční transfery do zahraničí | V119: =SUM(V120:V121) -> 35003.858 | W119: =SUM(W120:W121) -> 108170.636 | X119: =SUM(X120:X121) -> 160170.636 | Y119: =SUM(Y120:Y121) -> 153280.2551 | Z119: 1.417022778 | AE119: 553 | AG119: Ostatní neinvestiční transfery do zahraničí | AJ119: 33808.961 | AK119: 16435.34 | AL119: =SUM(AL120:AL121) -> 14247.34 | AM119: 13124.52586 | AN119: =AM119/AK119 -> 0.798555178
E120: 6329 | G120: Ostatní investiční transfery neziskovým a podobným organizacím | J120: 52940 | K120: 36439.45 | L120: 45592 | M120: 45592 | N120: 1.251171464 | Q120: 5531 | S120: Peněžní dary do zahraničí | V120: 3002.358 | W120: 6015.376 | X120: 6015.376 | Y120: 5722.9084 | Z120: 0.9513799969 | AE120: 5531 | AG120: Peněžní dary do zahraničí | AJ120: 6262.358 | AK120: 6242.358 | AL120: 6242.358 | AM120: 6071.06583 | AN120: 0.972559701
E121: 6341 | G121: Investiční transfery obcím | J121: 619690 | K121: 686309.956 | L121: 900487.1817 | M121: 413729.9572 | N121: 0.6028325155 | Q121: 5532 | S121: Ostatní neinvestiční transfery do zahraničí | V121: 32001.5 | W121: 102155.26 | X121: 154155.26 | Y121: 147557.3467 | Z121: 1.444441987 | AE121: 5532 | AG121: Ostatní neinvestiční transfery do zahraničí | AJ121: 7546.603 | AK121: 8004.982 | AL121: 8004.982 | AM121: 5908.53951 | AN121: 0.7381077821
E122: 6342 | G122: Investiční transfery krajům | J122: 0 | K122: 1251.481 | L122: 9180.8382 | M122: 6362.35389 | N122: 5.083859755 | Q122: 554 | S122: Členské příspěvky mezinárodním organizacím | V122: =SUM(V123:V124) -> 717066.816 | W122: =SUM(W123:W124) -> 859085.826 | X122: =SUM(X123:X124) -> 859146.9837 | Y122: =SUM(Y123:Y124) -> 792373.7399 | Z122: 0.9223452604 | AE122: 554 | AG122: Členské příspěvky mezinárodním organizacím | AJ122: 717066.816 | AK122: 995654.191 | AL122: =SUM(AL123:AL124) -> 6194.163 | AM122: 1097860.941 | AN122: 1.10265286
E123: 6349 | G123: Ostatní investiční transfery veřejným rozpočtům územní úrovně | J123: 0 | K123: 11600 | L123: 11600 | M123: 6485.42117 | N123: 0.5590880319 | Q123: 5541 | S123: Členské příspěvky mezinárodním vládním organizacím | V123: 710066.816 | W123: 848331.527 | X123: 848331.527 | Y123: 785499.6475 | Z123: 0.9259347584 | AE123: 5541 | AG123: Členské příspěvky mezinárodním vládním organizacím | AJ123: 0 | AK123: 1563.117 | AL123: 1563.117 | AM123: 1563.11623 | AN123: 0.9999995074
E124: 6351 | G124: Investiční dotace zřízeným příspěvkovým a podobným organizacím | J124: 127041.553 | K124: 91623.523 | L124: 156887.0133 | M124: 54440.49345 | N124: 0.594175946 | Q124: 5542 | S124: Členské příspěvky mezinárodním nevládním organizacím | V124: 7000 | W124: 10754.299 | X124: 10815.45674 | Y124: 6874.09243 | Z124: 0.6391948401 | AE124: 5542 | AG124: Členské příspěvky mezinárodním nevládním organizacím | AJ124: 0 | AK124: 4631.046 | AL124: 4631.046 | AM124: 4594.5944 | AN124: 0.9921288625
Q125: 58 | S125: Výdaje na náhrady za nezpůsobilou újmu | W125: =SUM(W126) -> 330.752 | X125: =X126 -> 330.752 | Y125: =Y126 -> 330.752 | Z125: 1 | AE125: 58 | AG125: Výdaje na náhrady za nezpůsobilou újmu | AJ125: 0 | AK125: 600 | AL125: =AL126 -> 600 | AM125: 348.884 | AN125: 0.5814733333
Q126: 581 | S126: Výdaje na náhrady za nezpůsobilou újmu | W126: =W127 -> 330.752 | X126: =X127 -> 330.752 | Y126: =Y127 -> 330.752 | Z126: 1 | AE126: 581 | AG126: Výdaje na náhrady za nezpůsobilou újmu | AJ126: 0 | AK126: 600 | AL126: 600 | AM126: 348.884 | AN126: 0.5814733333
Q127: 5811 | S127: Výdaje na náhrady za nezpůsobilou újmu | W127: 330.752 | X127: 330.752 | Y127: 330.752 | Z127: 1 | AE127: 5811 | AG127: Výdaje na náhrady za nezpůsobilou újmu | AJ127: 0 | AK127: 600 | AL127: 600 | AM127: 348.884 | AN127: 0.5814733333
A128: =IF(COUNTBLANK(C128:IW128)=254,"odstr",IF(AND($A$1="TISK",SUM(J37:N37)=0),"odstr","OK")) ->  | B128: OK | E128: 6352 | G128: Investiční dotace vysokým školám | J128: 6362451.964 | K128: 5670556.591 | L128: 8493027.941 | M128: 2951214.951 | N128: 0.5204453749 | Q128: 59 | S128: Ostatní neinvestiční výdaje | V128: =V129 -> 37138.532 | W128: =W129 -> 15419.459 | X128: =X129 -> 15419.459 | Y128: =Y129 -> 2216.09008 | Z128: 0.1437203523 | AE128: 59 | AG128: Ostatní neinvestiční výdaje | AJ128: 3000 | AK128: 48615.881 | AL128: =AL129 -> 45615.881 | AM128: 35247.22421 | AN128: 0.7250146143
A129: =IF(COUNTBLANK(C129:IW129)=254,"odstr",IF(AND($A$1="TISK",SUM(J38:N38)=0),"odstr","OK")) ->  | B129: OK | E129: 6354 | G129: Investiční transfery veřejným výzkumným institucím | J129: 62463.779 | K129: 331821.189 | L129: 1844718.789 | M129: 1780633.881 | N129: 5.366245255 | Q129: 5909 | S129: Ostatní neinvestiční výdaje jinde nezařazené | V129: 37138.532 | W129: 15419.459 | X129: 15419.459 | Y129: 2216.09008 | Z129: 0.1437203523 | AE129: 5909 | AG129: Ostatní neinvestiční výdaje jinde nezařazené | AJ129: 3000 | AK129: 48615.881 | AL129: 45615.881 | AM129: 35247.22421 | AN129: 0.7250146143
S130: Ostatní neinvestiční transfery | Z130: x | AG130: Ostatní neinvestiční transfery | AN130: x
A131: =IF(COUNTBLANK(C131:IW131)=254,"odstr",IF(AND($A$1="TISK",SUM(J40:N40)=0),"odstr","OK")) ->  | B131: OK | E131: 63 | G131: Investiční transfery | J131: 8126281.396 | K131: 7657649.702 | L131: 12594412.78 | M131: 5594322.443 | N131: 0.7305534545 | Q131: 6 | S131: Kapitálové výdaje celkem | V131: =V132+V142 -> 9740363.159 | W131: =SUM(W132,W142) -> 10006419.95 | X131: =SUM(X132,X142) -> 14829868.32 | Y131: =SUM(Y132,Y142) -> 11010103.44 | Z131: 1.100303954 | AE131: 6 | AG131: Kapitálové výdaje celkem | AJ131: =SUM(AJ132,AJ142) -> 6898225.275 | AK131: =SUM(AK132,AK142) -> 10991306.28 | AL131: =SUM(AL132,AL142) -> 1497856.448 | AM131: =SUM(AM132,AM142) -> 9102348.76 | AN131: =AM131/AK131 -> 0.8281407625
E132: 6 | G132: Kapitálové výdaje | J132: 8193150.466 | K132: 7741115.027 | L132: 12699410.47 | M132: 5632649.007 | N132: 0.7276276076 | Q132: 61 | S132: Investiční nákupy a související výdaje | V132: =V133+V136 -> 298095.607 | W132: =SUM(W133,W136) -> 180744.089 | X132: =SUM(X133,X136) -> 273445.4987 | Y132: =SUM(Y133,Y136) -> 37503.70468 | Z132: 0.2074961615 | AE132: 61 | AG132: Investiční nákupy a související výdaje | AJ132: =SUM(AJ133,AJ136) -> 166116.401 | AK132: =SUM(AK133,AK136) -> 228462.612 | AL132: =SUM(AL133,AL136) -> 133292.6134 | AM132: =SUM(AM133,AM136) -> 76186.33978 | AN132: =AM132/AK132 -> 0.3334739943
E133: Výdaje kapitoly 333-MŠMT podle položek celkem | J133: 156525862.2 | K133: 159501749.3 | L133: 171664310.9 | M133: 157511440 | N133: 0.987521709 | Q133: 611 | S133: Pořízení dlouhodobého nehmotného majetku | V133: =V134 -> 177836.323 | W133: =SUM(W134:W135) -> 63190.712 | X133: =SUM(X134:X135) -> 86898.98876 | Y133: =SUM(Y134:Y135) -> 2055.0425 | Z133: 0.03252127465 | AE133: 611 | AG133: Pořízení dlouhodobého nehmotného majetku | AJ133: 55930.084 | AK133: 15921.199 | AL133: =SUM(AL134:AL135) -> 133292.6134 | AM133: 24470.40112 | AN133: =AM133/AK133 -> 1.536969742
N134: Zdroj: Závěrečný účet – kapitola 333-MŠMT | Q134: 6111 | S134: Programové vybavení | V134: 177836.323 | W134: 63069.712 | X134: 86777.98876 | Y134: 1934.0425 | Z134: 0.03066515509 | AE134: 6111 | AG134: Programové vybavení | AJ134: 55930.084 | AK134: 15921.199 | AL134: 133292.6134 | AM134: 24470.40112 | AN134: =AM134/AK134 -> 1.536969742
Q135: 6119 | S135: Ostatní nákupy dlouhodobého nehmotného majetku | W135: 121 | X135: 121 | Y135: 121 | Z135: 1 | AE135: 6119 | AG135: Ostatní nákupy dlouhodobého nehmotného majetku | AN135: x
Q136: 612 | S136: Pořízení dlohodobého hmotného majetku | V136: =SUM(V137:V141) -> 120259.284 | W136: =SUM(W137:W141) -> 117553.377 | X136: =SUM(X137:X141) -> 186546.5099 | Y136: =SUM(Y137:Y141) -> 35448.66218 | Z136: 0.3015537544 | AE136: 612 | AG136: Pořízení dlohodobého hmotného majetku | AJ136: 110186.317 | AK136: 212541.413 | AL136: =SUM(AL137:AL141) -> 0 | AM136: 51715.93866 | AN136: =AM136/AK136 -> 0.2433217034
Q137: 6121 | S137: Budovy, haly a stavby | V137: 84559.284 | W137: 90020.22 | X137: 127337.7985 | Y137: 14303.78949 | Z137: 0.1588952959 | AE137: 6121 | AG137: Budovy, haly a stavby
Q138: 6122 | S138: Stroje, přístroje a zařízení | V138: 4000 | W138: 17183.777 | X138: 19808.7754 | Y138: 16070.16969 | Z138: 0.9351942643 | AE138: 6122 | AG138: Stroje, přístroje a zařízení
Q139: 6123 | S139: Dopravní prostředky | V139: 3800 | W139: 7730.507 | X139: 10001.511 | Y139: 4411.773 | Z139: 0.5706964627 | AE139: 6123 | AG139: Dopravní prostředky
Q140: 6125 | S140: Výpočetní technika | V140: 18900 | W140: 2618.873 | X140: 29398.42505 | Y140: 662.93 | Z140: 0.2531356045 | AE140: 6125 | AG140: Výpočetní technika
Q141: 6129 | S141: Nákup dlouhodobého hmotného majetku jinde nezařazený | V141: 9000 | W141: 0 | X141: 0 | Y141: 0 | Z141: x | AE141: 6129 | AG141: Nákup dlouhodobého hmotného majetku jinde nezařazený
A142: =IF(COUNTBLANK(C142:IW142)=254,"odstr",IF(AND($A$1="TISK",SUM(J41:N41)=0),"odstr","OK")) ->  | B142: OK | Q142: 63 | S142: Investiční transfery | V142: =V143+V146+V151+V155 -> 9442267.552 | W142: =SUM(W143,W146,W151,W155) -> 9825675.863 | X142: =SUM(X143,X146,X151,X155) -> 14556422.82 | Y142: =SUM(Y143,Y146,Y151,Y155) -> 10972599.73 | Z142: 1.116727224 | AE142: 63 | AG142: Investiční transfery | AJ142: =SUM(AJ143,AJ146,AJ151,AJ155) -> 6732108.874 | AK142: =SUM(AK143,AK146,AK151,AK155) -> 10762843.66 | AL142: =SUM(AL143,AL146,AL151,AL155) -> 1364563.835 | AM142: =SUM(AM143,AM146,AM151,AM155) -> 9026162.42 | AN142: =AM142/AK142 -> 0.8386410415
Q143: 631 | S143: Investiční transfery podnikateslým subjektům | V143: =SUM(V144:V145) -> 11556 | W143: =SUM(W144:W145) -> 71415 | X143: =SUM(X144:X145) -> 89743.20236 | Y143: =SUM(Y144:Y145) -> 53297.09026 | Z143: 0.7463010608 | AE143: 631 | AG143: Investiční transfery podnikateslým subjektům | AJ143: 11556 | AK143: 40691.417 | AL143: =SUM(AL144:AL145) -> 406.27 | AM143: 33370.54035 | AN143: =AM143/AK143 -> 0.8200879402
Q144: 6313 | S144: Investiční transfery nefinančním podnikatelským subjektům - právnickým osobám | V144: 0 | W144: 54416 | X144: 72744.20236 | Y144: 48056.82326 | Z144: 0.88313774 | AE144: 6313 | AG144: Investiční transfery nefinančním podnikatelským subjektům - právnickým osobám | AJ144: 11556 | AK144: 40691.417 | AL144: 406.27 | AM144: 33370.54035 | AN144: =AM144/AK144 -> 0.8200879402
Q145: 6319 | S145: Ostatní investiční transfery podnikatelským subjektům | V145: 11556 | W145: 16999 | X145: 16999 | Y145: 5240.267 | Z145: =Y145/W145 -> 0.3082691335 | AE145: 6319 | AG145: Ostatní investiční transfery podnikatelským subjektům | AN145: x
Q146: 632 | S146: Investiční tranfery neziskovým a podobným organizacím | V146: =SUM(V147:V150) -> 2087454.1 | W146: =SUM(W147:W150) -> 1385563.804 | X146: =SUM(X147:X150) -> 1799142.09 | Y146: =SUM(Y147:Y150) -> 1272458.626 | Z146: 0.9183688419 | AE146: 632 | AG146: Investiční tranfery neziskovým a podobným organizacím | AJ146: 2301629.1 | AK146: 1669615.473 | AL146: =SUM(AL147:AL150) -> 0 | AM146: 2130703.79 | AN146: =AM146/AK146 -> 1.276164377
Q147: 6321 | S147: Investiční tranfery obecně prospěšným společnostem | V147: 600 | W147: 867 | X147: 1516 | Y147: 1468 | Z147: 1.693194925 | AE147: 6321 | AG147: Investiční tranfery obecně prospěšným společnostem
Q148: 6322 | S148: Investiční transfery spolkům | V148: 2025194.1 | W148: 1384136.804 | X148: 1796996.131 | Y148: 1270920.667 | Z148: 0.9182045181 | AE148: 6322 | AG148: Investiční transfery spolkům
Q149: 6323 | S149: Investiční transfery církvím a náboženským společnostem | X149: 69.959 | Y149: 69.959 | Z149: 0 | AE149: 6323 | AG149: Investiční transfery církvím a náboženským společnostem
Q150: 6329 | S150: Ostatní investiční transfery neziskovým a podobným organizacím | V150: 61660 | W150: 560 | X150: 560 | Y150: 0 | Z150: 0 | AE150: 6329 | AG150: Ostatní investiční transfery neziskovým a podobným organizacím
Q151: 634 | S151: Investiční transfery veřejným rozpočtům územní úrovně | V151: =SUM(V152:V154) -> 599940.997 | W151: =SUM(W152:W154) -> 820209.5 | X151: =SUM(X152:X154) -> 1497038.534 | Y151: =SUM(Y152:Y154) -> 704796.5417 | Z151: 0.85928844 | AE151: 634 | AG151: Investiční transfery veřejným rozpočtům územní úrovně | AJ151: 486817.058 | AK151: 739306.411 | AL151: =SUM(AL152:AL154) -> 1364157.565 | AM151: 586812.2381 | AN151: =AM151/AK151 -> 0.7937334634
Q152: 6341 | S152: Investiční transfery obcím | V152: 599940.997 | W152: 818258.214 | X152: 1460316.824 | Y152: 669311.7446 | Z152: 0.8179713117 | AE152: 6341 | AG152: Investiční transfery obcím | AJ152: 486817.058 | AK152: 638355.513 | AL152: 1283068.107 | AM152: 433389.971 | AN152: =AM152/AK152 -> 0.6789163125
Q153: 6342 | S153: Investiční transfery krajům | V153: 0 | W153: 1951.286 | X153: 36721.70968 | Y153: 35484.79712 | Z153: 18.18533886 | AE153: 6342 | AG153: Investiční transfery krajům | AJ153: 0 | AK153: 100950.898 | AL153: 81089.45762 | AM153: 153422.2671 | AN153: =AM153/AK153 -> 1.519771197
Q154: 6349 | S154: Ostatní investiční transfery veřejným rozpočtům územní úrovně | Z154: x | AE154: 6349 | AG154: Ostatní investiční transfery veřejným rozpočtům územní úrovně | AN154: x
Q155: 635 | S155: Investiční transfery příspěvkovým a podobným organizacím | V155: =SUM(V156:V159) -> 6743316.455 | W155: =SUM(W156:W159) -> 7548487.559 | X155: =SUM(X156:X159) -> 11170498.99 | Y155: =SUM(Y156:Y159) -> 8942047.475 | Z155: 1.184614455 | AE155: 635 | AG155: Investiční transfery příspěvkovým a podobným organizacím | AJ155: 3932106.716 | AK155: 8313230.363 | AL155: =SUM(AL156:AL159) -> 0 | AM155: 6275275.852 | AN155: =AM155/AK155 -> 0.7548540793
Q156: 6351 | S156: Investiční transfery zřízeným příspěvkovým organizacím | V156: 141842.676 | W156: 67444.379 | X156: 118958.0021 | Y156: 54220.00123 | Z156: 0.8039217209 | AE156: 6351 | AG156: Investiční transfery zřízeným příspěvkovým organizacím
Q157: 6352 | S157: Investiční transfery vysokým školám | V157: 6565326.699 | W157: 6362518.49 | X157: 9453517.309 | Y157: 7516778.271 | Z157: 1.181415548 | AE157: 6352 | AG157: Investiční transfery vysokým školám
Q158: 6354 | S158: Investiční transfery veřejným výzkumným institucím | V158: 30447.08 | W158: 1118324.69 | X158: 1597823.68 | Y158: 1371049.203 | Z158: 1.225984918 | AE158: 6354 | AG158: Investiční transfery veřejným výzkumným institucím
Q159: 6359 | S159: Investiční transfery ostatním příspěvkovým organizacím | V159: 5700 | W159: 200 | X159: 200 | Y159: 0 | Z159: 0 | AE159: 6359 | AG159: Investiční transfery ostatním příspěvkovým organizacím
A160: =IF(COUNTBLANK(C160:IW160)=254,"odstr",IF(AND($A$1="TISK",SUM(J42:N42)=0),"odstr","OK")) ->  | B160: OK | Q160: Výdaje kapitoly 333-MŠMT podle položek celkem | V160: =V14+V131 -> 205759166.4 | W160: =SUM(W14,W131) -> 210519767 | X160: =SUM(X14,X131) -> 220237635 | Y160: =SUM(Y14,Y131) -> 210531806.5 | Z160: 1.00005719 | AD160: Výdaje kapitoly 333-MŠMT podle položek celkem | AJ160: =SUM(AJ14,AJ131) -> 226967000.2 | AK160: =SUM(AK14,AK131) -> 229159981.4 | AL160: =SUM(AL14,AL131) -> 165280892.1 | AM160: =SUM(AM14,AM131) -> 227422706.2 | AN160: =AM160/AK160 -> 0.9924189414
B161: OK | Z161: Zdroj: Závěrečný účet – kapitola 333-MŠMT | AN161: Zdroj: Závěrečný účet – kapitola 333-MŠMT_přílohová tabulka k Závěrečnému účtu_bilance příjmů a výdajů státního rozpočtu v druhovém členění rozpočtové skladby
B162: OK
B163: OK
B164: OK
B165: OK
B166: OK
B167: OK
B168: OK
B169: OK
B170: OK
A171: =IF(COUNTBLANK(C171:IW171)=254,"odstr",IF(AND($A$1="TISK",SUM(J54:N54)=0),"odstr","OK")) ->  | B171: OK
B172: OK
B173: OK
B174: OK
B175: OK
B176: OK
B177: OK
B178: OK
B179: OK
B180: OK
B181: OK
B182: OK
B183: OK
B184: OK
B185: OK
B186: OK
B187: OK
B188: OK
B189: OK
A190: =IF(COUNTBLANK(C190:IW190)=254,"odstr",IF(AND($A$1="TISK",SUM(J74:N74)=0),"odstr","OK")) ->  | B190: OK
B191: OK
B192: OK
B193: OK
B194: OK
B195: OK
A196: =IF(COUNTBLANK(C196:IW196)=254,"odstr",IF(AND($A$1="TISK",SUM(J82:N82)=0),"odstr","OK")) ->  | B196: OK
B197: OK
B198: OK
B199: OK
B200: OK
... 36 more rows

Sheet B7
A1: =IF(#REF!="","ŠABLONA",IF(#REF!="T","TISK","ELEKTRO")) ->  | B1: 0 | C1: =CONCATENATE(D1,F1,IF(G1<>"",".",""),G1,IF(H1<>"",".",""),H1,IF(I1<>"",".",""),I1,"") ->  | D1: =IF(#REF!=""," ?",#REF!) ->  | E1: =CONCATENATE(C1,U1) ->  | F1: 7
A2: konst
A3: konst | B3: 172x11 | D3: Tab. B7: | H3: Výdaje kapitoly 700-Obce a DSO; KÚ (část: 31–32– vzdělávání) – podle položek | W3: Tab. B7: | AA3: Výdaje kapitoly 700-Obce a DSO; KÚ (část: 31–32– vzdělávání) – podle položek | AQ3: Tab. B7: | AU3: Výdaje kapitoly 700-Obce a DSO; KÚ (část: 31–32– vzdělávání) – podle položek | BJ3: Tab. B7: | BN3: Výdaje kapitoly 700-Obce a DSO; KÚ (část: 31–32– vzdělávání) – podle položek
A4: konst | B4: =COUNTA(Datova_oblast) -> 1922 | D4: =IF(D1=" ?","",CONCATENATE("Tab. ",E1,":")) ->  | H4: =IF(H3="Zadejte název tabulky","",H3) -> Výdaje kapitoly 700-Obce a DSO; KÚ (část: 31–32– vzdělávání) – podle položek | W4: =IF(W1=" ?","",CONCATENATE("Tab. ",X1,":")) -> Tab. : | AA4: =IF(AA3="Zadejte název tabulky","",AA3) -> Výdaje kapitoly 700-Obce a DSO; KÚ (část: 31–32– vzdělávání) – podle položek | AQ4: =IF(AQ1=" ?","",CONCATENATE("Tab. ",AR1,":")) -> Tab. : | AU4: =IF(AU3="Zadejte název tabulky","",AU3) -> Výdaje kapitoly 700-Obce a DSO; KÚ (část: 31–32– vzdělávání) – podle položek | BJ4: =IF(BJ1=" ?","",CONCATENATE("Tab. ",BK1,":")) -> Tab. : | BN4: =IF(BN3="Zadejte název tabulky","",BN3) -> Výdaje kapitoly 700-Obce a DSO; KÚ (část: 31–32– vzdělávání) – podle položek
A5: =IF(D5="","odstr","OK") -> odstr | B5: 0
A6: =IF(COUNTBLANK(C6:IV6)=254,"odstr","OK") -> odstr | B6: Řádky pro
A7: =IF(COUNTBLANK(C7:IV7)=254,"odstr","OK") -> odstr | B7: ročenku PaM
A8: konst | D8: (podle stavu k: 31. 12. 2017) | U8: v tis. Kč | W8: (podle stavu k: 31. 12. 2018) | AN8: v tis. Kč | AQ8: (podle stavu k: 31. 12. 2019) | BH8: v tis. Kč | BJ8: (podle stavu k: 31. 12. 2020) | CA8: v tis. Kč
A9: konst | D9: Položka | G9: Popis položky | J9: Celkem1) | N9: Obce a DSO1) | R9: Krajské úřady1) | W9: Položka | Z9: Popis položky | AC9: Celkem1) | AG9: Obce a DSO1) | AK9: Krajské úřady1) | AQ9: Položka | AT9: Popis položky | AW9: Celkem1) | BA9: Obce a DSO1) | BE9: Krajské úřady1) | BJ9: Položka | BM9: Popis položky | BP9: Celkem1) | BT9: Obce a DSO1) | BX9: Krajské úřady1)
A10: konst
A11: konst | J11: schválený rozpočet | K11: rozpočet po změnách | L11: skutečnost | M11: % plnění rozpočtu | N11: schválený rozpočet | O11: rozpočet po změnách | P11: skutečnost | Q11: % plnění rozpočtu | R11: schválený rozpočet | S11: rozpočet po změnách | T11: skutečnost | U11: % plnění rozpočtu | AC11: schválený rozpočet | AD11: rozpočet po změnách | AE11: skutečnost | AF11: % plnění rozpočtu | AG11: schválený rozpočet | AH11: rozpočet po změnách | AI11: skutečnost | AJ11: % plnění rozpočtu | AK11: schválený rozpočet | AL11: rozpočet po změnách | AM11: skutečnost | AN11: % plnění rozpočtu | AW11: schválený rozpočet | AX11: rozpočet po změnách | AY11: skutečnost | AZ11: % plnění rozpočtu | BA11: schválený rozpočet | BB11: rozpočet po změnách | BC11: skutečnost | BD11: % plnění rozpočtu | BE11: schválený rozpočet | BF11: rozpočet po změnách | BG11: skutečnost | BH11: % plnění rozpočtu | BP11: schválený rozpočet | BQ11: rozpočet po změnách | BR11: skutečnost | BS11: % plnění rozpočtu | BT11: schválený rozpočet | BU11: rozpočet po změnách | BV11: skutečnost | BW11: % plnění rozpočtu | BX11: schválený rozpočet | BY11: rozpočet po změnách | BZ11: skutečnost | CA11: % plnění rozpočtu
A12: konst
A13: konst
E14: 5011 | G14: Platy zaměstnanců v pracovním poměru | J14: 46169.0806 | K14: 98350.1388 | L14: 73940.02829 | M14: 0.7518040055 | N14: 42774.2806 | O14: 74219.25658 | P14: 56249.05433 | Q14: 0.7578768223 | R14: 3394.8 | S14: 24130.88222 | T14: 17690.97396 | U14: 0.7331258675 | X14: 5 | Z14: BĚŽNÉ VÝDAJE | AC14: =AC15+AC36+AC95+AC114+AC146+AC157+AC166+AC185 -> 77088125.49 | AD14: =AD15+AD36+AD95+AD114+AD146+AD157+AD166+AD185 -> 149104534.8 | AE14: =AE15+AE36+AE95+AE114+AE146+AE157+AE166+AE185 -> 147162294.7 | AF14: =AE14/AD14 -> 0.9869739697 | AG14: =AG15+AG36+AG95+AG114+AG146+AG157+AG166+AG185 -> 29086731.81 | AH14: =AH15+AH36+AH95+AH114+AH146+AH157+AH166+AH185 -> 38487490.55 | AI14: =AI15+AI36+AI95+AI114+AI146+AI157+AI166+AI185 -> 37034681.59 | AJ14: =AI14/AH14 -> 0.9622524375 | AK14: =AK15+AK36+AK95+AK114+AK146+AK157+AK166+AK185 -> 48001393.69 | AL14: =AL15+AL36+AL95+AL114+AL146+AL157+AL166+AL185 -> 110625133.5 | AM14: =AM15+AM36+AM95+AM114+AM146+AM157+AM166+AM185 -> 110127613.1 | AN14: =AM14/AL14 -> 0.9955026455 | AR14: 5 | AT14: BĚŽNÉ VÝDAJE | AW14: =BA14+BE14 -> 85185084.34 | AX14: 171192190.7 | AY14: 169582044.2 | AZ14: =AY14/AX14 -> 0.9905945092 | BA14: =BA15+BA36+BA95+BA114+BA146+BA157+BA166+BA182+BA185 -> 31133914.18 | BB14: =BB15+BB36+BB95+BB114+BB146+BB157+BB166+BB182+BB185 -> 42711880.91 | BC14: =BC15+BC36+BC95+BC114+BC146+BC157+BC166+BC182+BC185 -> 41610571.83 | BD14: =BC14/BB14 -> 0.9742153927 | BE14: =BE15+BE36+BE95+BE114+BE146+BE157+BE166+BE185 -> 54051170.16 | BF14: =BF15+BF36+BF95+BF114+BF146+BF157+BF166+BF185 -> 128480309.8 | BG14: =BG15+BG36+BG95+BG114+BG146+BG157+BG166+BG185 -> 127971472.3 | BH14: =BG14/BF14 -> 0.9960395682 | BK14: 5 | BM14: BĚŽNÉ VÝDAJE | BP14: =SUM(BT14,BX14) -> 96802008.17 | BQ14: =SUM(BU14,BY14) -> 188895665.3 | BR14: 186573866.5 | BS14: =BR14/BQ14 -> 0.9877085649 | BT14: =SUM(BT15,BT36,BT95,BT114,BT146,BT157,BT166,BT182,BT185) -> 34391176.88 | BU14: =SUM(BU15,BU36,BU95,BU114,BU146,BU157,BU166,BU182,BU185) -> 42512080.37 | BV14: =SUM(BV15,BV36,BV95,BV114,BV146,BV157,BV166,BV182,BV185) -> 40777875.11 | BW14: =BV14/BU14 -> 0.9592067657 | BX14: =SUM(BX15,BX36,BX95,BX114,BX146,BX157,BX166,BX182,BX185) -> 62410831.3 | BY14: =SUM(BY15,BY36,BY95,BY114,BY146,BY157,BY166,BY182,BY185) -> 146383585 | BZ14: =SUM(BZ15,BZ36,BZ95,BZ114,BZ146,BZ157,BZ166,BZ182,BZ185) -> 145795991.4 | CA14: =BZ14/BY14 -> 0.9959859327
E15: 5019 | G15: Ostatní platy | J15: 526.8 | K15: 7207.49 | L15: 5763.62021 | M15: 0.799670927 | N15: 526.8 | O15: 7207.49 | P15: 5763.62021 | Q15: 0.799670927 | R15: 0 | S15: 0 | T15: 0 | U15: x | X15: 50 | Y15: Platy a podobné a související výdaje | AC15: =AC16+AC20+AC26+AC31+AC34 -> 150588.8067 | AD15: =AD16+AD20+AD26+AD31+AD34 -> 346307.7341 | AE15: =AE16+AE20+AE26+AE31 -> 277715.3959 | AF15: 0.8019324103 | AG15: =AG16+AG20+AG26+AG31+AG34 -> 133162.1727 | AH15: =AH16+AH20+AH26+AH31+AH34 -> 269183.8929 | AI15: =AI16+AI20+AI26+AI31+AI34 -> 215975.3285 | AJ15: 0.8023337734 | AK15: =AK16+AK20+AK26+AK31 -> 17426.634 | AL15: =AL16+AL20+AL26+AL31+AL34 -> 77123.84127 | AM15: =AM16+AM20+AM26+AM31+AM34 -> 61740.06742 | AN15: =AM15/AL15 -> 0.80053154 | AR15: 50 | AS15: Platy a podobné a související výdaje | AW15: 158263.947 | AX15: 409541.0684 | AY15: 308213.0918 | AZ15: 0.7525816469 | BA15: =BA16+BA20+BA26+BA31+BA34 -> 140838.047 | BB15: =BB16+BB20+BB26+BB31+BB34 -> 319425.7355 | BC15: =BC16+BC20+BC26+BC31+BC34 -> 236273.1289 | BD15: 0.739680942 | BE15: =BE16+BE20+BE26+BE31+BE34 -> 17425.9 | BF15: =BF16+BF20+BF26+BF31+BF34 -> 90115.33294 | BG15: =BG16+BG20+BG26+BG31+BG34 -> 71939.96283 | BH15: =BG15/BF15 -> 0.7983099045 | BK15: 50 | BL15: Platy a podobné a související výdaje | BP15: 173929.1127 | BQ15: =SUM(BU15,BY15) -> 385304.8437 | BR15: 292734.9786 | BS15: =BR15/BQ15 -> 0.7597490231 | BT15: =SUM(BT16,BT20,BT26,BT31,BT34) -> 151533.9127 | BU15: =SUM(BU16,BU20,BU26,BU31,BU34) -> 290633.2887 | BV15: =SUM(BV16,BV20,BV26,BV31,BV34) -> 221629.8536 | BW15: =BV15/BU15 -> 0.7625755968 | BX15: =SUM(BX16,BX20,BX26,BX31,BX34) -> 22395.2 | BY15: =SUM(BY16,BY20,BY26,BY31,BY34) -> 94671.55496 | BZ15: =SUM(BZ16,BZ20,BZ26,BZ31,BZ34) -> 71105.12497 | CA15: =BZ15/BY15 -> 0.751071692
E16: 5021 | G16: Ostatní osobní výdaje | J16: 43487.57956 | K16: 123416.5346 | L16: 103360.9949 | M16: 0.8374971411 | N16: 38422.53956 | O16: 110963.4826 | P16: 93363.2019 | Q16: 0.8413867311 | R16: 5065.04 | S16: 12453.052 | T16: 9997.793 | U16: 0.802838774 | X16: 501 | Z16: Platy | AC16: =AC17+AC19 -> 63640.49369 | AD16: =AD17+AD19 -> 134815.659 | AE16: =AE17+AE19 -> 101916.4739 | AF16: 0.7559691116 | AG16: =AG17+AG19 -> 58243.38469 | AH16: =AH17+AH19 -> 100504.7453 | AI16: =AI17+AI19 -> 76063.26609 | AJ16: 0.7568126841 | AK16: =AK17 -> 5397.109 | AL16: =AL17 -> 34310.91362 | AM16: =AM17 -> 25853.20784 | AN16: =AM16/AL16 -> 0.7534980889 | AR16: 501 | AS16: Platy | AW16: =BA16+BE16 -> 66114.897 | AX16: =BB16+BF16 -> 143282.4453 | AY16: =BC16+BG16 -> 105968.9002 | AZ16: 0.7395804834 | BA16: =SUM(BA17:BA19) -> 60884.897 | BB16: =SUM(BB17:BB19) -> 101159.4437 | BC16: =SUM(BC17:BC19) -> 73232.91645 | BD16: 0.7239355394 | BE16: =SUM(BE17:BE19) -> 5230 | BF16: =SUM(BF17:BF19) -> 42123.00163 | BG16: =SUM(BG17:BG19) -> 32735.98374 | BH16: =BG16/BF16 -> 0.7771522084 | BK16: 501 | BL16: Platy | BP16: 66965.87514 | BQ16: =SUM(BU16,BY16) -> 136667.6285 | BR16: 106436.3921 | BS16: =BR16/BQ16 -> 0.7787973881 | BT16: =SUM(BT17:BT19) -> 62029.07514 | BU16: =SUM(BU17:BU19) -> 95112.19243 | BV16: =SUM(BV17:BV19) -> 74599.93452 | BW16: =BV16/BU16 -> 0.7843361888 | BX16: =SUM(BX17:BX19) -> 4936.8 | BY16: =SUM(BY17:BY19) -> 41555.43603 | BZ16: =SUM(BZ17:BZ19) -> 31836.45756 | CA16: =BZ16/BY16 -> 0.7661201663
A17: =IF(COUNTBLANK(C17:IV17)=254,"odstr",IF(AND($A$1="TISK",SUM(J14:U14)=0),"odstr","OK")) ->  | B17: OK | E17: 5024 | G17: Odstupné | J17: 0 | K17: 0 | L17: 3.009 | M17: x | N17: 0 | O17: 0 | P17: 3.009 | Q17: x | R17: 0 | S17: 0 | T17: 0 | U17: x | X17: 5011 | Z17: Platy zaměstnanců v pracovním poměru vyjma zaměstnanců na služebních místech | AC17: 63061.69369 | AD17: 128436.549 | AE17: 96240.88507 | AF17: 0.7493263082 | AG17: 57664.58469 | AH17: 94125.63534 | AI17: 70387.67723 | AJ17: 0.7478056002 | AK17: 5397.109 | AL17: 34310.91362 | AM17: 25853.20784 | AN17: =AM17/AL17 -> 0.7534980889 | AR17: 5011 | AT17: Platy zaměstnanců v pracovním poměru vyjma zaměstnanců na služebních místech | AW17: 65824.897 | AX17: 138345.7221 | AY17: 102860.7827 | AZ17: 0.7435053369 | BA17: 60594.897 | BB17: 96222.72047 | BC17: 70124.79898 | BD17: 0.7287758924 | BE17: 5230 | BF17: 42123.00163 | BG17: 32735.98374 | BH17: =BG17/BF17 -> 0.7771522084 | BK17: 5011 | BM17: Platy zaměstnanců v pracovním poměru vyjma zaměstnanců na služebních místech | BP17: 66265.87514 | BQ17: =SUM(BU17,BY17) -> 135766.7045 | BR17: 106126.9214 | BS17: =BR17/BQ17 -> 0.7816859207 | BT17: 61329.07514 | BU17: 94211.26843 | BV17: 74290.46381 | BW17: =BV17/BU17 -> 0.7885517842 | BX17: 4936.8 | BY17: 41555.43603 | BZ17: 31836.45756 | CA17: =BZ17/BY17 -> 0.7661201663
BK18: 5013 | BM18: Platy zaměstnanců na služebních místech podle zákona o státní službě | BP18: 30 | BQ18: 0 | BR18: 0 | BS18: 0 | BT18: 30 | BU18: 0 | BV18: 0 | BW18: 0 | BX18: 0 | BY18: 0 | BZ18: 0 | CA18: 0
A19: =IF(COUNTBLANK(C19:IV19)=254,"odstr",IF(AND($A$1="TISK",SUM(J15:U15)=0),"odstr","OK")) ->  | B19: OK | E19: 5029 | G19: Ostatní platby za provedenou práci jinde nezařazené | J19: 24 | K19: 175 | L19: 135.53374 | M19: 0.7744785143 | N19: 24 | O19: 175 | P19: 135.53374 | Q19: 0.7744785143 | R19: 0 | S19: 0 | T19: 0 | U19: x | X19: 5019 | Z19: Ostatní platy | AC19: 578.8 | AD19: 6379.11 | AE19: 5675.58886 | AF19: 0.8897148442 | AG19: 578.8 | AH19: 6379.11 | AI19: 5675.58886 | AJ19: 0.8897148442 | AK19: 0 | AL19: 0 | AM19: 0 | AN19: x | AR19: 5019 | AT19: Ostatní platy | AW19: 290 | AX19: 4936.72325 | AY19: 3108.11747 | AZ19: 0.6295911909 | BA19: 290 | BB19: 4936.72325 | BC19: 3108.11747 | BD19: 0.6295911909 | BH19: x | BK19: 5019 | BM19: Ostatní platy | BP19: 670 | BQ19: 900.924 | BR19: 309.47071 | BS19: =BR19/BQ19 -> 0.3435036807 | BT19: 670 | BU19: 900.924 | BV19: 309.47071 | BW19: =BV19/BU19 -> 0.3435036807 | BX19: 0 | BY19: 0 | BZ19: 0 | CA19: 0
E20: 5031 | G20: Povinné pojistné na sociální zabezpečení a příspěvek na státní politiku zaměstnanosti | J20: 11652.6434 | K20: 37230.80622 | L20: 29352.15956 | M20: 0.7883836677 | N20: 10724.6834 | O20: 29362.35141 | P20: 23563.45333 | Q20: 0.8025056645 | R20: 927.96 | S20: 7868.45481 | T20: 5788.70623 | U20: 0.7356852609 | X20: 502 | Z20: Ostatní platby za provedenou práci | AC20: =AC21+AC24+AC25 -> 55482.879 | AD20: =AD21+AD24+AD25 -> 139700.6288 | AE20: =AE21+AE25 -> 115149.6395 | AF20: 0.8242599942 | AG20: =AG21+AG24+AG25 -> 53126.923 | AH20: =AH21+AH25 -> 122141.0591 | AI20: =AI21+AI25 -> 100506.4135 | AJ20: 0.8228716387 | AK20: =AK21 -> 2355.956 | AL20: =AL21 -> 17559.56966 | AM20: =AM21 -> 14643.226 | AN20: =AM20/AL20 -> 0.8339171337 | AR20: 502 | AS20: Ostatní platby za provedenou práci | AW20: 60339.154 | AX20: 185949.3872 | AY20: 138953.4901 | AZ20: 0.7472651144 | BA20: =SUM(BA21:BA25) -> 57875.654 | BB20: =SUM(BB21:BB25) -> 166497.3698 | BC20: =SUM(BC21:BC25) -> 122833.7411 | BD20: 0.7377518413 | BE20: =SUM(BE21:BE25) -> 2463.5 | BF20: =SUM(BF21:BF25) -> 19452.01745 | BG20: =SUM(BG21:BG25) -> 16119.749 | BH20: =BG20/BF20 -> 0.8286929128 | BK20: 502 | BL20: Ostatní platby za provedenou práci | BP20: 68758.96113 | BQ20: 168909.1177 | BR20: 126517.8865 | BS20: =BR20/BQ20 -> 0.7490293492 | BT20: =SUM(BT21:BT25) -> 63881.36113 | BU20: =SUM(BU21:BU25) -> 146163.8267 | BV20: =SUM(BV21:BV25) -> 110403.1995 | BW20: =BV20/BU20 -> 0.7553387314 | BX20: =SUM(BX21:BX25) -> 4877.6 | BY20: =SUM(BY21:BY25) -> 22745.29092 | BZ20: =SUM(BZ21:BZ25) -> 16114.687 | CA20: =BZ20/BY20 -> 0.7084845411
A21: =IF(COUNTBLANK(C21:IV21)=254,"odstr",IF(AND($A$1="TISK",SUM(J16:U16)=0),"odstr","OK")) ->  | B21: OK | E21: 5032 | G21: Povinné pojistné na veřejné zdravotní pojištění | J21: 4258.2636 | K21: 14106.90445 | L21: 10474.90203 | M21: 0.7425372496 | N21: 3922.4736 | O21: 11214.59948 | P21: 8390.19012 | Q21: 0.7481488871 | R21: 335.79 | S21: 2892.30497 | T21: 2084.71191 | U21: 0.7207787324 | X21: 5021 | Z21: Ostatní osobní výdaje | AC21: 55458.879 | AD21: 139572.6288 | AE21: 115043.1834 | AF21: 0.8242531822 | AG21: 53102.923 | AH21: 122013.0591 | AI21: 100399.9574 | AJ21: 0.8228623899 | AK21: 2355.956 | AL21: 17559.56966 | AM21: 14643.226 | AN21: =AM21/AL21 -> 0.8339171337 | AR21: 5021 | AT21: Ostatní osobní výdaje | AW21: 60339.154 | AX21: 185412.0502 | AY21: 138599.0888 | AZ21: 0.747519315 | BA21: 57875.654 | BB21: 165960.0328 | BC21: 122479.3398 | BD21: 0.7380050349 | BE21: 2463.5 | BF21: 19452.01745 | BG21: 16119.749 | BH21: =BG21/BF21 -> 0.8286929128 | BK21: 5021 | BM21: Ostatní osobní výdaje | BP21: 68758.96113 | BQ21: 168906.1177 | BR21: 126516.8705 | BS21: =BR21/BQ21 -> 0.7490366378 | BT21: 63881.36113 | BU21: 146160.8267 | BV21: 110402.1835 | BW21: =BV21/BU21 -> 0.7553472838 | BX21: 4877.6 | BY21: 22745.29092 | BZ21: 16114.687 | CA21: =BZ21/BY21 -> 0.7084845411
AR22: 5022 | AT22: Platy představitelů státní moci a některých orgánů | AW22: 0 | AX22: 153.948 | AY22: 0 | AZ22: 0 | BB22: 153.948 | BC22: 0 | BD22: 0 | BK22: 5022 | BM22: Platy představitelů státní moci a některých orgánů | BP22: 0 | BQ22: 0 | BR22: 0 | BS22: 0 | BT22: 0 | BU22: 0 | BV22: 0 | BW22: 0 | BX22: 0 | BY22: 0 | BZ22: 0 | CA22: 0
BK23: 5023 | BM23: Odměny členů zastupitelstva obcí a krajů | BP23: 0 | BQ23: 3 | BR23: 1.016 | BS23: =BR23/BQ23 -> 0.3386666667 | BT23: 0 | BU23: 3 | BV23: 1.016 | BW23: =BV23/BU23 -> 0.3386666667 | BX23: 0 | BY23: 0 | BZ23: 0 | CA23: 0
A24: =IF(COUNTBLANK(C24:IV24)=254,"odstr",IF(AND($A$1="TISK",SUM(J17:U17)=0),"odstr","OK")) ->  | B24: OK | E24: 5038 | G24: Povinné pojistné na úrazové pojištění | J24: 60.8396 | K24: 274.13201 | L24: 166.73194 | M24: 0.6082176977 | N24: 54.4196 | O24: 202.78903 | P24: 129.24627 | Q24: 0.6373434993 | R24: 6.42 | S24: 71.34298 | T24: 37.48567 | U24: 0.5254289911 | X24: 5024 | Z24: Odstupné | AC24: 0 | AD24: 0 | AE24: 0 | AF24: x | AG24: 0 | AH24: 0 | AI24: 0 | AJ24: x | AK24: 0 | AL24: 0 | AM24: 0 | AN24: x | AR24: 5024 | AT24: Odstupné | AW24: 0 | AX24: 303.389 | AY24: 302.048 | AZ24: 0.995579932 | BA24: 0 | BB24: 303.389 | BC24: 302.048 | BD24: 0.995579932 | BH24: x | BK24: 5024 | BM24: Odstupné | BP24: 0 | BQ24: 0 | BR24: 0 | BS24: 0 | BT24: 0 | BU24: 0 | BV24: 0 | BW24: 0 | BX24: 0 | BY24: 0 | BZ24: 0 | CA24: 0
A25: =IF(COUNTBLANK(C25:IV25)=254,"odstr",IF(AND($A$1="TISK",SUM(J19:U19)=0),"odstr","OK")) ->  | B25: OK | E25: 5039 | G25: Ostatní povinné pojistné placené zaměstnavatelem | J25: 75 | K25: 2371.34 | L25: 1824.12079 | M25: 0.7692362926 | N25: 75 | O25: 2371.34 | P25: 1824.12079 | Q25: 0.7692362926 | R25: 0 | S25: 0 | T25: 0 | U25: x | X25: 5029 | Z25: Ostatní platby za provedenou práci jinde nezařazené | AC25: 24 | AD25: 128 | AE25: 106.45605 | AF25: =AE25/AD25 -> 0.8316878906 | AG25: 24 | AH25: 128 | AI25: 106.45605 | AJ25: =AI25/AH25 -> 0.8316878906 | AK25: 0 | AL25: 0 | AM25: 0 | AN25: x | AR25: 5029 | AT25: Ostatní platby za provedenou práci jinde nezařazené | AW25: 0 | AX25: 80 | AY25: 52.35334 | AZ25: 0.65441675 | BA25: 0 | BB25: 80 | BC25: 52.35334 | BD25: 0.65441675 | BH25: x | BK25: 5029 | BM25: Ostatní platby za provedenou práci jinde nezařazené | BP25: 0 | BQ25: 0 | BR25: 0 | BS25: 0 | BT25: 0 | BU25: 0 | BV25: 0 | BW25: 0 | BX25: 0 | BY25: 0 | BZ25: 0 | CA25: 0
E26: 5041 | G26: Odměny za užití duševního vlastnictví | J26: 116.8 | K26: 185.409 | L26: 147.986 | M26: 0.7981597441 | N26: 116.8 | O26: 185.409 | P26: 147.986 | Q26: 0.7981597441 | R26: 0 | S26: 0 | T26: 0 | U26: x | X26: 503 | Z26: Povinné pojistné placené zaměstnavatelem | AC26: =AC27+AC28+AC29+AC30 -> 22002.385 | AD26: =AD27+AD28+AD29+AD30 -> 60497.71237 | AE26: =SUM(AE27:AE30) -> 49494.02281 | AF26: 0.8181139562 | AG26: =SUM(AG27:AG30) -> 20168.816 | AH26: =SUM(AH27:AH30) -> 44773.46438 | AI26: =SUM(AI27:AI30) -> 37779.04723 | AJ26: 0.8437820873 | AK26: =AK27+AK28+AK29 -> 1833.569 | AL26: =SUM(AL27:AL30) -> 15724.24799 | AM26: =AM27+AM28+AM29+AM30 -> 11714.97558 | AN26: =AM26/AL26 -> 0.745026127 | AR26: 503 | AS26: Povinné pojistné placené zaměstnavatelem | AW26: 22426.665 | AX26: 69687.9928 | AY26: 53487.76854 | AZ26: 0.7675320581 | BA26: =SUM(BA27:BA30) -> 20878.265 | BB26: =SUM(BB27:BB30) -> 50537.46894 | BC26: =SUM(BC27:BC30) -> 39404.81067 | BD26: 0.779714764 | BE26: =SUM(BE27:BE30) -> 1548.4 | BF26: =SUM(BF27:BF30) -> 19150.52386 | BG26: =SUM(BG27:BG30) -> 14082.95787 | BH26: =BG26/BF26 -> 0.7353823829 | BK26: 503 | BL26: Povinné pojistné placené zaměstnavatelem | BP26: 26365.24541 | BQ26: 68276.31837 | BR26: 48891.97134 | BS26: =BR26/BQ26 -> 0.716089744 | BT26: =SUM(BT27:BT30) -> 23586.44541 | BU26: =SUM(BU27:BU30) -> 47690.84036 | BV26: =SUM(BV27:BV30) -> 35198.18617 | BW26: =BV26/BU26 -> 0.7380491915 | BX26: =SUM(BX27:BX30) -> 2778.8 | BY26: =SUM(BY27:BY30) -> 20585.47801 | BZ26: =SUM(BZ27:BZ30) -> 13693.78517 | CA26: =BZ26/BY26 -> 0.6652157974
A27: =IF(COUNTBLANK(C27:IV27)=254,"odstr",IF(AND($A$1="TISK",SUM(J20:U20)=0),"odstr","OK")) ->  | B27: OK | E27: 5042 | G27: Odměny za užití počítačových programů | J27: 8563.675 | K27: 8112.591 | L27: 8101.1539 | M27: 0.9985902038 | N27: 723.675 | O27: 750.021 | P27: 738.6459 | Q27: 0.9848336247 | R27: 7840 | S27: 7362.57 | T27: 7362.508 | U27: 0.999991579 | X27: 5031 | Z27: Povinné pojistné na sociální zabezpečení a příspěvek na státní politiku zaměstnanosti | AC27: 16073.563 | AD27: 42242.63165 | AE27: 35108.67405 | AF27: 0.83111948 | AG27: 14725.677 | AH27: 30835.03969 | AI27: 26536.73312 | AJ27: 0.860603177 | AK27: 1347.886 | AL27: 11407.59196 | AM27: 8571.94093 | AN27: =AM27/AL27 -> 0.7514242235 | AR27: 5031 | AT27: Povinné pojistné na sociální zabezpečení a příspěvek na státní politiku zaměstnanosti | AW27: 16084.57 | AX27: 49039.83048 | AY27: 38461.41374 | AZ27: 0.7842892882 | BA27: 14947.57 | BB27: 35287.03406 | BC27: 28179.06284 | BD27: 0.7985670542 | BE27: 1137 | BF27: 13752.79642 | BG27: 10282.3509 | BH27: =BG27/BF27 -> 0.747655283 | BK27: 5031 | BM27: Povinné pojistné na sociální zabezpečení a příspěvek na státní politiku zaměstnanosti | BP27: 18928.75665 | BQ27: 48780.21957 | BR27: 35536.19243 | BS27: 0.7284959507 | BT27: 17025.65665 | BU27: 34362.88782 | BV27: 25552.14919 | BW27: 0.7435972589 | BX27: 1903.1 | BY27: 14417.33175 | BZ27: 9984.04324 | CA27: =BZ27/BY27 -> 0.692502844
A28: =IF(COUNTBLANK(C28:IV28)=254,"odstr",IF(AND($A$1="TISK",SUM(J21:U21)=0),"odstr","OK")) ->  | B28: OK | E28: 5051 | G28: Mzdové náhrady | J28: 0 | K28: 5.1 | L28: 5.061 | M28: 0.9923529412 | N28: 0 | O28: 5.1 | P28: 5.061 | Q28: 0.9923529412 | R28: 0 | S28: 0 | T28: 0 | U28: x | X28: 5032 | Z28: Povinné pojistné na veřejné zdravotní pojištění | AC28: 5792.563 | AD28: 15884.89417 | AE28: 12479.82151 | AF28: 0.7856408344 | AG28: 5307.08 | AH28: 11686.45251 | AI28: 9394.2174 | AJ28: 0.8038553523 | AK28: 485.483 | AL28: 4198.44166 | AM28: 3085.60411 | AN28: =AM28/AL28 -> 0.7349403326 | AR28: 5032 | AT28: Povinné pojistné na veřejné zdravotní pojištění | AW28: 6216.425 | AX28: 18749.20632 | AY28: 13976.80464 | AZ28: 0.7454611359 | BA28: 5805.425 | BB28: 13523.01893 | BC28: 10261.53719 | BD28: 0.7588199975 | BE28: 411 | BF28: 5226.18739 | BG28: 3715.26745 | BH28: =BG28/BF28 -> 0.7108944193 | BK28: 5032 | BM28: Povinné pojistné na veřejné zdravotní pojištění | BP28: 7189.03122 | BQ28: 18819.28075 | BR28: 13105.77183 | BS28: 0.6964013133 | BT28: 6429.33122 | BU28: 13033.6885 | BV28: 9482.62005 | BW28: 0.7275469296 | BX28: 759.7 | BY28: 5785.59225 | BZ28: 3623.15178 | CA28: =BZ28/BY28 -> 0.6262369734
A29: =IF(COUNTBLANK(C29:IV29)=254,"odstr",IF(AND($A$1="TISK",SUM(J24:U24)=0),"odstr","OK")) ->  | B29: OK | E29: 50 | G29: Výdaje na platby, ostatních platby za provedenou práci a pojistné | J29: 114934.6818 | K29: 291435.4461 | L29: 233275.3014 | M29: 0.8004355836 | N29: 97364.67176 | O29: 236656.8391 | P29: 190313.1226 | Q29: 0.8041733478 | R29: 17570.01 | S29: 54778.60698 | T29: 42962.17877 | U29: 0.7842875374 | X29: 5038 | Z29: Povinné pojistné na úrazové pojištění | AC29: 69.959 | AD29: 341.64655 | AE29: 179.66166 | AF29: 0.5258699671 | AG29: 69.759 | AH29: 223.43218 | AI29: 122.23112 | AJ29: 0.5470613946 | AK29: 0.2 | AL29: 118.21437 | AM29: 57.43054 | AN29: =AM29/AL29 -> 0.4858169104 | AR29: 5038 | AT29: Povinné pojistné na úrazové pojištění | AW29: 110.67 | AX29: 325.106 | AY29: 199.51406 | AZ29: 0.6136892583 | BA29: 110.27 | BB29: 153.56595 | BC29: 114.17454 | BD29: 0.7434886445 | BE29: 0.4 | BF29: 171.54005 | BG29: 85.33952 | BH29: =BG29/BF29 -> 0.4974903528 | BK29: 5038 | BM29: Povinné pojistné na úrazové pojištění | BP29: 207.45754 | BQ29: 564.61805 | BR29: 231.57603 | BS29: 0.4101463458 | BT29: 91.45754 | BU29: 182.06404 | BV29: 144.98588 | BW29: 0.7963455057 | BX29: 116 | BY29: 382.55401 | BZ29: 86.59015 | CA29: =BZ29/BY29 -> 0.2263475163
A30: =IF(COUNTBLANK(C30:IV30)=254,"odstr",IF(AND($A$1="TISK",SUM(J25:U25)=0),"odstr","OK")) ->  | B30: OK | E30: 5122 | G30: Podlimitní věcná břemena | J30: 0 | K30: 700.8 | L30: 0.726 | M30: 0.001035958904 | N30: 0 | O30: 700.8 | P30: 0.726 | Q30: 0.001035958904 | R30: 0 | S30: 0 | T30: 0 | U30: x | X30: 5039 | Z30: Ostatní povinné pojistné placené zaměstnavatelem | AC30: 66.3 | AD30: 2028.54 | AE30: 1725.86559 | AF30: 0.8507919933 | AG30: 66.3 | AH30: 2028.54 | AI30: 1725.86559 | AJ30: 0.8507919933 | AK30: 0 | AL30: 0 | AM30: 0 | AN30: x | AR30: 5039 | AT30: Ostatní povinné pojistné placené zaměstnavatelem | AW30: 15 | AX30: 1573.85 | AY30: 850.0361 | AZ30: 0.5400998189 | BA30: 15 | BB30: 1573.85 | BC30: 850.0361 | BD30: 0.5400998189 | BH30: x | BK30: 5039 | BM30: Ostatní povinné pojistné placené zaměstnavatelem | BP30: 40 | BQ30: 112.2 | BR30: 18.43105 | BS30: 0.1642696078 | BT30: 40 | BU30: 112.2 | BV30: 18.43105 | BW30: 0.1642696078 | BX30: 0 | BY30: 0 | BZ30: 0 | CA30: 0
E31: 5131 | G31: Potraviny | J31: 9447.1 | K31: 10367.2585 | L31: 9646.84882 | M31: 0.9305110719 | N31: 9447.1 | O31: 10367.2585 | P31: 9646.84882 | Q31: 0.9305110719 | R31: 0 | S31: 0 | T31: 0 | U31: x | X31: 504 | Z31: Odměny za užití duševního vlastnictví | AC31: =AC32+AC33 -> 9463.049 | AD31: =AD32+AD33 -> 11293.734 | AE31: =AE32+AE33 -> 11155.25969 | AF31: 0.9877388373 | AG31: =AG32+AG33 -> 1623.049 | AH31: =SUM(AH32:AH33) -> 1764.624 | AI31: =AI32+AI33 -> 1626.60169 | AJ31: 0.9217837284 | AK31: =AK33 -> 7840 | AL31: =AL32+AL33 -> 9529.11 | AM31: =AM32+AM33 -> 9528.658 | AN31: =AM31/AL31 -> 0.9999525664 | AR31: 504 | AS31: Odměny za užití duševního vlastnictví | AW31: 9383.231 | AX31: 10621.243 | AY31: 9802.93288 | AZ31: 0.9229553339 | BA31: =SUM(BA32:BA33) -> 1199.231 | BB31: =SUM(BB32:BB33) -> 1231.453 | BC31: =SUM(BC32:BC33) -> 801.66066 | BD31: 0.6509876219 | BE31: =SUM(BE32:BE33) -> 8184 | BF31: =SUM(BF32:BF33) -> 9389.79 | BG31: =SUM(BG32:BG33) -> 9001.27222 | BH31: =BG31/BF31 -> 0.9586233792 | BK31: 504 | BL31: Odměny za užití duševního vlastnictví | BP31: 11839.031 | BQ31: 11451.7792 | BR31: 10888.72868 | BS31: 0.9508329221 | BT31: =SUM(BT32:BT33) -> 2037.031 | BU31: =SUM(BU32:BU33) -> 1666.4292 | BV31: =SUM(BV32:BV33) -> 1428.53344 | BW31: 0.8572422039 | BX31: =SUM(BX32:BX33) -> 9802 | BY31: =SUM(BY32:BY33) -> 9785.35 | BZ31: =SUM(BZ32:BZ33) -> 9460.19524 | CA31: =BZ31/BY31 -> 0.9667712693
A32: =IF(COUNTBLANK(C32:IV32)=254,"odstr",IF(AND($A$1="TISK",SUM(J26:U26)=0),"odstr","OK")) ->  | B32: OK | E32: 5132 | G32: Ochranné pomůcky | J32: 41.34 | K32: 51.675 | L32: 43.60761 | M32: 0.843882148 | N32: 41.34 | O32: 51.675 | P32: 43.60761 | Q32: 0.843882148 | R32: 0 | S32: 0 | T32: 0 | U32: x | X32: 5041 | Z32: Odměny za užití duševního vlastnictví | AC32: 538.999 | AD32: 2860.653 | AE32: 2751.1762 | AF32: 0.9617301364 | AG32: 538.999 | AH32: 343.543 | AI32: 234.0752 | AJ32: 0.6813563368 | AK32: 0 | AL32: 2517.11 | AM32: 2517.101 | AN32: =AM32/AL32 -> 0.9999964245 | AR32: 5041 | AT32: Odměny za užití duševního vlastnictví | AW32: 92 | AX32: 2406.997 | AY32: 2004.87994 | AZ32: 0.8329382795 | BA32: 92 | BB32: 239.697 | BC32: 218.72994 | BD32: 0.9125268151 | BE32: 0 | BF32: 2167.3 | BG32: 1786.15 | BH32: =BG32/BF32 -> 0.8241360218 | BK32: 5041 | BM32: Odměny za užití duševního vlastnictví | BP32: 2419 | BQ32: 2828.349 | BR32: 2370.88516 | BS32: 0.8382576408 | BT32: 483 | BU32: 198.999 | BV32: 59.20516 | BW32: 0.2975148619 | BX32: 1936 | BY32: 2629.35 | BZ32: 2311.68 | CA32: =BZ32/BY32 -> 0.8791830681
A33: =IF(COUNTBLANK(C33:IV33)=254,"odstr",IF(AND($A$1="TISK",SUM(J27:U27)=0),"odstr","OK")) ->  | B33: OK | E33: 5133 | G33: Léky a zdravotnický materiál | J33: 7.5 | K33: 50.955 | L33: 20.744 | M33: 0.4071043077 | N33: 7.5 | O33: 50.955 | P33: 20.744 | Q33: 0.4071043077 | R33: 0 | S33: 0 | T33: 0 | U33: x | X33: 5042 | Z33: Odměny za užití počítačových programů | AC33: 8924.05 | AD33: 8433.081 | AE33: 8404.08349 | AF33: 0.9965614572 | AG33: 1084.05 | AH33: 1421.081 | AI33: 1392.52649 | AJ33: 0.9799064867 | AK33: 7840 | AL33: 7012 | AM33: 7011.557 | AN33: =AM33/AL33 -> 0.9999368226 | AR33: 5042 | AT33: Odměny za užití počítačových programů | AW33: 9291.231 | AX33: 8214.246 | AY33: 7798.05294 | AZ33: 0.9493327738 | BA33: 1107.231 | BB33: 991.756 | BC33: 582.93072 | BD33: 0.5877763482 | BE33: 8184 | BF33: 7222.49 | BG33: 7215.12222 | BH33: =BG33/BF33 -> 0.9989798837 | BK33: 5042 | BM33: Odměny za užití počítačových programů | BP33: 9420.031 | BQ33: =SUM(BU33,BY33) -> 8623.4302 | BR33: 8517.84352 | BS33: 0.9877558376 | BT33: 1554.031 | BU33: 1467.4302 | BV33: 1369.32828 | BW33: 0.9331471303 | BX33: 7866 | BY33: 7156 | BZ33: 7148.51524 | CA33: =BZ33/BY33 -> 0.9989540581
E34: 5134 | G34: Prádlo, oděv a obuv | J34: 49.5 | K34: 234.998 | L34: 191.067 | M34: 0.8130579835 | N34: 49.5 | O34: 234.998 | P34: 191.067 | Q34: 0.8130579835 | R34: 0 | S34: 0 | T34: 0 | U34: x | X34: 505 | Z34: Mzdové náhrady | AC34: =AC35 -> 0 | AD34: =AD35 -> 0 | AE34: 0 | AF34: x | AG34: 0 | AI34: 0 | AJ34: x | AK34: 0 | AL34: 0 | AM34: 0 | AN34: x | AR34: 505 | AS34: Mzdové náhrady | AW34: 0 | AX34: 0 | AY34: 0 | AZ34: x | BA34: 0 | BB34: 0 | BC34: 0 | BD34: x | BE34: 0 | BF34: 0 | BG34: 0 | BH34: x | BK34: 505 | BL34: Mzdové náhrady | BP34: =SUM(BT34,BX34) -> 0 | BQ34: 0 | BR34: 0 | BS34: 0 | BT34: =BT35 -> 0 | BU34: =BU35 -> 0 | BV34: =BV35 -> 0 | BW34: 0 | BX34: =BX35 -> 0 | BY34: =BY35 -> 0 | BZ34: =BZ35 -> 0 | CA34: 0
A35: =IF(COUNTBLANK(C35:IV35)=254,"odstr",IF(AND($A$1="TISK",SUM(J28:U28)=0),"odstr","OK")) ->  | B35: OK | E35: 5135 | G35: Učebnice a bezplatně poskytované školní potřeby | J35: 114 | K35: 81.67 | L35: 9.703 | M35: 0.1188073956 | N35: 114 | O35: 81.67 | P35: 9.703 | Q35: 0.1188073956 | R35: 0 | S35: 0 | T35: 0 | U35: x | X35: 5051 | Z35: Mzdové náhrady | AC35: 0 | AD35: 0 | AE35: 0 | AF35: x | AG35: 0 | AH35: 0 | AI35: 0 | AJ35: x | AK35: 0 | AL35: 0 | AM35: 0 | AN35: x | AR35: 5051 | AT35: Mzdové náhrady | BK35: 5051 | BM35: Mzdové náhrady | BP35: 0 | BQ35: 0 | BR35: 0 | BS35: 0 | BT35: 0 | BU35: 0 | BV35: 0 | BW35: 0 | BX35: 0 | BY35: 0 | BZ35: 0 | CA35: 0
A36: =IF(COUNTBLANK(C36:IV36)=254,"odstr",IF(AND($A$1="TISK",SUM(J29:U29)=0),"odstr","OK")) ->  | B36: OK | E36: 5136 | G36: Knihy, učební pomůcky a tisk | J36: 1236.56 | K36: 2238.00277 | L36: 1817.73491 | M36: 0.8122129849 | N36: 1230.56 | O36: 2220.83677 | P36: 1812.26891 | Q36: 0.8160297661 | R36: 6 | S36: 17.166 | T36: 5.466 | U36: 0.3184201328 | X36: 51 | Y36: Neinvestiční nákupy a související výdaje | Z36: Neinvestiční nákupy a související výdaje | AC36: =AC37+AC40+AC50+AC56+AC65+AC75+AC84+AC88 -> 3009383.021 | AD36: =AD37+AD40+AD50+AD56+AD65+AD75+AD84+AD88 -> 4632584.829 | AE36: =AE37+AE40+AE50+AE56+AE65+AE75+AE84+AE88 -> 3422039.682 | AF36: =AE36/AD36 -> 0.7386890491 | AG36: =AG37+AG40+AG50+AG56+AG65+AG75+AG84+AG88 -> 2664387.658 | AH36: =AH37+AH40+AH50+AH56+AH65+AH75+AH84+AH88 -> 3961622.683 | AI36: =AI37+AI40+AI50+AI56+AI65+AI75+AI84+AI88 -> 3008595.981 | AJ36: =AI36/AH36 -> 0.7594352672 | AK36: =AK37+AK40+AK50+AK56+AK65+AK75+AK84+AK88 -> 344995.363 | AL36: =AL37+AL40+AL50+AL56+AL65+AL75+AL84+AL88 -> 679051.3566 | AM36: =AM37+AM40+AM50+AM56+AM65+AM75+AM84+AM88 -> 413443.701 | AN36: =AM36/AL36 -> 0.608854834 | AR36: 51 | AS36: Neinvestiční nákupy a související výdaje | AT36: Neinvestiční nákupy a související výdaje | AW36: =BA36+BE36 -> 2926265.151 | AX36: =BB36+BF36 -> 4238794.058 | AY36: =BC36+BG36 -> 3288006.092 | AZ36: =AY36/AX36 -> 0.775693758 | BA36: =BA37+BA40+BA50+BA56+BA65+BA75+BA84+BA88 -> 2601407.574 | BB36: =BB37+BB40+BB50+BB56+BB65+BB75+BB84+BB88 -> 3667067.812 | BC36: =BC37+BC40+BC50+BC56+BC65+BC75+BC84+BC88 -> 2905548.162 | BD36: =BC36/BB36 -> 0.7923355419 | BE36: =BE37+BE40+BE50+BE56+BE65+BE75+BE84+BE88 -> 324857.577 | BF36: =BF37+BF40+BF50+BF56+BF65+BF75+BF84+BF88 -> 571726.2459 | BG36: =BG37+BG40+BG50+BG56+BG65+BG75+BG84+BG88 -> 382457.9302 | BH36: =BG36/BF36 -> 0.6689529001 | BK36: 51 | BL36: Neinvestiční nákupy a související výdaje | BM36: Neinvestiční nákupy a související výdaje | BP36: =SUM(BT36,BX36) -> 3050319.427 | BQ36: =SUM(BU36,BY36) -> 4282787.981 | BR36: 3190256.217 | BS36: =BR36/BQ36 -> 0.7449017394 | BT36: =SUM(BT37,BT40,BT50,BT56,BT65,BT75,BT84,BT88) -> 2696968.928 | BU36: =SUM(BU37,BU40,BU50,BU56,BU65,BU75,BU84,BU88) -> 3876473.908 | BV36: =SUM(BV37,BV40,BV50,BV56,BV65,BV75,BV84,BV88) -> 2936343.231 | BW36: =BV36/BU36 -> 0.7574778783 | BX36: =SUM(BX37,BX40,BX50,BX56,BX65,BX75,BX84,BX88) -> 353350.499 | BY36: =SUM(BY37,BY40,BY50,BY56,BY65,BY75,BY84,BY88) -> 406314.0737 | BZ36: =SUM(BZ37,BZ40,BZ50,BZ56,BZ65,BZ75,BZ84,BZ88) -> 253912.9858 | CA36: =BZ36/BY36 -> 0.6249180184
E37: 5137 | G37: Drobný hmotný dlouhodobý majetek | J37: 51554.657 | K37: 239163.3419 | L37: 198307.5516 | M37: 0.829172021 | N37: 51473.657 | O37: 226480.4128 | P37: 187477.946 | Q37: 0.8277887863 | R37: 81 | S37: 12682.92919 | T37: 10829.60561 | U37: 0.8538725911 | X37: 512 | Y37: Výdaje na některé úpravy hmotných věcí a pořízení některých práv k hmotným věcem | AC37: =AC38 -> 110 | AD37: =AD38+AD39 -> 259.4 | AE37: =AE38+AE39 -> 4086.35946 | AF37: =AE37/AD37 -> 15.75312051 | AG37: =AG38 -> 110 | AH37: =AH38+AH39 -> 4136.6054 | AI37: =AI38+AI39 -> 3936.71207 | AJ37: =AI37/AH37 -> 0.9516769644 | AK37: 0 | AL37: =SUM(AL38:AL39) -> 4212.0054 | AM37: =AM39 -> 149.64739 | AN37: =AM37/AL37 -> 0.03552877449 | AR37: 512 | AS37: Výdaje na některé úpravy hmotných věcí a pořízení některých práv k hmotným věcem | AW37: 551.101 | AX37: 3900.97592 | AY37: 4005.76752 | AZ37: 1.026862919 | BA37: =SUM(BA38:BA39) -> 551.101 | BB37: =SUM(BB38:BB39) -> 3879.23592 | BC37: =SUM(BC38:BC39) -> 3984.54008 | BD37: 1.027145593 | BE37: 0 | BF37: =SUM(BF38:BF39) -> 21.74 | BG37: =SUM(BG38:BG39) -> 21.22744 | BH37: =BG37/BF37 -> 0.9764231831 | BK37: 512 | BL37: Výdaje na některé úpravy hmotných věcí a pořízení některých práv k hmotným věcem | BP37: 285 | BQ37: 2068.709 | BR37: 1784.35274 | BS37: =BR37/BQ37 -> 0.8625440988 | BT37: =SUM(BT38:BT39) -> 185 | BU37: =SUM(BU38:BU39) -> 1957.709 | BV37: =SUM(BV38:BV39) -> 1780.8634 | BW37: =BV37/BU37 -> 0.9096670649 | BX37: =SUM(BX38:BX39) -> 100 | BY37: =SUM(BY38:BY39) -> 111 | BZ37: =SUM(BZ38:BZ39) -> 3.48934 | CA37: 0.0314354955
A38: =IF(COUNTBLANK(C38:IV38)=254,"odstr",IF(AND($A$1="TISK",SUM(J30:U30)=0),"odstr","OK")) ->  | B38: OK | E38: 5138 | G38: Nákup zboží (za účelem dalšího prodeje) | J38: 420 | K38: 5 | L38: 0.83871 | M38: 0.167742 | N38: 420 | O38: 5 | P38: 0.83871 | Q38: 0.167742 | R38: 0 | S38: 0 | T38: 0 | U38: x | X38: 5122 | Z38: Podlimitní věcná břemena | AC38: 110 | AD38: 92 | AE38: 0 | AF38: x | AG38: 110 | AH38: 92 | AI38: 0 | AJ38: x | AK38: 0 | AL38: 0 | AN38: x | AR38: 5122 | AT38: Podlimitní věcná břemena | AW38: 0 | AX38: 19.5 | AY38: 16.31 | AZ38: 0.8364102564 | BA38: 0 | BB38: 15 | BC38: 12.1 | BD38: 0.8066666667 | BE38: 0 | BF38: 4.5 | BG38: 4.21 | BH38: =BG38/BF38 -> 0.9355555556 | BK38: 5122 | BM38: Podlimitní věcná břemena | BP38: 0 | BQ38: 11 | BR38: 2.6 | BS38: 0.2363636364 | BT38: 0 | BU38: 0 | BV38: 0 | BW38: 0 | BX38: 0 | BY38: 11 | BZ38: 2.6 | CA38: 0.2363636364
X39: 5123 | Z39: Podlimitní technické zhodnocení | AD39: 167.4 | AE39: 4086.35946 | AF39: =AE39/AD39 -> 24.41074946 | AH39: 4044.6054 | AI39: 3936.71207 | AJ39: =AI39/AH39 -> 0.9733241394 | AL39: 4212.0054 | AM39: 149.64739 | AN39: =AM39/AL39 -> 0.03552877449 | AR39: 5123 | AT39: Podlimitní technické zhodnocení | AW39: 551.101 | AX39: 3881.47592 | AY39: 3989.45752 | AZ39: 1.027819727 | BA39: 551.101 | BB39: 3864.23592 | BC39: 3972.44008 | BD39: 1.028001437 | BE39: 0 | BF39: 17.24 | BG39: 17.01744 | BH39: =BG39/BF39 -> 0.9870904872 | BK39: 5123 | BM39: Podlimitní technické zhodnocení | BP39: 285 | BQ39: 2057.709 | BR39: 1781.75274 | BS39: 0.8658915036 | BT39: 185 | BU39: 1957.709 | BV39: 1780.8634 | BW39: =BV39/BU39 -> 0.9096670649 | BX39: 100 | BY39: 100 | BZ39: 0.88934 | CA39: 0.0088934
E40: 5139 | G40: Nákup materiálu jinde nezařazený | J40: 38598.439 | K40: 64483.15709 | L40: 49673.81487 | M40: 0.7703378233 | N40: 34695.439 | O40: 57757.04808 | P40: 43818.06416 | Q40: 0.7586617671 | R40: 3903 | S40: 6726.10901 | T40: 5855.75071 | U40: 0.8706000306 | X40: 513 | Z40: Nákupy materiálu | AC40: =SUM(AC41:AC49) -> 344565.989 | AD40: =SUM(AD41:AD49) -> 996828.8611 | AE40: =SUM(AE41:AE49) -> 747571.7017 | AF40: 0.749949897 | AG40: =SUM(AG41:AG49) -> 278055.789 | AH40: =SUM(AH41:AH49) -> 713434.8418 | AI40: =SUM(AI41:AI49) -> 584076.6566 | AJ40: 0.8186825514 | AK40: =AK46+AK47+AK49 -> 66510.2 | AL40: =SUM(AL41:AL49) -> 283394.0193 | AM40: =SUM(AM41:AM49) -> 163495.0451 | AN40: =AM40/AL40 -> 0.5769177681 | AR40: 513 | AS40: Nákupy materiálu | AW40: 280605.7159 | AX40: 939514.9488 | AY40: 814718.2628 | AZ40: 0.8671690257 | BA40: =SUM(BA41:BA49) -> 275557.7159 | BB40: =SUM(BB41:BB49) -> 789030.4932 | BC40: =SUM(BC41:BC49) -> 707292.3763 | BD40: 0.8964068973 | BE40: =SUM(BE41:BE49) -> 5048 | BF40: =SUM(BF41:BF49) -> 150484.4556 | BG40: =SUM(BG41:BG49) -> 107425.8864 | BH40: =BG40/BF40 -> 0.7138669973 | BK40: 513 | BL40: Nákupy materiálu | BP40: 264658.9869 | BQ40: 722378.9674 | BR40: 608849.8888 | BS40: 0.8428399999 | BT40: =SUM(BT41:BT49) -> 251206.6469 | BU40: =SUM(BU41:BU49) -> 671813.5465 | BV40: =SUM(BV41:BV49) -> 574566.7888 | BW40: 0.8552473999 | BX40: =SUM(BX41:BX49) -> 13452.34 | BY40: =SUM(BY41:BY49) -> 50565.42098 | BZ40: =SUM(BZ41:BZ49) -> 34283.1 | CA40: 0.6779949486
A41: =IF(COUNTBLANK(C41:IV41)=254,"odstr",IF(AND($A$1="TISK",SUM(J31:U31)=0),"odstr","OK")) ->  | B41: OK | E41: 5141 | G41: Úroky vlastní | J41: 16843.9652 | K41: 17338.01629 | L41: 14494.25848 | M41: 0.8359813624 | N41: 16843.9652 | O41: 17338.01629 | P41: 14494.25848 | Q41: 0.8359813624 | R41: 0 | S41: 0 | T41: 0 | U41: x | X41: 5131 | Z41: Potraviny | AC41: 13716.2 | AD41: 10788.71 | AE41: 9911.51674 | AF41: 0.9186934063 | AG41: 13716.2 | AH41: 10788.71 | AI41: 9911.51674 | AJ41: 0.9186934063 | AK41: 0 | AL41: 0 | AM41: 0 | AN41: x | AR41: 5131 | AT41: Potraviny | AW41: 10137 | AX41: 10236.162 | AY41: 9803.42925 | AZ41: 0.9577250976 | BA41: 10137 | BB41: 10236.162 | BC41: 9803.42925 | BD41: 0.9577250976 | BH41: x | BK41: 5131 | BM41: Potraviny | BP41: 10819.338 | BQ41: 1680.94545 | BR41: 1443.9112 | BS41: 0.8589875418 | BT41: 10819.338 | BU41: 1676.94545 | BV41: 1443.9112 | BW41: 0.8610364756 | BX41: 0 | BY41: 4 | BZ41: 0 | CA41: 0
B42: OK | E42: 5142 | G42: Realizované kurzové ztráty | J42: 2 | K42: 12.815 | L42: 6.69244 | M42: 0.522234881 | N42: 2 | O42: 12.815 | P42: 6.69244 | Q42: 0.522234881 | R42: 0 | S42: 0 | T42: 0 | U42: x | X42: 5132 | Z42: Ochranné pomůcky | AC42: 109.8 | AD42: 78.726 | AE42: 64.3055 | AF42: 0.8168267154 | AG42: 109.8 | AH42: 78.726 | AI42: 64.3055 | AJ42: 0.8168267154 | AK42: 0 | AL42: 0 | AM42: 0 | AN42: x | AR42: 5132 | AT42: Ochranné pomůcky | AW42: 49.3 | AX42: 78.7075 | AY42: 68.20195 | AZ42: 0.8665241559 | BA42: 49.3 | BB42: 78.7075 | BC42: 68.20195 | BD42: 0.8665241559 | BH42: x | BK42: 5132 | BM42: Ochranné pomůcky | BP42: 66 | BQ42: 296.124 | BR42: 232.68672 | BS42: 0.7857746079 | BT42: 66 | BU42: 296.124 | BV42: 232.68672 | BW42: 0.7857746079 | BX42: 0 | BY42: 0 | BZ42: 0 | CA42: 0
B43: OK | E43: 5143 | G43: Úroky vzniklé převzetím cizích závazků | J43: 0 | K43: 40.3 | L43: 40.239 | M43: 0.9984863524 | N43: 0 | O43: 40.3 | P43: 40.239 | Q43: 0.9984863524 | R43: 0 | S43: 0 | T43: 0 | U43: x | X43: 5133 | Z43: Léky a zdravotnický materiál | AC43: 151.999 | AD43: 95.801 | AE43: 79.32193 | AF43: 0.8279864511 | AG43: 151.999 | AH43: 94.064 | AI43: 77.58493 | AJ43: 0.824810023 | AK43: 0 | AL43: 1.737 | AM43: 1.737 | AN43: =AM43/AL43 -> 1 | AR43: 5133 | AT43: Léky a zdravotnický materiál | AW43: 11 | AX43: 47.431 | AY43: 25.0299 | AZ43: 0.527711834 | BA43: 11 | BB43: 47.431 | BC43: 25.0299 | BD43: 0.527711834 | BH43: x | BK43: 5133 | BM43: Léky a zdravotnický materiál | BP43: 19.5 | BQ43: 158.3265 | BR43: 126.99691 | BS43: 0.8021203652 | BT43: 19.5 | BU43: 140.256 | BV43: 108.92641 | BW43: 0.7766256702 | BX43: 0 | BY43: 18.0705 | BZ43: 18.0705 | CA43: =BZ43/BY43 -> 1
B44: OK | E44: 5144 | G44: Poplatky dluhové služby | J44: 3.6 | K44: 0 | L44: 0 | M44: x | N44: 3.6 | O44: 0 | P44: 0 | Q44: x | R44: 0 | S44: 0 | T44: 0 | U44: x | X44: 5134 | Z44: Prádlo, oděv a obuv | AC44: 94.04 | AD44: 105.342 | AE44: 89.1769 | AF44: 0.8465464867 | AG44: 94.04 | AH44: 105.342 | AI44: 89.1769 | AJ44: 0.8465464867 | AK44: 0 | AL44: 0 | AM44: 0 | AN44: x | AR44: 5134 | AT44: Prádlo, oděv a obuv | AW44: 46.19 | AX44: 169.17 | AY44: 158.28284 | AZ44: 0.935643672 | BA44: 46.19 | BB44: 169.17 | BC44: 158.28284 | BD44: 0.935643672 | BH44: x | BK44: 5134 | BM44: Prádlo, oděv a obuv | BP44: 162 | BQ44: 232.781 | BR44: 187.32909 | BS44: 0.8047439009 | BT44: 162 | BU44: 232.781 | BV44: 187.32909 | BW44: 0.8047439009 | BX44: 0 | BY44: 0 | BZ44: 0 | CA44: 0
B45: OK | E45: 5149 | G45: Ostatní úroky a ostatní finanční výdaje | J45: 0 | K45: 312.9 | L45: 312.803 | M45: 0.9996899968 | N45: 0 | O45: 312.9 | P45: 312.803 | Q45: 0.9996899968 | R45: 0 | S45: 0 | T45: 0 | U45: x | X45: 5135 | Z45: Učebnice a bezplatně poskytované školní potřeby | AC45: 5 | AD45: 9 | AE45: 8.284 | AF45: 0.9204444444 | AG45: 5 | AH45: 9 | AI45: 8.284 | AJ45: 0.9204444444 | AK45: 0 | AL45: 0 | AM45: 0 | AN45: x | AR45: 5135 | AT45: Učebnice a bezplatně poskytované školní potřeby | AW45: 5 | AX45: 11 | AY45: 10.764 | AZ45: 0.9785454545 | BA45: 5 | BB45: 11 | BC45: 10.764 | BD45: 0.9785454545 | BH45: x | BK45: 5135 | BM45: Učebnice a bezplatně poskytované školní potřeby | BP45: 0 | BQ45: 9 | BR45: 8.161 | BS45: 0.9067777778 | BT45: 0 | BU45: 9 | BV45: 8.161 | BW45: 0.9067777778 | BX45: 0 | BY45: 0 | BZ45: 0 | CA45: 0
B46: OK | E46: 5151 | G46: Studená voda | J46: 8776.72 | K46: 9562.05517 | L46: 7732.8769 | M46: 0.8087044848 | N46: 8776.72 | O46: 9562.05517 | P46: 7732.8769 | Q46: 0.8087044848 | R46: 0 | S46: 0 | T46: 0 | U46: x | X46: 5136 | Z46: Knihy, učební pomůcky a tisk | AC46: 1155.269 | AD46: 4735.2511 | AE46: 4434.25552 | AF46: 0.9364351386 | AG46: 1149.269 | AH46: 4625.9481 | AI46: 4387.93252 | AJ46: 0.9485477193 | AK46: 6 | AL46: 109.303 | AM46: 46.323 | AN46: =AM46/AL46 -> 0.4238035553 | AR46: 5136 | AT46: Knihy, učební pomůcky a tisk | AW46: 2123.95 | AX46: 9706.61198 | AY46: 8189.98001 | AZ46: 0.8437526942 | BA46: 2113.95 | BB46: 8292.74098 | BC46: 7936.87101 | BD46: 0.9570865687 | BE46: 10 | BF46: 1413.871 | BG46: 253.109 | BH46: =BG46/BF46 -> 0.1790184536 | BK46: 5136 | BM46: Knihy, učební pomůcky a tisk | BP46: 2154.85 | BQ46: 4510.22447 | BR46: 3079.01014 | BS46: 0.6826733704 | BT46: 2044.85 | BU46: 3655.26647 | BV46: 2755.47514 | BW46: 0.7538370082 | BX46: 110 | BY46: 854.958 | BZ46: 323.535 | CA46: =BZ46/BY46 -> 0.3784220979
B47: OK | E47: 5152 | G47: Teplo | J47: 52953.62 | K47: 52772.05076 | L47: 48187.88223 | M47: 0.9131326438 | N47: 52953.62 | O47: 52726.46076 | P47: 48164.28223 | Q47: 0.913474592 | R47: 0 | S47: 45.59 | T47: 23.6 | U47: 0.517657381 | X47: 5137 | Z47: Drobný hmotný dlouhodobý majetek | AC47: 250772.393 | AD47: 825458.4159 | AE47: 645698.766 | AF47: 0.7822305201 | AG47: 189007.393 | AH47: 580739.6001 | AI47: 492373.3939 | AJ47: 0.8478385043 | AK47: 61765 | AL47: 244718.8158 | AM47: 153325.3721 | AN47: =AM47/AL47 -> 0.6265369158 | AR47: 5137 | AT47: Drobný hmotný dlouhodobý majetek | AW47: 215261.0559 | AX47: 814418.0873 | AY47: 724938.791 | AZ47: 0.8901310055 | BA47: 214783.0559 | BB47: 684569.2405 | BC47: 629350.0024 | BD47: 0.9193372491 | BE47: 478 | BF47: 129848.8468 | BG47: 95588.78863 | BH47: =BG47/BF47 -> 0.7361543129 | BK47: 5137 | BM47: Drobný hmotný dlouhodobý majetek | BP47: 197948.9348 | BQ47: 607426.4618 | BR47: 529959.2096 | BS47: 0.8724664514 | BT47: 190309.5948 | BU47: 568859.1493 | BV47: 503760.6606 | BW47: 0.8855630805 | BX47: 7639.34 | BY47: 38567.31252 | BZ47: 26198.54898 | CA47: =BZ47/BY47 -> 0.6792941294
B48: OK | E48: 5153 | G48: Plyn | J48: 36809.316 | K48: 38752.73917 | L48: 30882.57118 | M48: 0.7969132464 | N48: 36809.316 | O48: 38752.73917 | P48: 30882.57118 | Q48: 0.7969132464 | R48: 0 | S48: 0 | T48: 0 | U48: x | X48: 5138 | Z48: Nákup zboží (za účelem dalšího prodeje) | AC48: 505 | AD48: 138.453 | AE48: 125.3123 | AF48: 0.9050890916 | AG48: 505 | AH48: 138.453 | AI48: 125.3123 | AJ48: 0.9050890916 | AK48: 0 | AL48: 0 | AM48: 0 | AN48: x | AR48: 5138 | AT48: Nákup zboží (za účelem dalšího prodeje) | AW48: 250 | AX48: 13.136 | AY48: 13.177 | AZ48: 1.003121194 | BA48: 250 | BB48: 13.136 | BC48: 13.177 | BD48: 1.003121194 | BH48: x | BK48: 5138 | BM48: Nákup zboží (za účelem dalšího prodeje) | BP48: 250 | BQ48: 77.3331 | BR48: 77.17163 | BS48: 0.9979120196 | BT48: 250 | BU48: 77.3331 | BV48: 77.17163 | BW48: 0.9979120196 | BX48: 0 | BY48: 0 | BZ48: 0 | CA48: 0
A49: =IF(COUNTBLANK(C49:IV49)=254,"odstr",IF(AND($A$1="TISK",SUM(J40:U40)=0),"odstr","OK")) ->  | B49: OK | E49: 5154 | G49: Elektrická energie | J49: 40931.84 | K49: 43760.85426 | L49: 37093.95507 | M49: 0.8476515301 | N49: 40931.84 | O49: 43742.97926 | P49: 37079.89207 | Q49: 0.8476764202 | R49: 0 | S49: 17.875 | T49: 14.063 | U49: 0.7867412587 | X49: 5139 | Z49: Nákup materiálu jinde nezařazený | AC49: 78056.288 | AD49: 155419.1621 | AE49: 87160.7628 | AF49: 0.5608109168 | AG49: 73317.088 | AH49: 116854.9986 | AI49: 77039.14977 | AJ49: 0.659271325 | AK49: 4739.2 | AL49: 38564.16351 | AM49: 10121.61303 | AN49: =AM49/AL49 -> 0.2624616252 | AR49: 5139 | AT49: Nákup materiálu jinde nezařazený | AW49: 52722.22 | AX49: 104834.6429 | AY49: 71510.60681 | AZ49: 0.6821276327 | BA49: 48162.22 | BB49: 85612.90523 | BC49: 59926.61802 | BD49: 0.6999717841 | BE49: 4560 | BF49: 19221.73771 | BG49: 11583.98879 | BH49: =BG49/BF49 -> 0.6026504453 | BK49: 5139 | BM49: Nákup materiálu jinde nezařazený | BP49: 53238.36402 | BQ49: 107987.7711 | BR49: 73735.41252 | BS49: 0.6828126164 | BT49: 47535.36402 | BU49: 96866.69114 | BV49: 65992.467 | BW49: 0.6812709944 | BX49: 5703 | BY49: 11121.07996 | BZ49: 7742.94552 | CA49: =BZ49/BY49 -> 0.6962404324
E50: 5155 | G50: Pevná paliva | J50: 2670 | K50: 3278.01262 | L50: 3018.51506 | M50: 0.9208369247 | N50: 2670 | O50: 3278.01262 | P50: 3018.51506 | Q50: 0.9208369247 | R50: 0 | S50: 0 | T50: 0 | U50: x | X50: 514 | Z50: Úroky a ostatní finanční výdaje | AC50: =SUM(AC51:AC55) -> 17019.97865 | AD50: =SUM(AD51:AD55) -> 18445.95047 | AE50: =SUM(AE51:AE55) -> 15971.07806 | AF50: 0.8658311257 | AG50: =SUM(AG51:AG55) -> 17019.97865 | AH50: =SUM(AH51:AH55) -> 18445.95047 | AI50: =SUM(AI51:AI55) -> 15971.07806 | AJ50: 0.8658311257 | AK50: 0 | AL50: =SUM(AL51:AL55) -> 0 | AM50: 0 | AN50: x | AR50: 514 | AS50: Úroky a ostatní finanční výdaje | AW50: 22743.336 | AX50: 26164.93044 | AY50: 23774.5944 | AZ50: 0.9086435163 | BA50: =SUM(BA51:BA55) -> 22743.336 | BB50: =SUM(BB51:BB55) -> 26164.93044 | BC50: =SUM(BC51:BC55) -> 23774.5944 | BD50: 0.9086435163 | BE50: =SUM(BE51:BE55) -> 0 | BF50: 0 | BG50: 0 | BH50: x | BK50: 514 | BL50: Úroky a ostatní finanční výdaje | BP50: 25839.0049 | BQ50: 27098.52337 | BR50: 22347.89508 | BS50: 0.8246905108 | BT50: =SUM(BT51:BT55) -> 25839.0049 | BU50: =SUM(BU51:BU55) -> 27098.52337 | BV50: =SUM(BV51:BV55) -> 22347.89508 | BW50: 0.8246905108 | BX50: =SUM(BX51:BX55) -> 0 | BY50: =SUM(BY51:BY55) -> 0 | BZ50: =SUM(BZ51:BZ55) -> 0 | CA50: 0
A51: =IF(COUNTBLANK(C51:IV51)=254,"odstr",IF(AND($A$1="TISK",SUM(J41:U41)=0),"odstr","OK")) ->  | B51: OK | E51: 5156 | G51: Pohonné hmoty a maziva | J51: 1878.5 | K51: 1509.81935 | L51: 1347.14489 | M51: 0.8922556795 | N51: 1868.5 | O51: 1499.41935 | P51: 1346.74689 | Q51: 0.8981789451 | R51: 10 | S51: 10.4 | T51: 0.398 | U51: 0.03826923077 | X51: 5141 | Z51: Úroky vlastní | AC51: 15907.97865 | AD51: 18430.82947 | AE51: 15944.47572 | AF51: 0.8650981089 | AG51: 15907.97865 | AH51: 18430.82947 | AI51: 15944.47572 | AJ51: 0.8650981089 | AK51: 0 | AL51: 0 | AM51: 0 | AN51: x | AR51: 5141 | AT51: Úroky vlastní | AW51: 21641.336 | AX51: 26157.28044 | AY51: 23769.21506 | AZ51: 0.908703606 | BA51: 21641.336 | BB51: 26157.28044 | BC51: 23769.21506 | BD51: 0.908703606 | BH51: x | BK51: 5141 | BM51: Úroky vlastní | BP51: 24727.0049 | BQ51: 26441.98894 | BR51: 21751.17364 | BS51: 0.8225997556 | BT51: 24727.0049 | BU51: 26441.98894 | BV51: 21751.17364 | BW51: 0.8225997556 | BX51: 0 | BY51: 0 | BZ51: 0 | CA51: 0
A52: =IF(COUNTBLANK(C52:IV52)=254,"odstr",IF(AND($A$1="TISK",SUM(J42:U42)=0),"odstr","OK")) ->  | E52: 5157 | G52: Teplá voda | J52: 324 | K52: 234.671 | L52: 106.70622 | M52: 0.4547056091 | N52: 324 | O52: 225.6 | P52: 106.70622 | Q52: 0.4729885638 | R52: 0 | S52: 9.071 | T52: 0 | U52: 0 | X52: 5142 | Z52: Realizované kurzové ztráty | AC52: 2 | AD52: 4 | AE52: 1.59496 | AF52: 0.39874 | AG52: 2 | AH52: 4 | AI52: 1.59496 | AJ52: 0.39874 | AK52: 0 | AL52: 0 | AM52: 0 | AN52: x | AR52: 5142 | AT52: Realizované kurzové ztráty | AW52: 2 | AX52: 6.35 | AY52: 5.00634 | AZ52: 0.7884 | BA52: 2 | BB52: 6.35 | BC52: 5.00634 | BD52: 0.7884 | BH52: x | BK52: 5142 | BM52: Realizované kurzové ztráty | BP52: 7 | BQ52: =SUM(BU52,BY52) -> 71.83443 | BR52: 66.18044 | BS52: 0.921291364 | BT52: 7 | BU52: 71.83443 | BV52: 66.18044 | BW52: 0.921291364 | BX52: 0 | BY52: 0 | BZ52: 0 | CA52: 0
A53: =IF(COUNTBLANK(C53:IV53)=254,"odstr",IF(AND($A$1="TISK",SUM(J43:U43)=0),"odstr","OK")) ->  | B53: OK | E53: 5159 | G53: Nákup ostatních paliv a energie | J53: 1963 | K53: 2114.73978 | L53: 2095.41972 | M53: 0.9908640958 | N53: 1963 | O53: 2114.73978 | P53: 2095.41972 | Q53: 0.9908640958 | R53: 0 | S53: 0 | T53: 0 | U53: x | X53: 5143 | Z53: Úroky vzniklé převzetím cizích závazků | AC53: 0 | AD53: 0 | AE53: 0 | AF53: x | AG53: 0 | AH53: 0 | AI53: 0 | AJ53: x | AK53: 0 | AL53: 0 | AM53: 0 | AN53: x | AR53: 5143 | AT53: Úroky vzniklé převzetím cizích závazků | BH53: x | BK53: 5143 | BM53: Úroky vzniklé převzetím cizích závazků | BP53: 0 | BQ53: 0 | BR53: 0 | BS53: 0 | BT53: 0 | BU53: 0 | BV53: 0 | BW53: 0 | BX53: 0 | BY53: 0 | BZ53: 0 | CA53: 0
A54: =IF(COUNTBLANK(C54:IV54)=254,"odstr",IF(AND($A$1="TISK",SUM(J44:U44)=0),"odstr","OK")) ->  | B54: OK | E54: 5161 | G54: Služby pošt | J54: 26.4 | K54: 40.56378 | L54: 17.58938 | M54: 0.4336228034 | N54: 26.4 | O54: 40.56378 | P54: 17.58938 | Q54: 0.4336228034 | R54: 0 | S54: 0 | T54: 0 | U54: x | X54: 5144 | Z54: Poplatky dluhové služby | AC54: 10 | AD54: 11.121 | AE54: 25.0073 | AF54: =AE54/AD54 -> 2.248655696 | AG54: 10 | AH54: 11.121 | AI54: 25.0073 | AJ54: =AI54/AH54 -> 2.248655696 | AK54: 0 | AL54: 0 | AM54: 0 | AN54: x | AR54: 5144 | AT54: Poplatky dluhové služby | AW54: =BA54+BE54 -> 0 | AX54: =BB54+BF54 -> 0.3 | AY54: =BC54+BG54 -> 0.26 | AZ54: =AY54/AX54 -> 0.8666666667 | BA54: 0 | BB54: 0.3 | BC54: 0.26 | BD54: =BC54/BB54 -> 0.8666666667 | BH54: x | BK54: 5144 | BM54: Poplatky dluhové služby | BP54: 5 | BQ54: 5 | BR54: 3.719 | BS54: =BR54/BQ54 -> 0.7438 | BT54: 5 | BU54: 5 | BV54: 3.719 | BW54: =BV54/BU54 -> 0.7438 | BX54: 0 | BY54: 0 | BZ54: 0 | CA54: 0
A55: =IF(COUNTBLANK(C55:IV55)=254,"odstr",IF(AND($A$1="TISK",SUM(J45:U45)=0),"odstr","OK")) ->  | B55: OK | E55: 5162 | G55: Služby telekomunikací a radiokomunikací | J55: 4325.6705 | K55: 4683.29855 | L55: 4249.32835 | M55: 0.9073366356 | N55: 4281.6705 | O55: 4579.18276 | P55: 4189.68774 | Q55: 0.9149422418 | R55: 44 | S55: 104.11579 | T55: 59.64061 | U55: 0.5728296352 | X55: 5149 | Z55: Ostatní úroky a ostatní finanční výdaje | AC55: 1100 | AD55: 0 | AE55: 8e-05 | AF55: x | AG55: 1100 | AH55: 0 | AI55: 8e-05 | AJ55: x | AK55: 0 | AL55: 0 | AM55: 0 | AN55: x | AR55: 5149 | AT55: Ostatní úroky a ostatní finanční výdaje | AW55: 1100 | AX55: 1 | AY55: 0.113 | AZ55: 0.113 | BA55: 1100 | BB55: 1 | BC55: 0.113 | BD55: 0.113 | BH55: x | BK55: 5149 | BM55: Ostatní úroky a ostatní finanční výdaje | BP55: 1100 | BQ55: 579.7 | BR55: 526.822 | BS55: 0.9087838537 | BT55: 1100 | BU55: 579.7 | BV55: 526.822 | BW55: 0.9087838537 | BX55: 0 | BY55: 0 | BZ55: 0 | CA55: 0
E56: 5163 | G56: Služby peněžních ústavů | J56: 21175.001 | K56: 21158.48811 | L56: 18575.35061 | M56: 0.8779148356 | N56: 21174.001 | O56: 21145.48811 | P56: 18574.36161 | Q56: 0.8784077962 | R56: 1 | S56: 13 | T56: 0.989 | U56: 0.07607692308 | X56: 515 | Z56: Nákup vody, paliv a energie | AC56: =SUM(AC57:AC64) -> 149542.401 | AD56: =SUM(AD57:AD64) -> 159386.0796 | AE56: =SUM(AE57:AE64) -> 132533.0195 | AF56: =AE56/AD56 -> 0.8315219239 | AG56: =SUM(AG57:AG64) -> 149522.401 | AH56: =SUM(AH57:AH64) -> 159362.1496 | AI56: =SUM(AI57:AI64) -> 132519.2844 | AJ56: =AI56/AH56 -> 0.831560598 | AK56: =AK62 -> 20 | AL56: =SUM(AL57:AL64) -> 23.93 | AM56: =SUM(AM57:AM64) -> 13.73514 | AN56: =AM56/AL56 -> 0.5739715838 | AR56: 515 | AS56: Nákup vody, paliv a energie | AW56: 146583.2942 | AX56: 158070.3423 | AY56: 140530.511 | AZ56: 0.8890378105 | BA56: =SUM(BA57:BA64) -> 146573.2942 | BB56: =SUM(BB57:BB64) -> 158022.5533 | BC56: =SUM(BC57:BC64) -> 140492.2922 | BD56: 0.8890648159 | BE56: =SUM(BE57:BE64) -> 10 | BF56: =SUM(BF57:BF64) -> 47.789 | BG56: =SUM(BG57:BG64) -> 38.21876 | BH56: =BG56/BF56 -> 0.799739689 | BK56: 515 | BL56: Nákup vody, paliv a energie | BP56: 150170.019 | BQ56: =SUM(BU56,BY56) -> 160390.2511 | BR56: =SUM(BV56,BZ56) -> 128350.4641 | BS56: 0.800238563 | BT56: =SUM(BT57:BT64) -> 150145.019 | BU56: =SUM(BU57:BU64) -> 160321.4611 | BV56: =SUM(BV57:BV63) -> 128335.2983 | BW56: 0.8004873294 | BX56: =SUM(BX57:BX64) -> 25 | BY56: =SUM(BY57:BY64) -> 68.79 | BZ56: =SUM(BZ57:BZ64) -> 15.16582 | CA56: =BZ56/BY56 -> 0.2204654746
A57: =IF(COUNTBLANK(C57:IV57)=254,"odstr",IF(AND($A$1="TISK",SUM(J46:U46)=0),"odstr","OK")) ->  | B57: OK | E57: 5164 | G57: Nájemné | J57: 22234.289 | K57: 37131.16748 | L57: 33769.24598 | M57: 0.9094582334 | N57: 20998.289 | O57: 35425.07148 | P57: 32577.56831 | Q57: 0.9196189859 | R57: 1236 | S57: 1706.096 | T57: 1191.67767 | U57: 0.6984821897 | X57: 5151 | Z57: Studená voda | AC57: 9866.554 | AD57: 11598.6936 | AE57: 9190.62681 | AF57: 0.7923846536 | AG57: 9866.554 | AH57: 11598.6936 | AI57: 9190.62681 | AJ57: 0.7923846536 | AK57: 0 | AL57: 0 | AM57: 0 | AN57: x | AR57: 5151 | AT57: Studená voda | AW57: 8690.918 | AX57: 10780.96035 | AY57: 9037.61209 | AZ57: 0.838293788 | BA57: 8690.918 | BB57: 10778.96035 | BC57: 9035.91109 | BD57: 0.8382915232 | BE57: 0 | BF57: 2 | BG57: 1.701 | BH57: =BG57/BF57 -> 0.8505 | BK57: 5151 | BM57: Studená voda | BP57: 9579.556 | BQ57: =SUM(BU57,BY57) -> 11017.35748 | BR57: 8326.33308 | BS57: 0.7557468381 | BT57: 9578.056 | BU57: 11014.85748 | BV57: 8326.33308 | BW57: 0.7559183671 | BX57: 1.5 | BY57: 2.5 | BZ57: 0 | CA57: 0
B58: OK | E58: 5165 | G58: Nájemné za půdu | J58: 1.68 | K58: 3.28 | L58: 3.28 | M58: 1 | N58: 1.68 | O58: 3.28 | P58: 3.28 | Q58: 1 | R58: 0 | S58: 0 | T58: 0 | U58: x | X58: 5152 | Z58: Teplo | AC58: 52542.9 | AD58: 53921.34819 | AE58: 45843.75024 | AF58: 0.850196662 | AG58: 52542.9 | AH58: 53907.41819 | AI58: 45831.37164 | AJ58: 0.8501867309 | AK58: 0 | AL58: 13.93 | AM58: 12.3786 | AN58: =AM58/AL58 -> 0.8886288586 | AR58: 5152 | AT58: Teplo | AW58: 53762.7 | AX58: 54053.66937 | AY58: 49553.86652 | AZ58: 0.9167530548 | BA58: 53762.7 | BB58: 54026.88037 | BC58: 49528.16361 | BD58: 0.91673188 | BE58: 0 | BF58: 26.789 | BG58: 25.70291 | BH58: =BG58/BF58 -> 0.9594576132 | BK58: 5152 | BM58: Teplo | BP58: 55406.7 | BQ58: 59225.6394 | BR58: 47161.35351 | BS58: 0.7962996092 | BT58: 55396.7 | BU58: 59184.0894 | BV58: 47147.42758 | BW58: 0.7966233503 | BX58: 10 | BY58: 41.55 | BZ58: 13.92593 | CA58: =BZ58/BY58 -> 0.3351607702
B59: OK | E59: 5166 | G59: Konzultační, poradenské a právní služby | J59: 14592.45 | K59: 31045.5351 | L59: 21375.90237 | M59: 0.6885338681 | N59: 13779.45 | O59: 28600.6891 | P59: 19787.93837 | Q59: 0.6918692868 | R59: 813 | S59: 2444.846 | T59: 1587.964 | U59: 0.6495149388 | X59: 5153 | Z59: Plyn | AC59: 36300.38 | AD59: 36121.13003 | AE59: 28489.33089 | AF59: 0.7887164899 | AG59: 36300.38 | AH59: 36121.13003 | AI59: 28489.33089 | AJ59: 0.7887164899 | AK59: 0 | AL59: 0 | AM59: 0 | AN59: x | AR59: 5153 | AT59: Plyn | AW59: 34186.53616 | AX59: 34976.55704 | AY59: 29163.22857 | AZ59: 0.833793576 | BA59: 34186.53616 | BB59: 34976.55704 | BC59: 29163.22857 | BD59: 0.833793576 | BH59: x | BK59: 5153 | BM59: Plyn | BP59: 32287.5 | BQ59: 32353.45367 | BR59: 25583.14444 | BS59: 0.7907392114 | BT59: 32287.5 | BU59: 32353.45367 | BV59: 25583.14444 | BW59: 0.7907392114 | BX59: 0 | BY59: 0 | BZ59: 0 | CA59: 0
B60: OK | E60: 5167 | G60: Služby školení a vzdělávání | J60: 4207.7 | K60: 12270.25964 | L60: 6665.2558 | M60: 0.5432041371 | N60: 3618.7 | O60: 10741.3921 | P60: 6311.3284 | Q60: 0.5875708047 | R60: 589 | S60: 1528.86754 | T60: 353.9274 | U60: 0.2314964447 | X60: 5154 | Z60: Elektrická energie | AC60: 43403.267 | AD60: 50427.89803 | AE60: 42463.08959 | AF60: 0.8420555139 | AG60: 43403.267 | AH60: 50427.89803 | AI60: 42463.08959 | AJ60: 0.8420555139 | AK60: 0 | AL60: 0 | AM60: 0 | AN60: x | AR60: 5154 | AT60: Elektrická energie | AW60: 43770.44 | AX60: 51140.98736 | AY60: 46392.25442 | AZ60: 0.9071442851 | BA60: 43770.44 | BB60: 51131.98736 | BC60: 46383.35642 | BD60: 0.907129936 | BE60: 0 | BF60: 9 | BG60: 8.898 | BH60: =BG60/BF60 -> 0.9886666667 | BK60: 5154 | BM60: Elektrická energie | BP60: 46140 | BQ60: 51446.04856 | BR60: 43659.10728 | BS60: 0.8486386905 | BT60: 46136.5 | BU60: 51431.30856 | BV60: 43657.86739 | BW60: 0.8488577991 | BX60: 3.5 | BY60: 14.74 | BZ60: 1.23989 | CA60: =BZ60/BY60 -> 0.08411736771
B61: OK | E61: 5168 | G61: Služby zpracování dat | J61: 1615.693 | K61: 9513.65171 | L61: 7323.93431 | M61: 0.7698341849 | N61: 678.693 | O61: 3021.37471 | P61: 922.50275 | Q61: 0.305325502 | R61: 937 | S61: 6492.277 | T61: 6401.43156 | U61: 0.9860071528 | X61: 5155 | Z61: Pevná paliva | AC61: 2774.5 | AD61: 3154.01711 | AE61: 2767.58339 | AF61: 0.8774788765 | AG61: 2774.5 | AH61: 3154.01711 | AI61: 2767.58339 | AJ61: 0.8774788765 | AK61: 0 | AL61: 0 | AM61: 0 | AN61: x | AR61: 5155 | AT61: Pevná paliva | AW61: 2686.5 | AX61: 3451.39775 | AY61: 3130.15721 | AZ61: 0.9069245091 | BA61: 2686.5 | BB61: 3451.39775 | BC61: 3130.15721 | BD61: 0.9069245091 | BH61: x | BK61: 5155 | BM61: Pevná paliva | BP61: 3176.426 | BQ61: 3157.92702 | BR61: 2603.11044 | BS61: 0.8243098791 | BT61: 3176.426 | BU61: 3157.92702 | BV61: 2603.11044 | BW61: 0.8243098791 | BX61: 0 | BY61: 0 | BZ61: 0 | CA61: 0
B62: OK | E62: 5169 | G62: Nákup ostatních služeb | J62: 357760.8819 | K62: 407396.5484 | L62: 277064.5167 | M62: 0.6800855771 | N62: 281160.3359 | O62: 345163.1069 | P62: 245465.2338 | Q62: 0.7111572149 | R62: 76600.546 | S62: 62233.44149 | T62: 31599.28291 | U62: 0.5077540652 | X62: 5156 | Z62: Pohonné hmoty a maziva | AC62: 2090.3 | AD62: 1887.82335 | AE62: 1638.01854 | AF62: 0.8676757494 | AG62: 2070.3 | AH62: 1877.82335 | AI62: 1636.662 | AJ62: 0.8715739955 | AK62: 20 | AL62: 10 | AM62: 1.35654 | AN62: =AM62/AL62 -> 0.135654 | AR62: 5156 | AT62: Pohonné hmoty a maziva | AW62: 1672.2 | AX62: 1493.7305 | AY62: 1393.37073 | AZ62: 0.932812666 | BA62: 1662.2 | BB62: 1483.7305 | BC62: 1391.45388 | BD62: 0.9378076949 | BE62: 10 | BF62: 10 | BG62: 1.91685 | BH62: =BG62/BF62 -> 0.191685 | BK62: 5156 | BM62: Pohonné hmoty a maziva | BP62: 1806.784 | BQ62: 1343.772 | BR62: 996.41533 | BS62: 0.7415062451 | BT62: 1796.784 | BU62: 1333.772 | BV62: 996.41533 | BW62: 0.7470657129 | BX62: 10 | BY62: 10 | BZ62: 0 | CA62: 0
B63: OK | E63: 5171 | G63: Opravy a udržování | J63: 1485366.772 | K63: 2054490.15 | L63: 1584318.312 | M63: 0.77114914 | N63: 1263408.772 | O63: 1737233.851 | P63: 1391455.507 | Q63: 0.8009603924 | R63: 221958 | S63: 317256.2986 | T63: 192862.805 | U63: 0.6079085137 | X63: 5157 | Z63: Teplá voda | AC63: 50 | AD63: 54 | AE63: 46.59916 | AF63: 0.8629474074 | AG63: 50 | AH63: 54 | AI63: 46.59916 | AJ63: 0.8629474074 | AK63: 0 | AL63: 0 | AM63: 0 | AN63: x | AR63: 5157 | AT63: Teplá voda | AW63: 97 | AX63: 105 | AY63: 21 | AZ63: 0.2 | BA63: 97 | BB63: 105 | BC63: 21 | BD63: 0.2 | BH63: x | BK63: 5157 | BM63: Teplá voda | BP63: 66 | BQ63: 32 | BR63: 21 | BS63: 0.65625 | BT63: 66 | BU63: 32 | BV63: 21 | BW63: 0.65625 | BX63: 0 | BY63: 0 | BZ63: 0 | CA63: 0
B64: OK | E64: 5172 | G64: Programové vybavení | J64: 439.5 | K64: 2981.74097 | L64: 2449.21697 | M64: 0.8214050096 | N64: 439.5 | O64: 2060.84357 | P64: 1634.70838 | Q64: 0.7932229325 | R64: 0 | S64: 920.8974 | T64: 814.50859 | U64: 0.8844726785 | X64: 5159 | Z64: Nákup ostatních paliv a energie | AC64: 2514.5 | AD64: 2221.16925 | AE64: 2094.0209 | AF64: 0.9427561182 | AG64: 2514.5 | AH64: 2221.16925 | AI64: 2094.0209 | AJ64: 0.9427561182 | AK64: 0 | AL64: 0 | AM64: 0 | AN64: x | AR64: 5159 | AT64: Nákup ostatních paliv a energie | AW64: 1717 | AX64: 2068.0399 | AY64: 1839.02145 | AZ64: 0.8892582053 | BA64: 1717 | BB64: 2068.0399 | BC64: 1839.02145 | BD64: 0.8892582053 | BH64: x | BK64: 5159 | BM64: Nákup ostatních paliv a energie | BP64: 1707.053 | BQ64: 1814.053 | BR64: 1695.10095 | BS64: 0.9344274671 | BT64: 1707.053 | BU64: 1814.053 | BV64: 1695.10095 | BW64: 0.9344274671 | BX64: 0 | BY64: 0 | BZ64: 0 | CA64: 0
E65: 5173 | G65: Cestovné (tuzemské i zahraniční) | J65: 1816.208 | K65: 3607.17963 | L65: 2714.48442 | M65: 0.7525226627 | N65: 1644.208 | O65: 2391.19563 | P65: 1865.72241 | Q65: 0.7802466626 | R65: 172 | S65: 1215.984 | T65: 848.76201 | U65: 0.6980042583 | X65: 516 | Z65: Nákup služeb | AC65: =SUM(AC66:AC74) -> 623565.8304 | AD65: =SUM(AD66:AD74) -> 1000892.325 | AE65: =SUM(AE66:AE74) -> 593146.2463 | AF65: 0.5926174388 | AG65: =SUM(AG66:AG74) -> 533625.9834 | AH65: =SUM(AH66:AH74) -> 905921.6715 | AI65: =SUM(AI66:AI74) -> 539955.3634 | AJ65: 0.5960287521 | AK65: =SUM(AK66:AK74) -> 89939.847 | AL65: =SUM(AL66:AL74) -> 94970.6537 | AM65: =SUM(AM66:AM74) -> 53190.8829 | AN65: =AM65/AL65 -> 0.560077043 | AR65: 516 | AS65: Nákup služeb | AW65: 713030.3684 | AX65: 846340.0885 | AY65: 515007.3663 | AZ65: 0.6085111331 | BA65: =SUM(BA66:BA74) -> 610482.3094 | BB65: =SUM(BB66:BB74) -> 728486.5929 | BC65: =SUM(BC66:BC74) -> 442137.7359 | BD65: 0.6069263871 | BE65: =SUM(BE66:BE74) -> 102548.059 | BF65: =SUM(BF66:BF74) -> 117853.4956 | BG65: =SUM(BG66:BG74) -> 72869.63033 | BH65: =BG65/BF65 -> 0.6183069068 | BK65: 516 | BL65: Nákup služeb | BP65: 740534.6745 | BQ65: 890228.5691 | BR65: 503322.4801 | BS65: 0.5653856746 | BT65: =SUM(BT66:BT74) -> 616303.1615 | BU65: =SUM(BU66:BU74) -> 788030.687 | BV65: =SUM(BV66:BV74) -> 448373.3948 | BW65: 0.5689796124 | BX65: =SUM(BX66:BX74) -> 124231.513 | BY65: =SUM(BY66:BY74) -> 102197.8821 | BZ65: =SUM(BZ66:BZ74) -> 54949.08527 | CA65: =BZ65/BY65 -> 0.5376734247
A66: =IF(COUNTBLANK(C66:IV66)=254,"odstr",IF(AND($A$1="TISK",SUM(J54:U54)=0),"odstr","OK")) ->  | B66: OK | E66: 5175 | G66: Pohoštění | J66: 4841.443 | K66: 10504.10599 | L66: 7265.58162 | M66: 0.6916896713 | N66: 3647.597 | O66: 7751.90633 | P66: 5623.11229 | Q66: 0.7253844475 | R66: 1193.846 | S66: 2752.19966 | T66: 1642.46933 | U66: 0.596784221 | X66: 5161 | Z66: Služby pošt | AC66: 20.309 | AD66: 40.633 | AE66: 6.424 | AF66: 0.1580980976 | AG66: 20.309 | AH66: 37.633 | AI66: 6.218 | AJ66: 0.1652273271 | AK66: 0 | AL66: 3 | AM66: 0.206 | AN66: =AM66/AL66 -> 0.06866666667 | AR66: 5161 | AT66: Služby pošt | AW66: 20.2 | AX66: 19.7938 | AY66: 9.473 | AZ66: 0.4785842031 | BA66: 20.2 | BB66: 19.7938 | BC66: 9.473 | BD66: 0.4785842031 | BH66: x | BK66: 5161 | BM66: Služby pošt | BP66: 22.3 | BQ66: 17.728 | BR66: 9.35466 | BS66: 0.5276771209 | BT66: 22.3 | BU66: 17.728 | BV66: 9.35466 | BW66: 0.5276771209 | BX66: 0 | BY66: 0 | BZ66: 0 | CA66: 0
B67: OK | E67: 5176 | G67: Účastnické poplatky na konference | J67: 28.391 | K67: 520.818 | L67: 253.417 | M67: 0.4865749648 | N67: 28.391 | O67: 9.231 | P67: 7.825 | Q67: 0.8476871412 | R67: 0 | S67: 511.587 | T67: 245.592 | U67: 0.4800591102 | X67: 5162 | Z67: Služby telekomunikací a radiokomunikací | AC67: 4573.54 | AD67: 4971.75808 | AE67: 4502.46452 | AF67: 0.9056081265 | AG67: 4540.54 | AH67: 4836.73416 | AI67: 4415.11622 | AJ67: 0.9128300365 | AK67: 33 | AL67: 135.02392 | AM67: 87.3483 | AN67: =AM67/AL67 -> 0.6469098216 | AR67: 5162 | AT67: Služby telekomunikací a radiokomunikací | AW67: 4517.41 | AX67: 5011.88355 | AY67: 4584.86374 | AZ67: 0.9147985372 | BA67: 4490.41 | BB67: 4841.6056 | BC67: 4487.17777 | BD67: 0.9267953941 | BE67: 27 | BF67: 170.27795 | BG67: 97.68597 | BH67: =BG67/BF67 -> 0.5736853773 | BK67: 5162 | BM67: Služby telekomunikací a radiokomunikací | BP67: 4805.22631 | BQ67: 5415.49947 | BR67: 4734.06274 | BS67: 0.8741691817 | BT67: 4670.22631 | BU67: 5036.35403 | BV67: 4627.14718 | BW67: 0.9187493874 | BX67: 135 | BY67: 379.14544 | BZ67: 106.91556 | CA67: =BZ67/BY67 -> 0.2819908898
B68: OK | E68: 5177 | G68: Nákup uměleckých předmětů | J68: 0 | K68: 0 | L68: 0 | M68: x | N68: 0 | O68: 0 | P68: 0 | Q68: x | R68: 0 | S68: 0 | T68: 0 | U68: x | X68: 5163 | Z68: Služby peněžních ústavů | AC68: 21045.657 | AD68: 22199.93131 | AE68: 19214.75451 | AF68: 0.8655321605 | AG68: 21044.657 | AH68: 22190.23447 | AI68: 19211.90234 | AJ68: 0.865781854 | AK68: 1 | AL68: 9.69684 | AM68: 2.85217 | AN68: =AM68/AL68 -> 0.2941339653 | AR68: 5163 | AT68: Služby peněžních ústavů | AW68: 21409.768 | AX68: 33244.01217 | AY68: 32116.17217 | AZ68: 0.9660738904 | BA68: 21328.768 | BB68: 33176.21217 | BC68: 32086.42417 | BD68: 0.9671515243 | BE68: 81 | BF68: 67.8 | BG68: 29.748 | BH68: =BG68/BF68 -> 0.4387610619 | BK68: 5163 | BM68: Služby peněžních ústavů | BP68: =SUM(BT68,BX68) -> 31525.141 | BQ68: 30792.67891 | BR68: 28381.68021 | BS68: 0.9217022102 | BT68: 31514.141 | BU68: 30765.12291 | BV68: 28380.33014 | BW68: 0.9224838862 | BX68: 11 | BY68: 27.556 | BZ68: 1.35007 | CA68: =BZ68/BY68 -> 0.04899368559
B69: OK | E69: 5178 | G69: Nájemné za nájem s právem koupě | J69: 699.416 | K69: 4464.202 | L69: 2985.224 | M69: 0.6687027155 | N69: 0 | O69: 0 | P69: 0 | Q69: x | R69: 699.416 | S69: 4464.202 | T69: 2985.224 | U69: 0.6687027155 | X69: 5164 | Z69: Nájemné | AC69: 33502.73 | AD69: 49280.59403 | AE69: 44788.72558 | AF69: 0.9088511708 | AG69: 32007.73 | AH69: 46543.8769 | AI69: 42657.23213 | AJ69: 0.9164950359 | AK69: 1495 | AL69: 2736.71713 | AM69: 2131.49345 | AN69: =AM69/AL69 -> 0.7788504799 | AR69: 5164 | AT69: Nájemné | AW69: 42416.359 | AX69: 45865.67009 | AY69: 42837.05841 | AZ69: 0.9339677874 | BA69: 40868.359 | BB69: 42279.70709 | BC69: 39776.25345 | BD69: 0.9407882927 | BE69: 1548 | BF69: 3585.963 | BG69: 3060.80496 | BH69: =BG69/BF69 -> 0.8535517405 | BK69: 5164 | BM69: Nájemné | BP69: 36610.84585 | BQ69: 37745.90994 | BR69: 29787.52514 | BS69: 0.7891590158 | BT69: 35043.84585 | BU69: 33970.15391 | BV69: 28218.47861 | BW69: 0.8306844498 | BX69: 1567 | BY69: 3775.75603 | BZ69: 1569.04653 | CA69: =BZ69/BY69 -> 0.4155582399
B70: OK | E70: 5179 | G70: Ostatní nákupy jinde nezařazené | J70: 789.01 | K70: 2239.38 | L70: 1800.69175 | M70: 0.8041028097 | N70: 779.01 | O70: 1026.88 | P70: 709.19175 | Q70: 0.690627678 | R70: 10 | S70: 1212.5 | T70: 1091.5 | U70: 0.9002061856 | X70: 5165 | Z70: Nájemné za půdu | AC70: 242.913 | AD70: 249.864 | AE70: 26.10334 | AF70: 0.1044701918 | AG70: 242.913 | AH70: 249.864 | AI70: 26.10334 | AJ70: 0.1044701918 | AK70: 0 | AL70: 0 | AM70: 0 | AN70: x | AR70: 5165 | AT70: Nájemné za půdu | AW70: 234.5 | AX70: 240.398 | AY70: 114.058 | AZ70: 0.4744548624 | BA70: 234.5 | BB70: 240.398 | BC70: 114.058 | BD70: 0.4744548624 | BH70: x | BK70: 5165 | BM70: Nájemné za půdu | BP70: 505.598 | BQ70: 507.598 | BR70: 253.55 | BS70: 0.4995094543 | BT70: 505.598 | BU70: 507.598 | BV70: 253.55 | BW70: 0.4995094543 | BX70: 0 | BY70: 0 | BZ70: 0 | CA70: 0
B71: OK | E71: 5182 | G71: Poskytované zálohy vlastní pokladně | J71: 0 | K71: 0 | L71: 0 | M71: x | N71: 0 | O71: 0 | P71: 0 | Q71: x | R71: 0 | S71: 0 | T71: 0 | U71: x | X71: 5166 | Z71: Konzultační, poradenské a právní služby | AC71: 12244.551 | AD71: 31048.90667 | AE71: 19933.41018 | AF71: 0.6420003896 | AG71: 11932.551 | AH71: 23115.91325 | AI71: 15913.25369 | AJ71: 0.6884112048 | AK71: 312 | AL71: 7932.99342 | AM71: 4020.15649 | AN71: =AM71/AL71 -> 0.5067641276 | AR71: 5166 | AT71: Konzultační, poradenské a právní služby | AW71: 18179.5 | AX71: 28727.68398 | AY71: 21645.92975 | AZ71: 0.7534867679 | BA71: 17717.5 | BB71: 21686.7295 | BC71: 15748.85524 | BD71: 0.7261977994 | BE71: 462 | BF71: 7040.95448 | BG71: 5897.07451 | BH71: =BG71/BF71 -> 0.8375390761 | BK71: 5166 | BM71: Konzultační, poradenské a právní služby | BP71: 16008.3 | BQ71: 27956.68325 | BR71: 16383.97692 | BS71: 0.5860486658 | BT71: 15456.3 | BU71: 22344.02705 | BV71: 13950.68384 | BW71: 0.6243585281 | BX71: 552 | BY71: 5612.6562 | BZ71: 2433.29308 | CA71: =BZ71/BY71 -> 0.4335368127
B72: OK | E72: 5183 | G72: Výdaje na realizaci záruk | J72: 0 | K72: 0 | L72: 0 | M72: x | N72: 0 | O72: 0 | P72: 0 | Q72: x | R72: 0 | S72: 0 | T72: 0 | U72: x | X72: 5167 | Z72: Služby školení a vzdělávání | AC72: 3556.076 | AD72: 13857.92229 | AE72: 10221.66185 | AF72: 0.737604212 | AG72: 3236.3 | AH72: 10601.70214 | AI72: 8150.1704 | AJ72: 0.768760553 | AK72: 319.776 | AL72: 3256.22015 | AM72: 2071.49145 | AN72: 0.6361644344 | AR72: 5167 | AT72: Služby školení a vzdělávání | AW72: 4859.3 | AX72: 24155.95542 | AY72: 15171.51372 | AZ72: 0.6280651482 | BA72: 4679.3 | BB72: 12948.73452 | BC72: 9303.77505 | BD72: 0.7185084408 | BE72: 180 | BF72: 11207.2209 | BG72: 5867.73867 | BH72: 0.5235676822 | BK72: 5167 | BM72: Služby školení a vzdělávání | BP72: 10192.2 | BQ72: 20800.48697 | BR72: 10843.51538 | BS72: 0.5213106499 | BT72: 9742.2 | BU72: 15221.81298 | BV72: 7308.85698 | BW72: 0.480156798 | BX72: 450 | BY72: 5578.67399 | BZ72: 3534.6584 | CA72: 0.6336018929
B73: OK | E73: 5189 | G73: Ostatní poskytované zálohy a jistiny | J73: 20 | K73: 115 | L73: 115 | M73: 1 | N73: 0 | O73: 115 | P73: 115 | Q73: 1 | R73: 20 | S73: 0 | T73: 0 | U73: x | X73: 5168 | Z73: Služby zpracování dat | AC73: 3658.873 | AD73: 15686.6155 | AE73: 11578.17701 | AF73: 0.7380927396 | AG73: 1878.873 | AH73: 5644.339 | AI73: 4346.85167 | AJ73: 0.7701259031 | AK73: 1780 | AL73: 10042.2765 | AM73: 7231.32534 | AN73: 0.7200882529 | AR73: 5168 | AT73: Služby zpracování dat | AW73: 2888.273 | AX73: 15278.97152 | AY73: 14120.46521 | AZ73: 0.9241764206 | BA73: 836.273 | BB73: 3564.30914 | BC73: 3123.71893 | BD73: 0.8763883287 | BE73: 2052 | BF73: 11714.66238 | BG73: 10996.74628 | BH73: 0.9387164498 | BK73: 5168 | BM73: Služby zpracování dat | BP73: 3313.682 | BQ73: =SUM(BU73,BY73) -> 20717.85936 | BR73: 18776.79657 | BS73: 0.906309684 | BT73: 1793.682 | BU73: 5758.93097 | BV73: 4479.71149 | BW73: 0.7778720588 | BX73: 1520 | BY73: 14958.92839 | BZ73: 14297.08508 | CA73: 0.9557559678
B74: OK | E74: 5191 | G74: Zaplacené sankce | J74: 4.602 | K74: 837.4422 | L74: 766.50444 | M74: 0.9152923509 | N74: 4.602 | O74: 814.702 | P74: 743.76424 | Q74: 0.9129279663 | R74: 0 | S74: 22.7402 | T74: 22.7402 | U74: 1 | X74: 5169 | Z74: Nákup ostatních služeb | AC74: 544721.1814 | AD74: 863556.1003 | AE74: 482874.5253 | AF74: 0.5591698387 | AG74: 458722.1104 | AH74: 792701.3746 | AI74: 445228.5156 | AJ74: 0.5616598253 | AK74: 85999.071 | AL74: 70854.72574 | AM74: 37646.0097 | AN74: 0.5313126162 | AR74: 5169 | AT74: Nákup ostatních služeb | AW74: 618505.0584 | AX74: 693795.72 | AY74: 384407.8322 | AZ74: 0.5540648654 | BA74: 520306.9994 | BB74: 609729.1031 | BC74: 337488.0003 | BD74: 0.5535048247 | BE74: 98198.059 | BF74: 84066.61691 | BG74: 46919.83194 | BH74: 0.5581268007 | BK74: 5169 | BM74: Nákup ostatních služeb | BP74: 637551.3814 | BQ74: 746274.1252 | BR74: 394152.0185 | BS74: 0.5281598345 | BT74: 517554.8684 | BU74: 674408.9591 | BV74: 361145.2819 | BW74: 0.5354989388 | BX74: 119996.513 | BY74: 71865.16605 | BZ74: 33006.73655 | CA74: 0.4592870004
E75: 5192 | G75: Poskytnuté neinvestiční příspěvky a náhrady (část) | J75: 5456.362 | K75: 6288.93596 | L75: 5952.92009 | M75: 0.9465703146 | N75: 5456.362 | O75: 6284.93596 | P75: 5948.92009 | Q75: 0.9465363097 | R75: 0 | S75: 4 | T75: 4 | U75: 1 | X75: 517 | Z75: Ostatní nákupy | AC75: =SUM(AC76:AC83) -> 1831489.091 | AD75: =SUM(AD76:AD83) -> 2420493.15 | AE75: =SUM(AE76:AE83) -> 1903938.533 | AF75: 0.7865911679 | AG75: =SUM(AG76:AG83) -> 1666424.775 | AH75: =SUM(AH76:AH83) -> 2132120.702 | AI75: =SUM(AI76:AI83) -> 1708729.529 | AJ75: 0.8014225121 | AK75: =SUM(AK76:AK83) -> 165064.316 | AL75: =SUM(AL76:AL83) -> 288372.4478 | AM75: =SUM(AM76:AM83) -> 195209.0046 | AN75: 0.6769336187 | AR75: 517 | AS75: Ostatní nákupy | AW75: 1718614.625 | AX75: 2225303.448 | AY75: 1773267.106 | AZ75: 0.7968653028 | BA75: =SUM(BA76:BA83) -> 1522184.107 | BB75: =SUM(BB76:BB83) -> 1940626.406 | BC75: =SUM(BC76:BC83) -> 1573342.797 | BD75: 0.8107396626 | BE75: =SUM(BE76:BE83) -> 196430.518 | BF75: =SUM(BF76:BF83) -> 284677.0417 | BG75: =SUM(BG76:BG83) -> 199924.3081 | BH75: 0.7022846201 | BK75: 517 | BL75: Ostatní nákupy | BP75: 1834480.877 | BQ75: 2455698.737 | BR75: 1912514.018 | BS75: 0.7788064511 | BT75: =SUM(BT76:BT83) -> 1639460.231 | BU75: =SUM(BU76:BU83) -> 2211557.921 | BV75: =SUM(BV76:BV83) -> 1749513.477 | BW75: 0.7910773941 | BX75: =SUM(BX76:BX83) -> 195020.646 | BY75: =SUM(BY76:BY83) -> 244140.816 | BZ75: =SUM(BZ76:BZ83) -> 163000.5414 | CA75: 0.6676496955
A76: =IF(COUNTBLANK(C76:IV76)=254,"odstr",IF(AND($A$1="TISK",SUM(J63:U63)=0),"odstr","OK")) ->  | B76: OK | E76: 5193 | G76: Výdaje na dopravní územní obslužnost | J76: 0 | K76: 3 | L76: 0 | M76: 0 | N76: 0 | O76: 3 | P76: 0 | Q76: 0 | R76: 0 | S76: 0 | T76: 0 | U76: x | X76: 5171 | Z76: Opravy a udržování | AC76: 1814876.953 | AD76: 2371078.334 | AE76: 1868968.723 | AF76: 0.7882357557 | AG76: 1654490.953 | AH76: 2097632.495 | AI76: 1681228.46 | AJ76: 0.8014885659 | AK76: 160386 | AL76: 273445.8391 | AM76: 187740.2624 | AN76: 0.6865720211 | AR76: 5171 | AT76: Opravy a udržování | AW76: 1703079.49 | AX76: 2167372.373 | AY76: 1729275.226 | AZ76: 0.7978671535 | BA76: 1511753.49 | BB76: 1899225.445 | BC76: 1538455.429 | BD76: 0.8100436065 | BE76: 191326 | BF76: 268146.9275 | BG76: 190819.7965 | BH76: 0.7116240275 | BK76: 5171 | BM76: Opravy a udržování | BP76: 1817610.265 | BQ76: 2417917.556 | BR76: 1890789.131 | BS76: 0.7819907371 | BT76: 1627385.265 | BU76: 2183501.727 | BV76: 1729548.287 | BW76: 0.7920984284 | BX76: 190225 | BY76: 234415.8284 | BZ76: 161240.8449 | CA76: 0.6878411158
B77: OK | E77: 5194 | G77: Věcné dary | J77: 9145.8 | K77: 12830.41102 | L77: 11042.35226 | M77: 0.8606390117 | N77: 7360.8 | O77: 10123.36102 | P77: 8867.42275 | Q77: 0.8759366314 | R77: 1785 | S77: 2707.05 | T77: 2174.92951 | U77: 0.803431599 | X77: 5172 | Z77: Programové vybavení | AC77: 1356.799 | AD77: 21310.87294 | AE77: 16638.95966 | AF77: 0.7807732563 | AG77: 1356.799 | AH77: 16116.2438 | AI77: 14142.16909 | AJ77: 0.8775102478 | AK77: 0 | AL77: 5194.62914 | AM77: 2496.79057 | AN77: 0.4806484742 | AR77: 5172 | AT77: Programové vybavení | AW77: 2057.531 | AX77: 31817.88336 | AY77: 27936.17992 | AZ77: 0.8780024618 | BA77: 2057.531 | BB77: 25652.94567 | BC77: 24628.3642 | BD77: 0.9600598901 | BE77: 0 | BF77: 6164.93769 | BG77: 3307.81572 | BH77: 0.536552985 | BK77: 5172 | BM77: Programové vybavení | BP77: 2217.49231 | BQ77: 15978.80165 | BR77: 15501.56513 | BS77: 0.970133147 | BT77: 2217.49231 | BU77: 15889.88165 | BV77: 15433.65307 | BW77: 0.9712881071 | BX77: 0 | BY77: 88.92 | BZ77: 67.91206 | CA77: 0.7637433648
B78: OK | E78: 5197 | G78: Náhrady zvýšených nákladů spojených s výkonem funkce v zahraničí | J78: 0 | K78: 0 | L78: 0 | M78: x | N78: 0 | O78: 0 | P78: 0 | Q78: x | R78: 0 | S78: 0 | T78: 0 | U78: x | X78: 5173 | Z78: Cestovné (tuzemské i zahraniční) | AC78: 1456.55 | AD78: 5093.77875 | AE78: 3153.24026 | AF78: 0.6190375387 | AG78: 1117.55 | AH78: 2578.99625 | AI78: 1948.54441 | AJ78: 0.7555437159 | AK78: 339 | AL78: 2514.7825 | AM78: 1204.69585 | AN78: 0.4790457425 | AR78: 5173 | AT78: Cestovné (tuzemské i zahraniční) | AW78: 2264.072 | AX78: 7688.93702 | AY78: 4670.48956 | AZ78: 0.6074298109 | BA78: 1531.1 | BB78: 3643.46273 | BC78: 2440.55339 | BD78: 0.6698444779 | BE78: 732.972 | BF78: 4045.47429 | BG78: 2229.93617 | BH78: 0.5512174865 | BK78: 5173 | BM78: Cestovné (tuzemské i zahraniční) | BP78: 4283.37055 | BQ78: 6696.07659 | BR78: 1581.21118 | BS78: 0.2361399483 | BT78: 2718.37055 | BU78: 2934.62796 | BV78: 1215.33409 | BW78: 0.414135661 | BX78: 1565 | BY78: 3761.44863 | BZ78: 365.87709 | CA78: 0.09727026101
B79: OK | E79: 5199 | G79: Ostatní výdaje související s neinvestičními nákupy | J79: 20322 | K79: 4132.04621 | L79: 10.667 | M79: 0.002581529697 | N79: 42 | O79: 12.6 | P79: 10.667 | Q79: 0.8465873016 | R79: 20280 | S79: 4119.44621 | T79: 0 | U79: 0 | X79: 5175 | Z79: Pohoštění | AC79: 9532.91907 | AD79: 18123.54463 | AE79: 12405.28373 | AF79: 0.6844844087 | AG79: 8013.07307 | AH79: 13894.71563 | AI79: 9866.40198 | AJ79: 0.7100830447 | AK79: 1519.846 | AL79: 4228.829 | AM79: 2538.88175 | AN79: 0.6003746545 | AR79: 5175 | AT79: Pohoštění | AW79: 6242.739 | AX79: 15279.32956 | AY79: 10295.66885 | AZ79: 0.673829883 | BA79: 4690.663 | BB79: 10781.81732 | BC79: 6940.53018 | BD79: 0.6437254476 | BE79: 1552.076 | BF79: 4497.51224 | BG79: 3355.13867 | BH79: 0.7459987858 | BK79: 5175 | BM79: Pohoštění | BP79: 7510.74993 | BQ79: 12539.96381 | BR79: 4328.72665 | BS79: 0.345194509 | BT79: 5889.07393 | BU79: 8300.91485 | BV79: 3020.11831 | BW79: 0.3638295736 | BX79: 1621.676 | BY79: 4239.04896 | BZ79: 1308.60834 | CA79: 0.3087032852
E80: 51 | G80: Neinvestiční nákupy a související výdaje | J80: 2219494.927 | K80: 3113323.036 | L80: 2393750.476 | M80: 0.7688731455 | N80: 1889156.119 | O80: 2684104.347 | P80: 2133134.149 | Q80: 0.7947284729 | R80: 330338.808 | S80: 429218.6891 | T80: 260616.3271 | U80: 0.6071877429 | X80: 5176 | Z80: Účastnické poplatky na konference | AC80: 47 | AD80: 103.098 | AE80: 34.884 | AF80: 0.3383576791 | AG80: 2 | AH80: 12.7 | AI80: 19.01 | AJ80: 1.496850394 | AK80: 45 | AL80: 90.398 | AM80: 15.874 | AN80: 0.1756012301 | AR80: 5176 | AT80: Účastnické poplatky na konference | AW80: 100.6 | AX80: 243.38 | AY80: 99.65755 | AZ80: 0.4094730463 | BA80: 55.6 | BB80: 147.91 | BC80: 75.468 | BD80: 0.5102291934 | BE80: 45 | BF80: 95.47 | BG80: 24.18955 | BH80: 0.253373311 | BK80: 5176 | BM80: Účastnické poplatky na konference | BP80: 74.92527 | BQ80: 81.202 | BR80: 24.139 | BS80: 0.2972710032 | BT80: 32.92527 | BU80: 26.102 | BV80: 21.24 | BW80: 0.8137307486 | BX80: 42 | BY80: 55.1 | BZ80: 2.899 | CA80: 0
B81: OK | E81: 5211 | G81: Neinvestiční transfery finančním institucím | J81: 0 | K81: 0 | L81: 0 | M81: x | N81: 0 | O81: 0 | P81: 0 | Q81: x | R81: 0 | S81: 0 | T81: 0 | U81: x | X81: 5177 | Z81: Nákup uměleckých předmětů | AC81: 0 | AD81: 0 | AE81: 0 | AF81: x | AG81: 0 | AH81: 0 | AI81: 0 | AJ81: x | AK81: 0 | AL81: 0 | AM81: 0 | AN81: x | AR81: 5177 | AT81: Nákup uměleckých předmětů | BH81: x | BK81: 5177 | BM81: Nákup uměleckých předmětů | BP81: 0 | BQ81: 0 | BR81: 0 | BS81: 0 | BT81: 0 | BU81: 0 | BV81: 0 | BW81: 0 | BX81: 0 | BY81: 0 | BZ81: 0 | CA81: 0
B82: OK | E82: 5212 | G82: Neinvestiční transfery nefinančním podnikatelským subjektům-fyzickým osobám | J82: 37899.311 | K82: 156800.5797 | L82: 156571.2462 | M82: 0.9985374192 | N82: 1096.5 | O82: 6159.8 | P82: 5999.048 | Q82: 0.9739030488 | R82: 36802.811 | S82: 150640.7797 | T82: 150572.1982 | U82: 0.9995447347 | X82: 5178 | Z82: Nájemné za nájem s právem koupě | AC82: 1564.47 | AD82: 1577.947 | AE82: 13.477 | AF82: =AE82/AD82 -> 0.008540844528 | AG82: 0 | AH82: 13.477 | AI82: 13.477 | AJ82: =AI82/AH82 -> 1 | AK82: 1564.47 | AL82: 1564.47 | AM82: 0 | AN82: x | AR82: 5178 | AT82: Nájemné za nájem s právem koupě | AW82: =BA82+BE82 -> 1564.47 | AX82: 1564.47 | AY82: 26.0745 | AZ82: =AY82/AX82 -> 0.01666666667 | BE82: 1564.47 | BF82: 1564.47 | BG82: 26.0745 | BH82: =BG82/BF82 -> 0.01666666667 | BK82: 5178 | BM82: Nájemné za nájem s právem koupě | BP82: 1564.47 | BQ82: 1564.47 | BR82: 0 | BS82: =BR82/BQ82 -> 0 | BT82: 0 | BU82: 0 | BV82: 0 | BW82: 0 | BX82: 1564.47 | BY82: 1564.47 | BZ82: 0 | CA82: =BZ82/BY82 -> 0
B83: OK | E83: 5213 | G83: Neinvestiční transfery nefinančním podnikatelským subjektům-právnickým osobám | J83: 823119.795 | K83: 3962468.84 | L83: 3957840.046 | M83: 0.9988318411 | N83: 13379.5 | O83: 1209935.8 | P83: 1206016.243 | Q83: 0.996760524 | R83: 809740.295 | S83: 2752533.039 | T83: 2751823.804 | U83: 0.9997423336 | X83: 5179 | Z83: Ostatní nákupy jinde nezařazené | AC83: 2654.4 | AD83: 3205.574 | AE83: 2723.9661 | AF83: =AE83/AD83 -> 0.8497592319 | AG83: 1444.4 | AH83: 1872.074 | AI83: 1511.4661 | AJ83: =AI83/AH83 -> 0.8073751892 | AK83: 1210 | AL83: 1333.5 | AM83: 1212.5 | AN83: =AM83/AL83 -> 0.9092613423 | AR83: 5179 | AT83: Ostatní nákupy jinde nezařazené | AW83: 3305.723 | AX83: 1337.07515 | AY83: 963.80969 | AZ83: =AY83/AX83 -> 0.720834345 | BA83: 2095.723 | BB83: 1174.82515 | BC83: 802.45269 | BD83: =BC83/BB83 -> 0.6830401018 | BE83: 1210 | BF83: 162.25 | BG83: 161.357 | BH83: =BG83/BF83 -> 0.9944961479 | BK83: 5179 | BM83: Ostatní nákupy jinde nezařazené | BP83: 1219.604 | BQ83: 920.6674 | BR83: 289.24503 | BS83: =BR83/BQ83 -> 0.3141688627 | BT83: 1217.104 | BU83: 904.6674 | BV83: 274.84503 | BW83: =BV83/BU83 -> 0.3038078193 | BX83: 2.5 | BY83: 16 | BZ83: 14.4 | CA83: 0
E84: 5215 | G84: Neinvestiční transfery vybraným podnikatelským subjektům ve vlastnictví státu | J84: 85 | K84: 70 | L84: 0 | M84: 0 | N84: 85 | O84: 70 | P84: 0 | Q84: 0 | R84: 0 | S84: 0 | T84: 0 | U84: x | X84: 518 | Z84: Poskytnuté zálohy, jistiny, záruky a vládní úvěry | AC84: =SUM(AC85:AC87) -> 0 | AD84: =SUM(AD85:AD87) -> 4942.69 | AE84: =AE87 -> 4872.6936 | AF84: =AE84/AD84 -> 0.9858383997 | AG84: 0 | AH84: =SUM(AH85:AH87) -> 4937.69 | AI84: =AI87 -> 4872.6936 | AJ84: =AI84/AH84 -> 0.9868366787 | AK84: 0 | AL84: =SUM(AL85:AL87) -> 5 | AM84: 0 | AN84: x | AR84: 518 | AS84: Poskytnuté zálohy, jistiny, záruky a vládní úvěry | AW84: =BA84+BE84 -> 517.5 | AX84: =BB84+BF84 -> 709.5 | AY84: =BC84+BG84 -> 88.21 | AZ84: =AY84/AX84 -> 0.1243269908 | BA84: =SUM(BA85:BA87) -> 517.5 | BB84: =SUM(BB85:BB87) -> 709.5 | BC84: =SUM(BC85:BC87) -> 88.21 | BD84: =BC84/BB84 -> 0.1243269908 | BE84: 0 | BF84: 0 | BG84: 0 | BH84: x | BK84: 518 | BL84: Poskytnuté zálohy, jistiny, záruky a vládní úvěry | BP84: 0 | BQ84: 9.8 | BR84: 0 | BS84: =BR84/BQ84 -> 0 | BT84: =SUM(BT85:BT87) -> 0 | BU84: =SUM(BU85:BU87) -> 9.8 | BV84: =SUM(BV85:BV87) -> 0 | BW84: =BV84/BU84 -> 0 | BX84: =SUM(BX85:BX87) -> 0 | BY84: =SUM(BY85:BY87) -> 0 | BZ84: =SUM(BZ85:BZ87) -> 0 | CA84: 0
A85: =IF(COUNTBLANK(C85:IV85)=254,"odstr",IF(AND($A$1="TISK",SUM(J71:U71)=0),"odstr","OK")) ->  | B85: OK | E85: 5219 | G85: Ostatní neinvestiční transfery podnikatelským subjektům | J85: 40 | K85: 61 | L85: 61.02 | M85: 1.000327869 | N85: 40 | O85: 61 | P85: 61.02 | Q85: 1.000327869 | R85: 0 | S85: 0 | T85: 0 | U85: x | X85: 5182 | Z85: Poskytované zálohy vlastní pokladně | AF85: x | AJ85: x | AN85: x | AR85: 5182 | AT85: Poskytované zálohy vlastní pokladně | BH85: x | BK85: 5182 | BM85: Poskytované zálohy vlastní pokladně | BP85: 0 | BQ85: 0 | BR85: 0 | BS85: 0 | BT85: 0 | BU85: 0 | BV85: 0 | BW85: 0 | BX85: 0 | BY85: 0 | BZ85: 0 | CA85: 0
A86: =IF(COUNTBLANK(C86:IV86)=254,"odstr",IF(AND($A$1="TISK",SUM(J72:U72)=0),"odstr","OK")) ->  | B86: OK | E86: 5221 | G86: Neinvestiční transfery obecně prospěšným společnostem | J86: 287431.451 | K86: 1040458.838 | L86: 1029632.361 | M86: 0.9895945174 | N86: 16847.2 | O86: 275650.596 | P86: 265280.6104 | Q86: 0.9623799631 | R86: 270584.251 | S86: 764808.2418 | T86: 764351.751 | U86: 0.9994031304 | X86: 5183 | Z86: Výdaje na realizaci záruk | AF86: x | AJ86: x | AN86: x | AR86: 5183 | AT86: Výdaje na realizaci záruk | BH86: x | BK86: 5183 | BM86: Výdaje na realizaci záruk | BP86: 0 | BQ86: 0 | BR86: 0 | BS86: 0 | BT86: 0 | BU86: 0 | BV86: 0 | BW86: 0 | BX86: 0 | BY86: 0 | BZ86: 0 | CA86: 0
A87: =IF(COUNTBLANK(C87:IV87)=254,"odstr",IF(AND($A$1="TISK",SUM(J73:U73)=0),"odstr","OK")) ->  | B87: OK | E87: 5222 | G87: Neinvestiční transfery občanským sdružením | J87: 85512.027 | K87: 189283.3729 | L87: 186740.7463 | M87: 0.9865670897 | N87: 36657.97 | O87: 61071.0484 | P87: 59999.90585 | Q87: 0.9824607146 | R87: 48854.057 | S87: 128212.3245 | T87: 126740.8405 | U87: 0.9885230689 | X87: 5189 | Z87: Ostatní poskytované zálohy a jistiny | AC87: 0 | AD87: 4942.69 | AE87: 4872.6936 | AF87: =AE87/AD87 -> 0.9858383997 | AG87: 0 | AH87: 4937.69 | AI87: 4872.6936 | AJ87: =AI87/AH87 -> 0.9868366787 | AK87: 0 | AL87: 5 | AM87: 0 | AN87: x | AR87: 5189 | AT87: Ostatní poskytované zálohy a jistiny | AW87: =BA87+BE87 -> 517.5 | AX87: 709.5 | AY87: 88.21 | AZ87: =AY87/AX87 -> 0.1243269908 | BA87: 517.5 | BB87: 709.5 | BC87: 88.21 | BD87: =BC87/BB87 -> 0.1243269908 | BH87: x | BK87: 5189 | BM87: Ostatní poskytované zálohy a jistiny | BP87: 0 | BQ87: 9.8 | BR87: 0 | BS87: =BR87/BQ87 -> 0 | BT87: 0 | BU87: 9.8 | BV87: 0 | BW87: =BV87/BU87 -> 0 | BX87: 0 | BY87: 0 | BZ87: 0 | CA87: 0
E88: 5223 | G88: Neinvestiční transfery církvím a náboženským společnostem | J88: 835 | K88: 8674.2883 | L88: 8132.80355 | M88: 0.9375758873 | N88: 835 | O88: 7410.34895 | P88: 6868.872 | Q88: 0.9269296286 | R88: 0 | S88: 1263.93935 | T88: 1263.93155 | U88: 0.9999938288 | X88: 519 | Z88: Výdaje související s neinvestičními nákupy, příspěvky, náhrady a věcné dary | AC88: =SUM(AC89:AC94) -> 43089.731 | AD88: =SUM(AD89:AD94) -> 31336.37284 | AE88: =SUM(AE89:AE94) -> 19920.04994 | AF88: =AE88/AD88 -> 0.6356846098 | AG88: =AG90+AG92+AG94 -> 19628.731 | AH88: =SUM(AH89:AH94) -> 23263.07241 | AI88: =SUM(AI89:AI94) -> 18534.66405 | AJ88: =AI88/AH88 -> 0.7967418801 | AK88: =AK92+AK94 -> 23461 | AL88: =SUM(AL89:AL94) -> 8073.30043 | AM88: =AM90+AM92 -> 1385.38589 | AN88: =AM88/AL88 -> 0.1716009335 | AR88: 519 | AS88: Výdaje související s neinvestičními nákupy, příspěvky, náhrady a věcné dary | AW88: 43619.21018 | AX88: 38789.82451 | AY88: 16614.27479 | AZ88: =AY88/AX88 -> 0.4283152863 | BA88: =SUM(BA89:BA94) -> 22798.21018 | BB88: =SUM(BB89:BB94) -> 20148.10056 | BC88: =SUM(BC89:BC94) -> 14435.61565 | BD88: =BC88/BB88 -> 0.7164752631 | BE88: =SUM(BE89:BE94) -> 20821 | BF88: =SUM(BF89:BF94) -> 18641.72395 | BG88: =SUM(BG89:BG94) -> 2178.65914 | BH88: =BG88/BF88 -> 0.1168700462 | BK88: 519 | BL88: Výdaje související s neinvestičními nákupy, příspěvky, náhrady a věcné dary | BP88: 34350.864 | BQ88: 24914.42426 | BR88: 13087.11735 | BS88: 0.5252827524 | BT88: =SUM(BT89:BT94) -> 13829.864 | BU88: =SUM(BU89:BU94) -> 15684.25966 | BV88: =SUM(BV89:BV94) -> 11425.51347 | BW88: 0.7284700533 | BX88: =SUM(BX89:BX94) -> 20521 | BY88: =SUM(BY89:BY94) -> 9230.1646 | BZ88: =SUM(BZ89:BZ94) -> 1661.60388 | CA88: =BZ88/BY88 -> 0.1800188785
A89: =IF(COUNTBLANK(C89:IV89)=254,"odstr",IF(AND($A$1="TISK",SUM(J74:U74)=0),"odstr","OK")) ->  | B89: OK | E89: 5224 | G89: Neinvestiční transfery politickým stranám a hnutím | J89: 0 | K89: 0 | L89: 0 | M89: x | N89: 0 | O89: 0 | P89: 0 | Q89: x | R89: 0 | S89: 0 | T89: 0 | U89: x | X89: 5191 | Z89: Zaplacené sankce | AC89: 0 | AD89: 43.336 | AE89: 5.536 | AF89: =AE89/AD89 -> 0.1277459849 | AG89: 0 | AH89: 43.336 | AI89: 5.536 | AJ89: =AI89/AH89 -> 0.1277459849 | AK89: 0 | AL89: 0 | AM89: 0 | AN89: x | AR89: 5191 | AT89: Zaplacené sankce | AW89: =BA89+BE89 -> 0 | AX89: 23.169 | AY89: 16.16036 | AZ89: =AY89/AX89 -> 0.6974992447 | BA89: 0 | BB89: 23.169 | BC89: 16.16036 | BD89: =BC89/BB89 -> 0.6974992447 | BH89: x | BK89: 5191 | BM89: Zaplacené sankce | BP89: 15 | BQ89: =SUM(BU89,BY89) -> 685.763 | BR89: 670.05673 | BS89: 0.97709665 | BT89: 15 | BU89: 685.763 | BV89: 670.05673 | BW89: 0.97709665 | BX89: 0 | BY89: 0 | BZ89: 0 | CA89: 0
B90: OK | E90: 5229 | G90: Ostatní neinvestiční transfery neziskovým a podobným organizacím | J90: 74521.036 | K90: 100315.2723 | L90: 81361.14261 | M90: 0.8110543963 | N90: 21752.45 | O90: 67514.72129 | P90: 50552.09161 | Q90: 0.748756577 | R90: 52768.586 | S90: 32800.551 | T90: 30809.051 | U90: 0.9392845565 | X90: 5192 | Z90: Poskytnuté neinvestiční příspěvky a náhrady (část) | AC90: 4083.511 | AD90: 5680.823 | AE90: 5117.14164 | AF90: =AE90/AD90 -> 0.9007747011 | AG90: 4083.511 | AH90: 5678.823 | AI90: 5115.14164 | AJ90: =AI90/AH90 -> 0.9007397554 | AK90: 0 | AL90: 2 | AM90: 2 | AN90: =AM90/AL90 -> 1 | AR90: 5192 | AT90: Poskytnuté neinvestiční příspěvky a náhrady (část) | AW90: 4691.831 | AX90: 6160.399 | AY90: 5153.80323 | AZ90: =AY90/AX90 -> 0.8366021795 | BA90: 4691.831 | BB90: 6160.399 | BC90: 5153.80323 | BD90: =BC90/BB90 -> 0.8366021795 | BH90: x | BK90: 5192 | BM90: Poskytnuté neinvestiční příspěvky a náhrady (část) | BP90: 4413.918 | BQ90: 4297.295 | BR90: 3314.44939 | BS90: 0.7712873773 | BT90: 4413.918 | BU90: 4297.295 | BV90: 3314.44939 | BW90: 0.7712873773 | BX90: 0 | BY90: 0 | BZ90: 0 | CA90: 0
B91: OK | E91: 5230 | G91: Neinvestiční nedotační transfery podnikatelským subjektům | J91: 0 | K91: 6.5 | L91: 6.5 | M91: 1 | N91: 0 | O91: 6.5 | P91: 6.5 | Q91: 1 | R91: 0 | S91: 0 | T91: 0 | U91: x | X91: 5193 | Z91: Výdaje na dopravní územní obslužnost | AC91: 0 | AD91: 0 | AE91: 0 | AF91: x | AG91: 0 | AH91: 0 | AI91: 0 | AJ91: x | AK91: 0 | AL91: 0 | AM91: 0 | AN91: x | AR91: 5193 | AT91: Výdaje na dopravní územní obslužnost | AW91: 6112.565 | AX91: 0 | AY91: 0 | AZ91: x | BA91: 6112.565 | BB91: 0 | BC91: 0 | BD91: x | BH91: x | BK91: 5193 | BM91: Výdaje na dopravní územní obslužnost | BP91: 15 | BQ91: 8.1 | BR91: 8.095 | BS91: 0.999382716 | BT91: 15 | BU91: 8.1 | BV91: 8.095 | BW91: 0.999382716 | BX91: 0 | BY91: 0 | BZ91: 0 | CA91: 0
B92: OK | E92: 5240 | G92: Neinvestiční nedotační transfery neziskovým a podobným organizacím | J92: 792 | K92: 1246.606 | L92: 1200.451 | M92: 0.962975471 | N92: 792 | O92: 1246.606 | P92: 1200.451 | Q92: 0.962975471 | R92: 0 | S92: 0 | T92: 0 | U92: x | X92: 5194 | Z92: Věcné dary | AC92: 16349.22 | AD92: 18619.25831 | AE92: 14624.5713 | AF92: =AE92/AD92 -> 0.7854540206 | AG92: 13188.22 | AH92: 16796.11341 | AI92: 13241.18541 | AJ92: =AI92/AH92 -> 0.7883481783 | AK92: 3161 | AL92: 1823.1449 | AM92: 1383.38589 | AN92: =AM92/AL92 -> 0.7587909716 | AR92: 5194 | AT92: Věcné dary | AW92: 10290.652 | AX92: 16340.01938 | AY92: 10401.7372 | AZ92: =AY92/AX92 -> 0.636580469 | BA92: 9769.652 | BB92: 12409.81538 | BC92: 8223.07806 | BD92: =BC92/BB92 -> 0.6626269455 | BE92: 521 | BF92: 3930.204 | BG92: 2178.65914 | BH92: =BG92/BF92 -> 0.5543374186 | BK92: 5194 | BM92: Věcné dary | BP92: 9384.946 | BQ92: 12329.8419 | BR92: 8622.18966 | BS92: 0.6992944216 | BT92: 9163.946 | BU92: 10189.90166 | BV92: 6960.58578 | BW92: 0.6830866491 | BX92: 221 | BY92: 2139.94024 | BZ92: 1661.60388 | CA92: =BZ92/BY92 -> 0.7764720944
B93: OK | E93: 52 | G93: Neinvestiční transfery podnikatelským subjektům a neziskovým organizacím. Neinvestiční transfery soukromoprávním subjektům | J93: 1310235.62 | K93: 5459385.297 | L93: 5421546.317 | M93: 0.9930690037 | N93: 91485.62 | O93: 1629126.421 | P93: 1595984.741 | Q93: 0.9796567784 | R93: 1218750 | S93: 3830258.875 | T93: 3825561.576 | U93: 0.9987736339 | X93: 5197 | Z93: Náhrady zvýšených nákladů spojených s výkonem funkce v zahraničí | AC93: 0 | AD93: 0 | AE93: 0 | AF93: x | AG93: 0 | AH93: 0 | AI93: 0 | AJ93: x | AK93: 0 | AL93: 0 | AM93: 0 | AN93: x | AR93: 5197 | AT93: Náhrady zvýšených nákladů spojených s výkonem funkce v zahraničí | BH93: x | BK93: 5197 | BM93: Náhrady zvýšených nákladů spojených s výkonem funkce v zahraničí | BP93: 0 | BQ93: 0 | BR93: 0 | BS93: 0 | BT93: 0 | BU93: 0 | BV93: 0 | BW93: 0 | BX93: 0 | BY93: 0 | BZ93: 0 | CA93: 0
B94: OK | E94: 5311 | G94: Neinvestiční transfery státnímu rozpočtu | J94: 1340 | K94: 5302.488 | L94: 1135.038 | M94: 0.2140576273 | N94: 300 | O94: 300 | P94: 0 | Q94: 0 | R94: 1040 | S94: 5002.488 | T94: 1135.038 | U94: 0.2268946972 | X94: 5199 | Z94: Ostatní výdaje související s neinvestičními nákupy | AC94: 22657 | AD94: 6992.95553 | AE94: 172.801 | AF94: =AE94/AD94 -> 0.02471072485 | AG94: 2357 | AH94: 744.8 | AI94: 172.801 | AJ94: =AI94/AH94 -> 0.2320099356 | AK94: 20300 | AL94: 6248.15553 | AM94: 0 | AN94: x | AR94: 5199 | AT94: Ostatní výdaje související s neinvestičními nákupy | AW94: =BA94+BE94 -> 22524.16218 | AX94: =BB94+BF94 -> 16266.23713 | AY94: =BC94+BG94 -> 1042.574 | AZ94: =AY94/AX94 -> 0.06409435641 | BA94: 2224.16218 | BB94: 1554.71718 | BC94: 1042.574 | BD94: =BC94/BB94 -> 0.6705875599 | BE94: 20300 | BF94: 14711.51995 | BG94: 0 | BH94: =BG94/BF94 -> 0 | BK94: 5199 | BM94: Ostatní výdaje související s neinvestičními nákupy | BP94: 20522 | BQ94: 7593.42436 | BR94: 472.32657 | BS94: =BR94/BQ94 -> 0.06220205109 | BT94: 222 | BU94: 503.2 | BV94: 472.32657 | BW94: =BV94/BU94 -> 0.9386458068 | BX94: 20300 | BY94: 7090.22436 | BZ94: 0 | CA94: =BZ94/BY94 -> 0
B95: OK | E95: 5313 | G95: Neinvestiční transfery zvláštním fondům ústřední úrovně | J95: 0 | K95: 0 | L95: 0 | M95: x | N95: 0 | O95: 0 | P95: 0 | Q95: x | R95: 0 | S95: 0 | T95: 0 | U95: x | X95: 52 | Y95: Neinvestiční transfery soukromoprávním subjektům | Z95: Neinvestiční transfery podnikatelským subjektům a neziskovým organizacím. Neinvestiční transfery soukromoprávním subjektům | AC95: =AC96+AC104 -> 1814134.127 | AD95: =AD96+AD104+AD112 -> 6704385.954 | AE95: =AE96+AE104+AE112 -> 6505544.94 | AF95: =AE95/AD95 -> 0.9703416518 | AG95: =AG96+AG104+AG110+AG112 -> 310361.697 | AH95: =AH96+AH104+AH110+AH112 -> 2244057.846 | AI95: =AI96+AI104+AI110+AI112 -> 2054623.722 | AJ95: =AI95/AH95 -> 0.9155841172 | AK95: =AK96+AK104+AK110+AK112 -> 1503772.43 | AL95: =AL96+AL104 -> 4460328.108 | AM95: =AM96+AM104+AM110+AM112 -> 4450921.219 | AN95: =AM95/AL95 -> 0.9978909872 | AR95: 52 | AS95: Neinvestiční transfery soukromoprávním subjektům | AT95: Neinvestiční transfery podnikatelským subjektům a neziskovým organizacím. Neinvestiční transfery soukromoprávním subjektům | AW95: 1760894.289 | AX95: 7193577.875 | AY95: 7138856.74 | AZ95: 0.9923930573 | BA95: =BA96+BA104 -> 90520.731 | BB95: =BB96+BB104+BB110+BB112 -> 2128003.993 | BC95: =BC96+BC104+BC110+BC112 -> 2078712.281 | BD95: 0.976836645 | BE95: =BE96+BE104+BE110+BE112 -> 1670373.558 | BF95: =BF96+BF104+BF110+BF112 -> 5065573.882 | BG95: =BG96+BG104+BG110+BG112 -> 5060144.459 | BH95: =BG95/BF95 -> 0.9989281722 | BK95: 52 | BL95: Neinvestiční transfery soukromoprávním subjektům | BM95: Neinvestiční transfery podnikatelským subjektům a neziskovým organizacím. Neinvestiční transfery soukromoprávním subjektům | BP95: 2057945.061 | BQ95: 8720663.866 | BR95: 8646673.634 | BS95: 0.9915155275 | BT95: =SUM(BT96,BT104,BT110) -> 81450.732 | BU95: =SUM(BU96,BU104) -> 2637628.914 | BV95: =SUM(BV96,BV104) -> 2570796.926 | BW95: 0.974662096 | BX95: =SUM(BX96,BX104) -> 1976494.329 | BY95: =SUM(BY96,BY104) -> 6083034.952 | BZ95: =SUM(BZ96,BZ104) -> 6075876.708 | CA95: =BZ95/BY95 -> 0.9988232445
E96: 5319 | G96: Ostatní neinvestiční transfery jiným veřejným rozpočtům | J96: 100 | K96: 10 | L96: 0 | M96: 0 | N96: 100 | O96: 10 | P96: 0 | Q96: 0 | R96: 0 | S96: 0 | T96: 0 | U96: x | X96: 521 | Z96: Neinvestiční transfery podnikatelským subjektům | AC96: =SUM(AC97:AC103) -> 1054971.392 | AD96: =SUM(AD97:AD103) -> 4804541.641 | AE96: =SUM(AE98:AE103) -> 4657608.02 | AF96: =AE96/AD96 -> 0.9694177651 | AG96: =SUM(AG97:AG103) -> 15991.23 | AH96: =SUM(AH98:AH103) -> 1559693.456 | AI96: =SUM(AI98:AI103) -> 1415120.467 | AJ96: =AI96/AH96 -> 0.9073067928 | AK96: =AK98+AK99 -> 1038980.162 | AL96: =SUM(AL97:AL103) -> 3244848.185 | AM96: =AM98+AM99 -> 3242487.553 | AN96: =AM96/AL96 -> 0.9992724983 | AR96: 521 | AS96: Neinvestiční transfery podnikatelským subjektům | AW96: 1165758.486 | AX96: 5353810.828 | AY96: 5344266.093 | AZ96: 0.9982172072 | BA96: =SUM(BA97:BA103) -> 14764.199 | BB96: =SUM(BB97:BB103) -> 1661923.75 | BC96: =SUM(BC97:BC103) -> 1653171.627 | BD96: 0.9947337395 | BE96: =SUM(BE97:BE103) -> 1150994.287 | BF96: =SUM(BF97:BF103) -> 3691887.078 | BG96: =SUM(BG97:BG103) -> 3691094.466 | BH96: =BG96/BF96 -> 0.9997853099 | BK96: 521 | BL96: Neinvestiční transfery podnikatelským subjektům | BP96: 1380629.596 | BQ96: 6476163.016 | BR96: 6455100.599 | BS96: 0.9967477012 | BT96: =SUM(BT97:BT103) -> 14447.64 | BU96: =SUM(BU97:BU103) -> 2045101.223 | BV96: =SUM(BV97:BV103) -> 2026135.412 | BW96: 0.9907262241 | BX96: =SUM(BX97:BX103) -> 1366181.956 | BY96: =SUM(BY97:BY103) -> 4431061.793 | BZ96: =SUM(BZ97:BZ103) -> 4428965.187 | CA96: =BZ96/BY96 -> 0.9995268388
A97: =IF(COUNTBLANK(C97:IV97)=254,"odstr",IF(AND($A$1="TISK",SUM(J81:U81)=0),"odstr","OK")) ->  | B97: OK | E97: 5322 | G97: Neinvestiční dotace obcím v rámci souhrnného dotačního vztahu | J97: 0 | K97: 0 | L97: 0 | M97: x | N97: 0 | O97: 0 | P97: 0 | Q97: x | R97: 0 | S97: 0 | T97: 0 | U97: x | X97: 5211 | Z97: Neinvestiční transfery finančním institucím | AC97: 0 | AD97: x | AE97: x | AF97: x | AG97: 0 | AH97: x | AI97: 0 | AJ97: x | AK97: 0 | AL97: x | AM97: x | AN97: x | AR97: 5211 | AT97: Neinvestiční transfery finančním institucím | AW97: 0 | AX97: 3 | AY97: 3 | AZ97: 1 | BA97: 0 | BB97: 3 | BC97: 3 | BD97: 1 | BH97: x | BK97: 5211 | BM97: Neinvestiční transfery finančním institucím | BP97: 0 | BQ97: 3 | BR97: 3 | BS97: 1 | BT97: 0 | BU97: 3 | BV97: 3 | BW97: 1 | CA97: 0
A98: =IF(COUNTBLANK(C98:IV98)=254,"odstr",IF(AND($A$1="TISK",SUM(J82:U82)=0),"odstr","OK")) ->  | B98: OK | E98: 5324 | G98: Neinvestiční dotace krajům v rámci souhrnného dotačního vztahu | J98: 0 | K98: 0 | L98: 0 | M98: x | N98: 0 | O98: 0 | P98: 0 | Q98: x | R98: 0 | S98: 0 | T98: 0 | U98: x | X98: 5212 | Z98: Neinvestiční transfery nefinančním podnikatelským subjektům-fyzickým osobám | AC98: 60720.66 | AD98: 202108.371 | AE98: 201847.401 | AF98: =AE98/AD98 -> 0.998708762 | AG98: 1235.5 | AH98: 10188.252 | AI98: 9985.412 | AJ98: =AI98/AH98 -> 0.9800907948 | AK98: 59485.16 | AL98: 191920.119 | AM98: 191861.989 | AN98: =AM98/AL98 -> 0.9996971136 | AR98: 5212 | AT98: Neinvestiční transfery nefinančním podnikatelským subjektům-fyzickým osobám | AW98: 54333.534 | AX98: 227501.371 | AY98: 227369.5246 | AZ98: 0.9994204589 | BA98: 1104.5 | BB98: 9412.952 | BC98: 9281.109 | BD98: 0.9859934482 | BE98: 53229.034 | BF98: 218088.419 | BG98: 218088.4156 | BH98: =BG98/BF98 -> 0.9999999845 | BK98: 5212 | BM98: Neinvestiční transfery nefinančním podnikatelským subjektům-fyzickým osobám | BP98: 69530.085 | BQ98: 276783.087 | BR98: 276581.282 | BS98: 0.9992708911 | BT98: 1046.5 | BU98: 19660.1 | BV98: 19495.295 | BW98: 0.9916172858 | BX98: 68483.585 | BY98: 257122.987 | BZ98: 257085.987 | CA98: =BZ98/BY98 -> 0.9998561
A99: =IF(COUNTBLANK(C99:IV99)=254,"odstr",IF(AND($A$1="TISK",SUM(J83:U83)=0),"odstr","OK")) ->  | B99: OK | E99: 5331 | G99: Neinvestiční příspěvky zřízeným příspěvkovým organizacím | J99: 18709549.54 | K99: 20596942.25 | L99: 20443288.48 | M99: 0.992539972 | N99: 13133157.25 | O99: 14510176.46 | P99: 14416912.25 | Q99: 0.9935724964 | R99: 5576392.294 | S99: 6086765.786 | T99: 6026376.233 | U99: 0.9900785482 | X99: 5213 | Z99: Neinvestiční transfery nefinančním podnikatelským subjektům-právnickým osobám | AC99: 994095.732 | AD99: 4602128.27 | AE99: 4455697.687 | AF99: =AE99/AD99 -> 0.9681819857 | AG99: 14600.73 | AH99: 1549200.204 | AI99: 1405072.123 | AJ99: =AI99/AH99 -> 0.9069661363 | AK99: 979495.002 | AL99: 3052928.066 | AM99: 3050625.564 | AN99: =AM99/AL99 -> 0.9992458052 | AR99: 5213 | AT99: Neinvestiční transfery nefinančním podnikatelským subjektům-právnickým osobám | AW99: 1111299.952 | AX99: 5124189.452 | AY99: 5114871.563 | AZ99: 0.9981815878 | BA99: 13534.699 | BB99: 1652372.798 | BC99: 1643847.518 | BD99: 0.9948405829 | BE99: 1097765.253 | BF99: 3471816.654 | BG99: 3471024.046 | BH99: =BG99/BF99 -> 0.9997717021 | BK99: 5213 | BM99: Neinvestiční transfery nefinančním podnikatelským subjektům-právnickým osobám | BP99: 1308763.511 | BQ99: 6196888.499 | BR99: 6176030.837 | BS99: 0.9966341718 | BT99: 13261.14 | BU99: 2025395.173 | BV99: 2006597.117 | BW99: 0.9907188208 | BX99: 1295502.371 | BY99: 4171493.326 | BZ99: 4169433.72 | CA99: =BZ99/BY99 -> 0.9995062664
X100: 5214 | Z100: Neinvestiční transfery finančním a podobným institucím ve vlastnictví státu | AD100: 160 | AE100: 0 | AF100: x | AH100: 160 | AI100: 0 | AJ100: x | AL100: 0 | AM100: 0 | AN100: x | AR100: 5214 | AT100: Neinvestiční transfery finančním a podobným institucím ve vlastnictví státu | AW100: 0 | AX100: 10 | AY100: 0 | AZ100: 0 | BA100: 0 | BB100: 10 | BC100: 0 | BD100: 0 | BH100: x | BK100: 5214 | BM100: Neinvestiční transfery finančním a podobným institucím ve vlastnictví státu | BP100: =SUM(BT100,BX100) -> 0 | BQ100: 0 | BR100: 0 | BS100: 0 | BT100: 0 | BU100: 0 | BV100: 0 | BW100: 0 | BX100: 0 | BY100: 0 | BZ100: 0 | CA100: 0
A101: =IF(COUNTBLANK(C101:IV101)=254,"odstr",IF(AND($A$1="TISK",SUM(J84:U84)=0),"odstr","OK")) ->  | B101: OK | E101: 5332 | G101: Neinvestiční dotace vysokým školám | J101: 18399.6 | K101: 59407.899 | L101: 54693.61009 | M101: 0.9206454194 | N101: 9099.6 | O101: 24934.1 | P101: 23960.81009 | Q101: 0.9609655087 | R101: 9300 | S101: 34473.799 | T101: 30732.8 | U101: 0.8914828331 | X101: 5215 | Z101: Neinvestiční transfery vybraným podnikatelským subjektům ve vlastnictví státu | AC101: 85 | AD101: 75 | AE101: 0 | AF101: x | AG101: 85 | AH101: 75 | AI101: 0 | AJ101: x | AK101: 0 | AL101: 0 | AM101: 0 | AN101: x | AR101: 5215 | AT101: Neinvestiční transfery vybraným podnikatelským subjektům ve vlastnictví státu | AW101: 85 | AX101: 85 | AY101: 0 | AZ101: 0 | BA101: 85 | BB101: 85 | BC101: 0 | BD101: 0 | BH101: x | BK101: 5215 | BM101: Neinvestiční transfery vybraným podnikatelským subjektům ve vlastnictví státu | BP101: 100 | BQ101: 2.95 | BR101: 0 | BS101: =BR101/BQ101 -> 0 | BT101: 100 | BU101: 2.95 | BV101: 0 | BW101: =BV101/BU101 -> 0 | BX101: 0 | BY101: 0 | BZ101: 0 | CA101: 0
AR102: 5216 | AT102: Neivestiční transfery obecním a krajským nemocnicím - obchodním společnostem | AW102: 0 | AX102: 1982.005 | AY102: 1982.005 | AZ102: 1 | BE102: 0 | BF102: 1982.005 | BG102: 1982.005 | BH102: =BG102/BF102 -> 1 | BK102: 5216 | BM102: Neivestiční transfery obecním a krajským nemocnicím - obchodním společnostem | BP102: 2196 | BQ102: 2445.48 | BR102: 2445.48 | BS102: 1 | BT102: 0 | BU102: 0 | BV102: 0 | BW102: 0 | BX102: 2196 | BY102: 2445.48 | BZ102: 2445.48 | CA102: =BZ102/BY102 -> 1
A103: =IF(COUNTBLANK(C103:IV103)=254,"odstr",IF(AND($A$1="TISK",SUM(J85:U85)=0),"odstr","OK")) ->  | B103: OK | E103: 5333 | G103: Neinvestiční transfery školským právnickým osobám zřízeným státem, kraji a obcemi | J103: 76432.025 | K103: 120492.1265 | L103: 120549.7844 | M103: 1.00047852 | N103: 56432.025 | O103: 69684.67653 | P103: 69742.33439 | Q103: 1.000827411 | R103: 20000 | S103: 50807.45 | T103: 50807.45 | U103: 1 | X103: 5219 | Z103: Ostatní neinvestiční transfery podnikatelským subjektům | AC103: 70 | AD103: 70 | AE103: 62.932 | AF103: =AE103/AD103 -> 0.8990285714 | AG103: 70 | AH103: 70 | AI103: 62.932 | AJ103: =AI103/AH103 -> 0.8990285714 | AK103: 0 | AL103: 0 | AM103: 0 | AN103: x | AR103: 5219 | AT103: Ostatní neinvestiční transfery podnikatelským subjektům | AW103: 40 | AX103: 40 | AY103: 40 | AZ103: 1 | BA103: 40 | BB103: 40 | BC103: 40 | BD103: =BC103/BB103 -> 1 | BH103: x | BK103: 5219 | BM103: Ostatní neinvestiční transfery podnikatelským subjektům | BP103: 40 | BQ103: 40 | BR103: 40 | BS103: 1 | BT103: 40 | BU103: 40 | BV103: 40 | BW103: =BV103/BU103 -> 1 | BX103: 0 | BY103: 0 | BZ103: 0 | CA103: 0
E104: 5334 | G104: Neinvestiční transfery veřejným výzkumným institucím | J104: 0 | K104: 0 | L104: 0 | M104: x | N104: 0 | O104: 0 | P104: 0 | Q104: x | R104: 0 | S104: 0 | T104: 0 | U104: x | X104: 522 | Y104: Neinvestiční transfery neziskovým a podobným organizacím | AC104: =SUM(AC105:AC109) -> 759162.735 | AD104: =SUM(AD105:AD109) -> 1899663.154 | AE104: =SUM(AE105:AE109) -> 1847838.762 | AF104: =AE104/AD104 -> 0.9727191675 | AG104: =SUM(AG105:AG109) -> 294370.467 | AH104: =SUM(AH105:AH109) -> 684183.2318 | AI104: =SUM(AI105:AI109) -> 639405.0963 | AJ104: =AI104/AH104 -> 0.9345524219 | AK104: =SUM(AK105:AK109) -> 464792.268 | AL104: =SUM(AL105:AL109) -> 1215479.923 | AM104: =SUM(AM105:AM109) -> 1208433.666 | AN104: =AM104/AL104 -> 0.9942029015 | AR104: 522 | AS104: Neinvestiční transfery neziskovým a podobným organizacím | AW104: 595135.803 | AX104: 1839767.047 | AY104: 1794590.647 | AZ104: 0.9754445 | BA104: =SUM(BA105:BA109) -> 75756.532 | BB104: =SUM(BB105:BB109) -> 466080.2429 | BC104: =SUM(BC105:BC109) -> 425540.6544 | BD104: =BC104/BB104 -> 0.9130201525 | BE104: =SUM(BE105:BE109) -> 519379.271 | BF104: =SUM(BF105:BF109) -> 1373686.804 | BG104: =SUM(BG105:BG109) -> 1369049.992 | BH104: =BG104/BF104 -> 0.9966245499 | BK104: 522 | BL104: Neinvestiční transfery neziskovým a podobným organizacím | BP104: 677315.465 | BQ104: 2244500.85 | BR104: 2191573.035 | BS104: 0.9764188925 | BT104: =SUM(BT105:BT109) -> 67003.092 | BU104: =SUM(BU105:BU109) -> 592527.6911 | BV104: =SUM(BV105:BV109) -> 544661.5135 | BW104: =BV104/BU104 -> 0.9192169779 | BX104: =SUM(BX105:BX109) -> 610312.373 | BY104: =SUM(BY105:BY109) -> 1651973.159 | BZ104: =SUM(BZ105:BZ109) -> 1646911.521 | CA104: =BZ104/BY104 -> 0.9969360045
A105: =IF(COUNTBLANK(C105:IV105)=254,"odstr",IF(AND($A$1="TISK",SUM(J86:U86)=0),"odstr","OK")) ->  | B105: OK | E105: 5335 | G105: Neinvestiční transfery veřejným zdravotnickým zařízením zřízeným státem, kraji a obcemi | J105: 0 | K105: 0 | L105: 0 | M105: x | N105: 0 | O105: 0 | P105: 0 | Q105: x | R105: 0 | S105: 0 | T105: 0 | U105: x | X105: 5221 | Z105: Neinvestiční transfery obecně prospěšným společnostem | AC105: 363264.493 | AD105: 1187739.753 | AE105: 1179507.102 | AF105: =AE105/AD105 -> 0.993068641 | AG105: 22888.78 | AH105: 309801.4807 | AI105: 301593.895 | AJ105: =AI105/AH105 -> 0.9735069511 | AK105: 340375.713 | AL105: 877938.2719 | AM105: 877913.207 | AN105: =AM105/AL105 -> 0.9999714503 | AR105: 5221 | AT105: Neinvestiční transfery obecně prospěšným společnostem | AW105: 396575.596 | AX105: 1341680.94 | AY105: 1328938.223 | AZ105: 0.9905024232 | BA105: 21291.36 | BB105: 319275.121 | BC105: 306842.3364 | BD105: =BC105/BB105 -> 0.961059338 | BE105: 375284.236 | BF105: 1022405.819 | BG105: 1022095.886 | BH105: =BG105/BF105 -> 0.9996968589 | BK105: 5221 | BM105: Neinvestiční transfery obecně prospěšným společnostem | BP105: 454292.156 | BQ105: =SUM(BU105,BY105) -> 1570284.47 | BR105: 1551293.1 | BS105: 0.9879057772 | BT105: 7918.6 | BU105: 391058.27 | BV105: 372151.9084 | BW105: =BV105/BU105 -> 0.951653339 | BX105: 446373.556 | BY105: 1179226.2 | BZ105: 1179141.192 | CA105: =BZ105/BY105 -> 0.9999279115
A106: =IF(COUNTBLANK(C106:IV106)=254,"odstr",IF(AND($A$1="TISK",SUM(J87:U87)=0),"odstr","OK")) ->  | E106: 5336 | G106: Neinvestiční dotace zřízeným příspěvkovým organizacím | J106: 19693365.8 | K106: 41134059.53 | L106: 41090577.92 | M106: 0.9989429293 | N106: 9356464.978 | O106: 13426302.16 | P106: 13386970.07 | Q106: 0.9970705193 | R106: 10336900.82 | S106: 27707757.37 | T106: 27703607.85 | U106: 0.9998502399 | X106: 5222 | Z106: Neinvestiční transfery občanským sdružením | AC106: 273786.058 | AD106: 485206.2903 | AE106: 472308.899 | AF106: =AE106/AD106 -> 0.9734187467 | AG106: 186649.64 | AH106: 229056.2616 | AI106: 218141.9477 | AJ106: =AI106/AH106 -> 0.9523509474 | AK106: 87136.418 | AL106: 256150.0287 | AM106: 254166.9512 | AN106: =AM106/AL106 -> 0.9922581408 | AR106: 5222 | AT106: Neinvestiční transfery občanským sdružením | AW106: 140755.705 | AX106: 380383.0163 | AY106: 376094.5098 | AZ106: 0.9887258204 | BA106: 38968.582 | BB106: 82646.71378 | BC106: 80932.04322 | BD106: =BC106/BB106 -> 0.9792530098 | BE106: 101787.123 | BF106: 297736.3025 | BG106: 295162.4666 | BH106: =BG106/BF106 -> 0.9913553172 | BK106: 5222 | BM106: Neinvestiční transfery občanským sdružením | BP106: 180662.777 | BQ106: 526858.2911 | BR106: 515356.7217 | BS106: 0.9781695199 | BT106: 43250.542 | BU106: 131413.5967 | BV106: 123772.4455 | BW106: =BV106/BU106 -> 0.9418541812 | BX106: 137412.235 | BY106: 395444.6944 | BZ106: 391584.2761 | CA106: =BZ106/BY106 -> 0.9902377796
A107: =IF(COUNTBLANK(C107:IV107)=254,"odstr",IF(AND($A$1="TISK",SUM(J88:U88)=0),"odstr","OK")) ->  | B107: OK | E107: 5339 | G107: Neinvestiční příspěvky ostatním příspěvkovým organizacím | J107: 20683779.1 | K107: 58947049.23 | L107: 58938267.21 | M107: 0.9998510184 | N107: 24790.35 | O107: 38760.3641 | P107: 35109.35281 | Q107: 0.9058055471 | R107: 20658988.75 | S107: 58908288.86 | T107: 58903157.85 | U107: 0.9999128983 | X107: 5223 | Z107: Neinvestiční transfery církvím a náboženským společnostem | AC107: 3186 | AD107: 19059.53141 | AE107: 14290.42257 | AF107: =AE107/AD107 -> 0.7497782743 | AG107: 2979 | AH107: 17298.89215 | AI107: 12583.28953 | AJ107: =AI107/AH107 -> 0.7274043575 | AK107: 207 | AL107: 1760.63926 | AM107: 1707.13304 | AN107: =AM107/AL107 -> 0.9696097768 | AR107: 5223 | AT107: Neinvestiční transfery církvím a náboženským společnostem | AW107: 713.35 | AX107: 20069.9324 | AY107: 12224.96469 | AZ107: 0.609118379 | BA107: 713.35 | BB107: 17842.9154 | BC107: 10097.85353 | BD107: =BC107/BB107 -> 0.5659306959 | BE107: 0 | BF107: 2227.017 | BG107: 2127.11116 | BH107: =BG107/BF107 -> 0.955139166 | BK107: 5223 | BM107: Neinvestiční transfery církvím a náboženským společnostem | BP107: 903.25 | BQ107: 22731.15859 | BR107: 15150.67962 | BS107: 0.6665159437 | BT107: 703.25 | BU107: 21578.002 | BV107: 14266.25963 | BW107: =BV107/BU107 -> 0.6611483135 | BX107: 200 | BY107: 1153.15659 | BZ107: 884.41999 | CA107: =BZ107/BY107 -> 0.7669556743
A108: =IF(COUNTBLANK(C108:IV108)=254,"odstr",IF(AND($A$1="TISK",SUM(J89:U89)=0),"odstr","OK")) ->  | B108: OK | E108: 5341 | G108: Převody vlastním fondům hospodářské (podnikatelské) činnosti | J108: 0 | K108: 0 | L108: 0 | M108: x | N108: 0 | O108: 0 | P108: 0 | Q108: x | R108: 0 | S108: 0 | T108: 0 | U108: x | X108: 5224 | Z108: Neinvestiční transfery politickým stranám a hnutím | AC108: 0 | AD108: 0 | AE108: 0 | AF108: x | AG108: 0 | AH108: 0 | AI108: 0 | AJ108: x | AK108: 0 | AL108: 0 | AM108: 0 | AN108: x | AR108: 5224 | AT108: Neinvestiční transfery politickým stranám a hnutím | BH108: x | BK108: 5224 | BM108: Neinvestiční transfery politickým stranám a hnutím | BP108: 0 | BQ108: 0 | BR108: 0 | BS108: 0 | BT108: 0 | BU108: 0 | BV108: 0 | BW108: 0 | BX108: 0 | BY108: 0 | BZ108: 0 | CA108: 0
A109: =IF(COUNTBLANK(C109:IV109)=254,"odstr",IF(AND($A$1="TISK",SUM(J90:U90)=0),"odstr","OK")) ->  | B109: OK | E109: 5342 | G109: Převody fondu kulturních a sociálních potřeb a sociálnímu fondu obcí a krajů | J109: 0 | K109: 0 | L109: 0 | M109: x | N109: 0 | O109: 0 | P109: 0 | Q109: x | R109: 0 | S109: 0 | T109: 0 | U109: x | X109: 5229 | Z109: Ostatní neinvestiční transfery neziskovým a podobným organizacím | AC109: 118926.184 | AD109: 207657.5802 | AE109: 181732.3387 | AF109: =AE109/AD109 -> 0.8751538881 | AG109: 81853.047 | AH109: 128026.5973 | AI109: 107085.964 | AJ109: =AI109/AH109 -> 0.8364352901 | AK109: 37073.137 | AL109: 79630.98291 | AM109: 74646.37465 | AN109: =AM109/AL109 -> 0.9374036577 | AR109: 5229 | AT109: Ostatní neinvestiční transfery neziskovým a podobným organizacím | AW109: =BA109+BE109 -> 57091.152 | AX109: =BB109+BF109 -> 97633.15752 | AY109: =BC109+BG109 -> 77332.94968 | AZ109: =AY109/AX109 -> 0.7920767047 | BA109: 14783.24 | BB109: 46315.49268 | BC109: 27668.42124 | BD109: =BC109/BB109 -> 0.5973901958 | BE109: 42307.912 | BF109: 51317.66484 | BG109: 49664.52844 | BH109: =BG109/BF109 -> 0.9677862115 | BK109: 5229 | BM109: Ostatní neinvestiční transfery neziskovým a podobným organizacím | BP109: 41457.282 | BQ109: 124626.9305 | BR109: 109772.5333 | BS109: =BR109/BQ109 -> 0.8808090902 | BT109: 15130.7 | BU109: 48477.82235 | BV109: 34470.89993 | BW109: =BV109/BU109 -> 0.7110653544 | BX109: 26326.582 | BY109: 76149.10818 | BZ109: 75301.63337 | CA109: =BZ109/BY109 -> 0.9888708505
E110: 5343 | G110: Převody jiným vlastním fondům a účtům nemajícím charakter veřejných rozpočtů | J110: 0 | K110: 0 | L110: 0 | M110: x | N110: 0 | O110: 0 | P110: 0 | Q110: x | R110: 0 | S110: 0 | T110: 0 | U110: x | X110: 523 | Y110: Neinvestiční nedotační transfery podnikatelským subjektům | AC110: x | AD110: x | AE110: x | AF110: x | AG110: 0 | AI110: 0 | AJ110: x | AK110: 0 | AN110: x | AR110: 523 | AS110: Neinvestiční nedotační transfery podnikatelským subjektům | BA110: x | BH110: x | BK110: 523 | BL110: Neinvestiční nedotační transfery podnikatelským subjektům | BP110: x | BQ110: x | BR110: x | BS110: x | BT110: x | BU110: x | BV110: x | BW110: x | BX110: x | BY110: x | BZ110: x | CA110: x
A111: =IF(COUNTBLANK(C111:IV111)=254,"odstr",IF(AND($A$1="TISK",SUM(J91:U91)=0),"odstr","OK")) ->  | B111: OK | E111: 5361 | G111: Nákup kolků | J111: 48 | K111: 53 | L111: 52.1 | M111: 0.9830188679 | N111: 48 | O111: 51 | P111: 50.1 | Q111: 0.9823529412 | R111: 0 | S111: 2 | T111: 2 | U111: 1 | X111: 5230 | Z111: Neinvestiční nedotační transfery podnikatelským subjektům (zrušeno) | AC111: x | AD111: x | AE111: x | AF111: x | AG111: x | AI111: x | AJ111: x | AK111: x | AM111: x | AN111: x | AR111: 5230 | AT111: Neinvestiční nedotační transfery podnikatelským subjektům (zrušeno) | BH111: x | BK111: 5230 | BM111: Neinvestiční nedotační transfery podnikatelským subjektům (zrušeno) | BP111: x | BQ111: x | BR111: x | BS111: x | BT111: x | BU111: x | BV111: x | BW111: x | BX111: x | BY111: x | BZ111: x | CA111: x
E112: 5362 | G112: Platby daní a poplatků státnímu rozpočtu | J112: 198.8 | K112: 745.91959 | L112: 704.53459 | M112: 0.9445181484 | N112: 48.8 | O112: 641.16959 | P112: 599.78459 | Q112: 0.9354538945 | R112: 150 | S112: 104.75 | T112: 104.75 | U112: 1 | X112: 524 | Y112: Neinvestiční nedotační transfery neziskovým a podobným organizacím | AC112: x | AD112: =AD113 -> 181.158 | AE112: =AE113 -> 98.158 | AF112: =AE112/AD112 -> 0.541836408 | AG112: 0 | AH112: =AH113 -> 181.158 | AI112: =AI113 -> 98.158 | AJ112: =AI112/AH112 -> 0.541836408 | AK112: 0 | AN112: x | AR112: 524 | AS112: Neinvestiční nedotační transfery neziskovým a podobným organizacím | BA112: x | BH112: x | BK112: 524 | BL112: Neinvestiční nedotační transfery neziskovým a podobným organizacím | BP112: x | BQ112: x | BR112: x | BS112: x | BT112: x | BU112: x | BV112: x | BW112: x | BX112: x | BY112: x | BZ112: x | CA112: x
A113: =IF(COUNTBLANK(C113:IV113)=254,"odstr",IF(AND($A$1="TISK",SUM(J92:U92)=0),"odstr","OK")) ->  | B113: OK | E113: 5363 | G113: Úhrady sankcí jiným rozpočtům | J113: 27000 | K113: 48652.73796 | L113: 16076.4714 | M113: 0.3304330254 | N113: 0 | O113: 13665.97858 | P113: 13364.5839 | Q113: 0.9779456203 | R113: 27000 | S113: 34986.75938 | T113: 2711.8875 | U113: 0.07751182299 | X113: 5240 | Z113: Neinvestiční nedotační transfery neziskovým a podobným organizacím (zrušeno) | AC113: x | AD113: 181.158 | AE113: 98.158 | AF113: =AE113/AD113 -> 0.541836408 | AG113: x | AH113: 181.158 | AI113: 98.158 | AJ113: =AI113/AH113 -> 0.541836408 | AK113: x | AM113: 0 | AN113: x | AR113: 5240 | AT113: Neinvestiční nedotační transfery neziskovým a podobným organizacím (zrušeno) | BH113: x | BK113: 5240 | BM113: Neinvestiční nedotační transfery neziskovým a podobným organizacím (zrušeno) | BP113: x | BQ113: x | BR113: x | BS113: x | BT113: x | BU113: x | BV113: x | BW113: x | BX113: x | BY113: x | BZ113: x | CA113: x
A114: =IF(COUNTBLANK(C114:IV114)=254,"odstr",IF(AND($A$1="TISK",SUM(J93:U93)=0),"odstr","OK")) ->  | B114: OK | E114: 5364 | G114: Vratky veřejným rozpočtům ústřední úrovně transferů poskytnutých v minulých rozpočtových obdobích | J114: 0 | K114: 900.74808 | L114: 900.72269 | M114: 0.9999718123 | N114: 0 | O114: 900.74808 | P114: 900.72269 | Q114: 0.9999718123 | R114: 0 | S114: 0 | T114: 0 | U114: x | X114: 53 | Y114: Neinvestiční transfery veřejnoprávním subjektům a mezi peněžními fondy téhož subjektu a platby daní | Z114: Neinvestiční transfery veřejnoprávním subjektům a mezi peněžními fondy téhož subjektu a platby daní | AC114: =AC115+AC119+AC125+AC133+AC137 -> 65961062.48 | AD114: =AD115+AD125+AD137 -> 136748660.9 | AE114: =AE115+AE119+AE125+AE133+AE137 -> 136514806 | AF114: =AE114/AD114 -> 0.9982898924 | AG114: =AG115+AG125+AG133+AG137 -> 24722100.9 | AH114: =AH115+AH125+AH133+AH137 -> 31779430.64 | AI114: =AI115+AI119+AI125+AI133+AI137 -> 31613490.4 | AJ114: =AI114/AH114 -> 0.9947783758 | AK114: =AK115+AK119+AK125+AK133+AK137 -> 41238961.58 | AL114: =AL115+AL125+AL133+AL137 -> 104969230.3 | AM114: =AM115+AM119+AM125+AM133+AM137 -> 104901315.6 | AN114: =AM114/AL114 -> 0.9993530039 | AR114: 53 | AS114: Neinvestiční transfery veřejnoprávním subjektům a mezi peněžními fondy téhož subjektu a platby daní | AT114: Neinvestiční transfery veřejnoprávním subjektům a mezi peněžními fondy téhož subjektu a platby daní | AW114: =BA114+BE114 -> 73372417.14 | AX114: 158814863.4 | AY114: 158555882.7 | AZ114: =AY114/AX114 -> 0.9983692916 | BA114: =BA115+BA119+BA125+BA133+BA137 -> 26836966.61 | BB114: =BB115+BB119+BB125+BB133+BB137 -> 36316210.12 | BC114: =BC115+BC119+BC125+BC133+BC137 -> 36205435.89 | BD114: =BC114/BB114 -> 0.9969497306 | BE114: =BE115+BE119+BE125+BE133+BE137 -> 46535450.54 | BF114: =BF115+BF119+BF125+BF133+BF137 -> 122498653.3 | BG114: =BG115+BG119+BG125+BG133+BG137 -> 122350446.8 | BH114: =BG114/BF114 -> 0.9987901376 | BK114: 53 | BL114: Neinvestiční transfery veřejnoprávním subjektům a mezi peněžními fondy téhož subjektu a platby daní | BM114: Neinvestiční transfery veřejnoprávním subjektům a mezi peněžními fondy téhož subjektu a platby daní | BP114: =SUM(BT114,BX114) -> 82785694.84 | BQ114: =SUM(BU114,BY114) -> 174568793.7 | BR114: 174124495.9 | BS114: =BR114/BQ114 -> 0.997454884 | BT114: =SUM(BT115,BT119,BT125,BT133,BT137) -> 29237085.08 | BU114: =SUM(BU115,BU119,BU125,BU133,BU137) -> 35097985.6 | BV114: =SUM(BV115,BV119,BV125,BV133,BV137) -> 34874980.4 | BW114: =BV114/BU114 -> 0.9936462107 | BX114: =SUM(BX115,BX119,BX125,BX133,BX137) -> 53548609.76 | BY114: =SUM(BY115,BY119,BY125,BY133,BY137) -> 139470808.1 | BZ114: =SUM(BZ115,BZ119,BZ125,BZ133,BZ137) -> 139249515.5 | CA114: =BZ114/BY114 -> 0.9984133409
E115: 5365 | G115: Výdaje z finančního vypořádání minulých let mezi krajem a obcemi | J115: 29 | K115: 331.7 | L115: 319.65 | M115: 0.9636719928 | N115: 29 | O115: 330.7 | P115: 318.65 | Q115: 0.9635621409 | R115: 0 | S115: 1 | T115: 1 | U115: 1 | X115: 531 | Y115: Neinvestiční transfery veřejným rozpočtům ústřední úrovně | AC115: =SUM(AC116:AC118) -> 1043 | AD115: =SUM(AD116:AD118) -> 6201.0804 | AE115: =AE116+AE118 -> 2260.8104 | AF115: =AE115/AD115 -> 0.3645833071 | AG115: =AG116+AG117+AG118 -> 3 | AH115: =AH116+AH118 -> 152.3104 | AI115: =AI116 -> 150.8104 | AJ115: =AI115/AH115 -> 0.9901516902 | AK115: =AK116 -> 1040 | AL115: =AL116+AL118 -> 6048.77 | AM115: =AM116+AM118 -> 2110 | AN115: =AM115/AL115 -> 0.34883125 | AR115: 531 | AS115: Neinvestiční transfery veřejným rozpočtům ústřední úrovně | AW115: 840 | AX115: 5877.889 | AY115: 1429.122 | AZ115: =AY115/AX115 -> 0.243135248 | BA115: =SUM(BA116:BA118) -> 0 | BB115: =SUM(BB116:BB118) -> 834.745 | BC115: =SUM(BC116:BC118) -> 324.748 | BD115: =BC115/BB115 -> 0.3890385687 | BE115: =SUM(BE116:BE118) -> 840 | BF115: =SUM(BF116:BF118) -> 5043.144 | BG115: =SUM(BG116:BG118) -> 1104.374 | BH115: =BG115/BF115 -> 0.2189852203 | BK115: 531 | BL115: Neinvestiční transfery veřejným rozpočtům ústřední úrovně | BP115: 840 | BQ115: 5186.334 | BR115: 1247.563 | BS115: =BR115/BQ115 -> 0.2405481406 | BT115: =SUM(BT116:BT118) -> 0 | BU115: =SUM(BU116:BU118) -> 0 | BV115: =SUM(BV116:BV118) -> 0 | BW115: 0 | BX115: =SUM(BX116:BX118) -> 840 | BY115: =SUM(BY116:BY118) -> 5186.334 | BZ115: =SUM(BZ116:BZ118) -> 1247.563 | CA115: =BZ115/BY115 -> 0.2405481406
A116: =IF(COUNTBLANK(C116:IV116)=254,"odstr",IF(AND($A$1="TISK",SUM(J94:U94)=0),"odstr","OK")) ->  | B116: OK | E116: 5369 | G116: Ostatní neinvestiční transfery jiným veřejným rozpočtům | J116: 0 | K116: 195.9 | L116: 195.8212 | M116: 0.999597754 | N116: 0 | O116: 195.9 | P116: 195.8212 | Q116: 0.999597754 | R116: 0 | S116: 0 | T116: 0 | U116: x | X116: 5311 | Z116: Neinvestiční transfery státnímu rozpočtu | AC116: 1040 | AD116: 5129.5804 | AE116: 1190.8104 | AF116: =AE116/AD116 -> 0.2321457716 | AG116: 0 | AH116: 150.8104 | AI116: 150.8104 | AJ116: =AI116/AH116 -> 1 | AK116: 1040 | AL116: 4978.77 | AM116: 1040 | AN116: =AM116/AL116 -> 0.2088869339 | AR116: 5311 | AT116: Neinvestiční transfery státnímu rozpočtu | AW116: 840 | AX116: 5553.141 | AY116: 1104.374 | AZ116: =AY116/AX116 -> 0.1988737545 | BA116: 0 | BB116: 509.997 | BC116: 0 | BD116: =BC116/BB116 -> 0 | BE116: 840 | BF116: 5043.144 | BG116: 1104.374 | BH116: =BG116/BF116 -> 0.2189852203 | BK116: 5311 | BM116: Neinvestiční transfery státnímu rozpočtu | BP116: 840 | BQ116: 5186.334 | BR116: 1247.563 | BS116: =BR116/BQ116 -> 0.2405481406 | BT116: 0 | BU116: 0 | BV116: 0 | BW116: 0 | BX116: 840 | BY116: 5186.334 | BZ116: 1247.563 | CA116: =BZ116/BY116 -> 0.2405481406
A117: =IF(COUNTBLANK(C117:IV117)=254,"odstr",IF(AND($A$1="TISK",SUM(J95:U95)=0),"odstr","OK")) ->  | B117: OK | E117: 53 | G117: Neinvestiční transfery veřejnoprávním subjektům a mezi peněžními fondy téhož subjektu | J117: 59210241.86 | K117: 120914143.5 | L117: 120666761.3 | M117: 0.9979540674 | N117: 22580470 | O117: 28085953.25 | P117: 27948124.47 | Q117: 0.995092608 | R117: 36629771.86 | S117: 92828190.27 | T117: 92718636.86 | U117: 0.9988198261 | X117: 5313 | Z117: Neinvestiční transfery zvláštním fondům ústřední úrovně | AC117: 0 | AD117: 0 | AE117: 0 | AF117: x | AG117: 0 | AH117: 0 | AJ117: x | AK117: 0 | AL117: 0 | AM117: 0 | AN117: x | AR117: 5313 | AT117: Neinvestiční transfery zvláštním fondům ústřední úrovně | BH117: x | BK117: 5313 | BM117: Neinvestiční transfery zvláštním fondům ústřední úrovně | BP117: 0 | BQ117: 0 | BR117: 0 | BS117: 0 | BT117: 0 | BU117: 0 | BV117: 0 | BW117: 0 | BX117: 0 | BY117: 0 | BZ117: 0 | CA117: 0
A118: =IF(COUNTBLANK(C118:IV118)=254,"odstr",IF(AND($A$1="TISK",SUM(J96:U96)=0),"odstr","OK")) ->  | B118: OK | E118: 5421 | G118: Náhrady z úrazového pojištění | J118: 0 | K118: 14 | L118: 13.5 | M118: 0.9642857143 | N118: 0 | O118: 14 | P118: 13.5 | Q118: 0.9642857143 | R118: 0 | S118: 0 | T118: 0 | U118: x | X118: 5319 | Z118: Ostatní neinvestiční transfery jiným veřejným rozpočtům | AC118: 3 | AD118: 1071.5 | AE118: 1070 | AF118: =AE118/AD118 -> 0.9986000933 | AG118: 3 | AH118: 1.5 | AI118: 0 | AJ118: x | AK118: 0 | AL118: 1070 | AM118: 1070 | AN118: =AM118/AL118 -> 1 | AR118: 5319 | AT118: Ostatní neinvestiční transfery jiným veřejným rozpočtům | AW118: =BA118+BE118 -> 0 | AX118: 324.748 | AY118: 324.748 | AZ118: =AY118/AX118 -> 1 | BA118: 0 | BB118: 324.748 | BC118: 324.748 | BD118: =BC118/BB118 -> 1 | BH118: x | BK118: 5319 | BM118: Ostatní neinvestiční transfery jiným veřejným rozpočtům | BP118: 0 | BQ118: 0 | BR118: 0 | BS118: 0 | BT118: 0 | BU118: 0 | BV118: 0 | BW118: 0 | BX118: 0 | BY118: 0 | BZ118: 0 | CA118: 0
E119: 5424 | G119: Náhrady mezd v době nemoci | J119: 84 | K119: 428.717 | L119: 220.1677 | M119: 0.5135501974 | N119: 84 | O119: 303.316 | P119: 172.946 | Q119: 0.5701842303 | R119: 0 | S119: 125.401 | T119: 47.2217 | U119: 0.3765655776 | X119: 532 | Z119: Neinvestiční transfery veřejným rozpočtům územní úrovně | AC119: =SUM(AC121:AC123) -> 0 | AD119: =SUM(AD121:AD123) -> 0 | AE119: 0 | AF119: x | AG119: 0 | AI119: 0 | AJ119: x | AK119: 0 | AM119: 0 | AN119: x | AR119: 532 | AS119: Neinvestiční transfery veřejným rozpočtům územní úrovně | AW119: 68787.532 | AX119: 206777.7932 | AY119: 184676.8433 | AZ119: =AY119/AX119 -> 0.8931173916 | BA119: =SUM(BA120:BA124) -> 64312.532 | BB119: =SUM(BB120:BB124) -> 89758.45403 | BC119: =SUM(BC120:BC124) -> 77362.89106 | BD119: =BC119/BB119 -> 0.8619008861 | BE119: =SUM(BE120:BE124) -> 4475 | BF119: =SUM(BF120:BF124) -> 117019.3392 | BG119: =SUM(BG120:BG124) -> 107313.9523 | BH119: =BG119/BF119 -> 0.9170616841 | BK119: 532 | BL119: Neinvestiční transfery veřejným rozpočtům územní úrovně | BP119: 0 | BQ119: 0 | BR119: 0 | BS119: 0 | BT119: =SUM(BT120:BT124) -> 0 | BU119: =SUM(BU120:BU124) -> 0 | BV119: =SUM(BV120:BV124) -> 0 | BW119: 0 | BX119: =SUM(BX120:BX124) -> 0 | BY119: =SUM(BY120:BY124) -> 0 | BZ119: =SUM(BZ120:BZ124) -> 0 | CA119: 0
AR120: 5321 | AT120: Neinvestiční transfery obcím | AW120: 60729.132 | AX120: 177632.2952 | AY120: 157120.8733 | AZ120: =AY120/AX120 -> 0.8845287572 | BA120: 56404.132 | BB120: 62541.95603 | BC120: 51685.92106 | BD120: =BC120/BB120 -> 0.8264199641 | BE120: 4325 | BF120: 115090.3392 | BG120: 105434.9523 | BH120: =BG120/BF120 -> 0.9161060174 | BK120: 5321 | BM120: Neinvestiční transfery obcím | BP120: 0 | BQ120: 0 | BR120: 0 | BS120: 0 | BT120: 0 | BU120: 0 | BV120: 0 | BW120: 0 | BX120: 0 | BY120: 0 | BZ120: 0 | CA120: 0
A121: =IF(COUNTBLANK(C121:IV121)=254,"odstr",IF(AND($A$1="TISK",SUM(J97:U97)=0),"odstr","OK")) ->  | B121: OK | E121: 5429 | G121: Ostatní náhrady placené obyvatelstvu | J121: 45 | K121: 79.5 | L121: 61.89 | M121: 0.778490566 | N121: 45 | O121: 79.5 | P121: 61.89 | Q121: 0.778490566 | R121: 0 | S121: 0 | T121: 0 | U121: x | X121: 5322 | Z121: Neinvestiční dotace obcím v rámci souhrnného dotačního vztahu | AC121: 0 | AE121: 0 | AF121: x | AG121: 0 | AI121: 0 | AJ121: x | AK121: 0 | AM121: 0 | AN121: x | AR121: 5322 | AT121: Neinvestiční dotace obcím v rámci souhrnného dotačního vztahu | BH121: x | BK121: 5322 | BM121: Neinvestiční dotace obcím v rámci souhrnného dotačního vztahu | BP121: 0 | BQ121: 0 | BR121: 0 | BS121: 0 | BT121: 0 | BU121: 0 | BV121: 0 | BW121: 0 | BX121: 0 | BY121: 0 | BZ121: 0 | CA121: 0
AR122: 5323 | AT122: Neinvestiční transfery krajům | AW122: =BA122+BE122 -> 107 | AX122: =BB122+BF122 -> 201 | AY122: =BC122+BG122 -> 144 | AZ122: =AY122/AX122 -> 0.7164179104 | BA122: 7 | BB122: 51 | BC122: 44 | BD122: =BC122/BB122 -> 0.862745098 | BE122: 100 | BF122: 150 | BG122: 100 | BH122: =BG122/BF122 -> 0.6666666667 | BK122: 5323 | BM122: Neinvestiční transfery krajům | BP122: 0 | BQ122: 0 | BR122: 0 | BS122: 0 | BT122: 0 | BU122: 0 | BV122: 0 | BW122: 0 | BX122: 0 | BY122: 0 | BZ122: 0 | CA122: 0
A123: =IF(COUNTBLANK(C123:IV123)=254,"odstr",IF(AND($A$1="TISK",SUM(J98:U98)=0),"odstr","OK")) ->  | B123: OK | E123: 5491 | G123: Stipendia studentům a doktorandům | J123: 15174 | K123: 7537 | L123: 6579 | M123: 0.8728937243 | N123: 1824 | O123: 1937 | P123: 1713 | Q123: 0.8843572535 | R123: 13350 | S123: 5600 | T123: 4866 | U123: 0.8689285714 | X123: 5324 | Z123: Neinvestiční dotace krajům v rámci souhrnného dotačního vztahu | AC123: 0 | AE123: 0 | AF123: x | AG123: 0 | AI123: 0 | AJ123: x | AK123: 0 | AM123: 0 | AN123: x | AR123: 5324 | AT123: Neinvestiční dotace krajům v rámci souhrnného dotačního vztahu | BH123: x | BK123: 5324 | BM123: Neinvestiční dotace krajům v rámci souhrnného dotačního vztahu | BP123: 0 | BQ123: 0 | BR123: 0 | BS123: 0 | BT123: 0 | BU123: 0 | BV123: 0 | BW123: 0 | BX123: 0 | BY123: 0 | BZ123: 0 | CA123: 0
AR124: 5329 | AT124: Ostatní neinvestiční transfery veřejným rozpočtům územní úrovně | AW124: =BA124+BE124 -> 7951.4 | AX124: 28944.498 | AY124: 27411.97 | AZ124: =AY124/AX124 -> 0.9470528734 | BA124: 7901.4 | BB124: 27165.498 | BC124: 25632.97 | BD124: =BC124/BB124 -> 0.9435854995 | BE124: 50 | BF124: 1779 | BG124: 1779 | BH124: =BG124/BF124 -> 1 | BK124: 5329 | BM124: Ostatní neinvestiční transfery veřejným rozpočtům územní úrovně | BP124: 0 | BQ124: 0 | BR124: 0 | BS124: 0 | BT124: 0 | BU124: 0 | BV124: 0 | BW124: 0 | BX124: 0 | BY124: 0 | BZ124: 0 | CA124: 0
E125: 5492 | G125: Dary obyvatelstvu | J125: 12111.1 | K125: 12736.573 | L125: 11490.5365 | M125: 0.902168621 | N125: 11219.1 | O125: 11885.316 | P125: 11033.0365 | Q125: 0.9282913891 | R125: 892 | S125: 851.257 | T125: 457.5 | U125: 0.5374405144 | X125: 533 | Y125: Neinvestiční transfery příspěvkovým a podobným organizacím | AC125: =SUM(AC126:AC132) -> 65958744.82 | AD125: =SUM(AD126:AD132) -> 136728343.6 | AE125: =SUM(AE126:AE132) -> 136505607.5 | AF125: =AE125/AD125 -> 0.9983709587 | AG125: =SUM(AG126:AG132) -> 24720823.24 | AH125: =SUM(AH126:AH132) -> 31772925.61 | AI125: =SUM(AI126:AI132) -> 31608060.57 | AJ125: =AI125/AH125 -> 0.994811147 | AK125: =SUM(AK126:AK132) -> 41237921.58 | AL125: =SUM(AL126:AL132) -> 104955418 | AM125: =SUM(AM126:AM132) -> 104897546.9 | AN125: =AM125/AL125 -> 0.9994486128 | AR125: 533 | AS125: Neinvestiční transfery příspěvkovým a podobným organizacím | AW125: 73302248 | AX125: 158584210.2 | AY125: 158358004.9 | AZ125: 0.9985735953 | BA125: =SUM(BA126:BA132) -> 26772112.46 | BB125: =SUM(BB126:BB132) -> 36214711.28 | BC125: =SUM(BC126:BC132) -> 36116965.89 | BD125: 0.9973009479 | BE125: =SUM(BE126:BE132) -> 46530135.54 | BF125: =SUM(BF126:BF132) -> 122369498.9 | BG125: =SUM(BG126:BG132) -> 122241039 | BH125: =BG125/BF125 -> 0.9989502297 | BK125: 533 | BL125: Neinvestiční transfery příspěvkovým a podobným organizacím | BP125: 82784568.8 | BQ125: 174520676.9 | BR125: 174086189.2 | BS125: =BR125/BQ125 -> 0.9975103941 | BT125: =SUM(BT126:BT132) -> 29236799.04 | BU125: =SUM(BU126:BU132) -> 35082596.85 | BV125: =SUM(BV126:BV132) -> 34858298.53 | BW125: =BV125/BU125 -> 0.9936065645 | BX125: =SUM(BX126:BX132) -> 53547769.76 | BY125: =SUM(BY126:BY132) -> 139438080 | BZ125: =SUM(BZ126:BZ132) -> 139227890.7 | CA125: =BZ125/BY125 -> 0.9984925969
A126: =IF(COUNTBLANK(C126:IV126)=254,"odstr",IF(AND($A$1="TISK",SUM(J99:U99)=0),"odstr","OK")) ->  | B126: OK | E126: 5493 | G126: Účelové neinvestiční transfery nepodnikajícím fyzickým osobám | J126: 1341.8 | K126: 1435.57933 | L126: 816.38823 | M126: 0.5686820735 | N126: 341.8 | O126: 475.73233 | P126: 360.9525 | Q126: 0.7587302297 | R126: 1000 | S126: 959.847 | T126: 455.43573 | U126: 0.4744878402 | X126: 5331 | Z126: Neinvestiční příspěvky zřízeným příspěvkovým organizacím | AC126: 19852327.56 | AD126: 21960332.22 | AE126: 21799764.1 | AF126: =AE126/AD126 -> 0.9926882658 | AG126: 14105513.98 | AH126: 15632216.52 | AI126: 15520011.8 | AJ126: =AI126/AH126 -> 0.992822213 | AK126: 5746813.579 | AL126: 6328115.7 | AM126: 6279752.308 | AN126: =AM126/AL126 -> 0.9923573787 | AR126: 5331 | AT126: Neinvestiční příspěvky zřízeným příspěvkovým organizacím | AW126: 20602445.14 | AX126: 22486622.88 | AY126: 22354437.56 | AZ126: 0.9941216021 | BA126: 14561022.11 | BB126: 16002305.41 | BC126: 15945239.46 | BD126: 0.9964338923 | BE126: 6041423.028 | BF126: 6484317.468 | BG126: 6409198.096 | BH126: =BG126/BF126 -> 0.9884152229 | BK126: 5331 | BM126: Neinvestiční příspěvky zřízeným příspěvkovým organizacím | BP126: 21222767.63 | BQ126: 22651144.91 | BR126: 22477842.06 | BS126: =BR126/BQ126 -> 0.9923490467 | BT126: 15063115.6 | BU126: 16248914.03 | BV126: 16124509.38 | BW126: =BV126/BU126 -> 0.9923438177 | BX126: 6159652.033 | BY126: 6402230.887 | BZ126: 6353332.684 | CA126: =BZ126/BY126 -> 0.9923623181
A127: =IF(COUNTBLANK(C127:IV127)=254,"odstr",IF(AND($A$1="TISK",SUM(J101:U101)=0),"odstr","OK")) ->  | B127: OK | E127: 5494 | G127: Neinvestiční transfery obyvatelstvu nemající charakter daru | J127: 1219 | K127: 1260.015 | L127: 1053.285 | M127: 0.8359305246 | N127: 369 | O127: 504.645 | P127: 460.431 | Q127: 0.9123859347 | R127: 850 | S127: 755.37 | T127: 592.854 | U127: 0.7848524564 | X127: 5332 | Z127: Neinvestiční dotace vysokým školám | AC127: 40009.6 | AD127: 185925.862 | AE127: 175115.382 | AF127: =AE127/AD127 -> 0.9418559641 | AG127: 10359.6 | AH127: 147660.2 | AI127: 137509.1058 | AJ127: =AI127/AH127 -> 0.9312536876 | AK127: 29650 | AL127: 38265.662 | AM127: 37606.27625 | AN127: =AM127/AL127 -> 0.9827682127 | AR127: 5332 | AT127: Neinvestiční dotace vysokým školám | AW127: 25311.82 | AX127: 65299.90355 | AY127: 57424.64993 | AZ127: 0.8793986945 | BA127: 4943 | BB127: 27781.1 | BC127: 20505.78068 | BD127: 0.7381198253 | BE127: 20368.82 | BF127: 37518.80355 | BG127: 36918.86925 | BH127: =BG127/BF127 -> 0.9840097699 | BK127: 5332 | BM127: Neinvestiční dotace vysokým školám | BP127: 26376.994 | BQ127: 81495.96859 | BR127: 76542.70891 | BS127: =BR127/BQ127 -> 0.9392208012 | BT127: 6340 | BU127: 32423 | BV127: 29716.3022 | BW127: =BV127/BU127 -> 0.9165192055 | BX127: 20036.994 | BY127: 49072.96859 | BZ127: 46826.40671 | CA127: =BZ127/BY127 -> 0.9542199719
A128: =IF(COUNTBLANK(C128:IV128)=254,"odstr",IF(AND($A$1="TISK",SUM(J103:U103)=0),"odstr","OK")) ->  | B128: OK | E128: 5499 | G128: Ostatní neinvestiční transfery obyvatelstvu | J128: 5606.85 | K128: 8794.2287 | L128: 7186.73108 | M128: 0.8172099368 | N128: 5571.85 | O128: 7223.2287 | P128: 5818.06108 | Q128: 0.8054654396 | R128: 35 | S128: 1571 | T128: 1368.67 | U128: 0.8712094208 | X128: 5333 | Z128: Neinvestiční transfery školským právnickým osobám zřízeným státem, kraji a obcemi | AC128: 93690.797 | AD128: 136773.2822 | AE128: 136138.9219 | AF128: =AE128/AD128 -> 0.9953619579 | AG128: 69717.797 | AH128: 76153.85218 | AI128: 75519.49194 | AJ128: =AI128/AH128 -> 0.9916700177 | AK128: 23973 | AL128: 60619.43 | AM128: 60619.43 | AN128: =AM128/AL128 -> 1 | AR128: 5333 | AT128: Neinvestiční transfery školským právnickým osobám zřízeným státem, kraji a obcemi | AW128: 108583.557 | AX128: 152487.674 | AY128: 151139.2154 | AZ128: 0.991156934 | BA128: 63083.557 | BB128: 73168.274 | BC128: 71819.81544 | BD128: 0.9815704473 | BE128: 45500 | BF128: 79319.4 | BG128: 79319.4 | BH128: =BG128/BF128 -> 1 | BK128: 5333 | BM128: Neinvestiční transfery školským právnickým osobám zřízeným státem, kraji a obcemi | BP128: 113889.42 | BQ128: 129389.249 | BR128: 127788.1381 | BS128: =BR128/BQ128 -> 0.9876256261 | BT128: 67358.42 | BU128: 36180.852 | BV128: 34579.74106 | BW128: =BV128/BU128 -> 0.9557470084 | BX128: 46531 | BY128: 93208.397 | BZ128: 93208.397 | CA128: =BZ128/BY128 -> 1
E129: 54 | G129: Neinvestiční transfery obyvatelstvu | J129: 35581.75 | K129: 32285.61303 | L129: 27421.49851 | M129: 0.8493411132 | N129: 19454.75 | O129: 22422.73803 | P129: 19633.81708 | Q129: 0.8756208565 | R129: 16127 | S129: 9862.875 | T129: 7787.68143 | U129: 0.7895954709 | X129: 5334 | Z129: Neinvestiční transfery veřejným výzkumným institucím | AC129: 0 | AD129: 58126.4 | AE129: 56090.09229 | AF129: =AE129/AD129 -> 0.9649675929 | AG129: 0 | AH129: 58126.4 | AI129: 56090.09229 | AJ129: =AI129/AH129 -> 0.9649675929 | AK129: 0 | AL129: 0 | AM129: 0 | AN129: x | AR129: 5334 | AT129: Neinvestiční transfery veřejným výzkumným institucím | AW129: 0 | AX129: 1388.9 | AY129: 713.09186 | AZ129: 0.5134220318 | BA129: 0 | BB129: 1388.9 | BC129: 713.09186 | BD129: 0.5134220318 | BH129: x | BK129: 5334 | BM129: Neinvestiční transfery veřejným výzkumným institucím | BP129: 0 | BQ129: 186.5 | BR129: 159.19736 | BS129: =BR129/BQ129 -> 0.8536051475 | BT129: 0 | BU129: 186.5 | BV129: 159.19736 | BW129: =BV129/BU129 -> 0.8536051475 | BX129: 0 | BY129: 0 | BZ129: 0 | CA129: 0
A130: =IF(COUNTBLANK(C130:IV130)=254,"odstr",IF(AND($A$1="TISK",SUM(J105:U105)=0),"odstr","OK")) ->  | B130: OK | E130: 5511 | G130: Neinvestiční transfery mezinárodním organizacím | J130: 646 | K130: 5 | L130: 5 | M130: 1 | N130: 646 | O130: 5 | P130: 5 | Q130: 1 | R130: 0 | S130: 0 | T130: 0 | U130: x | X130: 5335 | Z130: Neinvestiční transfery veřejným zdravotnickým zařízením zřízeným státem, kraji a obcemi | AC130: 0 | AD130: 0 | AE130: 0 | AF130: x | AG130: 0 | AH130: 0 | AI130: 0 | AJ130: x | AK130: 0 | AL130: 0 | AM130: 0 | AN130: x | AR130: 5335 | AT130: Neinvestiční transfery veřejným zdravotnickým zařízením zřízeným státem, kraji a obcemi | BH130: x | BK130: 5335 | BM130: Neinvestiční transfery veřejným zdravotnickým zařízením zřízeným státem, kraji a obcemi | BP130: 0 | BQ130: =SUM(BU130,BY130) -> 0 | BR130: 0 | BS130: 0 | BT130: 0 | BU130: 0 | BV130: 0 | BW130: 0 | BX130: 0 | BY130: 0 | BZ130: 0 | CA130: 0
A131: =IF(COUNTBLANK(C131:IV131)=254,"odstr",IF(AND($A$1="TISK",SUM(J106:U106)=0),"odstr","OK")) ->  | B131: OK | E131: 5513 | G131: Vratky neoprávněně použitých nebo zadržených prostředků Evropských společenství | J131: 0 | K131: 0 | L131: 0 | M131: x | N131: 0 | O131: 0 | P131: 0 | Q131: x | R131: 0 | S131: 0 | T131: 0 | U131: x | X131: 5336 | Z131: Neinvestiční dotace zřízeným příspěvkovým organizacím | AC131: 22422218.86 | AD131: 47185696.63 | AE131: 47142483.32 | AF131: =AE131/AD131 -> 0.9990841861 | AG131: 10506641.65 | AH131: 15815439.38 | AI131: 15779922.81 | AJ131: =AI131/AH131 -> 0.99775431 | AK131: 11915577.21 | AL131: 31370257.25 | AM131: 31362560.51 | AN131: =AM131/AL131 -> 0.9997546484 | AR131: 5336 | AT131: Neinvestiční dotace zřízeným příspěvkovým organizacím | AW131: =BA131+BE131 -> 25304350.54 | AX131: 56627349.11 | AY131: 56572323.22 | AZ131: =AY131/AX131 -> 0.9990282806 | BA131: 12116238.26 | BB131: 20064507.08 | BC131: 20039011.87 | BD131: =BC131/BB131 -> 0.9987293377 | BE131: 13188112.28 | BF131: 36562842.03 | BG131: 36533311.35 | BH131: =BG131/BF131 -> 0.9991923309 | BK131: 5336 | BM131: Neinvestiční dotace zřízeným příspěvkovým organizacím | BP131: 29375654.58 | BQ131: 59662055.73 | BR131: 59460253.87 | BS131: =BR131/BQ131 -> 0.9966175845 | BT131: 14071328.42 | BU131: 18717077.16 | BV131: 18628240.5 | BW131: =BV131/BU131 -> 0.9952537108 | BX131: 15304326.16 | BY131: 40944978.57 | BZ131: 40832013.37 | CA131: =BZ131/BY131 -> 0.9972410487
A132: =IF(COUNTBLANK(C132:IV132)=254,"odstr",IF(AND($A$1="TISK",SUM(J107:U107)=0),"odstr","OK")) ->  | B132: OK | E132: 5531 | G132: Peněžní dary do zahraničí | J132: 0 | K132: 0 | L132: 0 | M132: x | N132: 0 | O132: 0 | P132: 0 | Q132: x | R132: 0 | S132: 0 | T132: 0 | U132: x | X132: 5339 | Z132: Neinvestiční příspěvky cizím příspěvkovým organizacím | AC132: 23550498 | AD132: 67201489.17 | AE132: 67196015.63 | AF132: =AE132/AD132 -> 0.9999185504 | AG132: 28590.215 | AH132: 43329.25928 | AI132: 39007.2748 | AJ132: =AI132/AH132 -> 0.9002525187 | AK132: 23521907.79 | AL132: 67158159.91 | AM132: 67157008.36 | AN132: =AM132/AL132 -> 0.9999828531 | AR132: 5339 | AT132: Neinvestiční příspěvky cizím příspěvkovým organizacím | AW132: 27261556.95 | AX132: 79251061.69 | AY132: 79221967.15 | AZ132: =AY132/AX132 -> 0.9996328815 | BA132: 26825.535 | BB132: 45560.52246 | BC132: 39675.8743 | BD132: =BC132/BB132 -> 0.8708388789 | BE132: 27234731.41 | BF132: 79205501.16 | BG132: 79182291.28 | BH132: =BG132/BF132 -> 0.9997069662 | BK132: 5339 | BM132: Neinvestiční příspěvky cizím příspěvkovým organizacím | BP132: 32045880.17 | BQ132: 91996404.54 | BR132: 91943603.22 | BS132: =BR132/BQ132 -> 0.9994260501 | BT132: 28656.5996 | BU132: 47815.3132 | BV132: 41093.41258 | BW132: =BV132/BU132 -> 0.8594195004 | BX132: 32017223.57 | BY132: 91948589.23 | BZ132: 91902509.8 | CA132: =BZ132/BY132 -> 0.9994988567
E133: 5532 | G133: Ostatní neinvestiční transfery do zahraničí | J133: 943.4 | K133: 3857.762 | L133: 0 | M133: 0 | N133: 50 | O133: 0 | P133: 0 | Q133: x | R133: 893.4 | S133: 3857.762 | T133: 0 | U133: 0 | X133: 534 | Z133: Převody vlastním fondům a ve vztahu k útvarům bez plné právní subjektivity | AC133: =SUM(AC134:AC136) -> 0 | AD133: =SUM(AD134:AD136) -> 0 | AE133: 0 | AF133: x | AG133: 0 | AH133: =SUM(AH134:AH136) -> 0 | AI133: 0 | AJ133: x | AK133: 0 | AN133: x | AR133: 534 | AS133: Převody vlastním fondům a ve vztahu k útvarům bez plné právní subjektivity | AW133: =BA133+BE133 -> 0 | AX133: =BB133+BF133 -> 0 | AY133: =BC133+BG133 -> 0 | AZ133: x | BA133: =SUM(BA134:BA136) -> 0 | BB133: 0 | BC133: 0 | BD133: x | BH133: x | BK133: 534 | BL133: Převody vlastním fondům a ve vztahu k útvarům bez plné právní subjektivity | BP133: 0 | BQ133: 0 | BR133: 0 | BT133: =SUM(BT134:BT136) -> 0 | BU133: =SUM(BU134:BU136) -> 0 | BV133: =SUM(BV134:BV136) -> 0 | BW133: 0 | BX133: =SUM(BX134:BX136) -> 0 | BY133: =SUM(BY134:BY136) -> 0 | BZ133: =SUM(BZ134:BZ136) -> 0 | CA133: 0
A134: =IF(COUNTBLANK(C134:IV134)=254,"odstr",IF(AND($A$1="TISK",SUM(J108:U108)=0),"odstr","OK")) ->  | B134: OK | E134: 55 | G134: Neinvestiční transfery do zahraničí | J134: 1589.4 | K134: 3862.762 | L134: 5 | M134: 0.00129441058 | N134: 696 | O134: 5 | P134: 5 | Q134: 1 | R134: 893.4 | S134: 3857.762 | T134: 0 | U134: 0 | X134: 5341 | Z134: Převody vlastním fondům hospodářské (podnikatelské) činnosti | AF134: x | AJ134: x | AN134: x | AR134: 5341 | AT134: Převody vlastním fondům hospodářské (podnikatelské) činnosti | BH134: x | BK134: 5341 | BM134: Převody vlastním fondům hospodářské (podnikatelské) činnosti | BP134: 0 | BQ134: 0 | BR134: 0 | BS134: 0 | BT134: 0 | BU134: 0 | BV134: 0 | BW134: 0 | BX134: 0 | BY134: 0 | BZ134: 0 | CA134: 0
A135: =IF(COUNTBLANK(C135:IV135)=254,"odstr",IF(AND($A$1="TISK",SUM(J109:U109)=0),"odstr","OK")) ->  | B135: OK | E135: 5612 | G135: Neinvestiční půjčené prostředky nefinančním podnikatelským subjektům – fyzickým osobám | J135: 0 | K135: 0 | L135: 0 | M135: x | N135: 0 | O135: 0 | P135: 0 | Q135: x | R135: 0 | S135: 0 | T135: 0 | U135: x | X135: 5342 | Z135: Převody fondu kulturních a sociálních potřeb a sociálnímu fondu obcí a krajů | AF135: x | AJ135: x | AN135: x | AR135: 5342 | AT135: Převody fondu kulturních a sociálních potřeb a sociálnímu fondu obcí a krajů | BH135: x | BK135: 5342 | BM135: Převody fondu kulturních a sociálních potřeb a sociálnímu fondu obcí a krajů | BP135: 0 | BQ135: 0 | BR135: 0 | BS135: 0 | BT135: 0 | BU135: 0 | BV135: 0 | BW135: 0 | BX135: 0 | BY135: 0 | BZ135: 0 | CA135: 0
A136: =IF(COUNTBLANK(C136:IV136)=254,"odstr",IF(AND($A$1="TISK",SUM(J110:U110)=0),"odstr","OK")) ->  | B136: OK | E136: 5613 | G136: Neinvestiční půjčené prostředky nefinančním podnikatelským subjektům – právnickým osobám | J136: 0 | K136: 0 | L136: 0 | M136: x | N136: 0 | O136: 0 | P136: 0 | Q136: x | R136: 0 | S136: 0 | T136: 0 | U136: x | X136: 5343 | Z136: Převody jiným vlastním fondům a účtům nemajícím charakter veřejných rozpočtů | AF136: x | AJ136: x | AN136: x | AR136: 5343 | AT136: Převody jiným vlastním fondům a účtům nemajícím charakter veřejných rozpočtů | BH136: x | BK136: 5343 | BM136: Převody jiným vlastním fondům a účtům nemajícím charakter veřejných rozpočtů | BP136: 0 | BQ136: 0 | BR136: 0 | BS136: 0 | BT136: 0 | BU136: 0 | BV136: 0 | BW136: 0 | BX136: 0 | BY136: 0 | BZ136: 0 | CA136: 0
E137: 5615 | G137: Neinvestiční půjčené prostředky vybraným podnikatelským subjektům ve vlastnictví státu | J137: 0 | K137: 0 | L137: 0 | M137: x | N137: 0 | O137: 0 | P137: 0 | Q137: x | R137: 0 | S137: 0 | T137: 0 | U137: x | X137: 536 | Z137: Ostatní neinvestiční transfery jiným veřejným rozpočtům, platby daní a další povinné platby | AC137: =SUM(AC138:AC145) -> 1274.659 | AD137: =SUM(AD138:AD145) -> 14116.26743 | AE137: =SUM(AE138:AE145) -> 6937.72054 | AF137: =AE137/AD137 -> 0.4914698998 | AG137: =SUM(AG138:AG145) -> 1274.659 | AH137: =SUM(AH138:AH145) -> 6352.71843 | AI137: =SUM(AI138:AI145) -> 5279.01654 | AJ137: =AI137/AH137 -> 0.8309854432 | AK137: 0 | AL137: =SUM(AL138:AL145) -> 7763.549 | AM137: =SUM(AM138:AM145) -> 1658.704 | AN137: =AM137/AL137 -> 0.2136528023 | AR137: 536 | AS137: Ostatní neinvestiční transfery jiným veřejným rozpočtům, platby daní a další povinné platby | AW137: =BA137+BE137 -> 541.611 | AX137: 17997.61114 | AY137: 11771.85088 | AZ137: =AY137/AX137 -> 0.6540785212 | BA137: =SUM(BA138:BA145) -> 541.611 | BB137: =SUM(BB138:BB145) -> 10905.63534 | BC137: =SUM(BC138:BC145) -> 10782.36083 | BD137: =BC137/BB137 -> 0.988696256 | BE137: 0 | BF137: =SUM(BF138:BF145) -> 7091.9758 | BG137: =SUM(BG138:BG145) -> 989.49005 | BH137: =BG137/BF137 -> 0.1395224798 | BK137: 536 | BL137: Ostatní neinvestiční transfery jiným veřejným rozpočtům, platby daní a další povinné platby | BP137: 286.04 | BQ137: 42930.45315 | BR137: 37059.09978 | BS137: =BR137/BQ137 -> 0.8632357001 | BT137: =SUM(BT138:BT145) -> 286.04 | BU137: =SUM(BU138:BU145) -> 15388.74981 | BV137: =SUM(BV138:BV145) -> 16681.86495 | BW137: =BV137/BU137 -> 1.084029902 | BX137: =SUM(BX138:BX145) -> 0 | BY137: =SUM(BY138:BY145) -> 27541.70334 | BZ137: =SUM(BZ138:BZ145) -> 20377.23483 | CA137: =BZ137/BY137 -> 0.7398683581
A138: =IF(COUNTBLANK(C138:IV138)=254,"odstr",IF(AND($A$1="TISK",SUM(J111:U111)=0),"odstr","OK")) ->  | B138: OK | E138: 5621 | G138: Neinvestiční půjčené prostředky obecně prospěšným společnostem | J138: 0 | K138: 757.49 | L138: 757.49 | M138: 1 | N138: 0 | O138: 757.49 | P138: 757.49 | Q138: 1 | R138: 0 | S138: 0 | T138: 0 | U138: x | X138: 5361 | Z138: Nákup kolků | AC138: 21 | AD138: 18.8 | AE138: 14 | AF138: 0.7446808511 | AG138: 21 | AH138: 18.8 | AI138: 14 | AJ138: 0.7446808511 | AK138: 0 | AL138: 0 | AM138: 0 | AN138: x | AR138: 5361 | AT138: Nákup kolků | AW138: 21 | AX138: 16 | AY138: 9 | AZ138: 0.5625 | BA138: 21 | BB138: 16 | BC138: 9 | BD138: 0.5625 | BH138: x | BK138: 5361 | BM138: Nákup kolků | BP138: 21 | BQ138: 25 | BR138: 18.5 | BS138: 0.74 | BT138: 21 | BU138: 25 | BV138: 18.5 | BW138: 0.74 | BX138: 0 | BY138: 0 | BZ138: 0 | CA138: 0
B139: OK | E139: 5622 | G139: Neinvestiční půjčené prostředky občanským sdružením | J139: 3000 | K139: 7225.479 | L139: 6225.479 | M139: 0.861600871 | N139: 0 | O139: 225.479 | P139: 225.479 | Q139: 1 | R139: 3000 | S139: 7000 | T139: 6000 | U139: 0.8571428571 | X139: 5362 | Z139: Platby daní a poplatků státnímu rozpočtu | AC139: 820.5 | AD139: 2494.46223 | AE139: 1637.01423 | AF139: 0.6562593774 | AG139: 820.5 | AH139: 2494.46223 | AI139: 1637.01423 | AJ139: 0.6562593774 | AK139: 0 | AL139: 0 | AM139: 0 | AN139: x | AR139: 5362 | AT139: Platby daní a poplatků státnímu rozpočtu | AW139: 135.5 | AX139: 1171.105 | AY139: 1077.79 | AZ139: 0.9203188442 | BA139: 135.5 | BB139: 1155.705 | BC139: 1063.225 | BD139: 0.9199795796 | BE139: 0 | BF139: 15.4 | BG139: 14.565 | BH139: =BG139/BF139 -> 0.9457792208 | BK139: 5362 | BM139: Platby daní a poplatků státnímu rozpočtu | BP139: 101.9 | BQ139: 358.22718 | BR139: 1783.82946 | BS139: 4.979603893 | BT139: 101.9 | BU139: 358.22718 | BV139: 1783.82946 | BW139: 4.979603893 | BX139: 0 | BY139: 0 | BZ139: 0 | CA139: 0
B140: OK | E140: 5629 | G140: Ostatní neinvestiční půjčené prostředky neziskovým a podobným organizacím | J140: 200 | K140: 186.23 | L140: 186.23 | M140: 1 | N140: 200 | O140: 186.23 | P140: 186.23 | Q140: 1 | R140: 0 | S140: 0 | T140: 0 | U140: x | X140: 5363 | Z140: Úhrady sankcí jiným rozpočtům | AC140: 1.559 | AD140: 9677.985 | AE140: 3509.07646 | AF140: 0.3625833745 | AG140: 1.559 | AH140: 1942.576 | AI140: 1874.70646 | AJ140: 0.9650620928 | AK140: 0 | AL140: 7735.409 | AM140: 1634.37 | AN140: =AM140/AL140 -> 0.2112842385 | AR140: 5363 | AT140: Úhrady sankcí jiným rozpočtům | AW140: 2.1 | AX140: 7244.04836 | AY140: 1143.42865 | AZ140: 0.1578438731 | BA140: 2.1 | BB140: 618.83936 | BC140: 619.21965 | BD140: 1.000614521 | BE140: 0 | BF140: 6625.209 | BG140: 524.209 | BH140: =BG140/BF140 -> 0.07912339067 | BK140: 5363 | BM140: Úhrady sankcí jiným rozpočtům | BP140: 118 | BQ140: 29771.255 | BR140: 23552.15334 | BS140: 0.7911038127 | BT140: 118 | BU140: 9565.68 | BV140: 9447.57834 | BW140: 0.9876536054 | BX140: 0 | BY140: 20205.575 | BZ140: 14104.575 | CA140: =BZ140/BY140 -> 0.6980536312
B141: OK | E141: 5649 | G141: Ostatní neinvestiční půjčené prostředky veřejným rozpočtům územní úrovně | J141: 0 | K141: 0 | L141: 0 | M141: x | N141: 0 | O141: 0 | P141: 0 | Q141: x | R141: 0 | S141: 0 | T141: 0 | U141: x | X141: 5364 | Z141: Vratky veřejným rozpočtům ústřední úrovně transferů poskytnutých v minulých rozpočtových obdobích | AC141: 201.7 | AD141: 1673.7582 | AE141: 1547.66785 | AF141: 0.9246663287 | AG141: 201.7 | AH141: 1659.6182 | AI141: 1533.53385 | AJ141: 0.9240280988 | AK141: 0 | AL141: 14.14 | AM141: 14.134 | AN141: =AM141/AL141 -> 0.9995756719 | AR141: 5364 | AT141: Vratky veřejným rozpočtům ústřední úrovně transferů poskytnutých v minulých rozpočtových obdobích | AW141: 227.3 | AX141: 3480.34858 | AY141: 3472.36383 | AZ141: 0.9977057614 | BA141: 227.3 | BB141: 3039.38178 | BC141: 3031.39778 | BD141: 0.99737315 | BE141: 0 | BF141: 440.9668 | BG141: 440.96605 | BH141: =BG141/BF141 -> 0.9999982992 | BK141: 5364 | BM141: Vratky veřejným rozpočtům ústřední úrovně transferů poskytnutých v minulých rozpočtových obdobích | BP141: 16.14 | BQ141: 12671.92097 | BR141: 11630.06698 | BS141: 0.9177824741 | BT141: 16.14 | BU141: 5349.79263 | BV141: 5370.40715 | BW141: 1.003853331 | BX141: 0 | BY141: 7322.12834 | BZ141: 6259.65983 | CA141: =BZ141/BY141 -> 0.8548962186
B142: OK | E142: 5651 | G142: Neinvestiční půjčené prostředky zřízeným příspěvkovým organizacím | J142: 66582.9 | K142: 99349.48118 | L142: 47340.67136 | M142: 0.4765064779 | N142: 28212.9 | O142: 38653.68627 | P142: 18350.80067 | Q142: 0.4747490457 | R142: 38370 | S142: 60695.79491 | T142: 28989.87069 | U142: 0.4776256861 | X142: 5365 | Z142: Výdaje z finančního vypořádání minulých let mezi krajem a obcemi | AC142: 74 | AD142: 251.262 | AE142: 229.962 | AF142: 0.9152279294 | AG142: 74 | AH142: 237.262 | AI142: 219.762 | AJ142: 0.9262418761 | AK142: 0 | AL142: 14 | AM142: 10.2 | AN142: =AM142/AL142 -> 0.7285714286 | AR142: 5365 | AT142: Platby daní a poplatků krajům, obcím a státním fondům | AW142: 72.111 | AX142: 103.931 | AY142: 88.12 | AZ142: 0.8478702216 | BA142: 72.111 | BB142: 93.531 | BC142: 78.37 | BD142: 0.8379040104 | BE142: 0 | BF142: 10.4 | BG142: 9.75 | BH142: =BG142/BF142 -> 0.9375 | BK142: 5365 | BM142: Platby daní a poplatků krajům, obcím a státním fondům | BP142: 29 | BQ142: 104.05 | BR142: 74.55 | BS142: 0.7164824604 | BT142: 29 | BU142: 90.05 | BV142: 61.55 | BW142: 0.6835091616 | BX142: 0 | BY142: 14 | BZ142: 13 | CA142: =BZ142/BY142 -> 0.9285714286
AR143: 5366 | AT143: Výdaje z finančního vypořádání minulých let mezi krajem a obcemi | AW143: 0 | AX143: 5864.5782 | AY143: 5885.9124 | AZ143: 1.003637806 | BB143: 5864.5782 | BC143: 5885.9124 | BD143: 1.003637806 | BK143: 5366 | BM143: Výdaje z finančního vypořádání minulých let mezi krajem a obcemi | BP143: 0 | BQ143: 0 | BR143: 0 | BS143: 0 | CA143: 0
AR144: 5367 | AT144: Výdaje z finančního vypořádání minulých let mezi obcemi | AW144: 83.6 | AX144: 117.6 | AY144: 95.236 | AZ144: 0.809829932 | BA144: 83.6 | BB144: 117.6 | BC144: 95.236 | BD144: 0.809829932 | BK144: 5367 | BM144: Výdaje z finančního vypořádání minulých let mezi obcemi | BP144: 0 | BQ144: 0 | BR144: 0 | BS144: 0 | CA144: 0
A145: =IF(COUNTBLANK(C145:IV145)=254,"odstr",IF(AND($A$1="TISK",SUM(J116:U116)=0),"odstr","OK")) ->  | B145: OK | E145: 5659 | G145: Neinvestiční půjčené prostředky ostatním příspěvkovým organizacím | J145: 0 | K145: 330 | L145: 330 | M145: 1 | N145: 0 | O145: 330 | P145: 330 | Q145: 1 | R145: 0 | S145: 0 | T145: 0 | U145: x | X145: 5369 | Z145: Ostatní neinvestiční transfery jiným veřejným rozpočtům | AC145: 155.9 | AD145: 0 | AE145: 0 | AF145: x | AG145: 155.9 | AH145: 0 | AI145: 0 | AJ145: x | AK145: 0 | AL145: 0 | AM145: 0 | AN145: x | AR145: 5369 | AT145: Ostatní neinvestiční transfery jiným veřejným rozpočtům | BH145: x | BK145: 5369 | BM145: Ostatní neinvestiční transfery jiným veřejným rozpočtům | BP145: 0 | BQ145: 0 | BR145: 0 | BS145: 0 | BT145: 0 | BU145: 0 | BV145: 0 | BW145: 0 | BX145: 0 | BY145: 0 | BZ145: 0 | CA145: 0
A146: =IF(COUNTBLANK(C146:IV146)=254,"odstr",IF(AND($A$1="TISK",SUM(J117:U117)=0),"odstr","OK")) ->  | B146: OK | E146: 5660 | G146: Neinvestiční půjčené prostředky obyvatelstvu | J146: 225 | K146: 0 | L146: 0 | M146: x | N146: 225 | O146: 0 | P146: 0 | Q146: x | R146: 0 | S146: 0 | T146: 0 | U146: x | X146: 54 | Y146: Neinvestiční transfery obyvatelstvu | Z146: Neinvestiční transfery obyvatelstvu | AC146: =AC147+AC151 -> 34036.5 | AD146: =AD147+AD151 -> 40507.87316 | AE146: =AE147+AE151 -> 34913.21658 | AF146: =AE146/AD146 -> 0.8618871804 | AG146: =AG147+AG151 -> 25920.5 | AH146: =AH147+AH151 -> 30717.00416 | AI146: =AI147+AI151 -> 26852.38847 | AJ146: =AI146/AH146 -> 0.8741864386 | AK146: =AK147+AK151 -> 8116 | AL146: =AL147+AL151 -> 9790.869 | AM146: =AM147+AM151 -> 8060.82811 | AN146: =AM146/AL146 -> 0.8233005783 | AR146: 54 | AS146: Neinvestiční transfery obyvatelstvu | AT146: Neinvestiční transfery obyvatelstvu | AW146: =BA146+BE146 -> 29443.28 | AX146: =BB146+BF146 -> 31299.99628 | AY146: =BC146+BG146 -> 26548.22771 | AZ146: =AY146/AX146 -> 0.8481862896 | BA146: =BA147+BA151 -> 22044.28 | BB146: =BB147+BB151 -> 21364.66088 | BC146: =BC147+BC151 -> 19230.74931 | BD146: =BC146/BB146 -> 0.9001195674 | BE146: =BE147+BE151 -> 7399 | BF146: =BF147+BF151 -> 9935.3354 | BG146: =BG147+BG151 -> 7317.4784 | BH146: =BG146/BF146 -> 0.7365104554 | BK146: 54 | BL146: Neinvestiční transfery obyvatelstvu | BM146: Neinvestiční transfery obyvatelstvu | BP146: =SUM(BT146,BX146) -> 30419.8 | BQ146: =SUM(BU146,BY146) -> 30444.02498 | BR146: 20781.06948 | BS146: =BR146/BQ146 -> 0.6825992783 | BT146: =SUM(BT147,BT151) -> 21875.8 | BU146: =SUM(BU147,BU151) -> 20285.75489 | BV146: =SUM(BV147,BV151) -> 13474.76902 | BW146: =BV146/BU146 -> 0.6642478475 | BX146: =SUM(BX147,BX151) -> 8544 | BY146: =SUM(BY147,BY151) -> 10158.27009 | BZ146: =SUM(BZ147,BZ151) -> 7306.30046 | CA146: =BZ146/BY146 -> 0.7192465248
E147: 56 | G147: Neinvestiční půjčené prostředky | J147: 70007.9 | K147: 107848.6802 | L147: 54839.87036 | M147: 0.5084890262 | N147: 28637.9 | O147: 40152.88527 | P147: 19849.99967 | Q147: 0.4943604809 | R147: 41370 | S147: 67695.79491 | T147: 34989.87069 | U147: 0.5168691901 | X147: 542 | Z147: Náhrady placené obyvatelstvu | AC147: =SUM(AC148:AC150) -> 282.25 | AD147: =SUM(AD148:AD150) -> 886.42916 | AE147: =SUM(AE148:AE150) -> 349.4283 | AF147: 0.3941976593 | AG147: =AG148+AG149+AG150 -> 188.25 | AH147: =SUM(AH148:AH150) -> 504.27016 | AI147: =SUM(AI148:AI150) -> 274.4818 | AJ147: 0.5443149759 | AK147: =AK149 -> 94 | AL147: =AL149 -> 382.159 | AM147: =AM149 -> 74.9465 | AN147: =AM147/AL147 -> 0.1961133978 | AR147: 542 | AS147: Náhrady placené obyvatelstvu | AW147: 138.03 | AX147: 1229.25828 | AY147: 429.1118 | AZ147: =AY147/AX147 -> 0.349081887 | BA147: =SUM(BA148:BA150) -> 108.03 | BB147: =SUM(BB148:BB150) -> 664.82288 | BC147: =SUM(BC148:BC150) -> 269.7554 | BD147: =BC147/BB147 -> 0.4057552893 | BE147: =SUM(BE148:BE150) -> 30 | BF147: =SUM(BF148:BF150) -> 564.4354 | BG147: =SUM(BG148:BG150) -> 159.3564 | BH147: =BG147/BF147 -> 0.2823288546 | BK147: 542 | BL147: Náhrady placené obyvatelstvu | BP147: 245.9 | BQ147: 1203.38598 | BR147: 676.25511 | BS147: =BR147/BQ147 -> 0.5619602698 | BT147: =SUM(BT148:BT150) -> 180.9 | BU147: =SUM(BU148:BU150) -> 657.21589 | BV147: =SUM(BV148:BV150) -> 421.59065 | BW147: =BV147/BU147 -> 0.641479697 | BX147: =SUM(BX148:BX150) -> 65 | BY147: =SUM(BY148:BY150) -> 546.17009 | BZ147: =SUM(BZ148:BZ150) -> 254.66446 | CA147: =BZ147/BY147 -> 0.4662731714
A148: =IF(COUNTBLANK(C148:IV148)=254,"odstr",IF(AND($A$1="TISK",SUM(J118:U118)=0),"odstr","OK")) ->  | B148: OK | E148: 5901 | G148: Nespecifikované rezervy | J148: 4497965.042 | K148: 109816.1042 | L148: 0.5 | M148: 4.553066269e-06 | N148: 144930.642 | O148: 45397.30023 | P148: 0.5 | Q148: 1.101387081e-05 | R148: 4353034.4 | S148: 64418.80402 | T148: 0 | U148: 0 | X148: 5421 | Z148: Náhrady z úrazového pojištění | AC148: 10 | AD148: 25 | AE148: 26.5 | AF148: 1.06 | AG148: 10 | AH148: 25 | AI148: 26.5 | AJ148: 1.06 | AK148: 0 | AL148: 0 | AM148: 0 | AN148: x | AR148: 5421 | AT148: Náhrady z úrazového pojištění | AW148: 0 | AX148: 32.35 | AY148: 33 | AZ148: =AY148/AX148 -> 1.020092736 | BA148: 0 | BB148: 32.35 | BC148: 33 | BD148: =BC148/BB148 -> 1.020092736 | BH148: x | BK148: 5421 | BM148: Náhrady z úrazového pojištění | BP148: 25 | BQ148: 25 | BR148: 16.5 | BS148: =BR148/BQ148 -> 0.66 | BT148: 25 | BU148: 25 | BV148: 16.5 | BW148: =BV148/BU148 -> 0.66 | BX148: 0 | BY148: 0 | BZ148: 0 | CA148: 0
A149: =IF(COUNTBLANK(C149:IV149)=254,"odstr",IF(AND($A$1="TISK",SUM(J119:U119)=0),"odstr","OK")) ->  | B149: OK | E149: 5902 | G149: Ostatní výdaje z finančního vypořádání minulých let | J149: 0 | K149: 0.1 | L149: 0.06206 | M149: 0.6206 | N149: 0 | O149: 0.1 | P149: 0.06206 | Q149: 0.6206 | R149: 0 | S149: 0 | T149: 0 | U149: x | X149: 5424 | Z149: Náhrady mezd v době nemoci | AC149: 187.25 | AD149: 771.92916 | AE149: 283.1403 | AF149: 0.3667957044 | AG149: 93.25 | AH149: 389.77016 | AI149: 208.1938 | AJ149: 0.5341450459 | AK149: 94 | AL149: 382.159 | AM149: 74.9465 | AN149: =AM149/AL149 -> 0.1961133978 | AR149: 5424 | AT149: Náhrady mezd v době nemoci | AW149: 123.03 | AX149: 1196.90828 | AY149: 396.1118 | AZ149: =AY149/AX149 -> 0.3309458265 | BA149: 93.03 | BB149: 632.47288 | BC149: 236.7554 | BD149: =BC149/BB149 -> 0.3743328884 | BE149: 30 | BF149: 564.4354 | BG149: 159.3564 | BH149: =BG149/BF149 -> 0.2823288546 | BK149: 5424 | BM149: Náhrady mezd v době nemoci | BP149: 220.9 | BQ149: 1178.38598 | BR149: 659.75511 | BS149: =BR149/BQ149 -> 0.5598803119 | BT149: 155.9 | BU149: 632.21589 | BV149: 405.09065 | BW149: =BV149/BU149 -> 0.6407473403 | BX149: 65 | BY149: 546.17009 | BZ149: 254.66446 | CA149: =BZ149/BY149 -> 0.4662731714
A150: =IF(COUNTBLANK(C150:IV150)=254,"odstr",IF(AND($A$1="TISK",SUM(J121:U121)=0),"odstr","OK")) ->  | B150: OK | E150: 5909 | G150: Ostatní neinvestiční výdaje jinde nezařazené | J150: 909724.1807 | K150: 26312.46619 | L150: 3703.43458 | M150: 0.1407482884 | N150: 867982.7907 | O150: 17693.01855 | P150: 2872.3579 | Q150: 0.1623441411 | R150: 41741.39 | S150: 8619.44764 | T150: 831.07668 | U150: 0.0964187863 | X150: 5429 | Z150: Ostatní náhrady placené obyvatelstvu | AC150: 85 | AD150: 89.5 | AE150: 39.788 | AF150: 0.4445586592 | AG150: 85 | AH150: 89.5 | AI150: 39.788 | AJ150: 0.4445586592 | AK150: 0 | AL150: 0 | AM150: 0 | AN150: x | AR150: 5429 | AT150: Ostatní náhrady placené obyvatelstvu | AW150: 15 | AX150: 0 | AY150: 0 | AZ150: x | BA150: 15 | BB150: 0 | BC150: 0 | BD150: x | BH150: x | BK150: 5429 | BM150: Ostatní náhrady placené obyvatelstvu | BP150: 0 | BQ150: 0 | BR150: 0 | BS150: 0 | BT150: 0 | BU150: 0 | BV150: 0 | BW150: 0 | BX150: 0 | BY150: 0 | BZ150: 0 | CA150: 0
E151: 59 | G151: Ostatní neinvestiční výdaje | J151: 5407689.223 | K151: 136128.6704 | L151: 3703.99664 | M151: 0.02720952631 | N151: 1012913.433 | O151: 63090.41878 | P151: 2872.91996 | Q151: 0.04553654922 | R151: 4394775.79 | S151: 73038.25166 | T151: 831.07668 | U151: 0.0113786497 | X151: 549 | Z151: Ostatní neinvestiční transfery obyvatelstvu | AC151: =SUM(AC152:AC156) -> 33754.25 | AD151: =SUM(AD152:AD156) -> 39621.444 | AE151: =SUM(AE152:AE156) -> 34563.78828 | AF151: 0.8723505453 | AG151: =SUM(AG152:AG156) -> 25732.25 | AH151: =SUM(AH152:AH156) -> 30212.734 | AI151: =SUM(AI152:AI156) -> 26577.90667 | AJ151: 0.8796922076 | AK151: =SUM(AK152:AK156) -> 8022 | AL151: =SUM(AL152:AL156) -> 9408.71 | AM151: =SUM(AM152:AM156) -> 7985.88161 | AN151: =AM151/AL151 -> 0.8487754017 | AR151: 549 | AS151: Ostatní neinvestiční transfery obyvatelstvu | AW151: 29305.25 | AX151: 30070.738 | AY151: 26119.11591 | AZ151: =AY151/AX151 -> 0.8685891218 | BA151: =SUM(BA152:BA156) -> 21936.25 | BB151: =SUM(BB152:BB156) -> 20699.838 | BC151: =SUM(BC152:BC156) -> 18960.99391 | BD151: =BC151/BB151 -> 0.9159972126 | BE151: =SUM(BE152:BE156) -> 7369 | BF151: =SUM(BF152:BF156) -> 9370.9 | BG151: =SUM(BG152:BG156) -> 7158.122 | BH151: =BG151/BF151 -> 0.7638670779 | BK151: 549 | BL151: Ostatní neinvestiční transfery obyvatelstvu | BP151: 30173.9 | BQ151: 29240.639 | BR151: 20104.81437 | BS151: =BR151/BQ151 -> 0.6875641251 | BT151: =SUM(BT152:BT156) -> 21694.9 | BU151: =SUM(BU152:BU156) -> 19628.539 | BV151: =SUM(BV152:BV156) -> 13053.17837 | BW151: =BV151/BU151 -> 0.6650101859 | BX151: =SUM(BX152:BX156) -> 8479 | BY151: =SUM(BY152:BY156) -> 9612.1 | BZ151: =SUM(BZ152:BZ156) -> 7051.636 | CA151: =BZ151/BY151 -> 0.7336207488
A152: =IF(COUNTBLANK(C152:IV152)=254,"odstr",IF(AND($A$1="TISK",SUM(J123:U123)=0),"odstr","OK")) ->  | B152: OK | E152: 5 | G152: Běžné výdaje | J152: 68369775.36 | K152: 130058413 | L152: 128801303.8 | M152: 0.9903342721 | N152: 25720178.49 | O152: 32761511.9 | P152: 31909918.22 | Q152: 0.9740062765 | R152: 42649596.87 | S152: 97296901.12 | T152: 96891385.57 | U152: 0.9958321843 | X152: 5491 | Z152: Stipendia studentům a doktorandům | AC152: 5516 | AD152: 7125 | AE152: 6522.28 | AF152: 0.9154077193 | AG152: 2192 | AH152: 2238 | AI152: 2009.28 | AJ152: 0.8978016086 | AK152: 3324 | AL152: 4887 | AM152: 4513 | AN152: 0.9234704318 | AR152: 5491 | AT152: Stipendia studentům a doktorandům | AW152: 5786 | AX152: 7148 | AY152: 6797.3 | AZ152: 0.9509373251 | BA152: 2462 | BB152: 2464 | BC152: 2296.8 | BD152: 0.9321428571 | BE152: 3324 | BF152: 4684 | BG152: 4500.5 | BH152: 0.960824082 | BK152: 5491 | BM152: Stipendia studentům a doktorandům | BP152: 5460 | BQ152: 5951.5 | BR152: 5870.5 | BS152: 0.9863899857 | BT152: 2130 | BU152: 1720 | BV152: 1639 | BW152: 0.9529069767 | BX152: 3330 | BY152: 4231.5 | BZ152: 4231.5 | CA152: 1
A153: =IF(COUNTBLANK(C153:IV153)=254,"odstr",IF(AND($A$1="TISK",SUM(J125:U125)=0),"odstr","OK")) ->  | B153: OK | E153: 6111 | G153: Programové vybavení | J153: 588 | K153: 1551.168 | L153: 1357.15157 | M153: 0.8749223617 | N153: 588 | O153: 1400.228 | P153: 1206.21617 | Q153: 0.8614426865 | R153: 0 | S153: 150.94 | T153: 150.9354 | U153: 0.9999695243 | X153: 5492 | Z153: Dary obyvatelstvu | AC153: 14205.8 | AD153: 16591.713 | AE153: 15254.82081 | AF153: 0.9194241011 | AG153: 13873.8 | AH153: 16125.013 | AI153: 14835.52081 | AJ153: 0.9200315566 | AK153: 332 | AL153: 466.7 | AM153: 419.3 | AN153: 0.898435826 | AR153: 5492 | AT153: Dary obyvatelstvu | AW153: 12332.3 | AX153: 8510.706 | AY153: 7671.90364 | AZ153: 0.9014415067 | BA153: 11918.3 | BB153: 8110.206 | BC153: 7271.40364 | BD153: 0.8965744693 | BE153: 414 | BF153: 400.5 | BG153: 400.5 | BH153: 1 | BK153: 5492 | BM153: Dary obyvatelstvu | BP153: 10270.08 | BQ153: 8160.693 | BR153: 6683.386 | BS153: 0.8189728495 | BT153: 10036.08 | BU153: 8025.693 | BV153: 6548.386 | BW153: 0.8159277959 | BX153: 234 | BY153: 135 | BZ153: 135 | CA153: 1
A154: =IF(COUNTBLANK(C154:IV154)=254,"odstr",IF(AND($A$1="TISK",SUM(J126:U126)=0),"odstr","OK")) ->  | B154: OK | E154: 6112 | G154: Ocenitelná práva | J154: 0 | K154: 0 | L154: 0 | M154: x | N154: 0 | O154: 0 | P154: 0 | Q154: x | R154: 0 | S154: 0 | T154: 0 | U154: x | X154: 5493 | Z154: Účelové neinvestiční transfery nepodnikajícím fyzickým osobám | AC154: 1682.9 | AD154: 3126.917 | AE154: 2820.48861 | AF154: 0.9020030305 | AG154: 457.9 | AH154: 1830.167 | AI154: 1532.106 | AJ154: 0.8371399987 | AK154: 1225 | AL154: 1296.75 | AM154: 1288.38261 | AN154: 0.9935474147 | AR154: 5493 | AT154: Účelové neinvestiční transfery nepodnikajícím fyzickým osobám | AW154: 1016 | AX154: 1221.292 | AY154: 961.445 | AZ154: 0.7872359763 | BA154: 251 | BB154: 341.292 | BC154: 227.395 | BD154: 0.666276971 | BE154: 765 | BF154: 880 | BG154: 734.05 | BH154: 0.8341477273 | BK154: 5493 | BM154: Účelové neinvestiční transfery nepodnikajícím fyzickým osobám | BP154: 1028 | BQ154: 685.843 | BR154: 483.363 | BS154: 0.7047720834 | BT154: 188 | BU154: 249.843 | BV154: 131.363 | BW154: 0.5257821912 | BX154: 840 | BY154: 436 | BZ154: 352 | CA154: 0.8073394495
A155: =IF(COUNTBLANK(C155:IV155)=254,"odstr",IF(AND($A$1="TISK",SUM(J127:U127)=0),"odstr","OK")) ->  | B155: OK | E155: 6113 | G155: Nehmotné výsledky výzkumné a obdobné činnosti | J155: 0 | K155: 0 | L155: 0 | M155: x | N155: 0 | O155: 0 | P155: 0 | Q155: x | R155: 0 | S155: 0 | T155: 0 | U155: x | X155: 5494 | Z155: Neinvestiční transfery obyvatelstvu nemající charakter daru | AC155: 1608 | AD155: 1699.452 | AE155: 1544.9909 | AF155: 0.9091112311 | AG155: 702 | AH155: 916.192 | AI155: 849.5619 | AJ155: 0.9272749598 | AK155: 906 | AL155: 783.26 | AM155: 695.429 | AN155: 0.8878648214 | AR155: 5494 | AT155: Neinvestiční transfery obyvatelstvu nemající charakter daru | AW155: 1268 | AX155: 1625.55 | AY155: 1202.0632 | AZ155: 0.7394809142 | BA155: 437 | BB155: 542.15 | BC155: 438.4212 | BD155: 0.8086714009 | BE155: 831 | BF155: 1083.4 | BG155: 763.642 | BH155: 0.7048569319 | BK155: 5494 | BM155: Neinvestiční transfery obyvatelstvu nemající charakter daru | BP155: 1645 | BQ155: 1425.614 | BR155: 1060.28049 | BS155: 0.7437360253 | BT155: 605 | BU155: 414.014 | BV155: 241.74449 | BW155: 0.5839041433 | BX155: 1040 | BY155: 1011.6 | BZ155: 818.536 | CA155: 0.8091498616
A156: =IF(COUNTBLANK(V156:IV156)=254,"odstr",IF(AND($A$1="TISK",SUM(J128:U128)=0),"odstr","OK")) ->  | B156: OK | E156: 6119 | G156: Ostatní nákupy dlouhodobého nehmotného majetku | J156: 10420 | K156: 6990.2 | L156: 2047.4988 | M156: 0.2929099024 | N156: 10420 | O156: 6990.2 | P156: 2047.4988 | Q156: 0.2929099024 | R156: 0 | S156: 0 | T156: 0 | U156: x | X156: 5499 | Z156: Ostatní neinvestiční transfery obyvatelstvu | AC156: 10741.55 | AD156: 11078.362 | AE156: 8421.20796 | AF156: 0.7601491953 | AG156: 8506.55 | AH156: 9103.362 | AI156: 7351.43796 | AJ156: 0.8075519748 | AK156: 2235 | AL156: 1975 | AM156: 1069.77 | AN156: 0.5416556962 | AR156: 5499 | AT156: Ostatní neinvestiční transfery obyvatelstvu | AW156: 8902.95 | AX156: 11565.19 | AY156: 9486.40407 | AZ156: 0.8202549262 | BA156: 6867.95 | BB156: 9242.19 | BC156: 8726.97407 | BD156: 0.9442539128 | BE156: 2035 | BF156: 2323 | BG156: 759.43 | BH156: 0.3269177787 | BK156: 5499 | BM156: Ostatní neinvestiční transfery obyvatelstvu | BP156: 11770.82 | BQ156: 13016.989 | BR156: 6007.28488 | BS156: 0.461495733 | BT156: 8735.82 | BU156: 9218.989 | BV156: 4492.68488 | BW156: 0.4873294545 | BX156: 3035 | BY156: 3798 | BZ156: 1514.6 | CA156: 0.3987888362
